Workbook

Sheet COVER
C2: Cover
C4: NAVIGATION
C6: COMMENTS
C9: Bonneville Power Administration
C10: 6P Energy Conservation Standards Savings Model
C11: Furnace Fans
C13: Product Description
C14: A furnace fan is an electrically-powered device used in residential buildings for the purposes of circulating air through duct work. A furnace fan consists of a fan motor and its controls, an impeller, and a housing, typically as an assembly incorporated in a residential central heating, ventilation, and air conditioning (HVAC) product.
C16: Standard Compliance Year
C17: 2019; per the DOE 2014 Final Rule
C19: Major changes from previous rulemaking (2009 effective standard)
C20: No previous energy conservation standards for furnace fans exist.
C22: 6P Baseline
C23: Because no previous standards exist, this measure is not reflected in the 6P.
C25: Prepared By:
C26: Navigant Consulting | D26: Cadeo Group
C27: One Market Street | Spear Street Tower, Suite 1200 | D27: 840 First Street, Suite 300
C28: San Francisco, CA 94105 | D28: Washington, DC 20002

Sheet Definitions
C2: Definitions
C4: NAVIGATION
C6: COMMENTS
C9: Average Megawatt (aMW) | D9: The average number of megawatts over a specified time period
C10: Adjustment to 6P Baseline | D10: Adjustment to reconcile the 6P projected energy consumption and the modeled consumption calculated using best available data.
C11: Department of Energy Aggregate Lifecycle Savings | D11: Sum of 'Total First Year Savings'. This accounts for the cumulative savings in accordance with DOE Carbon Accounting Practices.
C12: Department of Energy Notice of Proposed Rulemaking (DOE NOPR) | D12: Federal Register notice detailing analyses conducted by the DOE to establish proposed energy conservation standards.
C13: Efficiency Level (EL) | D13: The discrete efficiency ratings of a product. Each efficiency level is associated with a different UEC.
C14: Efficiency Level Distribution | D14: The mix of various equipment efficiencies shipped in a given year.
C15: Incremental Savings | D15: Savings due to the higher standards for units installed in a particular year. First year savings are highest following the standards compliance year while the stock turns over, after which first year savings are only attributed to shipments associated wit
C16: Governmental Regulatory Impact Model (GRIM) | D16: The industry cash flow model used by DOE to assess impacts on manufacturers due to proposed energy conservation standards
C17: Installed Unit Energy Consumption (Installed UEC) | D17: The average annual unit energy consumption of all installed units in a given year.
C18: Market Unit Energy Consumption (Market UEC) | D18: The average annual unit energy consumption of units shipped in a given year.
C19: National Impact Analysis (NIA) | D19: The energy impact analysis used by DOE to calculate energy savings associated with each standard.
C20: Pre-case | D20: The case representing 6P baseline assumptions where energy consumption due to the product accounts for shipment and shipment UEC by year, without the affect of standards announced following the development of the 6P.
C21: Post-case | D21: The case in which standards are implemented. If the 6P already captured the analyzed standard, the post-case will be the same as the pre-case.
C22: Product Class | D22: Product classificiation determined by product configuration, size, application, location, and other attributes that contribute to consumer utility. DOE is allowed to establish different standards for each product class.
C23: Product Class Distribution | D23: Market share/mix of each product class shipped in a given year.
C24: Product Lifetime | D24: The average time a given class of products stays in the field as part of the installed stock. Some products will last longer (delaying replacement) whereas others will fail and be retired earlier (accelerating replacement), but the lifetime represents th
C25: Shipments | D25: Sales of products. This may be presented by product class, efficiency distribution, or delineated by other metrics. Shipments may be attributed to new construction and/or replacements and retrofits.
C26: Sixth Power Plan (6P) | D26: The Pacific Northwest Resource Plan published by the Northwest Power Conservation Council. The 6P timeframe is from 2010-2015.
C27: Sixth Power Plan Baseline (6P Baseline) | D27: The 6P assumes equipment efficiency and shipment units in the region. When available, the 6P assumptions are the baseline for each standard impact analysis.
C28: Standard Compliance Year | D28: The year when the appliance standard goes into effect.
C29: Stock | D29: All units installed in previous years which remain in operation.
C30: Technical Support Document (TSD) | D30: TSDs are published by the DOE as companion documents to Federal Register notices (e.g., ANOPRs/preliminary analyses and NOPRs). The TSDs include technical detail that supports the notices. The final rule TSD includes the discussion of the Manufacturer I
C31: Cumulative Savings through 2034 | D31: The sum of incremental savings from 2010 through 2034
C32: Trial Standard Level (TSL) | D32: A proposed efficiency standard evaluated by DOE during the NOPR and Final Rule phase analyses. A TSL may specify different standard efficiency levels for each product class included in the rulemaking.

Sheet Notes
C2: NOTES
C4: NAVIGATION
C6: COMMENTS
C9: Notes
C11: The UECs indicated in this model represent the national average UECs from the 2014 DOE Final Rule. Further revision may include adjusting these values to reflect the regional heating and cooling loads in the Pacific Northwest.

Sheet Comments
C2: Comments
C4: NAVIGATION
C7: Tab | D7: Comment
C8: Example | D8: Please use this space to document your comments as you review the model. We look forward to receiving your feedback. Thank you.

Sheet Navigation
C2: NAVIGATION
C4: COMMENTS
C7: INFORMATION TABS | E7: INPUT TABS | G7: UEC CALCULATIONS | I7: RESULTS | K7: CHARTS
C9: COVER | E9: PRODUCT CLASSES
C11: DEFINITIONS | E11: EFFICIENCY LEVELS
C13: NOTES | E13: DATA BY BUILDING TYPE | G13: PRODUCT CLASS DISTRIBUTION
C15: COMMENTS | E15: NATIONAL SHIPMENTS
C17: NAVIGATION | E17: PRODUCT CLASS UECS | G17: UEC DEVELOPMENT
E19: EFFICIENCY DISTRIBUTIONS
C21: CENTRAL RESIDENTIAL MODEL (EXTERNAL) | E21: EFFICIENCY DISTRIBUTION - SF | G21: UEC - SF | I21: RESULTS - SF | K21: CHARTS - SF
E23: SHIPMENTS AND STOCK - SF
E25: EFFICIENCY DISTRIBUTION - MF | G25: UEC - MF | I25: RESULTS - MF | K25: CHARTS - MF
E27: SHIPMENTS AND STOCK - MF
E29: EFFICIENCY DISTRIBUTION - MH | G29: UEC - MH | I29: RESULTS - MH | K29: CHARTS - MH
E31: SHIPMENTS AND STOCK - MH
E33: 6P UEC DEVELOPMENT | I33: RESULTS - TH | K33: CHARTS - ALL
I37: SUMMARY RESULTS

Sheet Product Classes
C2: Selection of Product Classes for Model
C4: NAVIGATION
C6: COMMENTS
C9: All Product Classes | D9: 2014 DOE Final Rule PCs 1 | E9: DOE Representative PCs 1 | F9: 6P PCs 2 | H9: Model PCs | I9: Rationale
C10: Non-Weatherized, Non-Condensing Gas Furnace Fan (NWG-NC) | D10: PC 1 | E10: PC 1 | H10: PC 1
C11: Non-Weatherized, Condensing Gas Furnace Fan (NWG-C) | D11: PC 2 | E11: PC 2 | H11: PC 2
C12: Weatherized Non-Condensing Gas Furnace Fan (WG-NC) | D12: PC 3 | E12: PC 3 | H12: PC 3
C13: Non-Weatherized, Non-Condensing Oil Furnace Fan (NWO-NC) | D13: PC 4 | E13: PC 4 | H13: PC 4
C14: Non-Weatherized Electric Furnace / Modular Blower Fan (NWEF/NWMB) | D14: PC 5 | E14: PC 5 | H14: PC 5
C15: Mobile Home Non-Weatherized, Non-Condensing Gas Furnace Fan (MH-NWG-NC) | D15: PC 6 | E15: PC 6 | H15: PC 6
C16: Mobile Home Non-Weatherized, Condensing Gas Furnace Fan (MH-NWG-C) | D16: PC 7 | E16: PC 7 | H16: PC 7
C17: Mobile Home Electric Furnace / Modular Blower Fan (MH-EF/MB) | D17: PC 8 | E17: PC 8 | H17: PC 8
C18: Mobile Home Non-Weatherized Oil Furnace Fan (MH-NWO) | D18: PC 9 | I18: Excluded as no standards issued
C19: Mobile Home Weatherized Gas Furnace Fan (MH-WG)** | D19: PC 10 | I19: Excluded as no standards issued
C21: Sources
C22: 1. | D22: DOE Residential Furnace Fans Final Rule 2014 Table I.1.—Energy Conservation Standards for Covered Residential Furnace Fans
C23: 2. | D23: Not included as measure in the 6P

Sheet Efficiency Levels
C2: Efficiency Levels and Standards for Each Product Class
C4: NAVIGATION
C6: ='Product Classes'!$C$6 -> COMMENTS
D9: PC 1 | E9: PC 2 | F9: PC 3 | G9: PC 4 | H9: PC 5 | I9: PC 6 | J9: PC 7 | K9: PC 8
D10: =OFFSET('Product Classes'!$C$9,MATCH(D9,MODEL_PCS,0),0) -> Non-Weatherized, Non-Condensing Gas Furnace Fan (NWG-NC) | E10: =OFFSET('Product Classes'!$C$9,MATCH(E9,MODEL_PCS,0),0) -> Non-Weatherized, Condensing Gas Furnace Fan (NWG-C) | F10: =OFFSET('Product Classes'!$C$9,MATCH(F9,MODEL_PCS,0),0) -> Weatherized Non-Condensing Gas Furnace Fan (WG-NC) | G10: =OFFSET('Product Classes'!$C$9,MATCH(G9,MODEL_PCS,0),0) -> Non-Weatherized, Non-Condensing Oil Furnace Fan (NWO-NC) | H10: =OFFSET('Product Classes'!$C$9,MATCH(H9,MODEL_PCS,0),0) -> Non-Weatherized Electric Furnace / Modular Blower Fan (NWEF/NWMB) | I10: =OFFSET('Product Classes'!$C$9,MATCH(I9,MODEL_PCS,0),0) -> Mobile Home Non-Weatherized, Non-Condensing Gas Furnace Fan (MH-NWG-NC) | J10: =OFFSET('Product Classes'!$C$9,MATCH(J9,MODEL_PCS,0),0) -> Mobile Home Non-Weatherized, Condensing Gas Furnace Fan (MH-NWG-C) | K10: =OFFSET('Product Classes'!$C$9,MATCH(K9,MODEL_PCS,0),0) -> Mobile Home Electric Furnace / Modular Blower Fan (MH-EF/MB)
C11: Model EL | D11: FER* | E11: FER* | F11: FER* | G11: FER* | H11: FER* | I11: FER* | J11: FER* | K11: FER*
C12: EL0 | D12: 0.081*QMax+335 | E12: 0.081*QMax+358 | F12: 0.081*QMax+365 | G12: 0.081*QMax+433 | H12: 0.081*QMax+304 | I12: 0.081*QMax+252 | J12: 0.081*QMax+273 | K12: 0.081*QMax+186
C13: EL1 | D13: 0.071*QMax+295 | E13: 0.071*QMax+316 | F13: 0.071*QMax+322 | G13: 0.071*QMax+382 | H13: 0.071*QMax+268 | I13: 0.071*QMax+222 | J13: 0.071*QMax+240 | K13: 0.071*QMax+164
C14: EL2 | D14: 0.061*QMax+251 | E14: 0.061*QMax+269 | F14: 0.061*QMax+274 | G14: 0.061*QMax+325 | H14: 0.061*QMax+228 | I14: 0.061*QMax+189 | J14: 0.061*QMax+204 | K14: 0.061*QMax+139
C15: EL3 | D15: 0.048*QMax+199 | E15: 0.048*QMax+213 | F15: 0.048*QMax+217 | G15: 0.048*QMax+257 | H15: 0.048*QMax+180 | I15: 0.048*QMax+150 | J15: 0.048*QMax+162 | K15: 0.048*QMax+110
C16: EL4 | D16: 0.044*QMax+182 | E16: 0.044*QMax+195 | F16: 0.044*QMax+199 | G16: 0.044*QMax+236 | H16: 0.044*QMax+165 | I16: 0.044*QMax+137 | J16: 0.044*QMax+148 | K16: 0.044*QMax+101
C17: EL5 | D17: 0.040*QMax+165 | E17: 0.040*QMax+177 | F17: 0.040*QMax+180 | G17: 0.040*QMax+214 | H17: 0.040*QMax+150 | I17: 0.040*QMax+124 | J17: 0.040*QMax+134 | K17: 0.040*QMax+92
C18: EL6 | D18: 0.036*QMax+149 | E18: 0.036*QMax+159 | F18: 0.036*QMax+162 | G18: 0.036*QMax+192 | H18: 0.036*QMax+135 | I18: 0.036*QMax+112 | J18: 0.036*QMax+121 | K18: 0.036*QMax+82
C20: Standard Level | D20: EL4 | E20: EL4 | F20: EL4 | G20: EL1 | H20: EL4 | I20: EL1 | J20: EL1 | K20: EL4
C22: Standard Year | D22: 2019
C24: Sources
C25: 2014 DOE Final Rule Technical Support Document - Chapter 5: Engineering Analysis - Table 5.4.4: Efficiency Levels for Non-Weatherized Gas Furnace Fan Product Classes
C26: 2014 DOE Final Rule Technical Support Document - Chapter 5: Engineering Analysis - Table 5.4.5: Efficiency Levels for Non-Weatherized Electric Furnace/Modular Blower Fans, Weatherized Gas Fans, and Non-Weatherized Oil Furnace Fans
C27: 2014 DOE Final Rule Technical Support Document - Chapter 5: Engineering Analysis - Table 5.4.6: Efficiency Levels for Mobile Home Furnace Fan Product Classes
C28: 2014 DOE Residential Furnace Fans Final Rule - Table I.1. Energy Conservation Standards for Covered Residential Furnace Fans
D30: *FER (Fan Energy Rating) is a function of Qmax, which is the maximum airflow expressed in cubic feet per minute (CFM)

Sheet Product Class UECs
C2: Product Class UECS
C4: =Navigation!$C$17 -> NAVIGATION
C6: COMMENTS
C9: PC 1
C10: =OFFSET('Product Classes'!$C$9,MATCH(C9,MODEL_PCS,0),0) -> Non-Weatherized, Non-Condensing Gas Furnace Fan (NWG-NC) | D10: kWh / year
C11: EL0 | D11: 1080
C12: EL1 | D12: 935
C13: EL2 | D13: 794
C14: EL3 | D14: 614
C15: EL4 | D15: 537
C16: EL5 | D16: 507
C17: EL6 | D17: 449
C19: PC 2
C20: =OFFSET('Product Classes'!$C$9,MATCH(C19,MODEL_PCS,0),0) -> Non-Weatherized, Condensing Gas Furnace Fan (NWG-C) | D20: kWh / year
C21: EL0 | D21: 1110
C22: EL1 | D22: 969
C23: EL2 | D23: 836
C24: EL3 | D24: 646
C25: EL4 | D25: 578
C26: EL5 | D26: 553
C27: EL6 | D27: 494
C29: PC 3
C30: =OFFSET('Product Classes'!$C$9,MATCH(C29,MODEL_PCS,0),0) -> Weatherized Non-Condensing Gas Furnace Fan (WG-NC) | D30: kWh / year
C31: EL0 | D31: 1321
C32: EL1 | D32: 1140
C33: EL2 | D33: 983
C34: EL3 | D34: 748
C35: EL4 | D35: 645
C36: EL5 | D36: 629
C37: EL6 | D37: 558
C39: PC 4
C40: =OFFSET('Product Classes'!$C$9,MATCH(C39,MODEL_PCS,0),0) -> Non-Weatherized, Non-Condensing Oil Furnace Fan (NWO-NC) | D40: kWh / year
C41: EL0 | D41: 1240
C42: EL1 | D42: 1089
C43: EL2 | D43: 922
C44: EL3 | D44: 724
C45: EL4 | D45: 637
C46: EL5 | D46: 603
C47: EL6 | D47: 541
C49: PC 5
C50: =OFFSET('Product Classes'!$C$9,MATCH(C49,MODEL_PCS,0),0) -> Non-Weatherized Electric Furnace / Modular Blower Fan (NWEF/NWMB) | D50: kWh / year
C51: EL0 | D51: 628
C52: EL1 | D52: 543
C53: EL2 | D53: 453
C54: EL3 | D54: 352
C55: EL4 | D55: 300
C56: EL5 | D56: 294
C57: EL6 | D57: 259
C59: PC 6
C60: =OFFSET('Product Classes'!$C$9,MATCH(C59,MODEL_PCS,0),0) -> Mobile Home Non-Weatherized, Non-Condensing Gas Furnace Fan (MH-NWG-NC) | D60: kWh / year
C61: EL0 | D61: 587
C62: EL1 | D62: 512
C63: EL2 | D63: 451
C64: EL3 | D64: 369
C65: EL4 | D65: 329
C66: EL5 | D66: 312
C67: EL6 | D67: 283
C69: PC 7
C70: =OFFSET('Product Classes'!$C$9,MATCH(C69,MODEL_PCS,0),0) -> Mobile Home Non-Weatherized, Condensing Gas Furnace Fan (MH-NWG-C) | D70: kWh / year
C71: EL0 | D71: 728
C72: EL1 | D72: 635
C73: EL2 | D73: 565
C74: EL3 | D74: 463
C75: EL4 | D75: 415
C76: EL5 | D76: 397
C77: EL6 | D77: 362
C79: PC 8
C80: =OFFSET('Product Classes'!$C$9,MATCH(C79,MODEL_PCS,0),0) -> Mobile Home Electric Furnace / Modular Blower Fan (MH-EF/MB) | D80: kWh / year
C81: EL0 | D81: 351
C82: EL1 | D82: 303
C83: EL2 | D83: 262
C84: EL3 | D84: 217
C85: EL4 | D85: 183
C86: EL5 | D86: 185
C87: EL6 | D87: 164
C89: Source
C90: 2014 DOE Residential Furnace Fans Final Rule Technical Support Document Life Cycle Cost Spreadsheet - 'Base Case Fan Efficiency' tab

Sheet Data by Building Type
C2: Data by Building Type
C4: NAVIGATION
C6: COMMENTS
C9: =MODEL_NAME -> Furnace Fans | D9: Single Family | E9: Multi-Family | F9: Manufactured Homes | G9: Total Homes | H9: Source
C10: Lifetime (years) | D10: =ROUND(INDEX([1]!LIFETIMES_TABLE, MATCH($C$9,[1]!APPLIANCES,0), MATCH(D$9,[1]!LIFETIMES_HOUSING_TYPE,0)),0) -> 21 | E10: =ROUND(INDEX([1]!LIFETIMES_TABLE, MATCH($C$9,[1]!APPLIANCES,0), MATCH(E$9,[1]!LIFETIMES_HOUSING_TYPE,0)),0) -> 21 | F10: =ROUND(INDEX([1]!LIFETIMES_TABLE, MATCH($C$9,[1]!APPLIANCES,0), MATCH(F$9,[1]!LIFETIMES_HOUSING_TYPE,0)),0) -> 21 | G10: =ROUND(INDEX([1]!LIFETIMES_TABLE, MATCH($C$9,[1]!APPLIANCES,0), MATCH(G$9,[1]!LIFETIMES_HOUSING_TYPE,0)),0) -> 21 | H10: DOE Furnace Fans 2014 Final Rule, Technical Support Document Chapter 8: Lifecycle Cost Analysis, Table 8.2.12 Lifetime Parameters for Furnace Fans (page 8-22)
C14: Fuel Allocation | D14: Single Family 1 | E14: Multi-Family 2 | F14: Manufactured Homes 3 | H14: Sources
C15: Electric (% of Segment) | D15: 0.098 | E15: =0.8/(3.1+0.8) -> 0.2051282051 | F15: 0.798 | H15: 1. 2011 Residential Building Stock Assessment: Single-Family Characteristics and Energy Use - Table 54: Distribution of Fuel Choice, Forced Air Furnaces
C16: Gas (% of Segment) | D16: 0.804 | E16: =3.1/(3.1+0.8) -> 0.7948717949 | F16: 0.139 | H16: 2. 2011 Residential Building Stock Assessment: Multi-Family Characteristics and Energy Use - Table 35. Distribution of Primary Heating Systems by System and Fuel Type
C17: Oil (% of Segment) | D17: 0.067 | E17: 0 | F17: 0.007 | H17: 3. 2011 Residential Building Stock Assessment: Manufactured Homes Characteristics and Energy Use - Table 36: Distribution of Fuel Choice, Forced Air Furnaces
C18: Propane (% of Segment) | D18: 0.032 | E18: 0 | F18: 0.056
C22: Product Class Mapping | D22: Single Family | E22: Multi-Family | F22: Manufactured Homes
C23: ='Product Classes'!H10&" - "&'Product Classes'!C10 -> PC 1 - Non-Weatherized, Non-Condensing Gas Furnace Fan (NWG-NC) | D23: Yes | E23: Yes
C24: ='Product Classes'!H11&" - "&'Product Classes'!C11 -> PC 2 - Non-Weatherized, Condensing Gas Furnace Fan (NWG-C) | D24: Yes | E24: Yes
C25: ='Product Classes'!H12&" - "&'Product Classes'!C12 -> PC 3 - Weatherized Non-Condensing Gas Furnace Fan (WG-NC) | D25: Yes | E25: Yes
C26: ='Product Classes'!H13&" - "&'Product Classes'!C13 -> PC 4 - Non-Weatherized, Non-Condensing Oil Furnace Fan (NWO-NC) | D26: Yes | E26: Yes
C27: ='Product Classes'!H14&" - "&'Product Classes'!C14 -> PC 5 - Non-Weatherized Electric Furnace / Modular Blower Fan (NWEF/NWMB) | D27: Yes | E27: Yes
C28: ='Product Classes'!H15&" - "&'Product Classes'!C15 -> PC 6 - Mobile Home Non-Weatherized, Non-Condensing Gas Furnace Fan (MH-NWG-NC) | F28: Yes
C29: ='Product Classes'!H16&" - "&'Product Classes'!C16 -> PC 7 - Mobile Home Non-Weatherized, Condensing Gas Furnace Fan (MH-NWG-C) | F29: Yes
C30: ='Product Classes'!H17&" - "&'Product Classes'!C17 -> PC 8 - Mobile Home Electric Furnace / Modular Blower Fan (MH-EF/MB) | F30: Yes

Sheet National Shipments
C2: National Shipments
C4: NAVIGATION
C6: COMMENTS
C9: Pre-Case National Shipments | D9: TOTAL | E9: =SUM(E20,E30,E40,E50,E60,E70,E80,E90) -> 2.775576478 | F9: =SUM(F20,F30,F40,F50,F60,F70,F80,F90) -> 2.769381067 | G9: 3.065750639 | H9: 3.297782222 | I9: 3.275025373 | J9: 3.194010438 | K9: 3.453257833 | L9: 3.603959186 | M9: 3.654711886 | N9: 3.659359751 | O9: 3.923082461 | P9: 3.958680201 | Q9: 3.998585536 | R9: 4.029384865 | S9: 4.050399085 | T9: 4.054719147 | U9: 4.052723478 | V9: 4.058155103 | W9: 4.075994963 | X9: 4.078795702 | Y9: 4.075254877 | Z9: 4.114822815 | AA9: 4.139866593 | AB9: 4.160375865 | AC9: 4.191008991 | AD9: 4.20783618 | AE9: 4.221567396 | AF9: 4.257432138 | AG9: 4.297770007 | AH9: 4.34252296 | AI9: 4.38798679 | AJ9: 4.434226093 | AK9: 4.480818089 | AL9: 4.528001172 | AM9: 4.575768076 | AN9: 4.623994746 | AO9: 4.672619361
C12: PC 1 | E12: 2012 | F12: 2013 | G12: 2014 | H12: 2015 | I12: 2016 | J12: 2017 | K12: 2018 | L12: 2019 | M12: 2020 | N12: 2021 | O12: 2022 | P12: 2023 | Q12: 2024 | R12: 2025 | S12: 2026 | T12: 2027 | U12: 2028 | V12: 2029 | W12: 2030 | X12: 2031 | Y12: 2032 | Z12: 2033 | AA12: 2034 | AB12: 2035 | AC12: 2036 | AD12: 2037 | AE12: 2038 | AF12: 2039 | AG12: 2040 | AH12: 2041 | AI12: 2042 | AJ12: 2043 | AK12: 2044 | AL12: 2045 | AM12: 2046 | AN12: 2047 | AO12: 2048
C13: =OFFSET('Product Classes'!$C$9,MATCH(C12,MODEL_PCS,0),0) -> Non-Weatherized, Non-Condensing Gas Furnace Fan (NWG-NC) | D13: EL0 | E13: 0.38327474 | F13: 0.3520753509 | G13: 0.3933167263 | H13: 0.4210365711 | I13: 0.3927341961 | J13: 0.3565809819 | K13: 0.4164138643 | L13: 0.4167560441 | M13: 0.4202461714 | N13: 0.4125632585 | O13: 0.4533522425 | P13: 0.4497658771 | Q13: 0.4466893532 | R13: 0.4420145455 | S13: 0.4352745635 | T13: 0.4255773179 | U13: 0.4148119088 | V13: 0.4052805169 | W13: 0.3976778386 | X13: 0.387389094 | Y13: 0.3758172521 | Z13: 0.3711471239 | AA13: 0.3643608883 | AB13: 0.3568141444 | AC13: 0.3508318988 | AD13: 0.3426339463 | AE13: 0.3339758396 | AF13: 0.3304887374 | AG13: 0.3278940555 | AH13: 0.3255237073 | AI13: 0.3232163638 | AJ13: 0.3209792383 | AK13: 0.3187616692 | AL13: 0.3165765762 | AM13: 0.3144313647 | AN13: 0.3122980463 | AO13: 0.3101976968
D14: EL1 | E14: 0.5147970674 | F14: 0.4565659182 | G14: 0.4976746191 | H14: 0.5251499616 | I14: 0.4795461296 | J14: 0.4263590451 | K14: 0.5142177363 | L14: 0.5163207778 | M14: 0.5226340855 | N14: 0.5135014347 | O14: 0.571882606 | P14: 0.5657078455 | Q14: 0.559811144 | R14: 0.5521564974 | S14: 0.5423236905 | T14: 0.5294675835 | U14: 0.515491597 | V14: 0.5026604711 | W14: 0.4916897222 | X14: 0.478070486 | Y14: 0.4631858453 | Z14: 0.4551055922 | AA14: 0.4449997525 | AB14: 0.4342027521 | AC14: 0.4250117199 | AD14: 0.4136796367 | AE14: 0.4019697557 | AF14: 0.3975159906 | AG14: 0.3941939467 | AH14: 0.3912699344 | AI14: 0.3884348801 | AJ14: 0.3856988488 | AK14: 0.382991184 | AL14: 0.3803299096 | AM14: 0.377725358 | AN14: 0.3751384967 | AO14: 0.3725987251
D15: EL2 | E15: 0 | F15: 0 | G15: 0 | H15: 0 | I15: 0 | J15: 0 | K15: 0 | L15: 0 | M15: 0 | N15: 0 | O15: 0 | P15: 0 | Q15: 0 | R15: 0 | S15: 0 | T15: 0 | U15: 0 | V15: 0 | W15: 0 | X15: 0 | Y15: 0 | Z15: 0 | AA15: 0 | AB15: 0 | AC15: 0 | AD15: 0 | AE15: 0 | AF15: 0 | AG15: 0 | AH15: 0 | AI15: 0 | AJ15: 0 | AK15: 0 | AL15: 0 | AM15: 0 | AN15: 0 | AO15: 0
D16: EL3 | E16: 0.09626124914 | F16: 0.0860192493 | G16: 0.09530569713 | H16: 0.1040946267 | I16: 0.09656777529 | J16: 0.08681807199 | K16: 0.1212336497 | L16: 0.1306074909 | M16: 0.134881625 | N16: 0.1349668839 | O16: 0.1575191827 | P16: 0.1571254078 | Q16: 0.1564992315 | R16: 0.1555059098 | S16: 0.1541349311 | T16: 0.1523437181 | U16: 0.1503057561 | V16: 0.148203008 | W16: 0.1461248336 | X16: 0.1437285569 | Y16: 0.1411223006 | Z16: 0.1390023198 | AA16: 0.1366784907 | AB16: 0.1342591921 | AC16: 0.1319566198 | AD16: 0.1294158278 | AE16: 0.1268267457 | AF16: 0.1268905903 | AG16: 0.1272914489 | AH16: 0.1279169666 | AI16: 0.1285759299 | AJ16: 0.1292748109 | AK16: 0.1299807196 | AL16: 0.1307031187 | AM16: 0.1314480716 | AN16: 0.1321967222 | AO16: 0.1329646015
D17: EL4 | E17: 0.02225890741 | F17: 0.01964546941 | G17: 0.02168480728 | H17: 0.02362231915 | I17: 0.02162878087 | J17: 0.01911018666 | K17: 0.02728749625 | L17: 0.02941767166 | M17: 0.03039545742 | N17: 0.03030736935 | O17: 0.035588268 | P17: 0.03536488129 | Q17: 0.0350793459 | R17: 0.03470502316 | S17: 0.03424093243 | T17: 0.03367940252 | U17: 0.03305793547 | V17: 0.03241398916 | W17: 0.03176749263 | X17: 0.03104896779 | Y17: 0.03028065663 | Z17: 0.02960749519 | AA17: 0.02888902875 | AB17: 0.02814758174 | AC17: 0.02742765694 | AD17: 0.02665421227 | AE17: 0.02586841532 | AF17: 0.02585434695 | AG17: 0.02593408456 | AH17: 0.02606029813 | AI17: 0.02619328924 | AJ17: 0.02633437464 | AK17: 0.02647686145 | AL17: 0.02662267502 | AM17: 0.02677304896 | AN17: 0.02692414607 | AO17: 0.02707912653
D18: EL5 | E18: 0.1018804709 | F18: 0.09107583468 | G18: 0.1009767762 | H18: 0.1103332491 | I18: 0.1023681624 | J18: 0.09203039374 | K18: 0.1284715474 | L18: 0.1383831829 | M18: 0.1428673296 | N18: 0.142920324 | O18: 0.166775735 | P18: 0.1663371309 | Q18: 0.165654235 | R18: 0.1645784866 | S18: 0.1630971134 | T18: 0.1611623625 | U18: 0.1589626018 | V18: 0.156697077 | W18: 0.1544624335 | X18: 0.1518824269 | Y18: 0.14907531 | Z18: 0.1468024469 | AA18: 0.144306672 | AB18: 0.1417065179 | AC18: 0.1392337048 | AD18: 0.1365009046 | AE18: 0.1337142888 | AF18: 0.1337764407 | AG18: 0.1342005019 | AH18: 0.1348591463 | AI18: 0.135552829 | AJ18: 0.1362883413 | AK18: 0.1370311677 | AL18: 0.1377912379 | AM18: 0.1385749147 | AN18: 0.1393624096 | AO18: 0.1401700207
D19: EL6 | E19: 0 | F19: 0 | G19: 0 | H19: 0 | I19: 0 | J19: 0 | K19: 0 | L19: 0 | M19: 0 | N19: 0 | O19: 0 | P19: 0 | Q19: 0 | R19: 0 | S19: 0 | T19: 0 | U19: 0 | V19: 0 | W19: 0 | X19: 0 | Y19: 0 | Z19: 0 | AA19: 0 | AB19: 0 | AC19: 0 | AD19: 0 | AE19: 0 | AF19: 0 | AG19: 0 | AH19: 0 | AI19: 0 | AJ19: 0 | AK19: 0 | AL19: 0 | AM19: 0 | AN19: 0 | AO19: 0
D20: Total | E20: =SUM(E13:E19) -> 1.118472435 | F20: =SUM(F13:F19) -> 1.005381822 | G20: 1.108958626 | H20: 1.184236728 | I20: 1.092845044 | J20: 0.9808986794 | K20: 1.207624294 | L20: 1.231485167 | M20: 1.251024669 | N20: 1.23425927 | O20: 1.385118034 | P20: 1.374301143 | Q20: 1.36373331 | R20: 1.348960462 | S20: 1.329071231 | T20: 1.302230384 | U20: 1.272629799 | V20: 1.245255062 | W20: 1.221722321 | X20: 1.192119532 | Y20: 1.159481365 | Z20: 1.141664978 | AA20: 1.119234832 | AB20: 1.095130188 | AC20: 1.0744616 | AD20: 1.048884528 | AE20: 1.022355045 | AF20: 1.014526106 | AG20: 1.009514038 | AH20: 1.005630053 | AI20: 1.001973292 | AJ20: 0.9985756139 | AK20: 0.9952416019 | AL20: 0.9920235175 | AM20: 0.988952758 | AN20: 0.9859198208 | AO20: 0.9830101706
C22: PC 2 | E22: 2012 | F22: 2013 | G22: 2014 | H22: 2015 | I22: 2016 | J22: 2017 | K22: 2018 | L22: 2019 | M22: 2020 | N22: 2021 | O22: 2022 | P22: 2023 | Q22: 2024 | R22: 2025 | S22: 2026 | T22: 2027 | U22: 2028 | V22: 2029 | W22: 2030 | X22: 2031 | Y22: 2032 | Z22: 2033 | AA22: 2034 | AB22: 2035 | AC22: 2036 | AD22: 2037 | AE22: 2038 | AF22: 2039 | AG22: 2040 | AH22: 2041 | AI22: 2042 | AJ22: 2043 | AK22: 2044 | AL22: 2045 | AM22: 2046 | AN22: 2047 | AO22: 2048
C23: =OFFSET('Product Classes'!$C$9,MATCH(C22,MODEL_PCS,0),0) -> Non-Weatherized, Condensing Gas Furnace Fan (NWG-C) | D23: EL0 | E23: 0.2958400933 | F23: 0.3098519365 | G23: 0.3445858512 | H23: 0.3685437836 | I23: 0.3696315728 | J23: 0.3632171969 | K23: 0.3580057765 | L23: 0.3691107413 | M23: 0.3718492505 | N23: 0.3727339697 | O23: 0.392028954 | P23: 0.3988378251 | Q23: 0.4065069578 | R23: 0.413127509 | S23: 0.4181906505 | T23: 0.4204600054 | U23: 0.4219043583 | V23: 0.4244971713 | W23: 0.4288493873 | X23: 0.4304536173 | Y23: 0.4307147231 | Z23: 0.4378301008 | AA23: 0.4424525501 | AB23: 0.4460683362 | AC23: 0.4509802573 | AD23: 0.4532966059 | AE23: 0.4547841992 | AF23: 0.4569423 | AG23: 0.4591619492 | AH23: 0.4620918189 | AI23: 0.4649102434 | AJ23: 0.4676168635 | AK23: 0.470200491 | AL23: 0.4726699496 | AM23: 0.4750206163 | AN23: 0.4772511865 | AO23: 0.4793415576
D24: EL1 | E24: 0.404864447 | F24: 0.4138652125 | G24: 0.4477848315 | H24: 0.4709847967 | I24: 0.4673370722 | J24: 0.4561607195 | K24: 0.4502523532 | L24: 0.46773677 | M24: 0.4728594855 | N24: 0.4756055548 | O24: 0.5037195082 | P24: 0.5123982663 | Q24: 0.5218746847 | R24: 0.5302871098 | S24: 0.5371410498 | T24: 0.5411990157 | U24: 0.5444229131 | V24: 0.5487273405 | W24: 0.5547071954 | X24: 0.5579429793 | Y24: 0.5598213636 | Z24: 0.5683897639 | AA24: 0.5744459202 | AB24: 0.5794626369 | AC24: 0.5856951584 | AD24: 0.5893187656 | AE24: 0.5920734891 | AF24: 0.5954300241 | AG24: 0.5987718241 | AH24: 0.6028760505 | AI24: 0.6068135911 | AJ24: 0.6105838513 | AK24: 0.6141703295 | AL24: 0.617585959 | AM24: 0.6208239099 | AN24: 0.6238822426 | AO24: 0.6267313819
D25: EL2 | E25: 0 | F25: 0 | G25: 0 | H25: 0 | I25: 0 | J25: 0 | K25: 0 | L25: 0 | M25: 0 | N25: 0 | O25: 0 | P25: 0 | Q25: 0 | R25: 0 | S25: 0 | T25: 0 | U25: 0 | V25: 0 | W25: 0 | X25: 0 | Y25: 0 | Z25: 0 | AA25: 0 | AB25: 0 | AC25: 0 | AD25: 0 | AE25: 0 | AF25: 0 | AG25: 0 | AH25: 0 | AI25: 0 | AJ25: 0 | AK25: 0 | AL25: 0 | AM25: 0 | AN25: 0 | AO25: 0
D26: EL3 | E26: 0.0479426264 | F26: 0.05119815904 | G26: 0.05692232417 | H26: 0.06268730579 | I26: 0.06583878611 | J26: 0.06860167218 | K26: 0.07389869044 | L26: 0.08523952151 | M26: 0.08867678813 | N26: 0.09173413953 | O26: 0.1009299967 | P26: 0.1046243616 | Q26: 0.1084237769 | R26: 0.1122532253 | S26: 0.1160925932 | T26: 0.1198912887 | U26: 0.1237306313 | V26: 0.1276955627 | W26: 0.1318144498 | X26: 0.135892773 | Y26: 0.1399906898 | Z26: 0.1444724374 | AA26: 0.1489257249 | AB26: 0.1534158098 | AC26: 0.1580490093 | AD26: 0.1626472582 | AE26: 0.1672912557 | AF26: 0.172051541 | AG26: 0.1768966811 | AH26: 0.1818949839 | AI26: 0.1869735091 | AJ26: 0.1921334484 | AK26: 0.1973693615 | AL26: 0.2026879226 | AM26: 0.2080876779 | AN26: 0.2135691851 | AO26: 0.2191203741
D27: EL4 | E27: 0.04487576474 | F27: 0.04817208648 | G27: 0.05393019826 | H27: 0.05964513498 | I27: 0.06281213478 | J27: 0.06553692571 | K27: 0.07048093626 | L27: 0.08098981451 | M27: 0.08414633148 | N27: 0.08694580856 | O27: 0.09543670385 | P27: 0.09891459038 | Q27: 0.1025070848 | R27: 0.1061139281 | S27: 0.1097075517 | T27: 0.113217188 | U27: 0.1167527136 | V27: 0.1204252303 | W27: 0.124272223 | X27: 0.1280346203 | Y27: 0.1317924742 | Z27: 0.1360319322 | AA27: 0.1402011883 | AB27: 0.1443880335 | AC27: 0.148733186 | AD27: 0.1529983948 | AE27: 0.1572912739 | AF27: 0.1617057435 | AG27: 0.1662002896 | AH27: 0.1708588971 | AI27: 0.1755920016 | AJ27: 0.1804006917 | AK27: 0.1852799779 | AL27: 0.1902359811 | AM27: 0.1952673709 | AN27: 0.2003746648 | AO27: 0.2055468026
D28: EL5 | E28: 0.2249223603 | F28: 0.2408503489 | G28: 0.2687366536 | H28: 0.2966039055 | I28: 0.3119517914 | J28: 0.3252756404 | K28: 0.350092555 | L28: 0.4030207713 | M28: 0.4189917589 | N28: 0.433178206 | O28: 0.4760197803 | P28: 0.4934084317 | Q28: 0.5113324801 | R28: 0.5293619997 | S28: 0.5473798924 | T28: 0.5650897992 | U28: 0.5829586846 | V28: 0.6014675964 | W28: 0.6207779362 | X28: 0.6397783208 | Y28: 0.6588117279 | Z28: 0.6799609839 | AA28: 0.7008656929 | AB28: 0.7219000155 | AC28: 0.7436691943 | AD28: 0.7651536097 | AE28: 0.7868141868 | AF28: 0.8090537221 | AG28: 0.831694433 | AH28: 0.8551026457 | AI28: 0.8788858822 | AJ28: 0.9030496595 | AK28: 0.9275687243 | AL28: 0.9524740538 | AM28: 0.9777589087 | AN28: 1.003425894 | AO28: 1.029419013
D29: EL6 | E29: 0 | F29: 0 | G29: 0 | H29: 0 | I29: 0 | J29: 0 | K29: 0 | L29: 0 | M29: 0 | N29: 0 | O29: 0 | P29: 0 | Q29: 0 | R29: 0 | S29: 0 | T29: 0 | U29: 0 | V29: 0 | W29: 0 | X29: 0 | Y29: 0 | Z29: 0 | AA29: 0 | AB29: 0 | AC29: 0 | AD29: 0 | AE29: 0 | AF29: 0 | AG29: 0 | AH29: 0 | AI29: 0 | AJ29: 0 | AK29: 0 | AL29: 0 | AM29: 0 | AN29: 0 | AO29: 0
D30: Total | E30: =SUM(E23:E29) -> 1.018445292 | F30: =SUM(F23:F29) -> 1.063937743 | G30: =SUM(G23:G29) -> 1.171959859 | H30: =SUM(H23:H29) -> 1.258464927 | I30: =SUM(I23:I29) -> 1.277571357 | J30: =SUM(J23:J29) -> 1.278792155 | K30: =SUM(K23:K29) -> 1.302730311 | L30: =SUM(L23:L29) -> 1.406097619 | M30: =SUM(M23:M29) -> 1.436523615 | N30: =SUM(N23:N29) -> 1.460197679 | O30: =SUM(O23:O29) -> 1.568134943 | P30: =SUM(P23:P29) -> 1.608183475 | Q30: =SUM(Q23:Q29) -> 1.650644984 | R30: =SUM(R23:R29) -> 1.691143772 | S30: =SUM(S23:S29) -> 1.728511738 | T30: =SUM(T23:T29) -> 1.759857297 | U30: =SUM(U23:U29) -> 1.789769301 | V30: =SUM(V23:V29) -> 1.822812901 | W30: =SUM(W23:W29) -> 1.860421192 | X30: =SUM(X23:X29) -> 1.892102311 | Y30: =SUM(Y23:Y29) -> 1.921130979 | Z30: =SUM(Z23:Z29) -> 1.966685218 | AA30: =SUM(AA23:AA29) -> 2.006891076 | AB30: =SUM(AB23:AB29) -> 2.045234832 | AC30: =SUM(AC23:AC29) -> 2.087126805 | AD30: =SUM(AD23:AD29) -> 2.123414634 | AE30: =SUM(AE23:AE29) -> 2.158254405 | AF30: =SUM(AF23:AF29) -> 2.195183331 | AG30: =SUM(AG23:AG29) -> 2.232725177 | AH30: =SUM(AH23:AH29) -> 2.272824396 | AI30: =SUM(AI23:AI29) -> 2.313175227 | AJ30: =SUM(AJ23:AJ29) -> 2.353784514 | AK30: =SUM(AK23:AK29) -> 2.394588884 | AL30: =SUM(AL23:AL29) -> 2.435653866 | AM30: =SUM(AM23:AM29) -> 2.476958484 | AN30: =SUM(AN23:AN29) -> 2.518503173 | AO30: =SUM(AO23:AO29) -> 2.560159129
C32: PC 3 | E32: 2012 | F32: 2013 | G32: 2014 | H32: 2015 | I32: 2016 | J32: 2017 | K32: 2018 | L32: 2019 | M32: 2020 | N32: 2021 | O32: 2022 | P32: 2023 | Q32: 2024 | R32: 2025 | S32: 2026 | T32: 2027 | U32: 2028 | V32: 2029 | W32: 2030 | X32: 2031 | Y32: 2032 | Z32: 2033 | AA32: 2034 | AB32: 2035 | AC32: 2036 | AD32: 2037 | AE32: 2038 | AF32: 2039 | AG32: 2040 | AH32: 2041 | AI32: 2042 | AJ32: 2043 | AK32: 2044 | AL32: 2045 | AM32: 2046 | AN32: 2047 | AO32: 2048
C33: =OFFSET('Product Classes'!$C$9,MATCH(C32,MODEL_PCS,0),0) -> Weatherized Non-Condensing Gas Furnace Fan (WG-NC) | D33: EL0 | E33: 0.05032626488 | F33: 0.05889410144 | G33: 0.06452452671 | H33: 0.06764019579 | I33: 0.06769775478 | J33: 0.06615223069 | K33: 0.06307145639 | L33: 0.06011369881 | M33: 0.05925776662 | N33: 0.0582218581 | O33: 0.05788331729 | P33: 0.05796008285 | Q33: 0.05819292401 | R33: 0.05818432597 | S33: 0.05783387234 | T33: 0.05697296302 | U33: 0.0559225493 | V33: 0.0551150729 | W33: 0.05467035746 | X33: 0.05371904237 | Y33: 0.05251568424 | Z33: 0.05258682503 | AA33: 0.0522369099 | AB33: 0.05171795207 | AC33: 0.05146887926 | AD33: 0.05077789772 | AE33: 0.04996256644 | AF33: 0.04929282041 | AG33: 0.04869017206 | AH33: 0.04805202838 | AI33: 0.04740501742 | AJ33: 0.04674861557 | AK33: 0.04608025892 | AL33: 0.0454020483 | AM33: 0.04471317431 | AN33: 0.04401363922 | AO33: 0.04330240888
D34: EL1 | E34: 0.06837303909 | F34: 0.07817528883 | G34: 0.08277899587 | H34: 0.08486332018 | I34: 0.08391870543 | J34: 0.08135965704 | K34: 0.07726020309 | L34: 0.07322390272 | M34: 0.07225565978 | N34: 0.07109279623 | O34: 0.07058329304 | P34: 0.0704564954 | Q34: 0.07046395273 | R34: 0.07022463031 | S34: 0.06964368293 | T34: 0.06856122185 | U34: 0.06728816447 | V34: 0.06624276046 | W34: 0.06554103297 | X34: 0.06434562055 | Y34: 0.06290199961 | Z34: 0.06268219103 | AA34: 0.06205264827 | AB34: 0.06125815334 | AC34: 0.06072346 | AD34: 0.05975870184 | AE34: 0.05867174687 | AF34: 0.05772180772 | AG34: 0.05683379111 | AH34: 0.05591781015 | AI34: 0.05498873672 | AJ34: 0.0540457968 | AK34: 0.05308519299 | AL34: 0.05211004105 | AM34: 0.05111914311 | AN34: 0.05011250372 | AO34: 0.0490885928
D35: EL2 | E35: 0 | F35: 0 | G35: 0 | H35: 0 | I35: 0 | J35: 0 | K35: 0 | L35: 0 | M35: 0 | N35: 0 | O35: 0 | P35: 0 | Q35: 0 | R35: 0 | S35: 0 | T35: 0 | U35: 0 | V35: 0 | W35: 0 | X35: 0 | Y35: 0 | Z35: 0 | AA35: 0 | AB35: 0 | AC35: 0 | AD35: 0 | AE35: 0 | AF35: 0 | AG35: 0 | AH35: 0 | AI35: 0 | AJ35: 0 | AK35: 0 | AL35: 0 | AM35: 0 | AN35: 0 | AO35: 0
D36: EL3 | E36: 0.03537012399 | F36: 0.04331021765 | G36: 0.04768799672 | H36: 0.05188160722 | I36: 0.05575796807 | J36: 0.05946530173 | K36: 0.06297606682 | L36: 0.06652349986 | M36: 0.06783273133 | N36: 0.06907336913 | O36: 0.070400045 | P36: 0.07176771643 | Q36: 0.07313462015 | R36: 0.07443568004 | S36: 0.07565639502 | T36: 0.07677201162 | U36: 0.07784535655 | V36: 0.07896129813 | W36: 0.08014562087 | X36: 0.08123605834 | Y36: 0.08227905318 | Z36: 0.08357619763 | AA36: 0.08480203378 | AB36: 0.08601763841 | AC36: 0.08732417247 | AD36: 0.08855318784 | AE36: 0.08978171026 | AF36: 0.0910600603 | AG36: 0.09237769096 | AH36: 0.09380147125 | AI36: 0.09524685067 | AJ36: 0.09671274809 | AK36: 0.09818662635 | AL36: 0.09968011223 | AM36: 0.1011897181 | AN36: 0.1027163287 | AO36: 0.104253913
D37: EL4 | E37: 0.00973743219 | F37: 0.01196048672 | G37: 0.01325248183 | H37: 0.01447562348 | I37: 0.01557962019 | J37: 0.01661913525 | K37: 0.0175835969 | L37: 0.01856117039 | M37: 0.01891223353 | N37: 0.01924221057 | O37: 0.01960771638 | P37: 0.01999192444 | Q37: 0.020379407 | R37: 0.02074569184 | S37: 0.02108491859 | T37: 0.02138633037 | U37: 0.02167330864 | V37: 0.02197627561 | W37: 0.02230456229 | X37: 0.02259783759 | Y37: 0.02287352007 | Z37: 0.0232432961 | AA37: 0.02358536045 | AB37: 0.02392137965 | AC37: 0.0242873872 | AD37: 0.02462331647 | AE37: 0.02495644552 | AF37: 0.02530604269 | AG37: 0.02566727786 | AH37: 0.02605865389 | AI37: 0.02645589347 | AJ37: 0.02685870324 | AK37: 0.02726368401 | AL37: 0.02767398771 | AM37: 0.02808866865 | AN37: 0.02850796655 | AO37: 0.02893024619
D38: EL5 | E38: 0.04438327177 | F38: 0.05434341791 | G38: 0.05986800894 | H38: 0.06515540407 | I38: 0.07003194031 | J38: 0.0746889207 | K38: 0.07909010759 | L38: 0.08353940533 | M38: 0.08517720507 | N38: 0.08672841494 | O38: 0.08839153707 | P38: 0.09010822514 | Q38: 0.09182518554 | R38: 0.09345888134 | S38: 0.09499062365 | T38: 0.09638642107 | U38: 0.09772903182 | V38: 0.09912637069 | W38: 0.1006114513 | X38: 0.1019751314 | Y38: 0.1032778676 | Z38: 0.1049090608 | AA38: 0.1064467434 | AB38: 0.1079702101 | AC38: 0.1096091656 | AD38: 0.1111468665 | AE38: 0.1126825943 | AF38: 0.1142815416 | AG38: 0.1159288998 | AH38: 0.1177149955 | AI38: 0.1195281699 | AJ38: 0.1213670679 | AK38: 0.1232159868 | AL38: 0.1250894877 | AM38: 0.126983202 | AN38: 0.1288982372 | AO38: 0.1308270393
D39: EL6 | E39: 0 | F39: 0 | G39: 0 | H39: 0 | I39: 0 | J39: 0 | K39: 0 | L39: 0 | M39: 0 | N39: 0 | O39: 0 | P39: 0 | Q39: 0 | R39: 0 | S39: 0 | T39: 0 | U39: 0 | V39: 0 | W39: 0 | X39: 0 | Y39: 0 | Z39: 0 | AA39: 0 | AB39: 0 | AC39: 0 | AD39: 0 | AE39: 0 | AF39: 0 | AG39: 0 | AH39: 0 | AI39: 0 | AJ39: 0 | AK39: 0 | AL39: 0 | AM39: 0 | AN39: 0 | AO39: 0
D40: Total | E40: =SUM(E33:E39) -> 0.2081901319 | F40: =SUM(F33:F39) -> 0.2466835126 | G40: =SUM(G33:G39) -> 0.2681120101 | H40: =SUM(H33:H39) -> 0.2840161507 | I40: =SUM(I33:I39) -> 0.2929859888 | J40: =SUM(J33:J39) -> 0.2982852454 | K40: =SUM(K33:K39) -> 0.2999814308 | L40: =SUM(L33:L39) -> 0.3019616771 | M40: =SUM(M33:M39) -> 0.3034355963 | N40: =SUM(N33:N39) -> 0.304358649 | O40: =SUM(O33:O39) -> 0.3068659088 | P40: =SUM(P33:P39) -> 0.3102844442 | Q40: =SUM(Q33:Q39) -> 0.3139960894 | R40: =SUM(R33:R39) -> 0.3170492095 | S40: =SUM(S33:S39) -> 0.3192094925 | T40: =SUM(T33:T39) -> 0.3200789479 | U40: =SUM(U33:U39) -> 0.3204584108 | V40: =SUM(V33:V39) -> 0.3214217778 | W40: =SUM(W33:W39) -> 0.3232730249 | X40: =SUM(X33:X39) -> 0.3238736903 | Y40: =SUM(Y33:Y39) -> 0.3238481247 | Z40: =SUM(Z33:Z39) -> 0.3269975706 | AA40: =SUM(AA33:AA39) -> 0.3291236958 | AB40: =SUM(AB33:AB39) -> 0.3308853336 | AC40: =SUM(AC33:AC39) -> 0.3334130646 | AD40: =SUM(AD33:AD39) -> 0.3348599703 | AE40: =SUM(AE33:AE39) -> 0.3360550634 | AF40: =SUM(AF33:AF39) -> 0.3376622727 | AG40: =SUM(AG33:AG39) -> 0.3394978318 | AH40: =SUM(AH33:AH39) -> 0.3415449592 | AI40: =SUM(AI33:AI39) -> 0.3436246682 | AJ40: =SUM(AJ33:AJ39) -> 0.3457329316 | AK40: =SUM(AK33:AK39) -> 0.3478317491 | AL40: =SUM(AL33:AL39) -> 0.349955677 | AM40: =SUM(AM33:AM39) -> 0.3520939062 | AN40: =SUM(AN33:AN39) -> 0.3542486754 | AO40: =SUM(AO33:AO39) -> 0.3564022001
C42: PC 4 | E42: 2012 | F42: 2013 | G42: 2014 | H42: 2015 | I42: 2016 | J42: 2017 | K42: 2018 | L42: 2019 | M42: 2020 | N42: 2021 | O42: 2022 | P42: 2023 | Q42: 2024 | R42: 2025 | S42: 2026 | T42: 2027 | U42: 2028 | V42: 2029 | W42: 2030 | X42: 2031 | Y42: 2032 | Z42: 2033 | AA42: 2034 | AB42: 2035 | AC42: 2036 | AD42: 2037 | AE42: 2038 | AF42: 2039 | AG42: 2040 | AH42: 2041 | AI42: 2042 | AJ42: 2043 | AK42: 2044 | AL42: 2045 | AM42: 2046 | AN42: 2047 | AO42: 2048
C43: =OFFSET('Product Classes'!$C$9,MATCH(C42,MODEL_PCS,0),0) -> Non-Weatherized, Non-Condensing Oil Furnace Fan (NWO-NC) | D43: EL0 | E43: 0.01212516667 | F43: 0.01163879928 | G43: 0.01213905835 | H43: 0.01240526163 | I43: 0.01234019356 | J43: 0.01211780106 | K43: 0.01172966315 | L43: 0.01139351849 | M43: 0.01116395754 | N43: 0.01091475187 | O43: 0.01074478123 | P43: 0.0106104831 | Q43: 0.01047919807 | R43: 0.01030240547 | S43: 0.01006997445 | T43: 0.009750577188 | U43: 0.009400773918 | V43: 0.009068825893 | W43: 0.00877327278 | X43: 0.008409649367 | Y43: 0.00801982124 | Z43: 0.007809752634 | AA43: 0.007552983377 | AB43: 0.007296906332 | AC43: 0.007098581753 | AD43: 0.006869698594 | AE43: 0.006659671328 | AF43: 0.006507483647 | AG43: 0.006402843965 | AH43: 0.006393087525 | AI43: 0.006428657611 | AJ43: 0.006510597387 | AK43: 0.006639112295 | AL43: 0.006813664361 | AM43: 0.007033328775 | AN43: 0.007294936686 | AO43: 0.00759727245
D44: EL1 | E44: 0.01673365942 | F44: 0.01580025844 | G44: 0.01616715266 | H44: 0.01630189728 | I44: 0.01610178977 | J44: 0.01574895991 | K44: 0.01523200802 | L44: 0.01477490735 | M44: 0.01447328809 | N44: 0.01414952668 | O44: 0.01390545383 | P44: 0.01369285668 | Q44: 0.01347547096 | R44: 0.01320137904 | S44: 0.01286061168 | T44: 0.01242197282 | U44: 0.01194529354 | V44: 0.01148271329 | W44: 0.01105541765 | X44: 0.01055565146 | Y44: 0.01002947238 | Z44: 0.009695489172 | AA44: 0.009318374122 | AB44: 0.008951019716 | AC44: 0.008654346912 | AD44: 0.008337867179 | AE44: 0.008055621147 | AF44: 0.007849777712 | AG44: 0.007712162936 | AH44: 0.007698495166 | AI44: 0.007750099729 | AJ44: 0.007868487511 | AK44: 0.008053962178 | AL44: 0.008305755824 | AM44: 0.008622542391 | AN44: 0.008999762797 | AO44: 0.00943566983
D45: EL2 | E45: 0 | F45: 0 | G45: 0 | H45: 0 | I45: 0 | J45: 0 | K45: 0 | L45: 0 | M45: 0 | N45: 0 | O45: 0 | P45: 0 | Q45: 0 | R45: 0 | S45: 0 | T45: 0 | U45: 0 | V45: 0 | W45: 0 | X45: 0 | Y45: 0 | Z45: 0 | AA45: 0 | AB45: 0 | AC45: 0 | AD45: 0 | AE45: 0 | AF45: 0 | AG45: 0 | AH45: 0 | AI45: 0 | AJ45: 0 | AK45: 0 | AL45: 0 | AM45: 0 | AN45: 0 | AO45: 0
D46: EL3 | E46: 0 | F46: 0 | G46: 0 | H46: 0 | I46: 0 | J46: 0 | K46: 0 | L46: 0 | M46: 0 | N46: 0 | O46: 0 | P46: 0 | Q46: 0 | R46: 0 | S46: 0 | T46: 0 | U46: 0 | V46: 0 | W46: 0 | X46: 0 | Y46: 0 | Z46: 0 | AA46: 0 | AB46: 0 | AC46: 0 | AD46: 0 | AE46: 0 | AF46: 0 | AG46: 0 | AH46: 0 | AI46: 0 | AJ46: 0 | AK46: 0 | AL46: 0 | AM46: 0 | AN46: 0 | AO46: 0
D47: EL4 | E47: 0 | F47: 0 | G47: 0 | H47: 0 | I47: 0 | J47: 0 | K47: 0 | L47: 0 | M47: 0 | N47: 0 | O47: 0 | P47: 0 | Q47: 0 | R47: 0 | S47: 0 | T47: 0 | U47: 0 | V47: 0 | W47: 0 | X47: 0 | Y47: 0 | Z47: 0 | AA47: 0 | AB47: 0 | AC47: 0 | AD47: 0 | AE47: 0 | AF47: 0 | AG47: 0 | AH47: 0 | AI47: 0 | AJ47: 0 | AK47: 0 | AL47: 0 | AM47: 0 | AN47: 0 | AO47: 0
D48: EL5 | E48: 0.007121173905 | F48: 0.006984684948 | G48: 0.007301422743 | H48: 0.007599093393 | I48: 0.007861891608 | J48: 0.00810985243 | K48: 0.008336377346 | L48: 0.008564699629 | M48: 0.008501717474 | N48: 0.008427950362 | O48: 0.008353048539 | P48: 0.008263649712 | Q48: 0.008149297061 | R48: 0.007999063138 | S48: 0.007811873118 | T48: 0.007584797305 | U48: 0.007328350048 | V48: 0.007052908226 | W48: 0.00676579488 | X48: 0.006454568651 | Y48: 0.00613231569 | Z48: 0.005842103448 | AA48: 0.005551318154 | AB48: 0.005278901363 | AC48: 0.005039044005 | AD48: 0.004823887221 | AE48: 0.004650874434 | AF48: 0.004533095372 | AG48: 0.004478797888 | AH48: 0.004522930854 | AI48: 0.00463497027 | AJ48: 0.004819150792 | AK48: 0.005078557031 | AL48: 0.005415190044 | AM48: 0.005830455359 | AN48: 0.006322165004 | AO48: 0.006891080638
D49: EL6 | E49: 0 | F49: 0 | G49: 0 | H49: 0 | I49: 0 | J49: 0 | K49: 0 | L49: 0 | M49: 0 | N49: 0 | O49: 0 | P49: 0 | Q49: 0 | R49: 0 | S49: 0 | T49: 0 | U49: 0 | V49: 0 | W49: 0 | X49: 0 | Y49: 0 | Z49: 0 | AA49: 0 | AB49: 0 | AC49: 0 | AD49: 0 | AE49: 0 | AF49: 0 | AG49: 0 | AH49: 0 | AI49: 0 | AJ49: 0 | AK49: 0 | AL49: 0 | AM49: 0 | AN49: 0 | AO49: 0
D50: Total | E50: =SUM(E43:E49) -> 0.03598 | F50: =SUM(F43:F49) -> 0.03442374267 | G50: =SUM(G43:G49) -> 0.03560763375 | H50: =SUM(H43:H49) -> 0.0363062523 | I50: =SUM(I43:I49) -> 0.03630387493 | J50: =SUM(J43:J49) -> 0.0359766134 | K50: =SUM(K43:K49) -> 0.03529804851 | L50: =SUM(L43:L49) -> 0.03473312547 | M50: =SUM(M43:M49) -> 0.0341389631 | N50: =SUM(N43:N49) -> 0.03349222892 | O50: =SUM(O43:O49) -> 0.03300328359 | P50: =SUM(P43:P49) -> 0.03256698948 | Q50: =SUM(Q43:Q49) -> 0.03210396609 | R50: =SUM(R43:R49) -> 0.03150284765 | S50: =SUM(S43:S49) -> 0.03074245925 | T50: =SUM(T43:T49) -> 0.02975734731 | U50: =SUM(U43:U49) -> 0.0286744175 | V50: =SUM(V43:V49) -> 0.0276044474 | W50: =SUM(W43:W49) -> 0.02659448531 | X50: =SUM(X43:X49) -> 0.02541986948 | Y50: =SUM(Y43:Y49) -> 0.02418160931 | Z50: =SUM(Z43:Z49) -> 0.02334734525 | AA50: =SUM(AA43:AA49) -> 0.02242267565 | AB50: =SUM(AB43:AB49) -> 0.02152682741 | AC50: =SUM(AC43:AC49) -> 0.02079197267 | AD50: =SUM(AD43:AD49) -> 0.02003145299 | AE50: =SUM(AE43:AE49) -> 0.01936616691 | AF50: =SUM(AF43:AF49) -> 0.01889035673 | AG50: =SUM(AG43:AG49) -> 0.01859380479 | AH50: =SUM(AH43:AH49) -> 0.01861451354 | AI50: =SUM(AI43:AI49) -> 0.01881372761 | AJ50: =SUM(AJ43:AJ49) -> 0.01919823569 | AK50: =SUM(AK43:AK49) -> 0.0197716315 | AL50: =SUM(AL43:AL49) -> 0.02053461023 | AM50: =SUM(AM43:AM49) -> 0.02148632652 | AN50: =SUM(AN43:AN49) -> 0.02261686449 | AO50: =SUM(AO43:AO49) -> 0.02392402292
C52: PC 5 | E52: 2012 | F52: 2013 | G52: 2014 | H52: 2015 | I52: 2016 | J52: 2017 | K52: 2018 | L52: 2019 | M52: 2020 | N52: 2021 | O52: 2022 | P52: 2023 | Q52: 2024 | R52: 2025 | S52: 2026 | T52: 2027 | U52: 2028 | V52: 2029 | W52: 2030 | X52: 2031 | Y52: 2032 | Z52: 2033 | AA52: 2034 | AB52: 2035 | AC52: 2036 | AD52: 2037 | AE52: 2038 | AF52: 2039 | AG52: 2040 | AH52: 2041 | AI52: 2042 | AJ52: 2043 | AK52: 2044 | AL52: 2045 | AM52: 2046 | AN52: 2047 | AO52: 2048
C53: =OFFSET('Product Classes'!$C$9,MATCH(C52,MODEL_PCS,0),0) -> Non-Weatherized Electric Furnace / Modular Blower Fan (NWEF/NWMB) | D53: EL0 | E53: 0.08096285351 | F53: 0.09374922946 | G53: 0.1090741501 | H53: 0.1193463381 | I53: 0.1233230225 | J53: 0.1240507289 | K53: 0.1216210153 | L53: 0.1197462019 | M53: 0.1189660091 | N53: 0.1180146797 | O53: 0.1186357053 | P53: 0.1202121368 | Q53: 0.1221722072 | R53: 0.1236388532 | S53: 0.1243866409 | T53: 0.1240439804 | U53: 0.1233011861 | V53: 0.1231065137 | W53: 0.1237232278 | X53: 0.1232382866 | Y53: 0.1222109164 | Z53: 0.1239910814 | AA53: 0.1248462697 | AB53: 0.1253209305 | AC53: 0.1264055656 | AD53: 0.126519459 | AE53: 0.1263545824 | AF53: 0.1265152631 | AG53: 0.1268373027 | AH53: 0.1270753235 | AI53: 0.1272990027 | AJ53: 0.1275126938 | AK53: 0.1276973728 | AL53: 0.1278662091 | AM53: 0.1280185208 | AN53: 0.1281525578 | AO53: 0.1282706792
D54: EL1 | E54: 0.1057918589 | F54: 0.11856965 | G54: 0.1334033272 | H54: 0.1432369571 | I54: 0.1468746032 | J54: 0.1472940585 | K54: 0.1445912759 | L54: 0.1423833574 | M54: 0.1419160421 | N54: 0.1412677675 | O54: 0.1421364656 | P54: 0.1439211321 | Q54: 0.1460656219 | R54: 0.1477176922 | S54: 0.1486602732 | T54: 0.1485338977 | U54: 0.148011946 | V54: 0.1480176115 | W54: 0.1488070654 | X54: 0.1485188644 | Y54: 0.1476993424 | Z54: 0.1496043371 | AA54: 0.1505995365 | AB54: 0.151215837 | AC54: 0.1524307992 | AD54: 0.1526937337 | AE54: 0.1526784136 | AF54: 0.1529743475 | AG54: 0.15342577 | AH54: 0.1538159517 | AI54: 0.1541852502 | AJ54: 0.1545400499 | AK54: 0.1548524591 | AL54: 0.1551417865 | AM54: 0.1554070317 | AN54: 0.1556456277 | AO54: 0.1558610317
D55: EL2 | E55: 0 | F55: 0 | G55: 0 | H55: 0 | I55: 0 | J55: 0 | K55: 0 | L55: 0 | M55: 0 | N55: 0 | O55: 0 | P55: 0 | Q55: 0 | R55: 0 | S55: 0 | T55: 0 | U55: 0 | V55: 0 | W55: 0 | X55: 0 | Y55: 0 | Z55: 0 | AA55: 0 | AB55: 0 | AC55: 0 | AD55: 0 | AE55: 0 | AF55: 0 | AG55: 0 | AH55: 0 | AI55: 0 | AJ55: 0 | AK55: 0 | AL55: 0 | AM55: 0 | AN55: 0 | AO55: 0
D56: EL3 | E56: 0.02087271395 | F56: 0.02386085089 | G56: 0.02701435631 | H56: 0.02995341147 | I56: 0.0325115899 | J56: 0.03487903259 | K56: 0.03702334041 | L56: 0.03924933573 | M56: 0.0401760141 | N56: 0.04107490468 | O56: 0.0421384709 | P56: 0.04330792195 | Q56: 0.04452746707 | R56: 0.04570821479 | S56: 0.0468273771 | T56: 0.0478454581 | U56: 0.04883521684 | V56: 0.04989886023 | W56: 0.05106721298 | X56: 0.05213137453 | Y56: 0.05315338427 | Z56: 0.05450496795 | AA56: 0.05576619451 | AB56: 0.05699825263 | AC56: 0.05833525966 | AD56: 0.05957584029 | AE56: 0.06079963848 | AF56: 0.06208051905 | AG56: 0.06340630135 | AH56: 0.06478561106 | AI56: 0.06618272112 | AJ56: 0.06760198448 | AK56: 0.06902539255 | AL56: 0.07046540116 | AM56: 0.07192146763 | AN56: 0.07339191153 | AO56: 0.07487921234
D57: EL4 | E57: 0 | F57: 0 | G57: 0 | H57: 0 | I57: 0 | J57: 0 | K57: 0 | L57: 0 | M57: 0 | N57: 0 | O57: 0 | P57: 0 | Q57: 0 | R57: 0 | S57: 0 | T57: 0 | U57: 0 | V57: 0 | W57: 0 | X57: 0 | Y57: 0 | Z57: 0 | AA57: 0 | AB57: 0 | AC57: 0 | AD57: 0 | AE57: 0 | AF57: 0 | AG57: 0 | AH57: 0 | AI57: 0 | AJ57: 0 | AK57: 0 | AL57: 0 | AM57: 0 | AN57: 0 | AO57: 0
D58: EL5 | E58: 0.04663679436 | F58: 0.05289290098 | G58: 0.05932764471 | H58: 0.06541348949 | I58: 0.0708673203 | J58: 0.07601788611 | K58: 0.08081131555 | L58: 0.08577113634 | M58: 0.08790716961 | N58: 0.08999821516 | O58: 0.0923731406 | P58: 0.09493075276 | Q58: 0.09757619531 | R58: 0.1001588911 | S58: 0.1026417905 | T58: 0.1049581025 | U58: 0.1072346647 | V58: 0.1096455787 | W58: 0.1122434565 | X58: 0.1146721263 | Y58: 0.1170399356 | Z58: 0.119978209 | AA58: 0.122766835 | AB58: 0.1255118872 | AC58: 0.1284556256 | AD58: 0.1312422182 | AE58: 0.1340083762 | AF58: 0.1368817993 | AG58: 0.1398454855 | AH58: 0.1429424813 | AI58: 0.1460800805 | AJ58: 0.1492682459 | AK58: 0.1524658224 | AL58: 0.1557012917 | AM58: 0.1589734203 | AN58: 0.1622783727 | AO58: 0.1656218208
D59: EL6 | E59: 0 | F59: 0 | G59: 0 | H59: 0 | I59: 0 | J59: 0 | K59: 0 | L59: 0 | M59: 0 | N59: 0 | O59: 0 | P59: 0 | Q59: 0 | R59: 0 | S59: 0 | T59: 0 | U59: 0 | V59: 0 | W59: 0 | X59: 0 | Y59: 0 | Z59: 0 | AA59: 0 | AB59: 0 | AC59: 0 | AD59: 0 | AE59: 0 | AF59: 0 | AG59: 0 | AH59: 0 | AI59: 0 | AJ59: 0 | AK59: 0 | AL59: 0 | AM59: 0 | AN59: 0 | AO59: 0
D60: Total | E60: =SUM(E53:E59) -> 0.2542642207 | F60: =SUM(F53:F59) -> 0.2890726313 | G60: =SUM(G53:G59) -> 0.3288194783 | H60: =SUM(H53:H59) -> 0.3579501962 | I60: =SUM(I53:I59) -> 0.3735765359 | J60: =SUM(J53:J59) -> 0.3822417061 | K60: =SUM(K53:K59) -> 0.3840469471 | L60: =SUM(L53:L59) -> 0.3871500314 | M60: =SUM(M53:M59) -> 0.3889652348 | N60: =SUM(N53:N59) -> 0.3903555671 | O60: =SUM(O53:O59) -> 0.3952837824 | P60: =SUM(P53:P59) -> 0.4023719436 | Q60: =SUM(Q53:Q59) -> 0.4103414914 | R60: =SUM(R53:R59) -> 0.4172236513 | S60: =SUM(S53:S59) -> 0.4225160817 | T60: =SUM(T53:T59) -> 0.4253814387 | U60: =SUM(U53:U59) -> 0.4273830136 | V60: =SUM(V53:V59) -> 0.4306685641 | W60: =SUM(W53:W59) -> 0.4358409627 | X60: =SUM(X53:X59) -> 0.4385606518 | Y60: =SUM(Y53:Y59) -> 0.4401035787 | Z60: =SUM(Z53:Z59) -> 0.4480785954 | AA60: =SUM(AA53:AA59) -> 0.4539788357 | AB60: =SUM(AB53:AB59) -> 0.4590469072 | AC60: =SUM(AC53:AC59) -> 0.46562725 | AD60: =SUM(AD53:AD59) -> 0.4700312512 | AE60: =SUM(AE53:AE59) -> 0.4738410108 | AF60: =SUM(AF53:AF59) -> 0.4784519289 | AG60: =SUM(AG53:AG59) -> 0.4835148596 | AH60: =SUM(AH53:AH59) -> 0.4886193676 | AI60: =SUM(AI53:AI59) -> 0.4937470545 | AJ60: =SUM(AJ53:AJ59) -> 0.498922974 | AK60: =SUM(AK53:AK59) -> 0.5040410468 | AL60: =SUM(AL53:AL59) -> 0.5091746884 | AM60: =SUM(AM53:AM59) -> 0.5143204405 | AN60: =SUM(AN53:AN59) -> 0.5194684698 | AO60: =SUM(AO53:AO59) -> 0.524632744
C62: PC 6 | E62: 2012 | F62: 2013 | G62: 2014 | H62: 2015 | I62: 2016 | J62: 2017 | K62: 2018 | L62: 2019 | M62: 2020 | N62: 2021 | O62: 2022 | P62: 2023 | Q62: 2024 | R62: 2025 | S62: 2026 | T62: 2027 | U62: 2028 | V62: 2029 | W62: 2030 | X62: 2031 | Y62: 2032 | Z62: 2033 | AA62: 2034 | AB62: 2035 | AC62: 2036 | AD62: 2037 | AE62: 2038 | AF62: 2039 | AG62: 2040 | AH62: 2041 | AI62: 2042 | AJ62: 2043 | AK62: 2044 | AL62: 2045 | AM62: 2046 | AN62: 2047 | AO62: 2048
C63: =OFFSET('Product Classes'!$C$9,MATCH(C62,MODEL_PCS,0),0) -> Mobile Home Non-Weatherized, Non-Condensing Gas Furnace Fan (MH-NWG-NC) | D63: EL0 | E63: 0.01954838996 | F63: 0.01811325035 | G63: 0.02142989105 | H63: 0.02504560703 | I63: 0.02869273183 | J63: 0.03098247694 | K63: 0.03170676202 | L63: 0.03903204505 | M63: 0.0386193427 | N63: 0.03789189214 | O63: 0.03743572916 | P63: 0.0367167743 | Q63: 0.03606665675 | R63: 0.03525853655 | S63: 0.03461891822 | T63: 0.03400506322 | U63: 0.0332967886 | V63: 0.03261626851 | W63: 0.03211237785 | X63: 0.03173657555 | Y63: 0.0315504838 | Z63: 0.03163529674 | AA63: 0.03151678204 | AB63: 0.03143229091 | AC63: 0.03145497185 | AD63: 0.0314759508 | AE63: 0.03151059447 | AF63: 0.03153798805 | AG63: 0.03159106126 | AH63: 0.0316952393 | AI63: 0.03180479098 | AJ63: 0.03191931081 | AK63: 0.03203451917 | AL63: 0.0321519552 | AM63: 0.03227109303 | AN63: 0.03239195302 | AO63: 0.03251270131
D64: EL1 | E64: 0.02654867852 | F64: 0.02346102812 | G64: 0.02688381902 | H64: 0.03054306522 | I64: 0.03416688834 | J64: 0.03634532062 | K64: 0.03688867693 | L64: 0.04738459525 | M64: 0.04677313842 | N64: 0.04584492262 | O64: 0.04520178044 | P64: 0.04429921087 | Q64: 0.04347942871 | R64: 0.04251137966 | S64: 0.04173201593 | T64: 0.04099501901 | U64: 0.04017808848 | V64: 0.03940598761 | W64: 0.03882972398 | X64: 0.03840074397 | Y64: 0.03817740869 | Z64: 0.03824000333 | AA64: 0.03810517813 | AB64: 0.03802138902 | AC64: 0.03805796335 | AD64: 0.03809928222 | AE64: 0.03816042677 | AF64: 0.03822005245 | AG64: 0.03831112827 | AH64: 0.03846776817 | AI64: 0.03863224236 | AJ64: 0.03880393834 | AK64: 0.0389766543 | AL64: 0.03915258955 | AM64: 0.0393309656 | AN64: 0.03951179518 | AO64: 0.03969241748
D65: EL2 | E65: 0 | F65: 0 | G65: 0 | H65: 0 | I65: 0 | J65: 0 | K65: 0 | L65: 0 | M65: 0 | N65: 0 | O65: 0 | P65: 0 | Q65: 0 | R65: 0 | S65: 0 | T65: 0 | U65: 0 | V65: 0 | W65: 0 | X65: 0 | Y65: 0 | Z65: 0 | AA65: 0 | AB65: 0 | AC65: 0 | AD65: 0 | AE65: 0 | AF65: 0 | AG65: 0 | AH65: 0 | AI65: 0 | AJ65: 0 | AK65: 0 | AL65: 0 | AM65: 0 | AN65: 0 | AO65: 0
D66: EL3 | E66: 0 | F66: 0 | G66: 0 | H66: 0 | I66: 0 | J66: 0 | K66: 0 | L66: 0 | M66: 0 | N66: 0 | O66: 0 | P66: 0 | Q66: 0 | R66: 0 | S66: 0 | T66: 0 | U66: 0 | V66: 0 | W66: 0 | X66: 0 | Y66: 0 | Z66: 0 | AA66: 0 | AB66: 0 | AC66: 0 | AD66: 0 | AE66: 0 | AF66: 0 | AG66: 0 | AH66: 0 | AI66: 0 | AJ66: 0 | AK66: 0 | AL66: 0 | AM66: 0 | AN66: 0 | AO66: 0
D67: EL4 | E67: 0 | F67: 0 | G67: 0 | H67: 0 | I67: 0 | J67: 0 | K67: 0 | L67: 0 | M67: 0 | N67: 0 | O67: 0 | P67: 0 | Q67: 0 | R67: 0 | S67: 0 | T67: 0 | U67: 0 | V67: 0 | W67: 0 | X67: 0 | Y67: 0 | Z67: 0 | AA67: 0 | AB67: 0 | AC67: 0 | AD67: 0 | AE67: 0 | AF67: 0 | AG67: 0 | AH67: 0 | AI67: 0 | AJ67: 0 | AK67: 0 | AL67: 0 | AM67: 0 | AN67: 0 | AO67: 0
D68: EL5 | E68: 0 | F68: 0 | G68: 0 | H68: 0 | I68: 0 | J68: 0 | K68: 0 | L68: 0 | M68: 0 | N68: 0 | O68: 0 | P68: 0 | Q68: 0 | R68: 0 | S68: 0 | T68: 0 | U68: 0 | V68: 0 | W68: 0 | X68: 0 | Y68: 0 | Z68: 0 | AA68: 0 | AB68: 0 | AC68: 0 | AD68: 0 | AE68: 0 | AF68: 0 | AG68: 0 | AH68: 0 | AI68: 0 | AJ68: 0 | AK68: 0 | AL68: 0 | AM68: 0 | AN68: 0 | AO68: 0
D69: EL6 | E69: 0 | F69: 0 | G69: 0 | H69: 0 | I69: 0 | J69: 0 | K69: 0 | L69: 0 | M69: 0 | N69: 0 | O69: 0 | P69: 0 | Q69: 0 | R69: 0 | S69: 0 | T69: 0 | U69: 0 | V69: 0 | W69: 0 | X69: 0 | Y69: 0 | Z69: 0 | AA69: 0 | AB69: 0 | AC69: 0 | AD69: 0 | AE69: 0 | AF69: 0 | AG69: 0 | AH69: 0 | AI69: 0 | AJ69: 0 | AK69: 0 | AL69: 0 | AM69: 0 | AN69: 0 | AO69: 0
D70: Total | E70: =SUM(E63:E69) -> 0.04609706848 | F70: =SUM(F63:F69) -> 0.04157427847 | G70: =SUM(G63:G69) -> 0.04831371007 | H70: =SUM(H63:H69) -> 0.05558867224 | I70: =SUM(I63:I69) -> 0.06285962017 | J70: =SUM(J63:J69) -> 0.06732779755 | K70: =SUM(K63:K69) -> 0.06859543895 | L70: =SUM(L63:L69) -> 0.08641664031 | M70: =SUM(M63:M69) -> 0.08539248112 | N70: =SUM(N63:N69) -> 0.08373681475 | O70: =SUM(O63:O69) -> 0.08263750961 | P70: =SUM(P63:P69) -> 0.08101598517 | Q70: =SUM(Q63:Q69) -> 0.07954608546 | R70: =SUM(R63:R69) -> 0.07776991621 | S70: =SUM(S63:S69) -> 0.07635093415 | T70: =SUM(T63:T69) -> 0.07500008222 | U70: =SUM(U63:U69) -> 0.07347487708 | V70: =SUM(V63:V69) -> 0.07202225612 | W70: =SUM(W63:W69) -> 0.07094210182 | X70: =SUM(X63:X69) -> 0.07013731952 | Y70: =SUM(Y63:Y69) -> 0.06972789249 | Z70: =SUM(Z63:Z69) -> 0.06987530007 | AA70: =SUM(AA63:AA69) -> 0.06962196017 | AB70: =SUM(AB63:AB69) -> 0.06945367993 | AC70: =SUM(AC63:AC69) -> 0.0695129352 | AD70: =SUM(AD63:AD69) -> 0.06957523302 | AE70: =SUM(AE63:AE69) -> 0.06967102124 | AF70: =SUM(AF63:AF69) -> 0.0697580405 | AG70: =SUM(AG63:AG69) -> 0.06990218954 | AH70: =SUM(AH63:AH69) -> 0.07016300747 | AI70: =SUM(AI63:AI69) -> 0.07043703333 | AJ70: =SUM(AJ63:AJ69) -> 0.07072324914 | AK70: =SUM(AK63:AK69) -> 0.07101117347 | AL70: =SUM(AL63:AL69) -> 0.07130454475 | AM70: =SUM(AM63:AM69) -> 0.07160205863 | AN70: =SUM(AN63:AN69) -> 0.0719037482 | AO70: =SUM(AO63:AO69) -> 0.0722051188
C72: PC 7 | E72: 2012 | F72: 2013 | G72: 2014 | H72: 2015 | I72: 2016 | J72: 2017 | K72: 2018 | L72: 2019 | M72: 2020 | N72: 2021 | O72: 2022 | P72: 2023 | Q72: 2024 | R72: 2025 | S72: 2026 | T72: 2027 | U72: 2028 | V72: 2029 | W72: 2030 | X72: 2031 | Y72: 2032 | Z72: 2033 | AA72: 2034 | AB72: 2035 | AC72: 2036 | AD72: 2037 | AE72: 2038 | AF72: 2039 | AG72: 2040 | AH72: 2041 | AI72: 2042 | AJ72: 2043 | AK72: 2044 | AL72: 2045 | AM72: 2046 | AN72: 2047 | AO72: 2048
C73: =OFFSET('Product Classes'!$C$9,MATCH(C72,MODEL_PCS,0),0) -> Mobile Home Non-Weatherized, Condensing Gas Furnace Fan (MH-NWG-C) | D73: EL0 | E73: 0.002233807904 | F73: 0.003791640609 | G73: 0.004230929666 | H73: 0.004722649078 | I73: 0.005228542085 | J73: 0.00555274527 | K73: 0.005663965515 | L73: 0.005674594668 | M73: 0.005709638662 | N73: 0.00570249753 | O73: 0.005732996089 | P73: 0.005727451232 | Q73: 0.005730470701 | R73: 0.0057106339 | S73: 0.00571160794 | T73: 0.005713663056 | U73: 0.005700087561 | V73: 0.00568743129 | W73: 0.005695888041 | X73: 0.005718039647 | Y73: 0.005763154242 | Z73: 0.005842385312 | AA73: 0.005890794194 | AB73: 0.005938537519 | AC73: 0.005996764902 | AD73: 0.006051966385 | AE73: 0.006106103524 | AF73: 0.006156221053 | AG73: 0.006206644091 | AH73: 0.006258278973 | AI73: 0.006308038735 | AJ73: 0.006355829046 | AK73: 0.006401508208 | AL73: 0.006445228766 | AM73: 0.006486872374 | AN73: 0.006526489052 | AO73: 0.006563747808
D74: EL1 | E74: 0.002989676132 | F74: 0.005191370128 | G74: 0.005622634175 | H74: 0.006102847679 | I74: 0.006594184009 | J74: 0.006901344834 | K74: 0.006994034679 | L74: 0.006985403245 | M74: 0.007036459636 | N74: 0.007046663533 | O74: 0.007095922252 | P74: 0.007110566048 | Q74: 0.007135264536 | R74: 0.007138521192 | S74: 0.007164024526 | T74: 0.007191865961 | U74: 0.007205241838 | V74: 0.007220614016 | W74: 0.007257992378 | X74: 0.007309751356 | Y74: 0.007384919072 | Z74: 0.007494367036 | AA74: 0.007572969783 | AB74: 0.007650842158 | AC74: 0.007738928307 | AD74: 0.00782360762 | AE74: 0.007906700389 | AF74: 0.007985177841 | AG74: 0.008063216983 | AH74: 0.008141854474 | AI74: 0.008217708702 | AJ74: 0.008290637426 | AK74: 0.008360430542 | AL74: 0.008427307209 | AM74: 0.008491093238 | AN74: 0.008551860312 | AO74: 0.008609126288
D75: EL2 | E75: 0 | F75: 0 | G75: 0 | H75: 0 | I75: 0 | J75: 0 | K75: 0 | L75: 0 | M75: 0 | N75: 0 | O75: 0 | P75: 0 | Q75: 0 | R75: 0 | S75: 0 | T75: 0 | U75: 0 | V75: 0 | W75: 0 | X75: 0 | Y75: 0 | Z75: 0 | AA75: 0 | AB75: 0 | AC75: 0 | AD75: 0 | AE75: 0 | AF75: 0 | AG75: 0 | AH75: 0 | AI75: 0 | AJ75: 0 | AK75: 0 | AL75: 0 | AM75: 0 | AN75: 0 | AO75: 0
D76: EL3 | E76: 0.001664398469 | F76: 0.003223379817 | G76: 0.003570359681 | H76: 0.003943141816 | I76: 0.004336044353 | J76: 0.004708537916 | K76: 0.005049988126 | L76: 0.005382452551 | M76: 0.005533067022 | N76: 0.00568104592 | O76: 0.005846242771 | P76: 0.006011061448 | Q76: 0.006186991435 | R76: 0.006366268227 | S76: 0.006560376433 | T76: 0.006764123826 | U76: 0.00697321613 | V76: 0.0071919568 | W76: 0.00742544508 | X76: 0.007671401881 | Y76: 0.007931856226 | Z76: 0.008209230872 | AA76: 0.008485170171 | AB76: 0.008767936172 | AC76: 0.00906001782 | AD76: 0.009357290788 | AE76: 0.009659820678 | AF76: 0.009966495165 | AG76: 0.01027795891 | AH76: 0.01059536923 | AI76: 0.01091628457 | AJ76: 0.01124043564 | AK76: 0.01156741433 | AL76: 0.01189756502 | AM76: 0.012230532 | AN76: 0.01256639875 | AO76: 0.01290419538
D77: EL4 | E77: 0 | F77: 0 | G77: 0 | H77: 0 | I77: 0 | J77: 0 | K77: 0 | L77: 0 | M77: 0 | N77: 0 | O77: 0 | P77: 0 | Q77: 0 | R77: 0 | S77: 0 | T77: 0 | U77: 0 | V77: 0 | W77: 0 | X77: 0 | Y77: 0 | Z77: 0 | AA77: 0 | AB77: 0 | AC77: 0 | AD77: 0 | AE77: 0 | AF77: 0 | AG77: 0 | AH77: 0 | AI77: 0 | AJ77: 0 | AK77: 0 | AL77: 0 | AM77: 0 | AN77: 0 | AO77: 0
D78: EL5 | E78: 0.0003175986284 | F78: 0.0005274335648 | G78: 0.0005847993621 | H78: 0.0006461700496 | I78: 0.0007105863275 | J78: 0.0007716853004 | K78: 0.0008278393172 | L78: 0.0008825508565 | M78: 0.0009074285267 | N78: 0.000931837261 | O78: 0.0009588906033 | P78: 0.0009858347352 | Q78: 0.001014481812 | R78: 0.001043623354 | S78: 0.001075068287 | T78: 0.001107994012 | U78: 0.001141742315 | V78: 0.001176990262 | W78: 0.001214539479 | X78: 0.00125402624 | Y78: 0.001295764134 | Z78: 0.00134012532 | AA78: 0.001384228823 | AB78: 0.001429380393 | AC78: 0.00147597171 | AD78: 0.001523352445 | AE78: 0.00157154096 | AF78: 0.001620361965 | AG78: 0.001669910201 | AH78: 0.001720571741 | AI78: 0.001771773687 | AJ78: 0.001823476321 | AK78: 0.001875612595 | AL78: 0.001928253249 | AM78: 0.001981337729 | AN78: 0.002034885296 | AO78: 0.002088718619
D79: EL6 | E79: 0 | F79: 0 | G79: 0 | H79: 0 | I79: 0 | J79: 0 | K79: 0 | L79: 0 | M79: 0 | N79: 0 | O79: 0 | P79: 0 | Q79: 0 | R79: 0 | S79: 0 | T79: 0 | U79: 0 | V79: 0 | W79: 0 | X79: 0 | Y79: 0 | Z79: 0 | AA79: 0 | AB79: 0 | AC79: 0 | AD79: 0 | AE79: 0 | AF79: 0 | AG79: 0 | AH79: 0 | AI79: 0 | AJ79: 0 | AK79: 0 | AL79: 0 | AM79: 0 | AN79: 0 | AO79: 0
D80: Total | E80: =SUM(E73:E79) -> 0.007205481134 | F80: =SUM(F73:F79) -> 0.01273382412 | G80: =SUM(G73:G79) -> 0.01400872288 | H80: =SUM(H73:H79) -> 0.01541480862 | I80: =SUM(I73:I79) -> 0.01686935678 | J80: =SUM(J73:J79) -> 0.01793431332 | K80: =SUM(K73:K79) -> 0.01853582764 | L80: =SUM(L73:L79) -> 0.01892500132 | M80: =SUM(M73:M79) -> 0.01918659385 | N80: =SUM(N73:N79) -> 0.01936204424 | O80: =SUM(O73:O79) -> 0.01963405172 | P80: =SUM(P73:P79) -> 0.01983491346 | Q80: =SUM(Q73:Q79) -> 0.02006720848 | R80: =SUM(R73:R79) -> 0.02025904667 | S80: =SUM(S73:S79) -> 0.02051107719 | T80: =SUM(T73:T79) -> 0.02077764685 | U80: =SUM(U73:U79) -> 0.02102028784 | V80: =SUM(V73:V79) -> 0.02127699237 | W80: =SUM(W73:W79) -> 0.02159386498 | X80: =SUM(X73:X79) -> 0.02195321912 | Y80: =SUM(Y73:Y79) -> 0.02237569367 | Z80: =SUM(Z73:Z79) -> 0.02288610854 | AA80: =SUM(AA73:AA79) -> 0.02333316297 | AB80: =SUM(AB73:AB79) -> 0.02378669624 | AC80: =SUM(AC73:AC79) -> 0.02427168274 | AD80: =SUM(AD73:AD79) -> 0.02475621724 | AE80: =SUM(AE73:AE79) -> 0.02524416555 | AF80: =SUM(AF73:AF79) -> 0.02572825602 | AG80: =SUM(AG73:AG79) -> 0.02621773019 | AH80: =SUM(AH73:AH79) -> 0.02671607442 | AI80: =SUM(AI73:AI79) -> 0.02721380569 | AJ80: =SUM(AJ73:AJ79) -> 0.02771037843 | AK80: =SUM(AK73:AK79) -> 0.02820496567 | AL80: =SUM(AL73:AL79) -> 0.02869835424 | AM80: =SUM(AM73:AM79) -> 0.02918983534 | AN80: =SUM(AN73:AN79) -> 0.02967963341 | AO80: =SUM(AO73:AO79) -> 0.03016578809
C82: PC 8 | E82: 2012 | F82: 2013 | G82: 2014 | H82: 2015 | I82: 2016 | J82: 2017 | K82: 2018 | L82: 2019 | M82: 2020 | N82: 2021 | O82: 2022 | P82: 2023 | Q82: 2024 | R82: 2025 | S82: 2026 | T82: 2027 | U82: 2028 | V82: 2029 | W82: 2030 | X82: 2031 | Y82: 2032 | Z82: 2033 | AA82: 2034 | AB82: 2035 | AC82: 2036 | AD82: 2037 | AE82: 2038 | AF82: 2039 | AG82: 2040 | AH82: 2041 | AI82: 2042 | AJ82: 2043 | AK82: 2044 | AL82: 2045 | AM82: 2046 | AN82: 2047 | AO82: 2048
C83: =OFFSET('Product Classes'!$C$9,MATCH(C82,MODEL_PCS,0),0) -> Mobile Home Electric Furnace / Modular Blower Fan (MH-EF/MB) | D83: EL0 | E83: 0.02353253975 | F83: 0.02267499626 | G83: 0.02822877913 | H83: 0.03441597611 | I83: 0.04077453255 | J83: 0.04472161988 | K83: 0.04586567181 | L83: 0.04570245779 | M83: 0.0453577588 | N83: 0.04445657362 | O83: 0.04405787656 | P83: 0.04318647648 | Q83: 0.04242025945 | R83: 0.04133516068 | S83: 0.0405020278 | T83: 0.03969578201 | U83: 0.0386648814 | V83: 0.03764658736 | W83: 0.03690128068 | X83: 0.03633561829 | Y83: 0.03605902589 | Z83: 0.03621828805 | AA83: 0.03599328093 | AB83: 0.03577506291 | AC83: 0.03571885359 | AD83: 0.03565153067 | AE83: 0.03558647525 | AF83: 0.03549859392 | AG83: 0.03545619388 | AH83: 0.03536948426 | AI83: 0.03527831166 | AJ83: 0.03518273879 | AK83: 0.03508151581 | AL83: 0.03497563745 | AM83: 0.03486518086 | AN83: 0.03475052265 | AO83: 0.03463117496
D84: EL1 | E84: 0.03221053125 | F84: 0.02832644491 | G84: 0.03368095941 | H84: 0.03960262941 | I84: 0.04563992176 | J84: 0.04923427462 | K84: 0.05002015536 | L84: 0.04950748447 | M84: 0.04900498209 | N84: 0.04795730467 | O84: 0.04742160241 | P84: 0.04642526547 | Q84: 0.04554576342 | R84: 0.04436017659 | S84: 0.04343844171 | T84: 0.0425552019 | U84: 0.04145899331 | V84: 0.04038554558 | W84: 0.03959309515 | X84: 0.03898788292 | Y84: 0.03867567822 | Z84: 0.03880087712 | AA84: 0.0385461097 | AB84: 0.03830350148 | AC84: 0.03822523574 | AD84: 0.03813598525 | AE84: 0.03804882103 | AF84: 0.03793851621 | AG84: 0.03787288491 | AH84: 0.03777363988 | AI84: 0.03766765268 | AJ84: 0.03755501707 | AK84: 0.03743385529 | AL84: 0.0373056621 | AM84: 0.03717055401 | AN84: 0.0370290977 | AO84: 0.03688056124
D85: EL2 | E85: 0 | F85: 0 | G85: 0 | H85: 0 | I85: 0 | J85: 0 | K85: 0 | L85: 0 | M85: 0 | N85: 0 | O85: 0 | P85: 0 | Q85: 0 | R85: 0 | S85: 0 | T85: 0 | U85: 0 | V85: 0 | W85: 0 | X85: 0 | Y85: 0 | Z85: 0 | AA85: 0 | AB85: 0 | AC85: 0 | AD85: 0 | AE85: 0 | AF85: 0 | AG85: 0 | AH85: 0 | AI85: 0 | AJ85: 0 | AK85: 0 | AL85: 0 | AM85: 0 | AN85: 0 | AO85: 0
D86: EL3 | E86: 0.009622256206 | F86: 0.007635444823 | G86: 0.008765015492 | H86: 0.009980853258 | I86: 0.01123419604 | J86: 0.01222122687 | K86: 0.01286484533 | L86: 0.01332963188 | M86: 0.01324376205 | N86: 0.01308979929 | O86: 0.01301557475 | P86: 0.01288718536 | Q86: 0.01278844084 | R86: 0.01266026816 | S86: 0.01258747186 | T86: 0.01253773035 | U86: 0.01247420609 | V86: 0.01243119913 | W86: 0.01244692009 | X86: 0.01250826458 | Y86: 0.01262636448 | Z86: 0.01282177147 | AA86: 0.0129674424 | AB86: 0.01313138214 | AC86: 0.0133328755 | AD86: 0.0135370615 | AE86: 0.01374566572 | AF86: 0.0139538873 | AG86: 0.01417235225 | AH86: 0.01442459298 | AI86: 0.01467571339 | AJ86: 0.014925545 | AK86: 0.01517129552 | AL86: 0.01541446918 | AM86: 0.0156548293 | AN86: 0.01589277874 | AO86: 0.01612684716
D87: EL4 | E87: 0 | F87: 0 | G87: 0 | H87: 0 | I87: 0 | J87: 0 | K87: 0 | L87: 0 | M87: 0 | N87: 0 | O87: 0 | P87: 0 | Q87: 0 | R87: 0 | S87: 0 | T87: 0 | U87: 0 | V87: 0 | W87: 0 | X87: 0 | Y87: 0 | Z87: 0 | AA87: 0 | AB87: 0 | AC87: 0 | AD87: 0 | AE87: 0 | AF87: 0 | AG87: 0 | AH87: 0 | AI87: 0 | AJ87: 0 | AK87: 0 | AL87: 0 | AM87: 0 | AN87: 0 | AO87: 0
D88: EL5 | E88: 0.02155652212 | F88: 0.01693662577 | G88: 0.01929584577 | H88: 0.02180502894 | I88: 0.024364944 | J88: 0.0263768064 | K88: 0.02769486192 | L88: 0.02865035054 | M88: 0.02843823016 | N88: 0.02809382077 | O88: 0.02790989415 | P88: 0.02762238056 | Q88: 0.02739793785 | R88: 0.02712035401 | S88: 0.02695813048 | T88: 0.02684728787 | U88: 0.02671528996 | V88: 0.02662976972 | W88: 0.02666571499 | X88: 0.0267973433 | Y88: 0.02704456678 | Z88: 0.02744676182 | AA88: 0.02775352114 | AB88: 0.02810145426 | AC88: 0.0285267159 | AD88: 0.02895831645 | AE88: 0.02939955687 | AF88: 0.02984084904 | AG88: 0.03030294508 | AH88: 0.03084287168 | AI88: 0.03138030335 | AJ88: 0.03191489499 | AK88: 0.03244036925 | AL88: 0.03296014492 | AM88: 0.03347370275 | AN88: 0.03398196151 | AO88: 0.03448160403
D89: EL6 | E89: 0 | F89: 0 | G89: 0 | H89: 0 | I89: 0 | J89: 0 | K89: 0 | L89: 0 | M89: 0 | N89: 0 | O89: 0 | P89: 0 | Q89: 0 | R89: 0 | S89: 0 | T89: 0 | U89: 0 | V89: 0 | W89: 0 | X89: 0 | Y89: 0 | Z89: 0 | AA89: 0 | AB89: 0 | AC89: 0 | AD89: 0 | AE89: 0 | AF89: 0 | AG89: 0 | AH89: 0 | AI89: 0 | AJ89: 0 | AK89: 0 | AL89: 0 | AM89: 0 | AN89: 0 | AO89: 0
D90: Total | E90: =SUM(E83:E89) -> 0.08692184932 | F90: =SUM(F83:F89) -> 0.07557351177 | G90: =SUM(G83:G89) -> 0.08997059979 | H90: =SUM(H83:H89) -> 0.1058044877 | I90: =SUM(I83:I89) -> 0.1220135944 | J90: =SUM(J83:J89) -> 0.1325539278 | K90: =SUM(K83:K89) -> 0.1364455344 | L90: =SUM(L83:L89) -> 0.1371899247 | M90: =SUM(M83:M89) -> 0.1360447331 | N90: =SUM(N83:N89) -> 0.1335974984 | O90: =SUM(O83:O89) -> 0.1324049479 | P90: =SUM(P83:P89) -> 0.1301213079 | Q90: =SUM(Q83:Q89) -> 0.1281524016 | R90: =SUM(R83:R89) -> 0.1254759594 | S90: =SUM(S83:S89) -> 0.1234860719 | T90: =SUM(T83:T89) -> 0.1216360021 | U90: =SUM(U83:U89) -> 0.1193133708 | V90: =SUM(V83:V89) -> 0.1170931018 | W90: =SUM(W83:W89) -> 0.1156070109 | X90: =SUM(X83:X89) -> 0.1146291091 | Y90: =SUM(Y83:Y89) -> 0.1144056354 | Z90: =SUM(Z83:Z89) -> 0.1152876985 | AA90: =SUM(AA83:AA89) -> 0.1152603542 | AB90: =SUM(AB83:AB89) -> 0.1153114008 | AC90: =SUM(AC83:AC89) -> 0.1158036807 | AD90: =SUM(AD83:AD89) -> 0.1162828939 | AE90: =SUM(AE83:AE89) -> 0.1167805189 | AF90: =SUM(AF83:AF89) -> 0.1172318465 | AG90: =SUM(AG83:AG89) -> 0.1178043761 | AH90: =SUM(AH83:AH89) -> 0.1184105888 | AI90: =SUM(AI83:AI89) -> 0.1190019811 | AJ90: =SUM(AJ83:AJ89) -> 0.1195781959 | AK90: =SUM(AK83:AK89) -> 0.1201270359 | AL90: =SUM(AL83:AL89) -> 0.1206559136 | AM90: =SUM(AM83:AM89) -> 0.1211642669 | AN90: =SUM(AN83:AN89) -> 0.1216543606 | AO90: =SUM(AO83:AO89) -> 0.1221201874
C94: Post-Case National Shipments | D94: TOTAL | E94: =SUM(E105,E115,E125,E135,E145,E155,E165,E175) -> 2.775576478 | F94: =SUM(F105,F115,F125,F135,F145,F155,F165,F175) -> 2.769381067 | G94: 3.065750639 | H94: 3.297782222 | I94: 3.275025373 | J94: 3.194010438 | K94: 3.453257833 | L94: 3.609563808 | M94: 3.659070665 | N94: 3.662652829 | O94: 3.925776759 | P94: 3.961088731 | Q94: 4.001069574 | R94: 4.02610585 | S94: 4.048225991 | T94: 4.053466461 | U94: 4.051883827 | V94: 4.057583928 | W94: 4.075301062 | X94: 4.078311181 | Y94: 4.074859893 | Z94: 4.114435377 | AA94: 4.139773666 | AB94: 4.16047258 | AC94: 4.190862403 | AD94: 4.207642111 | AE94: 4.221427763 | AF94: 4.25744967 | AG94: 4.297705237 | AH94: 4.34231622 | AI94: 4.388004684 | AJ94: 4.434245305 | AK94: 4.480838447 | AL94: 4.528019902 | AM94: 4.575785569 | AN94: 4.624011134 | AO94: 4.67263182
C97: PC 1 | E97: 2012 | F97: 2013 | G97: 2014 | H97: 2015 | I97: 2016 | J97: 2017 | K97: 2018 | L97: 2019 | M97: 2020 | N97: 2021 | O97: 2022 | P97: 2023 | Q97: 2024 | R97: 2025 | S97: 2026 | T97: 2027 | U97: 2028 | V97: 2029 | W97: 2030 | X97: 2031 | Y97: 2032 | Z97: 2033 | AA97: 2034 | AB97: 2035 | AC97: 2036 | AD97: 2037 | AE97: 2038 | AF97: 2039 | AG97: 2040 | AH97: 2041 | AI97: 2042 | AJ97: 2043 | AK97: 2044 | AL97: 2045 | AM97: 2046 | AN97: 2047 | AO97: 2048
C98: =OFFSET('Product Classes'!$C$9,MATCH(C97,MODEL_PCS,0),0) -> Non-Weatherized, Non-Condensing Gas Furnace Fan (NWG-NC) | D98: EL0 | E98: 0.38327474 | F98: 0.3520753509 | G98: 0.3933167263 | H98: 0.4210365711 | I98: 0.3927341961 | J98: 0.3565809819 | K98: 0.4164138643 | L98: 0 | M98: 0 | N98: 0 | O98: 0 | P98: 0 | Q98: 0 | R98: 0 | S98: 0 | T98: 0 | U98: 0 | V98: 0 | W98: 0 | X98: 0 | Y98: 0 | Z98: 0 | AA98: 0 | AB98: 0 | AC98: 0 | AD98: 0 | AE98: 0 | AF98: 0 | AG98: 0 | AH98: 0 | AI98: 0 | AJ98: 0 | AK98: 0 | AL98: 0 | AM98: 0 | AN98: 0 | AO98: 0
D99: EL1 | E99: 0.5147970674 | F99: 0.4565659182 | G99: 0.4976746191 | H99: 0.5251499616 | I99: 0.4795461296 | J99: 0.4263590451 | K99: 0.5142177363 | L99: 0 | M99: 0 | N99: 0 | O99: 0 | P99: 0 | Q99: 0 | R99: 0 | S99: 0 | T99: 0 | U99: 0 | V99: 0 | W99: 0 | X99: 0 | Y99: 0 | Z99: 0 | AA99: 0 | AB99: 0 | AC99: 0 | AD99: 0 | AE99: 0 | AF99: 0 | AG99: 0 | AH99: 0 | AI99: 0 | AJ99: 0 | AK99: 0 | AL99: 0 | AM99: 0 | AN99: 0 | AO99: 0
D100: EL2 | E100: 0 | F100: 0 | G100: 0 | H100: 0 | I100: 0 | J100: 0 | K100: 0 | L100: 0 | M100: 0 | N100: 0 | O100: 0 | P100: 0 | Q100: 0 | R100: 0 | S100: 0 | T100: 0 | U100: 0 | V100: 0 | W100: 0 | X100: 0 | Y100: 0 | Z100: 0 | AA100: 0 | AB100: 0 | AC100: 0 | AD100: 0 | AE100: 0 | AF100: 0 | AG100: 0 | AH100: 0 | AI100: 0 | AJ100: 0 | AK100: 0 | AL100: 0 | AM100: 0 | AN100: 0 | AO100: 0
D101: EL3 | E101: 0.09626124914 | F101: 0.0860192493 | G101: 0.09530569713 | H101: 0.1040946267 | I101: 0.09656777529 | J101: 0.08681807199 | K101: 0.1212336497 | L101: 0 | M101: 0 | N101: 0 | O101: 0 | P101: 0 | Q101: 0 | R101: 0 | S101: 0 | T101: 0 | U101: 0 | V101: 0 | W101: 0 | X101: 0 | Y101: 0 | Z101: 0 | AA101: 0 | AB101: 0 | AC101: 0 | AD101: 0 | AE101: 0 | AF101: 0 | AG101: 0 | AH101: 0 | AI101: 0 | AJ101: 0 | AK101: 0 | AL101: 0 | AM101: 0 | AN101: 0 | AO101: 0
D102: EL4 | E102: 0.02225890741 | F102: 0.01964546941 | G102: 0.02168480728 | H102: 0.02362231915 | I102: 0.02162878087 | J102: 0.01911018666 | K102: 0.02728749625 | L102: 1.099570767 | M102: 1.113115574 | N102: 1.095159022 | O102: 1.221516443 | P102: 1.210697271 | Q102: 1.200765235 | R102: 1.180488228 | S102: 1.163424069 | T102: 1.139498347 | U102: 1.112572235 | V102: 1.087881931 | W102: 1.066601721 | X102: 1.039781242 | Y102: 1.010075412 | Z102: 0.9946012606 | AA102: 0.9748838722 | AB102: 0.9534882833 | AC102: 0.9351676847 | AD102: 0.9122997192 | AE102: 0.8885864684 | AF102: 0.8807890715 | AG102: 0.8753240329 | AH102: 0.8707182264 | AI102: 0.8664665764 | AJ102: 0.8623345019 | AK102: 0.8582577968 | AL102: 0.8542756473 | AM102: 0.8504171578 | AN102: 0.8465924132 | AO102: 0.8428684695
D103: EL5 | E103: 0.1018804709 | F103: 0.09107583468 | G103: 0.1009767762 | H103: 0.1103332491 | I103: 0.1023681624 | J103: 0.09203039374 | K103: 0.1284715474 | L103: 0.1394800877 | M103: 0.1437181925 | N103: 0.1435844494 | O103: 0.1673342549 | P103: 0.166823443 | Q103: 0.1661370601 | R103: 0.1638727299 | S103: 0.1626296978 | T103: 0.1608706817 | U103: 0.1587564555 | V103: 0.1565683622 | W103: 0.1543364791 | X103: 0.1517947584 | Y103: 0.1490114046 | Z103: 0.14675156 | AA103: 0.1442985789 | AB103: 0.1417202831 | AC103: 0.1392222441 | AD103: 0.1364842497 | AE103: 0.1337033058 | AF103: 0.1337848195 | AG103: 0.1342027563 | AH103: 0.1348477208 | AI103: 0.135562929 | AJ103: 0.1362987872 | AK103: 0.1370417451 | AL103: 0.1378010171 | AM103: 0.1385838652 | AN103: 0.1393704546 | AO103: 0.1401765917
D104: EL6 | E104: 0 | F104: 0 | G104: 0 | H104: 0 | I104: 0 | J104: 0 | K104: 0 | L104: 0 | M104: 0 | N104: 0 | O104: 0 | P104: 0 | Q104: 0 | R104: 0 | S104: 0 | T104: 0 | U104: 0 | V104: 0 | W104: 0 | X104: 0 | Y104: 0 | Z104: 0 | AA104: 0 | AB104: 0 | AC104: 0 | AD104: 0 | AE104: 0 | AF104: 0 | AG104: 0 | AH104: 0 | AI104: 0 | AJ104: 0 | AK104: 0 | AL104: 0 | AM104: 0 | AN104: 0 | AO104: 0
D105: Total | E105: =SUM(E98:E104) -> 1.118472435 | F105: =SUM(F98:F104) -> 1.005381822 | G105: =SUM(G98:G104) -> 1.108958626 | H105: =SUM(H98:H104) -> 1.184236728 | I105: =SUM(I98:I104) -> 1.092845044 | J105: =SUM(J98:J104) -> 0.9808986794 | K105: =SUM(K98:K104) -> 1.207624294 | L105: =SUM(L98:L104) -> 1.239050855 | M105: =SUM(M98:M104) -> 1.256833767 | N105: =SUM(N98:N104) -> 1.238743472 | O105: =SUM(O98:O104) -> 1.388850698 | P105: =SUM(P98:P104) -> 1.377520714 | Q105: =SUM(Q98:Q104) -> 1.366902295 | R105: =SUM(R98:R104) -> 1.344360958 | S105: =SUM(S98:S104) -> 1.326053767 | T105: =SUM(T98:T104) -> 1.300369029 | U105: =SUM(U98:U104) -> 1.27132869 | V105: =SUM(V98:V104) -> 1.244450293 | W105: =SUM(W98:W104) -> 1.2209382 | X105: =SUM(X98:X104) -> 1.191576001 | Y105: =SUM(Y98:Y104) -> 1.159086817 | Z105: =SUM(Z98:Z104) -> 1.141352821 | AA105: =SUM(AA98:AA104) -> 1.119182451 | AB105: =SUM(AB98:AB104) -> 1.095208566 | AC105: =SUM(AC98:AC104) -> 1.074389929 | AD105: =SUM(AD98:AD104) -> 1.048783969 | AE105: =SUM(AE98:AE104) -> 1.022289774 | AF105: =SUM(AF98:AF104) -> 1.014573891 | AG105: =SUM(AG98:AG104) -> 1.009526789 | AH105: =SUM(AH98:AH104) -> 1.005565947 | AI105: =SUM(AI98:AI104) -> 1.002029505 | AJ105: =SUM(AJ98:AJ104) -> 0.9986332891 | AK105: =SUM(AK98:AK104) -> 0.9952995419 | AL105: =SUM(AL98:AL104) -> 0.9920766644 | AM105: =SUM(AM98:AM104) -> 0.989001023 | AN105: =SUM(AN98:AN104) -> 0.9859628678 | AO105: =SUM(AO98:AO104) -> 0.9830450612
C107: PC 2 | E107: 2012 | F107: 2013 | G107: 2014 | H107: 2015 | I107: 2016 | J107: 2017 | K107: 2018 | L107: 2019 | M107: 2020 | N107: 2021 | O107: 2022 | P107: 2023 | Q107: 2024 | R107: 2025 | S107: 2026 | T107: 2027 | U107: 2028 | V107: 2029 | W107: 2030 | X107: 2031 | Y107: 2032 | Z107: 2033 | AA107: 2034 | AB107: 2035 | AC107: 2036 | AD107: 2037 | AE107: 2038 | AF107: 2039 | AG107: 2040 | AH107: 2041 | AI107: 2042 | AJ107: 2043 | AK107: 2044 | AL107: 2045 | AM107: 2046 | AN107: 2047 | AO107: 2048
C108: =OFFSET('Product Classes'!$C$9,MATCH(C107,MODEL_PCS,0),0) -> Non-Weatherized, Condensing Gas Furnace Fan (NWG-C) | D108: EL0 | E108: 0.2958400933 | F108: 0.3098519365 | G108: 0.3445858512 | H108: 0.3685437836 | I108: 0.3696315728 | J108: 0.3632171969 | K108: 0.3580057765 | L108: 0 | M108: 0 | N108: 0 | O108: 0 | P108: 0 | Q108: 0 | R108: 0 | S108: 0 | T108: 0 | U108: 0 | V108: 0 | W108: 0 | X108: 0 | Y108: 0 | Z108: 0 | AA108: 0 | AB108: 0 | AC108: 0 | AD108: 0 | AE108: 0 | AF108: 0 | AG108: 0 | AH108: 0 | AI108: 0 | AJ108: 0 | AK108: 0 | AL108: 0 | AM108: 0 | AN108: 0 | AO108: 0
D109: EL1 | E109: 0.404864447 | F109: 0.4138652125 | G109: 0.4477848315 | H109: 0.4709847967 | I109: 0.4673370722 | J109: 0.4561607195 | K109: 0.4502523532 | L109: 0 | M109: 0 | N109: 0 | O109: 0 | P109: 0 | Q109: 0 | R109: 0 | S109: 0 | T109: 0 | U109: 0 | V109: 0 | W109: 0 | X109: 0 | Y109: 0 | Z109: 0 | AA109: 0 | AB109: 0 | AC109: 0 | AD109: 0 | AE109: 0 | AF109: 0 | AG109: 0 | AH109: 0 | AI109: 0 | AJ109: 0 | AK109: 0 | AL109: 0 | AM109: 0 | AN109: 0 | AO109: 0
D110: EL2 | E110: 0 | F110: 0 | G110: 0 | H110: 0 | I110: 0 | J110: 0 | K110: 0 | L110: 0 | M110: 0 | N110: 0 | O110: 0 | P110: 0 | Q110: 0 | R110: 0 | S110: 0 | T110: 0 | U110: 0 | V110: 0 | W110: 0 | X110: 0 | Y110: 0 | Z110: 0 | AA110: 0 | AB110: 0 | AC110: 0 | AD110: 0 | AE110: 0 | AF110: 0 | AG110: 0 | AH110: 0 | AI110: 0 | AJ110: 0 | AK110: 0 | AL110: 0 | AM110: 0 | AN110: 0 | AO110: 0
D111: EL3 | E111: 0.0479426264 | F111: 0.05119815904 | G111: 0.05692232417 | H111: 0.06268730579 | I111: 0.06583878611 | J111: 0.06860167218 | K111: 0.07389869044 | L111: 0 | M111: 0 | N111: 0 | O111: 0 | P111: 0 | Q111: 0 | R111: 0 | S111: 0 | T111: 0 | U111: 0 | V111: 0 | W111: 0 | X111: 0 | Y111: 0 | Z111: 0 | AA111: 0 | AB111: 0 | AC111: 0 | AD111: 0 | AE111: 0 | AF111: 0 | AG111: 0 | AH111: 0 | AI111: 0 | AJ111: 0 | AK111: 0 | AL111: 0 | AM111: 0 | AN111: 0 | AO111: 0
D112: EL4 | E112: 0.04487576474 | F112: 0.04817208648 | G112: 0.05393019826 | H112: 0.05964513498 | I112: 0.06281213478 | J112: 0.06553692571 | K112: 0.07048093626 | L112: 1.004631079 | M112: 1.018763967 | N112: 1.027993543 | O112: 1.092956242 | P112: 1.115516514 | Q112: 1.140062904 | R112: 1.161006579 | S112: 1.180636782 | T112: 1.194486831 | U112: 1.206623322 | V112: 1.221255975 | W112: 1.239536193 | X112: 1.252238748 | Y112: 1.262250067 | Z112: 1.286669193 | AA112: 1.306018337 | AB112: 1.323345416 | AC112: 1.343431234 | AD112: 1.358230464 | AE112: 1.371420718 | AF112: 1.386127536 | AG112: 1.401013112 | AH112: 1.417683222 | AI112: 1.434292442 | AJ112: 1.450738225 | AK112: 1.467023866 | AL112: 1.483182709 | AM112: 1.499201905 | AN112: 1.515079236 | AO112: 1.530741817
D113: EL5 | E113: 0.2249223603 | F113: 0.2408503489 | G113: 0.2687366536 | H113: 0.2966039055 | I113: 0.3119517914 | J113: 0.3252756404 | K113: 0.350092555 | L113: 0.4038656842 | M113: 0.4196718011 | N113: 0.4337239997 | O113: 0.4764981589 | P113: 0.4938365334 | Q113: 0.5117722553 | R113: 0.5289007819 | S113: 0.5470809105 | T113: 0.5649177404 | U113: 0.5828421407 | V113: 0.6014111078 | W113: 0.6207092498 | X113: 0.6397228768 | Y113: 0.6587660716 | Z113: 0.6799240815 | AA113: 0.7008608781 | AB113: 0.7219073508 | AC113: 0.7436507321 | AD113: 0.765131886 | AE113: 0.7868000922 | AF113: 0.8090521756 | AG113: 0.8316813368 | AH113: 0.8550736324 | AI113: 0.8788882114 | AJ113: 0.9030522358 | AK113: 0.9275716028 | AL113: 0.9524763353 | AM113: 0.9777607706 | AN113: 1.003427482 | AO113: 1.029420415
D114: EL6 | E114: 0 | F114: 0 | G114: 0 | H114: 0 | I114: 0 | J114: 0 | K114: 0 | L114: 0 | M114: 0 | N114: 0 | O114: 0 | P114: 0 | Q114: 0 | R114: 0 | S114: 0 | T114: 0 | U114: 0 | V114: 0 | W114: 0 | X114: 0 | Y114: 0 | Z114: 0 | AA114: 0 | AB114: 0 | AC114: 0 | AD114: 0 | AE114: 0 | AF114: 0 | AG114: 0 | AH114: 0 | AI114: 0 | AJ114: 0 | AK114: 0 | AL114: 0 | AM114: 0 | AN114: 0 | AO114: 0
D115: Total | E115: =SUM(E108:E114) -> 1.018445292 | F115: =SUM(F108:F114) -> 1.063937743 | G115: =SUM(G108:G114) -> 1.171959859 | H115: =SUM(H108:H114) -> 1.258464927 | I115: =SUM(I108:I114) -> 1.277571357 | J115: =SUM(J108:J114) -> 1.278792155 | K115: =SUM(K108:K114) -> 1.302730311 | L115: =SUM(L108:L114) -> 1.408496764 | M115: =SUM(M108:M114) -> 1.438435768 | N115: =SUM(N108:N114) -> 1.461717542 | O115: =SUM(O108:O114) -> 1.569454401 | P115: =SUM(P108:P114) -> 1.609353048 | Q115: =SUM(Q108:Q114) -> 1.651835159 | R115: =SUM(R108:R114) -> 1.689907361 | S115: =SUM(S108:S114) -> 1.727717693 | T115: =SUM(T108:T114) -> 1.759404571 | U115: =SUM(U108:U114) -> 1.789465463 | V115: =SUM(V108:V114) -> 1.822667083 | W115: =SUM(W108:W114) -> 1.860245443 | X115: =SUM(X108:X114) -> 1.891961625 | Y115: =SUM(Y108:Y114) -> 1.921016139 | Z115: =SUM(Z108:Z114) -> 1.966593275 | AA115: =SUM(AA108:AA114) -> 2.006879215 | AB115: =SUM(AB108:AB114) -> 2.045252767 | AC115: =SUM(AC108:AC114) -> 2.087081966 | AD115: =SUM(AD108:AD114) -> 2.12336235 | AE115: =SUM(AE108:AE114) -> 2.15822081 | AF115: =SUM(AF108:AF114) -> 2.195179712 | AG115: =SUM(AG108:AG114) -> 2.232694449 | AH115: =SUM(AH108:AH114) -> 2.272756854 | AI115: =SUM(AI108:AI114) -> 2.313180654 | AJ115: =SUM(AJ108:AJ114) -> 2.353790461 | AK115: =SUM(AK108:AK114) -> 2.394595468 | AL115: =SUM(AL108:AL114) -> 2.435659044 | AM115: =SUM(AM108:AM114) -> 2.476962675 | AN115: =SUM(AN108:AN114) -> 2.518506718 | AO115: =SUM(AO108:AO114) -> 2.560162232
C117: PC 3 | E117: 2012 | F117: 2013 | G117: 2014 | H117: 2015 | I117: 2016 | J117: 2017 | K117: 2018 | L117: 2019 | M117: 2020 | N117: 2021 | O117: 2022 | P117: 2023 | Q117: 2024 | R117: 2025 | S117: 2026 | T117: 2027 | U117: 2028 | V117: 2029 | W117: 2030 | X117: 2031 | Y117: 2032 | Z117: 2033 | AA117: 2034 | AB117: 2035 | AC117: 2036 | AD117: 2037 | AE117: 2038 | AF117: 2039 | AG117: 2040 | AH117: 2041 | AI117: 2042 | AJ117: 2043 | AK117: 2044 | AL117: 2045 | AM117: 2046 | AN117: 2047 | AO117: 2048
C118: =OFFSET('Product Classes'!$C$9,MATCH(C117,MODEL_PCS,0),0) -> Weatherized Non-Condensing Gas Furnace Fan (WG-NC) | D118: EL0 | E118: 0.05032626488 | F118: 0.05889410144 | G118: 0.06452452671 | H118: 0.06764019579 | I118: 0.06769775478 | J118: 0.06615223069 | K118: 0.06307145639 | L118: 0 | M118: 0 | N118: 0 | O118: 0 | P118: 0 | Q118: 0 | R118: 0 | S118: 0 | T118: 0 | U118: 0 | V118: 0 | W118: 0 | X118: 0 | Y118: 0 | Z118: 0 | AA118: 0 | AB118: 0 | AC118: 0 | AD118: 0 | AE118: 0 | AF118: 0 | AG118: 0 | AH118: 0 | AI118: 0 | AJ118: 0 | AK118: 0 | AL118: 0 | AM118: 0 | AN118: 0 | AO118: 0
D119: EL1 | E119: 0.06837303909 | F119: 0.07817528883 | G119: 0.08277899587 | H119: 0.08486332018 | I119: 0.08391870543 | J119: 0.08135965704 | K119: 0.07726020309 | L119: 0 | M119: 0 | N119: 0 | O119: 0 | P119: 0 | Q119: 0 | R119: 0 | S119: 0 | T119: 0 | U119: 0 | V119: 0 | W119: 0 | X119: 0 | Y119: 0 | Z119: 0 | AA119: 0 | AB119: 0 | AC119: 0 | AD119: 0 | AE119: 0 | AF119: 0 | AG119: 0 | AH119: 0 | AI119: 0 | AJ119: 0 | AK119: 0 | AL119: 0 | AM119: 0 | AN119: 0 | AO119: 0
D120: EL2 | E120: 0 | F120: 0 | G120: 0 | H120: 0 | I120: 0 | J120: 0 | K120: 0 | L120: 0 | M120: 0 | N120: 0 | O120: 0 | P120: 0 | Q120: 0 | R120: 0 | S120: 0 | T120: 0 | U120: 0 | V120: 0 | W120: 0 | X120: 0 | Y120: 0 | Z120: 0 | AA120: 0 | AB120: 0 | AC120: 0 | AD120: 0 | AE120: 0 | AF120: 0 | AG120: 0 | AH120: 0 | AI120: 0 | AJ120: 0 | AK120: 0 | AL120: 0 | AM120: 0 | AN120: 0 | AO120: 0
D121: EL3 | E121: 0.03537012399 | F121: 0.04331021765 | G121: 0.04768799672 | H121: 0.05188160722 | I121: 0.05575796807 | J121: 0.05946530173 | K121: 0.06297606682 | L121: 0 | M121: 0 | N121: 0 | O121: 0 | P121: 0 | Q121: 0 | R121: 0 | S121: 0 | T121: 0 | U121: 0 | V121: 0 | W121: 0 | X121: 0 | Y121: 0 | Z121: 0 | AA121: 0 | AB121: 0 | AC121: 0 | AD121: 0 | AE121: 0 | AF121: 0 | AG121: 0 | AH121: 0 | AI121: 0 | AJ121: 0 | AK121: 0 | AL121: 0 | AM121: 0 | AN121: 0 | AO121: 0
D122: EL4 | E122: 0.00973743219 | F122: 0.01196048672 | G122: 0.01325248183 | H122: 0.01447562348 | I122: 0.01557962019 | J122: 0.01661913525 | K122: 0.0175835969 | L122: 0.2166403099 | M122: 0.2168702443 | N122: 0.2165013101 | O122: 0.217484887 | P122: 0.219335795 | Q122: 0.2213676059 | R122: 0.2245441649 | S122: 0.2248222321 | T122: 0.2240751922 | U122: 0.2230034289 | V122: 0.2224212278 | W122: 0.2227484014 | X122: 0.2219584282 | Y122: 0.2205978198 | Z122: 0.2220805914 | AA122: 0.2226460588 | AB122: 0.2228932305 | AC122: 0.2237767403 | AD122: 0.2236852333 | AE122: 0.2233467109 | AF122: 0.2233595904 | AG122: 0.2235447026 | AH122: 0.2238005534 | AI122: 0.2240755384 | AJ122: 0.224345684 | AK122: 0.2245965797 | AL122: 0.2248497258 | AM122: 0.2250968365 | AN122: 0.2253390929 | AO122: 0.2255661763
D123: EL5 | E123: 0.04438327177 | F123: 0.05434341791 | G123: 0.05986800894 | H123: 0.06515540407 | I123: 0.07003194031 | J123: 0.0746889207 | K123: 0.07909010759 | L123: 0.08263149955 | M123: 0.08445936324 | N123: 0.08613589843 | O123: 0.08786451792 | P123: 0.08965400178 | Q123: 0.09138467812 | R123: 0.09398958636 | S123: 0.09533123222 | T123: 0.09660561934 | U123: 0.09788830014 | V123: 0.0992005764 | W123: 0.1006633774 | X123: 0.1020114083 | Y123: 0.1032947805 | Z123: 0.1049040972 | AA123: 0.1064271674 | AB123: 0.1079561176 | AC123: 0.1095914643 | AD123: 0.1111284656 | AE123: 0.1126653676 | AF123: 0.1142672011 | AG123: 0.1159122364 | AH123: 0.1176945011 | AI123: 0.1195133598 | AJ123: 0.121352613 | AK123: 0.1232020575 | AL123: 0.1250773691 | AM123: 0.1269728547 | AN123: 0.1288896566 | AO123: 0.130820152
D124: EL6 | E124: 0 | F124: 0 | G124: 0 | H124: 0 | I124: 0 | J124: 0 | K124: 0 | L124: 0 | M124: 0 | N124: 0 | O124: 0 | P124: 0 | Q124: 0 | R124: 0 | S124: 0 | T124: 0 | U124: 0 | V124: 0 | W124: 0 | X124: 0 | Y124: 0 | Z124: 0 | AA124: 0 | AB124: 0 | AC124: 0 | AD124: 0 | AE124: 0 | AF124: 0 | AG124: 0 | AH124: 0 | AI124: 0 | AJ124: 0 | AK124: 0 | AL124: 0 | AM124: 0 | AN124: 0 | AO124: 0
D125: Total | E125: =SUM(E118:E124) -> 0.2081901319 | F125: =SUM(F118:F124) -> 0.2466835126 | G125: =SUM(G118:G124) -> 0.2681120101 | H125: =SUM(H118:H124) -> 0.2840161507 | I125: =SUM(I118:I124) -> 0.2929859888 | J125: =SUM(J118:J124) -> 0.2982852454 | K125: =SUM(K118:K124) -> 0.2999814308 | L125: =SUM(L118:L124) -> 0.2992718095 | M125: =SUM(M118:M124) -> 0.3013296076 | N125: =SUM(N118:N124) -> 0.3026372086 | O125: =SUM(O118:O124) -> 0.3053494049 | P125: =SUM(P118:P124) -> 0.3089897967 | Q125: =SUM(Q118:Q124) -> 0.312752284 | R125: =SUM(R118:R124) -> 0.3185337513 | S125: =SUM(S118:S124) -> 0.3201534643 | T125: =SUM(T118:T124) -> 0.3206808115 | U125: =SUM(U118:U124) -> 0.3208917291 | V125: =SUM(V118:V124) -> 0.3216218042 | W125: =SUM(W118:W124) -> 0.3234117788 | X125: =SUM(X118:X124) -> 0.3239698365 | Y125: =SUM(Y118:Y124) -> 0.3238926003 | Z125: =SUM(Z118:Z124) -> 0.3269846886 | AA125: =SUM(AA118:AA124) -> 0.3290732263 | AB125: =SUM(AB118:AB124) -> 0.330849348 | AC125: =SUM(AC118:AC124) -> 0.3333682045 | AD125: =SUM(AD118:AD124) -> 0.3348136989 | AE125: =SUM(AE118:AE124) -> 0.3360120785 | AF125: =SUM(AF118:AF124) -> 0.3376267916 | AG125: =SUM(AG118:AG124) -> 0.339456939 | AH125: =SUM(AH118:AH124) -> 0.3414950545 | AI125: =SUM(AI118:AI124) -> 0.3435888981 | AJ125: =SUM(AJ118:AJ124) -> 0.345698297 | AK125: =SUM(AK118:AK124) -> 0.3477986372 | AL125: =SUM(AL118:AL124) -> 0.3499270949 | AM125: =SUM(AM118:AM124) -> 0.3520696913 | AN125: =SUM(AN118:AN124) -> 0.3542287495 | AO125: =SUM(AO118:AO124) -> 0.3563863283
C127: PC 4 | E127: 2012 | F127: 2013 | G127: 2014 | H127: 2015 | I127: 2016 | J127: 2017 | K127: 2018 | L127: 2019 | M127: 2020 | N127: 2021 | O127: 2022 | P127: 2023 | Q127: 2024 | R127: 2025 | S127: 2026 | T127: 2027 | U127: 2028 | V127: 2029 | W127: 2030 | X127: 2031 | Y127: 2032 | Z127: 2033 | AA127: 2034 | AB127: 2035 | AC127: 2036 | AD127: 2037 | AE127: 2038 | AF127: 2039 | AG127: 2040 | AH127: 2041 | AI127: 2042 | AJ127: 2043 | AK127: 2044 | AL127: 2045 | AM127: 2046 | AN127: 2047 | AO127: 2048
C128: =OFFSET('Product Classes'!$C$9,MATCH(C127,MODEL_PCS,0),0) -> Non-Weatherized, Non-Condensing Oil Furnace Fan (NWO-NC) | D128: EL0 | E128: 0.01212516667 | F128: 0.01163879928 | G128: 0.01213905835 | H128: 0.01240526163 | I128: 0.01234019356 | J128: 0.01211780106 | K128: 0.01172966315 | L128: 0 | M128: 0 | N128: 0 | O128: 0 | P128: 0 | Q128: 0 | R128: 0 | S128: 0 | T128: 0 | U128: 0 | V128: 0 | W128: 0 | X128: 0 | Y128: 0 | Z128: 0 | AA128: 0 | AB128: 0 | AC128: 0 | AD128: 0 | AE128: 0 | AF128: 0 | AG128: 0 | AH128: 0 | AI128: 0 | AJ128: 0 | AK128: 0 | AL128: 0 | AM128: 0 | AN128: 0 | AO128: 0
D129: EL1 | E129: 0.01673365942 | F129: 0.01580025844 | G129: 0.01616715266 | H129: 0.01630189728 | I129: 0.01610178977 | J129: 0.01574895991 | K129: 0.01523200802 | L129: 0.02624683103 | M129: 0.02569504127 | N129: 0.02510802043 | O129: 0.02468656507 | P129: 0.02433327477 | Q129: 0.02398267883 | R129: 0.02345285947 | S129: 0.02289737283 | T129: 0.02215098498 | U129: 0.02132977085 | V129: 0.02054064745 | W129: 0.01981881599 | X129: 0.01895696018 | Y129: 0.01804246826 | Z129: 0.01750057525 | AA129: 0.01686869999 | AB129: 0.01624610942 | AC129: 0.01575124893 | AD129: 0.0152068971 | AE129: 0.01471549733 | AF129: 0.01435749516 | AG129: 0.0141153711 | AH129: 0.01409217569 | AI129: 0.01418031488 | AJ129: 0.01438089027 | AK129: 0.01469506251 | AL129: 0.01512149374 | AM129: 0.01565796991 | AN129: 0.01629676478 | AO129: 0.01703492053
D130: EL2 | E130: 0 | F130: 0 | G130: 0 | H130: 0 | I130: 0 | J130: 0 | K130: 0 | L130: 0 | M130: 0 | N130: 0 | O130: 0 | P130: 0 | Q130: 0 | R130: 0 | S130: 0 | T130: 0 | U130: 0 | V130: 0 | W130: 0 | X130: 0 | Y130: 0 | Z130: 0 | AA130: 0 | AB130: 0 | AC130: 0 | AD130: 0 | AE130: 0 | AF130: 0 | AG130: 0 | AH130: 0 | AI130: 0 | AJ130: 0 | AK130: 0 | AL130: 0 | AM130: 0 | AN130: 0 | AO130: 0
D131: EL3 | E131: 0 | F131: 0 | G131: 0 | H131: 0 | I131: 0 | J131: 0 | K131: 0 | L131: 0 | M131: 0 | N131: 0 | O131: 0 | P131: 0 | Q131: 0 | R131: 0 | S131: 0 | T131: 0 | U131: 0 | V131: 0 | W131: 0 | X131: 0 | Y131: 0 | Z131: 0 | AA131: 0 | AB131: 0 | AC131: 0 | AD131: 0 | AE131: 0 | AF131: 0 | AG131: 0 | AH131: 0 | AI131: 0 | AJ131: 0 | AK131: 0 | AL131: 0 | AM131: 0 | AN131: 0 | AO131: 0
D132: EL4 | E132: 0 | F132: 0 | G132: 0 | H132: 0 | I132: 0 | J132: 0 | K132: 0 | L132: 0 | M132: 0 | N132: 0 | O132: 0 | P132: 0 | Q132: 0 | R132: 0 | S132: 0 | T132: 0 | U132: 0 | V132: 0 | W132: 0 | X132: 0 | Y132: 0 | Z132: 0 | AA132: 0 | AB132: 0 | AC132: 0 | AD132: 0 | AE132: 0 | AF132: 0 | AG132: 0 | AH132: 0 | AI132: 0 | AJ132: 0 | AK132: 0 | AL132: 0 | AM132: 0 | AN132: 0 | AO132: 0
D133: EL5 | E133: 0.007121173905 | F133: 0.006984684948 | G133: 0.007301422743 | H133: 0.007599093393 | I133: 0.007861891608 | J133: 0.00810985243 | K133: 0.008336377346 | L133: 0.008599609144 | M133: 0.008527816186 | N133: 0.008447981978 | O133: 0.008369919391 | P133: 0.008277746893 | Q133: 0.008162672556 | R133: 0.007974393875 | S133: 0.007795561071 | T133: 0.00757406014 | U133: 0.007320124344 | V133: 0.007047332581 | W133: 0.006760670137 | X133: 0.00645018181 | Y133: 0.006128676607 | Z133: 0.00583958158 | AA133: 0.005549863536 | AB133: 0.005277895662 | AC133: 0.005038099426 | AD133: 0.004823506811 | AE133: 0.00465099348 | AF133: 0.004533232014 | AG133: 0.004479012786 | AH133: 0.004523284663 | AI133: 0.004635917566 | AJ133: 0.004820262861 | AK133: 0.005079797289 | AL133: 0.005416500258 | AM133: 0.005831798476 | AN133: 0.006323503608 | AO133: 0.00689237916
D134: EL6 | E134: 0 | F134: 0 | G134: 0 | H134: 0 | I134: 0 | J134: 0 | K134: 0 | L134: 0 | M134: 0 | N134: 0 | O134: 0 | P134: 0 | Q134: 0 | R134: 0 | S134: 0 | T134: 0 | U134: 0 | V134: 0 | W134: 0 | X134: 0 | Y134: 0 | Z134: 0 | AA134: 0 | AB134: 0 | AC134: 0 | AD134: 0 | AE134: 0 | AF134: 0 | AG134: 0 | AH134: 0 | AI134: 0 | AJ134: 0 | AK134: 0 | AL134: 0 | AM134: 0 | AN134: 0 | AO134: 0
D135: Total | E135: =SUM(E128:E134) -> 0.03598 | F135: =SUM(F128:F134) -> 0.03442374267 | G135: =SUM(G128:G134) -> 0.03560763375 | H135: =SUM(H128:H134) -> 0.0363062523 | I135: =SUM(I128:I134) -> 0.03630387493 | J135: =SUM(J128:J134) -> 0.0359766134 | K135: =SUM(K128:K134) -> 0.03529804851 | L135: =SUM(L128:L134) -> 0.03484644018 | M135: =SUM(M128:M134) -> 0.03422285745 | N135: =SUM(N128:N134) -> 0.03355600241 | O135: =SUM(O128:O134) -> 0.03305648446 | P135: =SUM(P128:P134) -> 0.03261102166 | Q135: =SUM(Q128:Q134) -> 0.03214535139 | R135: =SUM(R128:R134) -> 0.03142725335 | S135: =SUM(S128:S134) -> 0.0306929339 | T135: =SUM(T128:T134) -> 0.02972504512 | U135: =SUM(U128:U134) -> 0.02864989519 | V135: =SUM(V128:V134) -> 0.02758798003 | W135: =SUM(W128:W134) -> 0.02657948612 | X135: =SUM(X128:X134) -> 0.02540714199 | Y135: =SUM(Y128:Y134) -> 0.02417114487 | Z135: =SUM(Z128:Z134) -> 0.02334015683 | AA135: =SUM(AA128:AA134) -> 0.02241856353 | AB135: =SUM(AB128:AB134) -> 0.02152400508 | AC135: =SUM(AC128:AC134) -> 0.02078934836 | AD135: =SUM(AD128:AD134) -> 0.02003040391 | AE135: =SUM(AE128:AE134) -> 0.01936649081 | AF135: =SUM(AF128:AF134) -> 0.01889072717 | AG135: =SUM(AG128:AG134) -> 0.01859438388 | AH135: =SUM(AH128:AH134) -> 0.01861546035 | AI135: =SUM(AI128:AI134) -> 0.01881623245 | AJ135: =SUM(AJ128:AJ134) -> 0.01920115313 | AK135: =SUM(AK128:AK134) -> 0.0197748598 | AL135: =SUM(AL128:AL134) -> 0.020537994 | AM135: =SUM(AM128:AM134) -> 0.02148976838 | AN135: =SUM(AN128:AN134) -> 0.02262026839 | AO135: =SUM(AO128:AO134) -> 0.02392729969
C137: PC 5 | E137: 2012 | F137: 2013 | G137: 2014 | H137: 2015 | I137: 2016 | J137: 2017 | K137: 2018 | L137: 2019 | M137: 2020 | N137: 2021 | O137: 2022 | P137: 2023 | Q137: 2024 | R137: 2025 | S137: 2026 | T137: 2027 | U137: 2028 | V137: 2029 | W137: 2030 | X137: 2031 | Y137: 2032 | Z137: 2033 | AA137: 2034 | AB137: 2035 | AC137: 2036 | AD137: 2037 | AE137: 2038 | AF137: 2039 | AG137: 2040 | AH137: 2041 | AI137: 2042 | AJ137: 2043 | AK137: 2044 | AL137: 2045 | AM137: 2046 | AN137: 2047 | AO137: 2048
C138: =OFFSET('Product Classes'!$C$9,MATCH(C137,MODEL_PCS,0),0) -> Non-Weatherized Electric Furnace / Modular Blower Fan (NWEF/NWMB) | D138: EL0 | E138: 0.08096285351 | F138: 0.09374922946 | G138: 0.1090741501 | H138: 0.1193463381 | I138: 0.1233230225 | J138: 0.1240507289 | K138: 0.1216210153 | L138: 0 | M138: 0 | N138: 0 | O138: 0 | P138: 0 | Q138: 0 | R138: 0 | S138: 0 | T138: 0 | U138: 0 | V138: 0 | W138: 0 | X138: 0 | Y138: 0 | Z138: 0 | AA138: 0 | AB138: 0 | AC138: 0 | AD138: 0 | AE138: 0 | AF138: 0 | AG138: 0 | AH138: 0 | AI138: 0 | AJ138: 0 | AK138: 0 | AL138: 0 | AM138: 0 | AN138: 0 | AO138: 0
D139: EL1 | E139: 0.1057918589 | F139: 0.11856965 | G139: 0.1334033272 | H139: 0.1432369571 | I139: 0.1468746032 | J139: 0.1472940585 | K139: 0.1445912759 | L139: 0 | M139: 0 | N139: 0 | O139: 0 | P139: 0 | Q139: 0 | R139: 0 | S139: 0 | T139: 0 | U139: 0 | V139: 0 | W139: 0 | X139: 0 | Y139: 0 | Z139: 0 | AA139: 0 | AB139: 0 | AC139: 0 | AD139: 0 | AE139: 0 | AF139: 0 | AG139: 0 | AH139: 0 | AI139: 0 | AJ139: 0 | AK139: 0 | AL139: 0 | AM139: 0 | AN139: 0 | AO139: 0
D140: EL2 | E140: 0 | F140: 0 | G140: 0 | H140: 0 | I140: 0 | J140: 0 | K140: 0 | L140: 0 | M140: 0 | N140: 0 | O140: 0 | P140: 0 | Q140: 0 | R140: 0 | S140: 0 | T140: 0 | U140: 0 | V140: 0 | W140: 0 | X140: 0 | Y140: 0 | Z140: 0 | AA140: 0 | AB140: 0 | AC140: 0 | AD140: 0 | AE140: 0 | AF140: 0 | AG140: 0 | AH140: 0 | AI140: 0 | AJ140: 0 | AK140: 0 | AL140: 0 | AM140: 0 | AN140: 0 | AO140: 0
D141: EL3 | E141: 0.02087271395 | F141: 0.02386085089 | G141: 0.02701435631 | H141: 0.02995341147 | I141: 0.0325115899 | J141: 0.03487903259 | K141: 0.03702334041 | L141: 0 | M141: 0 | N141: 0 | O141: 0 | P141: 0 | Q141: 0 | R141: 0 | S141: 0 | T141: 0 | U141: 0 | V141: 0 | W141: 0 | X141: 0 | Y141: 0 | Z141: 0 | AA141: 0 | AB141: 0 | AC141: 0 | AD141: 0 | AE141: 0 | AF141: 0 | AG141: 0 | AH141: 0 | AI141: 0 | AJ141: 0 | AK141: 0 | AL141: 0 | AM141: 0 | AN141: 0 | AO141: 0
D142: EL4 | E142: 0 | F142: 0 | G142: 0 | H142: 0 | I142: 0 | J142: 0 | K142: 0 | L142: 0.3014605461 | M142: 0.3011299318 | N142: 0.3004202068 | O142: 0.3029673908 | P142: 0.3074994396 | Q142: 0.3128290401 | R142: 0.3170449494 | S142: 0.3198630767 | T142: 0.3204193815 | U142: 0.3201441647 | V142: 0.321018122 | W142: 0.3235884652 | X142: 0.323889243 | Y142: 0.3230670739 | Z142: 0.3281005584 | AA142: 0.331225628 | AB142: 0.3335581347 | AC142: 0.3371847978 | AD142: 0.3387975738 | AE142: 0.3398401076 | AF142: 0.3415828953 | AG142: 0.3436754089 | AH142: 0.3456733119 | AI142: 0.3476721227 | AJ142: 0.3496590136 | AK142: 0.3515787216 | AL142: 0.3534759876 | AM142: 0.3553488007 | AN142: 0.3571911663 | AO142: 0.3590113868
D143: EL5 | E143: 0.04663679436 | F143: 0.05289290098 | G143: 0.05932764471 | H143: 0.06541348949 | I143: 0.0708673203 | J143: 0.07601788611 | K143: 0.08081131555 | L143: 0.08580925054 | M143: 0.08794113953 | N143: 0.09002832726 | O143: 0.09240070149 | P143: 0.09495938086 | Q143: 0.09760792085 | R143: 0.1001485995 | S143: 0.1026358491 | T143: 0.104955894 | U143: 0.107232351 | V143: 0.1096429331 | W143: 0.1122385585 | X143: 0.1146724854 | Y143: 0.1170418115 | Z143: 0.1199783037 | AA143: 0.1227745571 | AB143: 0.1255251545 | AC143: 0.1284632929 | AD143: 0.131247257 | AE143: 0.1340128409 | AF143: 0.1368895245 | AG143: 0.1398491912 | AH143: 0.14294027 | AI143: 0.1460833266 | AJ143: 0.1492709847 | AK143: 0.1524680882 | AL143: 0.1557029935 | AM143: 0.1589746065 | AN143: 0.1622790958 | AO143: 0.1656221405
D144: EL6 | E144: 0 | F144: 0 | G144: 0 | H144: 0 | I144: 0 | J144: 0 | K144: 0 | L144: 0 | M144: 0 | N144: 0 | O144: 0 | P144: 0 | Q144: 0 | R144: 0 | S144: 0 | T144: 0 | U144: 0 | V144: 0 | W144: 0 | X144: 0 | Y144: 0 | Z144: 0 | AA144: 0 | AB144: 0 | AC144: 0 | AD144: 0 | AE144: 0 | AF144: 0 | AG144: 0 | AH144: 0 | AI144: 0 | AJ144: 0 | AK144: 0 | AL144: 0 | AM144: 0 | AN144: 0 | AO144: 0
D145: Total | E145: =SUM(E138:E144) -> 0.2542642207 | F145: =SUM(F138:F144) -> 0.2890726313 | G145: =SUM(G138:G144) -> 0.3288194783 | H145: =SUM(H138:H144) -> 0.3579501962 | I145: =SUM(I138:I144) -> 0.3735765359 | J145: =SUM(J138:J144) -> 0.3822417061 | K145: =SUM(K138:K144) -> 0.3840469471 | L145: =SUM(L138:L144) -> 0.3872697966 | M145: =SUM(M138:M144) -> 0.3890710713 | N145: =SUM(N138:N144) -> 0.390448534 | O145: =SUM(O138:O144) -> 0.3953680923 | P145: =SUM(P138:P144) -> 0.4024588205 | Q145: =SUM(Q138:Q144) -> 0.4104369609 | R145: =SUM(R138:R144) -> 0.4171935489 | S145: =SUM(S138:S144) -> 0.4224989257 | T145: =SUM(T138:T144) -> 0.4253752755 | U145: =SUM(U138:U144) -> 0.4273765158 | V145: =SUM(V138:V144) -> 0.4306610551 | W145: =SUM(W138:W144) -> 0.4358270237 | X145: =SUM(X138:X144) -> 0.4385617283 | Y145: =SUM(Y138:Y144) -> 0.4401088854 | Z145: =SUM(Z138:Z144) -> 0.4480788621 | AA145: =SUM(AA138:AA144) -> 0.4540001851 | AB145: =SUM(AB138:AB144) -> 0.4590832892 | AC145: =SUM(AC138:AC144) -> 0.4656480907 | AD145: =SUM(AD138:AD144) -> 0.4700448308 | AE145: =SUM(AE138:AE144) -> 0.4738529485 | AF145: =SUM(AF138:AF144) -> 0.4784724197 | AG145: =SUM(AG138:AG144) -> 0.4835246001 | AH145: =SUM(AH138:AH144) -> 0.4886135819 | AI145: =SUM(AI138:AI144) -> 0.4937554493 | AJ145: =SUM(AJ138:AJ144) -> 0.4989299983 | AK145: =SUM(AK138:AK144) -> 0.5040468098 | AL145: =SUM(AL138:AL144) -> 0.5091789811 | AM145: =SUM(AM138:AM144) -> 0.5143234072 | AN145: =SUM(AN138:AN144) -> 0.519470262 | AO145: =SUM(AO138:AO144) -> 0.5246335273
C147: PC 6 | E147: 2012 | F147: 2013 | G147: 2014 | H147: 2015 | I147: 2016 | J147: 2017 | K147: 2018 | L147: 2019 | M147: 2020 | N147: 2021 | O147: 2022 | P147: 2023 | Q147: 2024 | R147: 2025 | S147: 2026 | T147: 2027 | U147: 2028 | V147: 2029 | W147: 2030 | X147: 2031 | Y147: 2032 | Z147: 2033 | AA147: 2034 | AB147: 2035 | AC147: 2036 | AD147: 2037 | AE147: 2038 | AF147: 2039 | AG147: 2040 | AH147: 2041 | AI147: 2042 | AJ147: 2043 | AK147: 2044 | AL147: 2045 | AM147: 2046 | AN147: 2047 | AO147: 2048
C148: =OFFSET('Product Classes'!$C$9,MATCH(C147,MODEL_PCS,0),0) -> Mobile Home Non-Weatherized, Non-Condensing Gas Furnace Fan (MH-NWG-NC) | D148: EL0 | E148: 0.01954838996 | F148: 0.01811325035 | G148: 0.02142989105 | H148: 0.02504560703 | I148: 0.02869273183 | J148: 0.03098247694 | K148: 0.03170676202 | L148: 0 | M148: 0 | N148: 0 | O148: 0 | P148: 0 | Q148: 0 | R148: 0 | S148: 0 | T148: 0 | U148: 0 | V148: 0 | W148: 0 | X148: 0 | Y148: 0 | Z148: 0 | AA148: 0 | AB148: 0 | AC148: 0 | AD148: 0 | AE148: 0 | AF148: 0 | AG148: 0 | AH148: 0 | AI148: 0 | AJ148: 0 | AK148: 0 | AL148: 0 | AM148: 0 | AN148: 0 | AO148: 0
D149: EL1 | E149: 0.02654867852 | F149: 0.02346102812 | G149: 0.02688381902 | H149: 0.03054306522 | I149: 0.03416688834 | J149: 0.03634532062 | K149: 0.03688867693 | L149: 0.08647487467 | M149: 0.0854365783 | N149: 0.08377063748 | O149: 0.08266557661 | P149: 0.08103972319 | Q149: 0.07956906847 | R149: 0.07773330183 | S149: 0.07632716449 | T149: 0.07498535835 | U149: 0.07346473819 | V149: 0.07201629897 | W149: 0.07093664315 | X149: 0.07013325793 | Y149: 0.0697248923 | Z149: 0.06987316297 | AA149: 0.06962125728 | AB149: 0.06945359525 | AC149: 0.06951223167 | AD149: 0.06957457883 | AE149: 0.06967068873 | AF149: 0.06975819952 | AG149: 0.06990220832 | AH149: 0.07016267506 | AI149: 0.07043768921 | AJ149: 0.07072392688 | AK149: 0.07101185612 | AL149: 0.07130518768 | AM149: 0.07160265503 | AN149: 0.07190429209 | AO149: 0.07220560723
D150: EL2 | E150: 0 | F150: 0 | G150: 0 | H150: 0 | I150: 0 | J150: 0 | K150: 0 | L150: 0 | M150: 0 | N150: 0 | O150: 0 | P150: 0 | Q150: 0 | R150: 0 | S150: 0 | T150: 0 | U150: 0 | V150: 0 | W150: 0 | X150: 0 | Y150: 0 | Z150: 0 | AA150: 0 | AB150: 0 | AC150: 0 | AD150: 0 | AE150: 0 | AF150: 0 | AG150: 0 | AH150: 0 | AI150: 0 | AJ150: 0 | AK150: 0 | AL150: 0 | AM150: 0 | AN150: 0 | AO150: 0
D151: EL3 | E151: 0 | F151: 0 | G151: 0 | H151: 0 | I151: 0 | J151: 0 | K151: 0 | L151: 0 | M151: 0 | N151: 0 | O151: 0 | P151: 0 | Q151: 0 | R151: 0 | S151: 0 | T151: 0 | U151: 0 | V151: 0 | W151: 0 | X151: 0 | Y151: 0 | Z151: 0 | AA151: 0 | AB151: 0 | AC151: 0 | AD151: 0 | AE151: 0 | AF151: 0 | AG151: 0 | AH151: 0 | AI151: 0 | AJ151: 0 | AK151: 0 | AL151: 0 | AM151: 0 | AN151: 0 | AO151: 0
D152: EL4 | E152: 0 | F152: 0 | G152: 0 | H152: 0 | I152: 0 | J152: 0 | K152: 0 | L152: 0 | M152: 0 | N152: 0 | O152: 0 | P152: 0 | Q152: 0 | R152: 0 | S152: 0 | T152: 0 | U152: 0 | V152: 0 | W152: 0 | X152: 0 | Y152: 0 | Z152: 0 | AA152: 0 | AB152: 0 | AC152: 0 | AD152: 0 | AE152: 0 | AF152: 0 | AG152: 0 | AH152: 0 | AI152: 0 | AJ152: 0 | AK152: 0 | AL152: 0 | AM152: 0 | AN152: 0 | AO152: 0
D153: EL5 | E153: 0 | F153: 0 | G153: 0 | H153: 0 | I153: 0 | J153: 0 | K153: 0 | L153: 0 | M153: 0 | N153: 0 | O153: 0 | P153: 0 | Q153: 0 | R153: 0 | S153: 0 | T153: 0 | U153: 0 | V153: 0 | W153: 0 | X153: 0 | Y153: 0 | Z153: 0 | AA153: 0 | AB153: 0 | AC153: 0 | AD153: 0 | AE153: 0 | AF153: 0 | AG153: 0 | AH153: 0 | AI153: 0 | AJ153: 0 | AK153: 0 | AL153: 0 | AM153: 0 | AN153: 0 | AO153: 0
D154: EL6 | E154: 0 | F154: 0 | G154: 0 | H154: 0 | I154: 0 | J154: 0 | K154: 0 | L154: 0 | M154: 0 | N154: 0 | O154: 0 | P154: 0 | Q154: 0 | R154: 0 | S154: 0 | T154: 0 | U154: 0 | V154: 0 | W154: 0 | X154: 0 | Y154: 0 | Z154: 0 | AA154: 0 | AB154: 0 | AC154: 0 | AD154: 0 | AE154: 0 | AF154: 0 | AG154: 0 | AH154: 0 | AI154: 0 | AJ154: 0 | AK154: 0 | AL154: 0 | AM154: 0 | AN154: 0 | AO154: 0
D155: Total | E155: =SUM(E148:E154) -> 0.04609706848 | F155: =SUM(F148:F154) -> 0.04157427847 | G155: =SUM(G148:G154) -> 0.04831371007 | H155: =SUM(H148:H154) -> 0.05558867224 | I155: =SUM(I148:I154) -> 0.06285962017 | J155: =SUM(J148:J154) -> 0.06732779755 | K155: =SUM(K148:K154) -> 0.06859543895 | L155: =SUM(L148:L154) -> 0.08647487467 | M155: =SUM(M148:M154) -> 0.0854365783 | N155: =SUM(N148:N154) -> 0.08377063748 | O155: =SUM(O148:O154) -> 0.08266557661 | P155: =SUM(P148:P154) -> 0.08103972319 | Q155: =SUM(Q148:Q154) -> 0.07956906847 | R155: =SUM(R148:R154) -> 0.07773330183 | S155: =SUM(S148:S154) -> 0.07632716449 | T155: =SUM(T148:T154) -> 0.07498535835 | U155: =SUM(U148:U154) -> 0.07346473819 | V155: =SUM(V148:V154) -> 0.07201629897 | W155: =SUM(W148:W154) -> 0.07093664315 | X155: =SUM(X148:X154) -> 0.07013325793 | Y155: =SUM(Y148:Y154) -> 0.0697248923 | Z155: =SUM(Z148:Z154) -> 0.06987316297 | AA155: =SUM(AA148:AA154) -> 0.06962125728 | AB155: =SUM(AB148:AB154) -> 0.06945359525 | AC155: =SUM(AC148:AC154) -> 0.06951223167 | AD155: =SUM(AD148:AD154) -> 0.06957457883 | AE155: =SUM(AE148:AE154) -> 0.06967068873 | AF155: =SUM(AF148:AF154) -> 0.06975819952 | AG155: =SUM(AG148:AG154) -> 0.06990220832 | AH155: =SUM(AH148:AH154) -> 0.07016267506 | AI155: =SUM(AI148:AI154) -> 0.07043768921 | AJ155: =SUM(AJ148:AJ154) -> 0.07072392688 | AK155: =SUM(AK148:AK154) -> 0.07101185612 | AL155: =SUM(AL148:AL154) -> 0.07130518768 | AM155: =SUM(AM148:AM154) -> 0.07160265503 | AN155: =SUM(AN148:AN154) -> 0.07190429209 | AO155: =SUM(AO148:AO154) -> 0.07220560723
C157: PC 7 | E157: 2012 | F157: 2013 | G157: 2014 | H157: 2015 | I157: 2016 | J157: 2017 | K157: 2018 | L157: 2019 | M157: 2020 | N157: 2021 | O157: 2022 | P157: 2023 | Q157: 2024 | R157: 2025 | S157: 2026 | T157: 2027 | U157: 2028 | V157: 2029 | W157: 2030 | X157: 2031 | Y157: 2032 | Z157: 2033 | AA157: 2034 | AB157: 2035 | AC157: 2036 | AD157: 2037 | AE157: 2038 | AF157: 2039 | AG157: 2040 | AH157: 2041 | AI157: 2042 | AJ157: 2043 | AK157: 2044 | AL157: 2045 | AM157: 2046 | AN157: 2047 | AO157: 2048
C158: =OFFSET('Product Classes'!$C$9,MATCH(C157,MODEL_PCS,0),0) -> Mobile Home Non-Weatherized, Condensing Gas Furnace Fan (MH-NWG-C) | D158: EL0 | E158: 0.002233807904 | F158: 0.003791640609 | G158: 0.004230929666 | H158: 0.004722649078 | I158: 0.005228542085 | J158: 0.00555274527 | K158: 0.005663965515 | L158: 0 | M158: 0 | N158: 0 | O158: 0 | P158: 0 | Q158: 0 | R158: 0 | S158: 0 | T158: 0 | U158: 0 | V158: 0 | W158: 0 | X158: 0 | Y158: 0 | Z158: 0 | AA158: 0 | AB158: 0 | AC158: 0 | AD158: 0 | AE158: 0 | AF158: 0 | AG158: 0 | AH158: 0 | AI158: 0 | AJ158: 0 | AK158: 0 | AL158: 0 | AM158: 0 | AN158: 0 | AO158: 0
D159: EL1 | E159: 0.002989676132 | F159: 0.005191370128 | G159: 0.005622634175 | H159: 0.006102847679 | I159: 0.006594184009 | J159: 0.006901344834 | K159: 0.006994034679 | L159: 0.01266236366 | M159: 0.01274798246 | N159: 0.01275069781 | O159: 0.0128302685 | P159: 0.01283919821 | Q159: 0.01286690417 | R159: 0.01284803799 | S159: 0.01287493669 | T159: 0.01290512275 | U159: 0.01290505734 | V159: 0.01290794248 | W159: 0.01295379016 | X159: 0.01302773867 | Y159: 0.0131480526 | Z159: 0.01333676148 | AA159: 0.01346382353 | AB159: 0.01358944404 | AC159: 0.01373572484 | AD159: 0.01387559616 | AE159: 0.01401282603 | AF159: 0.01414142767 | AG159: 0.01426987768 | AH159: 0.01440013365 | AI159: 0.01452577219 | AJ159: 0.01464648819 | AK159: 0.01476195774 | AL159: 0.01487255022 | AM159: 0.01497797579 | AN159: 0.01507835615 | AO159: 0.01517287801
D160: EL2 | E160: 0 | F160: 0 | G160: 0 | H160: 0 | I160: 0 | J160: 0 | K160: 0 | L160: 0 | M160: 0 | N160: 0 | O160: 0 | P160: 0 | Q160: 0 | R160: 0 | S160: 0 | T160: 0 | U160: 0 | V160: 0 | W160: 0 | X160: 0 | Y160: 0 | Z160: 0 | AA160: 0 | AB160: 0 | AC160: 0 | AD160: 0 | AE160: 0 | AF160: 0 | AG160: 0 | AH160: 0 | AI160: 0 | AJ160: 0 | AK160: 0 | AL160: 0 | AM160: 0 | AN160: 0 | AO160: 0
D161: EL3 | E161: 0.001664398469 | F161: 0.003223379817 | G161: 0.003570359681 | H161: 0.003943141816 | I161: 0.004336044353 | J161: 0.004708537916 | K161: 0.005049988126 | L161: 0.00538407344 | M161: 0.005534381521 | N161: 0.005682137464 | O161: 0.00584721936 | P161: 0.006011931147 | Q161: 0.006187868015 | R161: 0.006365418981 | S161: 0.006559838554 | T161: 0.006763804826 | U161: 0.006972999089 | V161: 0.007191874313 | W161: 0.007425371295 | X161: 0.007671358453 | Y161: 0.007931839082 | Z161: 0.008209239651 | AA161: 0.008485224005 | AB161: 0.008767995092 | AC161: 0.009060047513 | AD161: 0.009357312123 | AE161: 0.009659842385 | AF161: 0.009966523607 | AG161: 0.01027797568 | AH161: 0.01059536974 | AI161: 0.01091631021 | AJ161: 0.01124045851 | AK161: 0.01156743465 | AL161: 0.01189758049 | AM161: 0.01223054322 | AN161: 0.01256640632 | AO161: 0.01290419976
D162: EL4 | E162: 0 | F162: 0 | G162: 0 | H162: 0 | I162: 0 | J162: 0 | K162: 0 | L162: 0 | M162: 0 | N162: 0 | O162: 0 | P162: 0 | Q162: 0 | R162: 0 | S162: 0 | T162: 0 | U162: 0 | V162: 0 | W162: 0 | X162: 0 | Y162: 0 | Z162: 0 | AA162: 0 | AB162: 0 | AC162: 0 | AD162: 0 | AE162: 0 | AF162: 0 | AG162: 0 | AH162: 0 | AI162: 0 | AJ162: 0 | AK162: 0 | AL162: 0 | AM162: 0 | AN162: 0 | AO162: 0
D163: EL5 | E163: 0.0003175986284 | F163: 0.0005274335648 | G163: 0.0005847993621 | H163: 0.0006461700496 | I163: 0.0007105863275 | J163: 0.0007716853004 | K163: 0.0008278393172 | L163: 0.0008828368692 | M163: 0.0009076599738 | N163: 0.0009320291725 | O163: 0.0009590617763 | P163: 0.0009859868396 | Q163: 0.00101463467 | R163: 0.001043471135 | S163: 0.001074971298 | T163: 0.001107935684 | U163: 0.001141702174 | V163: 0.001176973774 | W163: 0.001214524849 | X163: 0.00125401749 | Y163: 0.001295760236 | Z163: 0.00134012593 | AA163: 0.001384237506 | AB163: 0.001429390247 | AC163: 0.001475976409 | AD163: 0.001523355619 | AE163: 0.001571544155 | AF163: 0.001620366513 | AG163: 0.0016699128 | AH163: 0.001720571461 | AI163: 0.001771777973 | AJ163: 0.001823480187 | AK163: 0.001875616074 | AL163: 0.001928255942 | AM163: 0.001981339733 | AN163: 0.002034886706 | AO163: 0.002088719506
D164: EL6 | E164: 0 | F164: 0 | G164: 0 | H164: 0 | I164: 0 | J164: 0 | K164: 0 | L164: 0 | M164: 0 | N164: 0 | O164: 0 | P164: 0 | Q164: 0 | R164: 0 | S164: 0 | T164: 0 | U164: 0 | V164: 0 | W164: 0 | X164: 0 | Y164: 0 | Z164: 0 | AA164: 0 | AB164: 0 | AC164: 0 | AD164: 0 | AE164: 0 | AF164: 0 | AG164: 0 | AH164: 0 | AI164: 0 | AJ164: 0 | AK164: 0 | AL164: 0 | AM164: 0 | AN164: 0 | AO164: 0
D165: Total | E165: =SUM(E158:E164) -> 0.007205481134 | F165: =SUM(F158:F164) -> 0.01273382412 | G165: =SUM(G158:G164) -> 0.01400872288 | H165: =SUM(H158:H164) -> 0.01541480862 | I165: =SUM(I158:I164) -> 0.01686935678 | J165: =SUM(J158:J164) -> 0.01793431332 | K165: =SUM(K158:K164) -> 0.01853582764 | L165: =SUM(L158:L164) -> 0.01892927397 | M165: =SUM(M158:M164) -> 0.01919002396 | N165: =SUM(N158:N164) -> 0.01936486445 | O165: =SUM(O158:O164) -> 0.01963654964 | P165: =SUM(P158:P164) -> 0.01983711619 | Q165: =SUM(Q158:Q164) -> 0.02006940685 | R165: =SUM(R158:R164) -> 0.02025692811 | S165: =SUM(S158:S164) -> 0.02050974655 | T165: =SUM(T158:T164) -> 0.02077686326 | U165: =SUM(U158:U164) -> 0.02101975861 | V165: =SUM(V158:V164) -> 0.02127679057 | W165: =SUM(W158:W164) -> 0.02159368631 | X165: =SUM(X158:X164) -> 0.02195311462 | Y165: =SUM(Y158:Y164) -> 0.02237565191 | Z165: =SUM(Z158:Z164) -> 0.02288612706 | AA165: =SUM(AA158:AA164) -> 0.02333328504 | AB165: =SUM(AB158:AB164) -> 0.02378682938 | AC165: =SUM(AC158:AC164) -> 0.02427174876 | AD165: =SUM(AD158:AD164) -> 0.02475626391 | AE165: =SUM(AE158:AE164) -> 0.02524421257 | AF165: =SUM(AF158:AF164) -> 0.02572831779 | AG165: =SUM(AG158:AG164) -> 0.02621776616 | AH165: =SUM(AH158:AH164) -> 0.02671607485 | AI165: =SUM(AI158:AI164) -> 0.02721386038 | AJ165: =SUM(AJ158:AJ164) -> 0.02771042689 | AK165: =SUM(AK158:AK164) -> 0.02820500847 | AL165: =SUM(AL158:AL164) -> 0.02869838665 | AM165: =SUM(AM158:AM164) -> 0.02918985875 | AN165: =SUM(AN158:AN164) -> 0.02967964918 | AO165: =SUM(AO158:AO164) -> 0.03016579728
C167: PC 8 | E167: 2012 | F167: 2013 | G167: 2014 | H167: 2015 | I167: 2016 | J167: 2017 | K167: 2018 | L167: 2019 | M167: 2020 | N167: 2021 | O167: 2022 | P167: 2023 | Q167: 2024 | R167: 2025 | S167: 2026 | T167: 2027 | U167: 2028 | V167: 2029 | W167: 2030 | X167: 2031 | Y167: 2032 | Z167: 2033 | AA167: 2034 | AB167: 2035 | AC167: 2036 | AD167: 2037 | AE167: 2038 | AF167: 2039 | AG167: 2040 | AH167: 2041 | AI167: 2042 | AJ167: 2043 | AK167: 2044 | AL167: 2045 | AM167: 2046 | AN167: 2047 | AO167: 2048
C168: =OFFSET('Product Classes'!$C$9,MATCH(C167,MODEL_PCS,0),0) -> Mobile Home Electric Furnace / Modular Blower Fan (MH-EF/MB) | D168: EL0 | E168: 0.02353253975 | F168: 0.02267499626 | G168: 0.02822877913 | H168: 0.03441597611 | I168: 0.04077453255 | J168: 0.04472161988 | K168: 0.04586567181 | L168: 0 | M168: 0 | N168: 0 | O168: 0 | P168: 0 | Q168: 0 | R168: 0 | S168: 0 | T168: 0 | U168: 0 | V168: 0 | W168: 0 | X168: 0 | Y168: 0 | Z168: 0 | AA168: 0 | AB168: 0 | AC168: 0 | AD168: 0 | AE168: 0 | AF168: 0 | AG168: 0 | AH168: 0 | AI168: 0 | AJ168: 0 | AK168: 0 | AL168: 0 | AM168: 0 | AN168: 0 | AO168: 0
D169: EL1 | E169: 0.03221053125 | F169: 0.02832644491 | G169: 0.03368095941 | H169: 0.03960262941 | I169: 0.04563992176 | J169: 0.04923427462 | K169: 0.05002015536 | L169: 0 | M169: 0 | N169: 0 | O169: 0 | P169: 0 | Q169: 0 | R169: 0 | S169: 0 | T169: 0 | U169: 0 | V169: 0 | W169: 0 | X169: 0 | Y169: 0 | Z169: 0 | AA169: 0 | AB169: 0 | AC169: 0 | AD169: 0 | AE169: 0 | AF169: 0 | AG169: 0 | AH169: 0 | AI169: 0 | AJ169: 0 | AK169: 0 | AL169: 0 | AM169: 0 | AN169: 0 | AO169: 0
D170: EL2 | E170: 0 | F170: 0 | G170: 0 | H170: 0 | I170: 0 | J170: 0 | K170: 0 | L170: 0 | M170: 0 | N170: 0 | O170: 0 | P170: 0 | Q170: 0 | R170: 0 | S170: 0 | T170: 0 | U170: 0 | V170: 0 | W170: 0 | X170: 0 | Y170: 0 | Z170: 0 | AA170: 0 | AB170: 0 | AC170: 0 | AD170: 0 | AE170: 0 | AF170: 0 | AG170: 0 | AH170: 0 | AI170: 0 | AJ170: 0 | AK170: 0 | AL170: 0 | AM170: 0 | AN170: 0 | AO170: 0
D171: EL3 | E171: 0.009622256206 | F171: 0.007635444823 | G171: 0.008765015492 | H171: 0.009980853258 | I171: 0.01123419604 | J171: 0.01222122687 | K171: 0.01286484533 | L171: 0 | M171: 0 | N171: 0 | O171: 0 | P171: 0 | Q171: 0 | R171: 0 | S171: 0 | T171: 0 | U171: 0 | V171: 0 | W171: 0 | X171: 0 | Y171: 0 | Z171: 0 | AA171: 0 | AB171: 0 | AC171: 0 | AD171: 0 | AE171: 0 | AF171: 0 | AG171: 0 | AH171: 0 | AI171: 0 | AJ171: 0 | AK171: 0 | AL171: 0 | AM171: 0 | AN171: 0 | AO171: 0
D172: EL4 | E172: 0 | F172: 0 | G172: 0 | H172: 0 | I172: 0 | J172: 0 | K172: 0 | L172: 0.1073631997 | M172: 0.1067185668 | N172: 0.1048051649 | O172: 0.1039029901 | P172: 0.1020078935 | Q172: 0.1002953736 | R172: 0.0990547512 | S172: 0.09697657296 | T172: 0.09507968488 | U172: 0.0928083307 | V172: 0.09058037622 | W172: 0.08903103254 | X172: 0.08789749841 | Y172: 0.08740377645 | Z172: 0.08786186399 | AA172: 0.08750957544 | AB172: 0.0872114174 | AC172: 0.08727546503 | AD172: 0.08732093976 | AE172: 0.08737584603 | AF172: 0.08738463818 | AG172: 0.08749304025 | AH172: 0.08755747755 | AI172: 0.08761173936 | AJ172: 0.08765300963 | AK172: 0.08767629397 | AL172: 0.08768617624 | AM172: 0.08768182975 | AN172: 0.08766458554 | AO172: 0.08763171084
D173: EL5 | E173: 0.02155652212 | F173: 0.01693662577 | G173: 0.01929584577 | H173: 0.02180502894 | I173: 0.024364944 | J173: 0.0263768064 | K173: 0.02769486192 | L173: 0.02786079563 | M173: 0.02783242475 | N173: 0.02760940295 | O173: 0.02749256237 | P173: 0.02727059824 | Q173: 0.02706367513 | R173: 0.02763799604 | S173: 0.02729572343 | T173: 0.0270698223 | U173: 0.02687870653 | V173: 0.0267222471 | W173: 0.026737768 | X173: 0.02685097728 | Y173: 0.02707998656 | Z173: 0.02746441998 | AA173: 0.02775590744 | AB173: 0.02810276232 | AC173: 0.02852541852 | AD173: 0.02895507651 | AE173: 0.02939491354 | AF173: 0.02983497317 | AG173: 0.03029506095 | AH173: 0.03083309422 | AI173: 0.03137065606 | AJ173: 0.03190474303 | AK173: 0.03242997165 | AL173: 0.03295037323 | AM173: 0.03346466077 | AN173: 0.03397374157 | AO173: 0.03447425664
D174: EL6 | E174: 0 | F174: 0 | G174: 0 | H174: 0 | I174: 0 | J174: 0 | K174: 0 | L174: 0 | M174: 0 | N174: 0 | O174: 0 | P174: 0 | Q174: 0 | R174: 0 | S174: 0 | T174: 0 | U174: 0 | V174: 0 | W174: 0 | X174: 0 | Y174: 0 | Z174: 0 | AA174: 0 | AB174: 0 | AC174: 0 | AD174: 0 | AE174: 0 | AF174: 0 | AG174: 0 | AH174: 0 | AI174: 0 | AJ174: 0 | AK174: 0 | AL174: 0 | AM174: 0 | AN174: 0 | AO174: 0
D175: Total | E175: =SUM(E168:E174) -> 0.08692184932 | F175: =SUM(F168:F174) -> 0.07557351177 | G175: =SUM(G168:G174) -> 0.08997059979 | H175: =SUM(H168:H174) -> 0.1058044877 | I175: =SUM(I168:I174) -> 0.1220135944 | J175: =SUM(J168:J174) -> 0.1325539278 | K175: =SUM(K168:K174) -> 0.1364455344 | L175: =SUM(L168:L174) -> 0.1352239953 | M175: =SUM(M168:M174) -> 0.1345509915 | N175: =SUM(N168:N174) -> 0.1324145678 | O175: =SUM(O168:O174) -> 0.1313955524 | P175: =SUM(P168:P174) -> 0.1292784917 | Q175: =SUM(Q168:Q174) -> 0.1273590487 | R175: =SUM(R168:R174) -> 0.1266927472 | S175: =SUM(S168:S174) -> 0.1242722964 | T175: =SUM(T168:T174) -> 0.1221495072 | U175: =SUM(U168:U174) -> 0.1196870372 | V175: =SUM(V168:V174) -> 0.1173026233 | W175: =SUM(W168:W174) -> 0.1157688005 | X175: =SUM(X168:X174) -> 0.1147484757 | Y175: =SUM(Y168:Y174) -> 0.114483763 | Z175: =SUM(Z168:Z174) -> 0.115326284 | AA175: =SUM(AA168:AA174) -> 0.1152654829 | AB175: =SUM(AB168:AB174) -> 0.1153141797 | AC175: =SUM(AC168:AC174) -> 0.1158008836 | AD175: =SUM(AD168:AD174) -> 0.1162760163 | AE175: =SUM(AE168:AE174) -> 0.1167707596 | AF175: =SUM(AF168:AF174) -> 0.1172196113 | AG175: =SUM(AG168:AG174) -> 0.1177881012 | AH175: =SUM(AH168:AH174) -> 0.1183905718 | AI175: =SUM(AI168:AI174) -> 0.1189823954 | AJ175: =SUM(AJ168:AJ174) -> 0.1195577527 | AK175: =SUM(AK168:AK174) -> 0.1201062656 | AL175: =SUM(AL168:AL174) -> 0.1206365495 | AM175: =SUM(AM168:AM174) -> 0.1211464905 | AN175: =SUM(AN168:AN174) -> 0.1216383271 | AO175: =SUM(AO168:AO174) -> 0.1221059675

Sheet Efficiency Distributions
C2: Efficiency Distributions by Product Type
C4: =Navigation!$C$17 -> NAVIGATION
C6: COMMENTS
C9: PC 1
C10: =OFFSET('Product Classes'!$C$9,MATCH(C9,MODEL_PCS,0),0) -> Non-Weatherized, Non-Condensing Gas Furnace Fan (NWG-NC) | D10: Replacement | E10: New Constuction
C11: EL0 | D11: 0.2769475462 | E11: 0.4587126635
C12: EL1 | D12: 0.4154213193 | E12: 0.4587126635
C13: EL2 | D13: 0 | E13: 0
C14: EL3 | D14: 0.1315064392 | E14: 0.03529909683
C15: EL4 | D15: 0.0328766098 | E15: 0.008824774208
C16: EL5 | D16: 0.1432480855 | E16: 0.03845080191
C17: EL6 | D17: 0 | E17: 0
C19: PC 2
C20: =OFFSET('Product Classes'!$C$9,MATCH(C19,MODEL_PCS,0),0) -> Non-Weatherized, Condensing Gas Furnace Fan (NWG-C) | D20: Replacement | E20: New Constuction
C21: EL0 | D21: 0.1995503504 | E21: 0.4327438676
C22: EL1 | D22: 0.2993255255 | E22: 0.4327438676
C23: EL2 | D23: 0 | E23: 0
C24: EL3 | D24: 0.08071797972 | E24: 0.02166640508
C25: EL4 | D25: 0.07062823226 | E25: 0.01895810445
C26: EL5 | D26: 0.3497779121 | E26: 0.09388775536
C27: EL6 | D27: 0 | E27: 0
C29: PC 3
C30: =OFFSET('Product Classes'!$C$9,MATCH(C29,MODEL_PCS,0),0) -> Weatherized Non-Condensing Gas Furnace Fan (WG-NC) | D30: Replacement | E30: New Constuction
C31: EL0 | D31: 0.1251370908 | E31: 0.4077762607
C32: EL1 | D32: 0.1877056363 | E32: 0.4077762607
C33: EL2 | D33: 0 | E33: 0
C34: EL3 | D34: 0.279631824 | E34: 0.07505906854
C35: EL4 | D35: 0.07370141097 | E35: 0.01978301031
C36: EL5 | D36: 0.3338240379 | E36: 0.08960539966
C37: EL6 | D37: 0 | E37: 0
C39: PC 4
C40: =OFFSET('Product Classes'!$C$9,MATCH(C39,MODEL_PCS,0),0) -> Non-Weatherized, Non-Condensing Oil Furnace Fan (NWO-NC) | D40: Replacement | E40: New Constuction
C41: EL0 | D41: 0.2786259972 | E41: 0.459275828
C42: EL1 | D42: 0.4179389957 | E42: 0.459275828
C43: EL2 | D43: 0 | E43: 0
C44: EL3 | D44: 0 | E44: 0
C45: EL4 | D45: 0 | E45: 0
C46: EL5 | D46: 0.3034350071 | E46: 0.08144834401
C47: EL6 | D47: 0 | E47: 0
C49: PC 5
C50: =OFFSET('Product Classes'!$C$9,MATCH(C49,MODEL_PCS,0),0) -> Non-Weatherized Electric Furnace / Modular Blower Fan (NWEF/NWMB) | D50: Replacement | E50: New Constuction
C51: EL0 | D51: 0.217887065 | E51: 0.4388963179
C52: EL1 | D52: 0.3268305975 | E52: 0.4388963179
C53: EL2 | D53: 0 | E53: 0
C54: EL3 | D54: 0.1453028737 | E54: 0.0390023503
C55: EL4 | D55: 0 | E55: 0
C56: EL5 | D56: 0.3099794638 | E56: 0.08320501397
C57: EL6 | D57: 0 | E57: 0
C59: PC 6
C60: =OFFSET('Product Classes'!$C$9,MATCH(C59,MODEL_PCS,0),0) -> Mobile Home Non-Weatherized, Non-Condensing Gas Furnace Fan (MH-NWG-NC) | D60: Replacement | E60: New Constuction
C61: EL0 | D61: 0.4 | E61: 0.5
C62: EL1 | D62: 0.6 | E62: 0.5
C63: EL2 | D63: 0 | E63: 0
C64: EL3 | D64: 0 | E64: 0
C65: EL4 | D65: 0 | E65: 0
C66: EL5 | D66: 0 | E66: 0
C67: EL6 | D67: 0 | E67: 0
C69: PC 7
C70: =OFFSET('Product Classes'!$C$9,MATCH(C69,MODEL_PCS,0),0) -> Mobile Home Non-Weatherized, Condensing Gas Furnace Fan (MH-NWG-C) | D70: Replacement | E70: New Constuction
C71: EL0 | D71: 0.2191523554 | E71: 0.4393208561
C72: EL1 | D72: 0.3287285331 | E72: 0.4393208561
C73: EL2 | D73: 0 | E73: 0
C74: EL3 | D74: 0.3843012447 | E74: 0.1031545446
C75: EL4 | D75: 0 | E75: 0
C76: EL5 | D76: 0.06781786672 | E76: 0.01820374317
C77: EL6 | D77: 0 | E77: 0
C79: PC 8
C80: =OFFSET('Product Classes'!$C$9,MATCH(C79,MODEL_PCS,0),0) -> Mobile Home Electric Furnace / Modular Blower Fan (MH-EF/MB) | D80: Replacement | E80: New Constuction
C81: EL0 | D81: 0.1653690195 | E81: 0.4212751315
C82: EL1 | D82: 0.2480535292 | E82: 0.4212751315
C83: EL2 | D83: 0 | E83: 0
C84: EL3 | D84: 0.1872055696 | E84: 0.05024991605
C85: EL4 | D85: 0 | E85: 0
C86: EL5 | D86: 0.3993718818 | E86: 0.1071998209
C87: EL6 | D87: 0 | E87: 0
C89: Source
C90: 2014 DOE Residential Furnace Fans Final Rule TSD Life Cycle Cost Spreadsheet: 'Base Case Fan Efficiency' tab

Sheet Efficiency Dist - SF
D2: Efficiency Distributions - | E2: Single Family
C4: =Navigation!$C$17 -> NAVIGATION
C6: COMMENTS
D9: Shipments of Furnace Fans | F9: 1981 | G9: =F9+1 -> 1982 | H9: =G9+1 -> 1983 | I9: 1984 | J9: 1985 | K9: 1986 | L9: 1987 | M9: 1988 | N9: 1989 | O9: 1990 | P9: =O9+1 -> 1991 | Q9: =P9+1 -> 1992 | R9: 1993 | S9: 1994 | T9: 1995 | U9: 1996 | V9: 1997 | W9: 1998 | X9: 1999 | Y9: 2000 | Z9: 2001 | AA9: 2002 | AB9: 2003 | AC9: 2004 | AD9: 2005 | AE9: 2006 | AF9: 2007 | AG9: 2008 | AH9: 2009 | AI9: 2010 | AJ9: 2011 | AK9: 2012 | AL9: 2013 | AM9: 2014 | AN9: 2015 | AO9: 2016 | AP9: 2017 | AQ9: 2018 | AR9: 2019 | AS9: 2020 | AT9: 2021 | AU9: 2022 | AV9: 2023 | AW9: 2024 | AX9: 2025 | AY9: 2026 | AZ9: 2027 | BA9: 2028 | BB9: 2029 | BC9: 2030 | BD9: 2031 | BE9: 2032 | BF9: 2033 | BG9: 2034
E10: Replacements | F10: ='Shipments and Stock - SF'!E12 -> 84371.90845 | G10: ='Shipments and Stock - SF'!F12 -> 84371.90845 | H10: ='Shipments and Stock - SF'!G12 -> 84371.90845 | I10: ='Shipments and Stock - SF'!H12 -> 84371.90845 | J10: ='Shipments and Stock - SF'!I12 -> 84371.90845 | K10: ='Shipments and Stock - SF'!J12 -> 84371.90845 | L10: ='Shipments and Stock - SF'!K12 -> 84371.90845 | M10: ='Shipments and Stock - SF'!L12 -> 84371.90845 | N10: ='Shipments and Stock - SF'!M12 -> 84371.90845 | O10: ='Shipments and Stock - SF'!N12 -> 84371.90845 | P10: ='Shipments and Stock - SF'!O12 -> 84371.90845 | Q10: ='Shipments and Stock - SF'!P12 -> 84371.90845 | R10: ='Shipments and Stock - SF'!Q12 -> 84371.90845 | S10: ='Shipments and Stock - SF'!R12 -> 84371.90845 | T10: ='Shipments and Stock - SF'!S12 -> 84371.90845 | U10: ='Shipments and Stock - SF'!T12 -> 84371.90845 | V10: ='Shipments and Stock - SF'!U12 -> 84371.90845 | W10: ='Shipments and Stock - SF'!V12 -> 84371.90845 | X10: ='Shipments and Stock - SF'!W12 -> 84371.90845 | Y10: ='Shipments and Stock - SF'!X12 -> 84371.90845 | Z10: ='Shipments and Stock - SF'!Y12 -> 84371.90845 | AA10: ='Shipments and Stock - SF'!Z12 -> 106752.371 | AB10: ='Shipments and Stock - SF'!AA12 -> 99761.37168 | AC10: ='Shipments and Stock - SF'!AB12 -> 108240.952 | AD10: ='Shipments and Stock - SF'!AC12 -> 106551.8182 | AE10: ='Shipments and Stock - SF'!AD12 -> 105532.1661 | AF10: ='Shipments and Stock - SF'!AE12 -> 107225.9796 | AG10: ='Shipments and Stock - SF'!AF12 -> 97403.98186 | AH10: ='Shipments and Stock - SF'!AG12 -> 94811.96691 | AI10: ='Shipments and Stock - SF'!AH12 -> 109293.702 | AJ10: ='Shipments and Stock - SF'!AI12 -> 119842.8354 | AK10: ='Shipments and Stock - SF'!AJ12 -> 115444.2375 | AL10: ='Shipments and Stock - SF'!AK12 -> 122861.0302 | AM10: ='Shipments and Stock - SF'!AL12 -> 104431.234 | AN10: ='Shipments and Stock - SF'!AM12 -> 106033.2232 | AO10: ='Shipments and Stock - SF'!AN12 -> 100360.4486 | AP10: ='Shipments and Stock - SF'!AO12 -> 101139.9745 | AQ10: ='Shipments and Stock - SF'!AP12 -> 99991.32534 | AR10: ='Shipments and Stock - SF'!AQ12 -> 100538.8385 | AS10: ='Shipments and Stock - SF'!AR12 -> 98802.09875 | AT10: ='Shipments and Stock - SF'!AS12 -> 94817.16335 | AU10: ='Shipments and Stock - SF'!AT12 -> 94752.62829 | AV10: ='Shipments and Stock - SF'!AU12 -> 120639.9444 | AW10: ='Shipments and Stock - SF'!AV12 -> 116925.157 | AX10: ='Shipments and Stock - SF'!AW12 -> 126535.4666 | AY10: ='Shipments and Stock - SF'!AX12 -> 128662.7786 | AZ10: ='Shipments and Stock - SF'!AY12 -> 121365.746 | BA10: ='Shipments and Stock - SF'!AZ12 -> 111581.5025 | BB10: ='Shipments and Stock - SF'!BA12 -> 97403.98186 | BC10: ='Shipments and Stock - SF'!BB12 -> 94811.96691 | BD10: ='Shipments and Stock - SF'!BC12 -> 109293.702 | BE10: ='Shipments and Stock - SF'!BD12 -> 121823.7701 | BF10: ='Shipments and Stock - SF'!BE12 -> 152625.5009 | BG10: ='Shipments and Stock - SF'!BF12 -> 160982.9453
E11: Total New Shipments | F11: ='Shipments and Stock - SF'!E13 -> 22380.46259 | G11: ='Shipments and Stock - SF'!F13 -> 15389.46323 | H11: ='Shipments and Stock - SF'!G13 -> 23869.0435 | I11: ='Shipments and Stock - SF'!H13 -> 22179.90975 | J11: ='Shipments and Stock - SF'!I13 -> 21160.25761 | K11: ='Shipments and Stock - SF'!J13 -> 22854.07114 | L11: ='Shipments and Stock - SF'!K13 -> 22989.64948 | M11: ='Shipments and Stock - SF'!L13 -> 25352.19856 | N11: ='Shipments and Stock - SF'!M13 -> 31153.24203 | O11: ='Shipments and Stock - SF'!N13 -> 35470.92697 | P11: ='Shipments and Stock - SF'!O13 -> 31072.32909 | Q11: ='Shipments and Stock - SF'!P13 -> 38489.12174 | R11: ='Shipments and Stock - SF'!Q13 -> 20059.32556 | S11: ='Shipments and Stock - SF'!R13 -> 21661.31473 | T11: ='Shipments and Stock - SF'!S13 -> 15988.54013 | U11: ='Shipments and Stock - SF'!T13 -> 16768.0661 | V11: ='Shipments and Stock - SF'!U13 -> 15619.41689 | W11: ='Shipments and Stock - SF'!V13 -> 16166.93007 | X11: ='Shipments and Stock - SF'!W13 -> 14430.1903 | Y11: ='Shipments and Stock - SF'!X13 -> 10445.2549 | Z11: ='Shipments and Stock - SF'!Y13 -> 10380.71984 | AA11: ='Shipments and Stock - SF'!Z13 -> 13887.57335 | AB11: ='Shipments and Stock - SF'!AA13 -> 17163.78534 | AC11: ='Shipments and Stock - SF'!AB13 -> 18294.51463 | AD11: ='Shipments and Stock - SF'!AC13 -> 22110.96035 | AE11: ='Shipments and Stock - SF'!AD13 -> 15833.57992 | AF11: ='Shipments and Stock - SF'!AE13 -> 4355.522891 | AG11: ='Shipments and Stock - SF'!AF13 -> 0 | AH11: ='Shipments and Stock - SF'!AG13 -> 0 | AI11: ='Shipments and Stock - SF'!AH13 -> 0 | AJ11: ='Shipments and Stock - SF'!AI13 -> 1980.934679 | AK11: ='Shipments and Stock - SF'!AJ13 -> 37181.26334 | AL11: ='Shipments and Stock - SF'!AK13 -> 38121.91507 | AM11: ='Shipments and Stock - SF'!AL13 -> 37853.02318 | AN11: ='Shipments and Stock - SF'!AM13 -> 37970.65258 | AO11: ='Shipments and Stock - SF'!AN13 -> 38092.87036 | AP11: ='Shipments and Stock - SF'!AO13 -> 37425.54364 | AQ11: ='Shipments and Stock - SF'!AP13 -> 36680.09248 | AR11: ='Shipments and Stock - SF'!AQ13 -> 35876.69132 | AS11: ='Shipments and Stock - SF'!AR13 -> 35269.9594 | AT11: ='Shipments and Stock - SF'!AS13 -> 34347.79676 | AU11: ='Shipments and Stock - SF'!AT13 -> 33737.61732 | AV11: ='Shipments and Stock - SF'!AU13 -> 33297.67278 | AW11: ='Shipments and Stock - SF'!AV13 -> 32793.53242 | AX11: ='Shipments and Stock - SF'!AW13 -> 32681.6778 | AY11: ='Shipments and Stock - SF'!AX13 -> 32384.48484 | AZ11: ='Shipments and Stock - SF'!AY13 -> 31749.19174 | BA11: ='Shipments and Stock - SF'!AZ13 -> 30922.44754 | BB11: ='Shipments and Stock - SF'!BA13 -> 30358.75382 | BC11: ='Shipments and Stock - SF'!BB13 -> 30236.84391 | BD11: ='Shipments and Stock - SF'!BC13 -> 30539.21235 | BE11: ='Shipments and Stock - SF'!BD13 -> 30844.60448 | BF11: ='Shipments and Stock - SF'!BE13 -> 31153.05052 | BG11: ='Shipments and Stock - SF'!BF13 -> 31464.58103
C15: PC 1 | D15: =OFFSET('Product Classes'!$C$9,MATCH(C15,MODEL_PCS,0),0) -> Non-Weatherized, Non-Condensing Gas Furnace Fan (NWG-NC)
D17: PRE-Case
E18: Efficiency Level | F18: 1981 | G18: =F18+1 -> 1982 | H18: =G18+1 -> 1983 | I18: 1984 | J18: 1985 | K18: 1986 | L18: 1987 | M18: 1988 | N18: 1989 | O18: 1990 | P18: =O18+1 -> 1991 | Q18: =P18+1 -> 1992 | R18: 1993 | S18: 1994 | T18: 1995 | U18: 1996 | V18: 1997 | W18: 1998 | X18: 1999 | Y18: 2000 | Z18: 2001 | AA18: 2002 | AB18: 2003 | AC18: 2004 | AD18: 2005 | AE18: 2006 | AF18: 2007 | AG18: 2008 | AH18: 2009 | AI18: 2010 | AJ18: 2011 | AK18: 2012 | AL18: 2013 | AM18: 2014 | AN18: 2015 | AO18: 2016 | AP18: 2017 | AQ18: 2018 | AR18: 2019 | AS18: 2020 | AT18: 2021 | AU18: 2022 | AV18: 2023 | AW18: 2024 | AX18: 2025 | AY18: 2026 | AZ18: 2027 | BA18: 2028 | BB18: 2029 | BC18: 2030 | BD18: 2031 | BE18: 2032 | BF18: 2033 | BG18: 2034
E19: EL0 | F19: =IF(INDEX(PC_MAPPING,RIGHT($C15,1),MATCH($E$2,'Data by Building Type'!$D$22:$F$22,0))="Yes",1,0)* (F$10*OFFSET('Efficiency Distributions'!$D$10,MATCH($C15,'Efficiency Distributions'!$C$9:$C$87,0)+RIGHT($E19),0) +F$11*OFFSET('Efficiency Distributions'!$E$10,MATCH($C15,'Efficiency Distributions'!$C$9:$C$87,0)+RIGHT($E19),0)) /SUM(F$10:F$11) -> 0.3150543102 | G19: =IF(INDEX(PC_MAPPING,RIGHT($C15,1),MATCH($E$2,'Data by Building Type'!$D$22:$F$22,0))="Yes",1,0)* (G$10*OFFSET('Efficiency Distributions'!$D$10,MATCH($C15,'Efficiency Distributions'!$C$9:$C$87,0)+RIGHT($E19),0) +G$11*OFFSET('Efficiency Distributions'!$E$10,MATCH($C15,'Efficiency Distributions'!$C$9:$C$87,0)+RIGHT($E19),0)) /SUM(G$10:G$11) -> 0.3049871325 | H19: =IF(INDEX(PC_MAPPING,RIGHT($C15,1),MATCH($E$2,'Data by Building Type'!$D$22:$F$22,0))="Yes",1,0)* (H$10*OFFSET('Efficiency Distributions'!$D$10,MATCH($C15,'Efficiency Distributions'!$C$9:$C$87,0)+RIGHT($E19),0) +H$11*OFFSET('Efficiency Distributions'!$E$10,MATCH($C15,'Efficiency Distributions'!$C$9:$C$87,0)+RIGHT($E19),0)) /SUM(H$10:H$11) -> 0.317029968 | I19: =IF(INDEX(PC_MAPPING,RIGHT($C15,1),MATCH($E$2,'Data by Building Type'!$D$22:$F$22,0))="Yes",1,0)* (I$10*OFFSET('Efficiency Distributions'!$D$10,MATCH($C15,'Efficiency Distributions'!$C$9:$C$87,0)+RIGHT($E19),0) +I$11*OFFSET('Efficiency Distributions'!$E$10,MATCH($C15,'Efficiency Distributions'!$C$9:$C$87,0)+RIGHT($E19),0)) /SUM(I$10:I$11) -> 0.3147839151 | J19: =IF(INDEX(PC_MAPPING,RIGHT($C15,1),MATCH($E$2,'Data by Building Type'!$D$22:$F$22,0))="Yes",1,0)* (J$10*OFFSET('Efficiency Distributions'!$D$10,MATCH($C15,'Efficiency Distributions'!$C$9:$C$87,0)+RIGHT($E19),0) +J$11*OFFSET('Efficiency Distributions'!$E$10,MATCH($C15,'Efficiency Distributions'!$C$9:$C$87,0)+RIGHT($E19),0)) /SUM(J$10:J$11) -> 0.313393275 | K19: =IF(INDEX(PC_MAPPING,RIGHT($C15,1),MATCH($E$2,'Data by Building Type'!$D$22:$F$22,0))="Yes",1,0)* (K$10*OFFSET('Efficiency Distributions'!$D$10,MATCH($C15,'Efficiency Distributions'!$C$9:$C$87,0)+RIGHT($E19),0) +K$11*OFFSET('Efficiency Distributions'!$E$10,MATCH($C15,'Efficiency Distributions'!$C$9:$C$87,0)+RIGHT($E19),0)) /SUM(K$10:K$11) -> 0.3156888376 | L19: =IF(INDEX(PC_MAPPING,RIGHT($C15,1),MATCH($E$2,'Data by Building Type'!$D$22:$F$22,0))="Yes",1,0)* (L$10*OFFSET('Efficiency Distributions'!$D$10,MATCH($C15,'Efficiency Distributions'!$C$9:$C$87,0)+RIGHT($E19),0) +L$11*OFFSET('Efficiency Distributions'!$E$10,MATCH($C15,'Efficiency Distributions'!$C$9:$C$87,0)+RIGHT($E19),0)) /SUM(L$10:L$11) -> 0.315869451 | M19: =IF(INDEX(PC_MAPPING,RIGHT($C15,1),MATCH($E$2,'Data by Building Type'!$D$22:$F$22,0))="Yes",1,0)* (M$10*OFFSET('Efficiency Distributions'!$D$10,MATCH($C15,'Efficiency Distributions'!$C$9:$C$87,0)+RIGHT($E19),0) +M$11*OFFSET('Efficiency Distributions'!$E$10,MATCH($C15,'Efficiency Distributions'!$C$9:$C$87,0)+RIGHT($E19),0)) /SUM(M$10:M$11) -> 0.3189451115 | N19: =IF(INDEX(PC_MAPPING,RIGHT($C15,1),MATCH($E$2,'Data by Building Type'!$D$22:$F$22,0))="Yes",1,0)* (N$10*OFFSET('Efficiency Distributions'!$D$10,MATCH($C15,'Efficiency Distributions'!$C$9:$C$87,0)+RIGHT($E19),0) +N$11*OFFSET('Efficiency Distributions'!$E$10,MATCH($C15,'Efficiency Distributions'!$C$9:$C$87,0)+RIGHT($E19),0)) /SUM(N$10:N$11) -> 0.3259634762 | O19: =IF(INDEX(PC_MAPPING,RIGHT($C15,1),MATCH($E$2,'Data by Building Type'!$D$22:$F$22,0))="Yes",1,0)* (O$10*OFFSET('Efficiency Distributions'!$D$10,MATCH($C15,'Efficiency Distributions'!$C$9:$C$87,0)+RIGHT($E19),0) +O$11*OFFSET('Efficiency Distributions'!$E$10,MATCH($C15,'Efficiency Distributions'!$C$9:$C$87,0)+RIGHT($E19),0)) /SUM(O$10:O$11) -> 0.3307461498 | P19: =IF(INDEX(PC_MAPPING,RIGHT($C15,1),MATCH($E$2,'Data by Building Type'!$D$22:$F$22,0))="Yes",1,0)* (P$10*OFFSET('Efficiency Distributions'!$D$10,MATCH($C15,'Efficiency Distributions'!$C$9:$C$87,0)+RIGHT($E19),0) +P$11*OFFSET('Efficiency Distributions'!$E$10,MATCH($C15,'Efficiency Distributions'!$C$9:$C$87,0)+RIGHT($E19),0)) /SUM(P$10:P$11) -> 0.3258704345 | Q19: =IF(INDEX(PC_MAPPING,RIGHT($C15,1),MATCH($E$2,'Data by Building Type'!$D$22:$F$22,0))="Yes",1,0)* (Q$10*OFFSET('Efficiency Distributions'!$D$10,MATCH($C15,'Efficiency Distributions'!$C$9:$C$87,0)+RIGHT($E19),0) +Q$11*OFFSET('Efficiency Distributions'!$E$10,MATCH($C15,'Efficiency Distributions'!$C$9:$C$87,0)+RIGHT($E19),0)) /SUM(Q$10:Q$11) -> 0.3338897655 | R19: =IF(INDEX(PC_MAPPING,RIGHT($C15,1),MATCH($E$2,'Data by Building Type'!$D$22:$F$22,0))="Yes",1,0)* (R$10*OFFSET('Efficiency Distributions'!$D$10,MATCH($C15,'Efficiency Distributions'!$C$9:$C$87,0)+RIGHT($E19),0) +R$11*OFFSET('Efficiency Distributions'!$E$10,MATCH($C15,'Efficiency Distributions'!$C$9:$C$87,0)+RIGHT($E19),0)) /SUM(R$10:R$11) -> 0.311861293 | S19: =IF(INDEX(PC_MAPPING,RIGHT($C15,1),MATCH($E$2,'Data by Building Type'!$D$22:$F$22,0))="Yes",1,0)* (S$10*OFFSET('Efficiency Distributions'!$D$10,MATCH($C15,'Efficiency Distributions'!$C$9:$C$87,0)+RIGHT($E19),0) +S$11*OFFSET('Efficiency Distributions'!$E$10,MATCH($C15,'Efficiency Distributions'!$C$9:$C$87,0)+RIGHT($E19),0)) /SUM(S$10:S$11) -> 0.3140799778 | T19: =IF(INDEX(PC_MAPPING,RIGHT($C15,1),MATCH($E$2,'Data by Building Type'!$D$22:$F$22,0))="Yes",1,0)* (T$10*OFFSET('Efficiency Distributions'!$D$10,MATCH($C15,'Efficiency Distributions'!$C$9:$C$87,0)+RIGHT($E19),0) +T$11*OFFSET('Efficiency Distributions'!$E$10,MATCH($C15,'Efficiency Distributions'!$C$9:$C$87,0)+RIGHT($E19),0)) /SUM(T$10:T$11) -> 0.3059047591 | U19: =IF(INDEX(PC_MAPPING,RIGHT($C15,1),MATCH($E$2,'Data by Building Type'!$D$22:$F$22,0))="Yes",1,0)* (U$10*OFFSET('Efficiency Distributions'!$D$10,MATCH($C15,'Efficiency Distributions'!$C$9:$C$87,0)+RIGHT($E19),0) +U$11*OFFSET('Efficiency Distributions'!$E$10,MATCH($C15,'Efficiency Distributions'!$C$9:$C$87,0)+RIGHT($E19),0)) /SUM(U$10:U$11) -> 0.3070825103 | V19: =IF(INDEX(PC_MAPPING,RIGHT($C15,1),MATCH($E$2,'Data by Building Type'!$D$22:$F$22,0))="Yes",1,0)* (V$10*OFFSET('Efficiency Distributions'!$D$10,MATCH($C15,'Efficiency Distributions'!$C$9:$C$87,0)+RIGHT($E19),0) +V$11*OFFSET('Efficiency Distributions'!$E$10,MATCH($C15,'Efficiency Distributions'!$C$9:$C$87,0)+RIGHT($E19),0)) /SUM(V$10:V$11) -> 0.3053406606 | W19: =IF(INDEX(PC_MAPPING,RIGHT($C15,1),MATCH($E$2,'Data by Building Type'!$D$22:$F$22,0))="Yes",1,0)* (W$10*OFFSET('Efficiency Distributions'!$D$10,MATCH($C15,'Efficiency Distributions'!$C$9:$C$87,0)+RIGHT($E19),0) +W$11*OFFSET('Efficiency Distributions'!$E$10,MATCH($C15,'Efficiency Distributions'!$C$9:$C$87,0)+RIGHT($E19),0)) /SUM(W$10:W$11) -> 0.306175892 | X19: =IF(INDEX(PC_MAPPING,RIGHT($C15,1),MATCH($E$2,'Data by Building Type'!$D$22:$F$22,0))="Yes",1,0)* (X$10*OFFSET('Efficiency Distributions'!$D$10,MATCH($C15,'Efficiency Distributions'!$C$9:$C$87,0)+RIGHT($E19),0) +X$11*OFFSET('Efficiency Distributions'!$E$10,MATCH($C15,'Efficiency Distributions'!$C$9:$C$87,0)+RIGHT($E19),0)) /SUM(X$10:X$11) -> 0.3034946061 | Y19: =IF(INDEX(PC_MAPPING,RIGHT($C15,1),MATCH($E$2,'Data by Building Type'!$D$22:$F$22,0))="Yes",1,0)* (Y$10*OFFSET('Efficiency Distributions'!$D$10,MATCH($C15,'Efficiency Distributions'!$C$9:$C$87,0)+RIGHT($E19),0) +Y$11*OFFSET('Efficiency Distributions'!$E$10,MATCH($C15,'Efficiency Distributions'!$C$9:$C$87,0)+RIGHT($E19),0)) /SUM(Y$10:Y$11) -> 0.2969711676 | Z19: =IF(INDEX(PC_MAPPING,RIGHT($C15,1),MATCH($E$2,'Data by Building Type'!$D$22:$F$22,0))="Yes",1,0)* (Z$10*OFFSET('Efficiency Distributions'!$D$10,MATCH($C15,'Efficiency Distributions'!$C$9:$C$87,0)+RIGHT($E19),0) +Z$11*OFFSET('Efficiency Distributions'!$E$10,MATCH($C15,'Efficiency Distributions'!$C$9:$C$87,0)+RIGHT($E19),0)) /SUM(Z$10:Z$11) -> 0.2968610071 | AA19: =IF(INDEX(PC_MAPPING,RIGHT($C15,1),MATCH($E$2,'Data by Building Type'!$D$22:$F$22,0))="Yes",1,0)* (AA$10*OFFSET('Efficiency Distributions'!$D$10,MATCH($C15,'Efficiency Distributions'!$C$9:$C$87,0)+RIGHT($E19),0) +AA$11*OFFSET('Efficiency Distributions'!$E$10,MATCH($C15,'Efficiency Distributions'!$C$9:$C$87,0)+RIGHT($E19),0)) /SUM(AA$10:AA$11) -> 0.2978715976 | AB19: =IF(INDEX(PC_MAPPING,RIGHT($C15,1),MATCH($E$2,'Data by Building Type'!$D$22:$F$22,0))="Yes",1,0)* (AB$10*OFFSET('Efficiency Distributions'!$D$10,MATCH($C15,'Efficiency Distributions'!$C$9:$C$87,0)+RIGHT($E19),0) +AB$11*OFFSET('Efficiency Distributions'!$E$10,MATCH($C15,'Efficiency Distributions'!$C$9:$C$87,0)+RIGHT($E19),0)) /SUM(AB$10:AB$11) -> 0.3036293787 | AC19: =IF(INDEX(PC_MAPPING,RIGHT($C15,1),MATCH($E$2,'Data by Building Type'!$D$22:$F$22,0))="Yes",1,0)* (AC$10*OFFSET('Efficiency Distributions'!$D$10,MATCH($C15,'Efficiency Distributions'!$C$9:$C$87,0)+RIGHT($E19),0) +AC$11*OFFSET('Efficiency Distributions'!$E$10,MATCH($C15,'Efficiency Distributions'!$C$9:$C$87,0)+RIGHT($E19),0)) /SUM(AC$10:AC$11) -> 0.3032271711 | AD19: =IF(INDEX(PC_MAPPING,RIGHT($C15,1),MATCH($E$2,'Data by Building Type'!$D$22:$F$22,0))="Yes",1,0)* (AD$10*OFFSET('Efficiency Distributions'!$D$10,MATCH($C15,'Efficiency Distributions'!$C$9:$C$87,0)+RIGHT($E19),0) +AD$11*OFFSET('Efficiency Distributions'!$E$10,MATCH($C15,'Efficiency Distributions'!$C$9:$C$87,0)+RIGHT($E19),0)) /SUM(AD$10:AD$11) -> 0.3081842515 | AE19: =IF(INDEX(PC_MAPPING,RIGHT($C15,1),MATCH($E$2,'Data by Building Type'!$D$22:$F$22,0))="Yes",1,0)* (AE$10*OFFSET('Efficiency Distributions'!$D$10,MATCH($C15,'Efficiency Distributions'!$C$9:$C$87,0)+RIGHT($E19),0) +AE$11*OFFSET('Efficiency Distributions'!$E$10,MATCH($C15,'Efficiency Distributions'!$C$9:$C$87,0)+RIGHT($E19),0)) /SUM(AE$10:AE$11) -> 0.30066093 | AF19: =IF(INDEX(PC_MAPPING,RIGHT($C15,1),MATCH($E$2,'Data by Building Type'!$D$22:$F$22,0))="Yes",1,0)* (AF$10*OFFSET('Efficiency Distributions'!$D$10,MATCH($C15,'Efficiency Distributions'!$C$9:$C$87,0)+RIGHT($E19),0) +AF$11*OFFSET('Efficiency Distributions'!$E$10,MATCH($C15,'Efficiency Distributions'!$C$9:$C$87,0)+RIGHT($E19),0)) /SUM(AF$10:AF$11) -> 0.2840426481 | AG19: =IF(INDEX(PC_MAPPING,RIGHT($C15,1),MATCH($E$2,'Data by Building Type'!$D$22:$F$22,0))="Yes",1,0)* (AG$10*OFFSET('Efficiency Distributions'!$D$10,MATCH($C15,'Efficiency Distributions'!$C$9:$C$87,0)+RIGHT($E19),0) +AG$11*OFFSET('Efficiency Distributions'!$E$10,MATCH($C15,'Efficiency Distributions'!$C$9:$C$87,0)+RIGHT($E19),0)) /SUM(AG$10:AG$11) -> 0.2769475462 | AH19: =IF(INDEX(PC_MAPPING,RIGHT($C15,1),MATCH($E$2,'Data by Building Type'!$D$22:$F$22,0))="Yes",1,0)* (AH$10*OFFSET('Efficiency Distributions'!$D$10,MATCH($C15,'Efficiency Distributions'!$C$9:$C$87,0)+RIGHT($E19),0) +AH$11*OFFSET('Efficiency Distributions'!$E$10,MATCH($C15,'Efficiency Distributions'!$C$9:$C$87,0)+RIGHT($E19),0)) /SUM(AH$10:AH$11) -> 0.2769475462 | AI19: =IF(INDEX(PC_MAPPING,RIGHT($C15,1),MATCH($E$2,'Data by Building Type'!$D$22:$F$22,0))="Yes",1,0)* (AI$10*OFFSET('Efficiency Distributions'!$D$10,MATCH($C15,'Efficiency Distributions'!$C$9:$C$87,0)+RIGHT($E19),0) +AI$11*OFFSET('Efficiency Distributions'!$E$10,MATCH($C15,'Efficiency Distributions'!$C$9:$C$87,0)+RIGHT($E19),0)) /SUM(AI$10:AI$11) -> 0.2769475462 | AJ19: =IF(INDEX(PC_MAPPING,RIGHT($C15,1),MATCH($E$2,'Data by Building Type'!$D$22:$F$22,0))="Yes",1,0)* (AJ$10*OFFSET('Efficiency Distributions'!$D$10,MATCH($C15,'Efficiency Distributions'!$C$9:$C$87,0)+RIGHT($E19),0) +AJ$11*OFFSET('Efficiency Distributions'!$E$10,MATCH($C15,'Efficiency Distributions'!$C$9:$C$87,0)+RIGHT($E19),0)) /SUM(AJ$10:AJ$11) -> 0.2799031666 | AK19: =IF(INDEX(PC_MAPPING,RIGHT($C15,1),MATCH($E$2,'Data by Building Type'!$D$22:$F$22,0))="Yes",1,0)* (AK$10*OFFSET('Efficiency Distributions'!$D$10,MATCH($C15,'Efficiency Distributions'!$C$9:$C$87,0)+RIGHT($E19),0) +AK$11*OFFSET('Efficiency Distributions'!$E$10,MATCH($C15,'Efficiency Distributions'!$C$9:$C$87,0)+RIGHT($E19),0)) /SUM(AK$10:AK$11) -> 0.321227543 | AL19: =IF(INDEX(PC_MAPPING,RIGHT($C15,1),MATCH($E$2,'Data by Building Type'!$D$22:$F$22,0))="Yes",1,0)* (AL$10*OFFSET('Efficiency Distributions'!$D$10,MATCH($C15,'Efficiency Distributions'!$C$9:$C$87,0)+RIGHT($E19),0) +AL$11*OFFSET('Efficiency Distributions'!$E$10,MATCH($C15,'Efficiency Distributions'!$C$9:$C$87,0)+RIGHT($E19),0)) /SUM(AL$10:AL$11) -> 0.3199908285 | AM19: =IF(INDEX(PC_MAPPING,RIGHT($C15,1),MATCH($E$2,'Data by Building Type'!$D$22:$F$22,0))="Yes",1,0)* (AM$10*OFFSET('Efficiency Distributions'!$D$10,MATCH($C15,'Efficiency Distributions'!$C$9:$C$87,0)+RIGHT($E19),0) +AM$11*OFFSET('Efficiency Distributions'!$E$10,MATCH($C15,'Efficiency Distributions'!$C$9:$C$87,0)+RIGHT($E19),0)) /SUM(AM$10:AM$11) -> 0.3253039795 | AN19: =IF(INDEX(PC_MAPPING,RIGHT($C15,1),MATCH($E$2,'Data by Building Type'!$D$22:$F$22,0))="Yes",1,0)* (AN$10*OFFSET('Efficiency Distributions'!$D$10,MATCH($C15,'Efficiency Distributions'!$C$9:$C$87,0)+RIGHT($E19),0) +AN$11*OFFSET('Efficiency Distributions'!$E$10,MATCH($C15,'Efficiency Distributions'!$C$9:$C$87,0)+RIGHT($E19),0)) /SUM(AN$10:AN$11) -> 0.3248750071 | AO19: =IF(INDEX(PC_MAPPING,RIGHT($C15,1),MATCH($E$2,'Data by Building Type'!$D$22:$F$22,0))="Yes",1,0)* (AO$10*OFFSET('Efficiency Distributions'!$D$10,MATCH($C15,'Efficiency Distributions'!$C$9:$C$87,0)+RIGHT($E19),0) +AO$11*OFFSET('Efficiency Distributions'!$E$10,MATCH($C15,'Efficiency Distributions'!$C$9:$C$87,0)+RIGHT($E19),0)) /SUM(AO$10:AO$11) -> 0.3269568569 | AP19: =IF(INDEX(PC_MAPPING,RIGHT($C15,1),MATCH($E$2,'Data by Building Type'!$D$22:$F$22,0))="Yes",1,0)* (AP$10*OFFSET('Efficiency Distributions'!$D$10,MATCH($C15,'Efficiency Distributions'!$C$9:$C$87,0)+RIGHT($E19),0) +AP$11*OFFSET('Efficiency Distributions'!$E$10,MATCH($C15,'Efficiency Distributions'!$C$9:$C$87,0)+RIGHT($E19),0)) /SUM(AP$10:AP$11) -> 0.3260409889 | AQ19: =IF(INDEX(PC_MAPPING,RIGHT($C15,1),MATCH($E$2,'Data by Building Type'!$D$22:$F$22,0))="Yes",1,0)* (AQ$10*OFFSET('Efficiency Distributions'!$D$10,MATCH($C15,'Efficiency Distributions'!$C$9:$C$87,0)+RIGHT($E19),0) +AQ$11*OFFSET('Efficiency Distributions'!$E$10,MATCH($C15,'Efficiency Distributions'!$C$9:$C$87,0)+RIGHT($E19),0)) /SUM(AQ$10:AQ$11) -> 0.3257299575 | AR19: =IF(INDEX(PC_MAPPING,RIGHT($C15,1),MATCH($E$2,'Data by Building Type'!$D$22:$F$22,0))="Yes",1,0)* (AR$10*OFFSET('Efficiency Distributions'!$D$10,MATCH($C15,'Efficiency Distributions'!$C$9:$C$87,0)+RIGHT($E19),0) +AR$11*OFFSET('Efficiency Distributions'!$E$10,MATCH($C15,'Efficiency Distributions'!$C$9:$C$87,0)+RIGHT($E19),0)) /SUM(AR$10:AR$11) -> 0.3247509819 | AS19: =IF(INDEX(PC_MAPPING,RIGHT($C15,1),MATCH($E$2,'Data by Building Type'!$D$22:$F$22,0))="Yes",1,0)* (AS$10*OFFSET('Efficiency Distributions'!$D$10,MATCH($C15,'Efficiency Distributions'!$C$9:$C$87,0)+RIGHT($E19),0) +AS$11*OFFSET('Efficiency Distributions'!$E$10,MATCH($C15,'Efficiency Distributions'!$C$9:$C$87,0)+RIGHT($E19),0)) /SUM(AS$10:AS$11) -> 0.3247639846 | AT19: =IF(INDEX(PC_MAPPING,RIGHT($C15,1),MATCH($E$2,'Data by Building Type'!$D$22:$F$22,0))="Yes",1,0)* (AT$10*OFFSET('Efficiency Distributions'!$D$10,MATCH($C15,'Efficiency Distributions'!$C$9:$C$87,0)+RIGHT($E19),0) +AT$11*OFFSET('Efficiency Distributions'!$E$10,MATCH($C15,'Efficiency Distributions'!$C$9:$C$87,0)+RIGHT($E19),0)) /SUM(AT$10:AT$11) -> 0.3252828788 | AU19: =IF(INDEX(PC_MAPPING,RIGHT($C15,1),MATCH($E$2,'Data by Building Type'!$D$22:$F$22,0))="Yes",1,0)* (AU$10*OFFSET('Efficiency Distributions'!$D$10,MATCH($C15,'Efficiency Distributions'!$C$9:$C$87,0)+RIGHT($E19),0) +AU$11*OFFSET('Efficiency Distributions'!$E$10,MATCH($C15,'Efficiency Distributions'!$C$9:$C$87,0)+RIGHT($E19),0)) /SUM(AU$10:AU$11) -> 0.324673519 | AV19: =IF(INDEX(PC_MAPPING,RIGHT($C15,1),MATCH($E$2,'Data by Building Type'!$D$22:$F$22,0))="Yes",1,0)* (AV$10*OFFSET('Efficiency Distributions'!$D$10,MATCH($C15,'Efficiency Distributions'!$C$9:$C$87,0)+RIGHT($E19),0) +AV$11*OFFSET('Efficiency Distributions'!$E$10,MATCH($C15,'Efficiency Distributions'!$C$9:$C$87,0)+RIGHT($E19),0)) /SUM(AV$10:AV$11) -> 0.3162644819 | AW19: =IF(INDEX(PC_MAPPING,RIGHT($C15,1),MATCH($E$2,'Data by Building Type'!$D$22:$F$22,0))="Yes",1,0)* (AW$10*OFFSET('Efficiency Distributions'!$D$10,MATCH($C15,'Efficiency Distributions'!$C$9:$C$87,0)+RIGHT($E19),0) +AW$11*OFFSET('Efficiency Distributions'!$E$10,MATCH($C15,'Efficiency Distributions'!$C$9:$C$87,0)+RIGHT($E19),0)) /SUM(AW$10:AW$11) -> 0.3167603464 | AX19: =IF(INDEX(PC_MAPPING,RIGHT($C15,1),MATCH($E$2,'Data by Building Type'!$D$22:$F$22,0))="Yes",1,0)* (AX$10*OFFSET('Efficiency Distributions'!$D$10,MATCH($C15,'Efficiency Distributions'!$C$9:$C$87,0)+RIGHT($E19),0) +AX$11*OFFSET('Efficiency Distributions'!$E$10,MATCH($C15,'Efficiency Distributions'!$C$9:$C$87,0)+RIGHT($E19),0)) /SUM(AX$10:AX$11) -> 0.3142575295 | AY19: =IF(INDEX(PC_MAPPING,RIGHT($C15,1),MATCH($E$2,'Data by Building Type'!$D$22:$F$22,0))="Yes",1,0)* (AY$10*OFFSET('Efficiency Distributions'!$D$10,MATCH($C15,'Efficiency Distributions'!$C$9:$C$87,0)+RIGHT($E19),0) +AY$11*OFFSET('Efficiency Distributions'!$E$10,MATCH($C15,'Efficiency Distributions'!$C$9:$C$87,0)+RIGHT($E19),0)) /SUM(AY$10:AY$11) -> 0.3134981188 | AZ19: =IF(INDEX(PC_MAPPING,RIGHT($C15,1),MATCH($E$2,'Data by Building Type'!$D$22:$F$22,0))="Yes",1,0)* (AZ$10*OFFSET('Efficiency Distributions'!$D$10,MATCH($C15,'Efficiency Distributions'!$C$9:$C$87,0)+RIGHT($E19),0) +AZ$11*OFFSET('Efficiency Distributions'!$E$10,MATCH($C15,'Efficiency Distributions'!$C$9:$C$87,0)+RIGHT($E19),0)) /SUM(AZ$10:AZ$11) -> 0.3146375041 | BA19: =IF(INDEX(PC_MAPPING,RIGHT($C15,1),MATCH($E$2,'Data by Building Type'!$D$22:$F$22,0))="Yes",1,0)* (BA$10*OFFSET('Efficiency Distributions'!$D$10,MATCH($C15,'Efficiency Distributions'!$C$9:$C$87,0)+RIGHT($E19),0) +BA$11*OFFSET('Efficiency Distributions'!$E$10,MATCH($C15,'Efficiency Distributions'!$C$9:$C$87,0)+RIGHT($E19),0)) /SUM(BA$10:BA$11) -> 0.3163894164 | BB19: =IF(INDEX(PC_MAPPING,RIGHT($C15,1),MATCH($E$2,'Data by Building Type'!$D$22:$F$22,0))="Yes",1,0)* (BB$10*OFFSET('Efficiency Distributions'!$D$10,MATCH($C15,'Efficiency Distributions'!$C$9:$C$87,0)+RIGHT($E19),0) +BB$11*OFFSET('Efficiency Distributions'!$E$10,MATCH($C15,'Efficiency Distributions'!$C$9:$C$87,0)+RIGHT($E19),0)) /SUM(BB$10:BB$11) -> 0.3201382498 | BC19: =IF(INDEX(PC_MAPPING,RIGHT($C15,1),MATCH($E$2,'Data by Building Type'!$D$22:$F$22,0))="Yes",1,0)* (BC$10*OFFSET('Efficiency Distributions'!$D$10,MATCH($C15,'Efficiency Distributions'!$C$9:$C$87,0)+RIGHT($E19),0) +BC$11*OFFSET('Efficiency Distributions'!$E$10,MATCH($C15,'Efficiency Distributions'!$C$9:$C$87,0)+RIGHT($E19),0)) /SUM(BC$10:BC$11) -> 0.3208984118 | BD19: =IF(INDEX(PC_MAPPING,RIGHT($C15,1),MATCH($E$2,'Data by Building Type'!$D$22:$F$22,0))="Yes",1,0)* (BD$10*OFFSET('Efficiency Distributions'!$D$10,MATCH($C15,'Efficiency Distributions'!$C$9:$C$87,0)+RIGHT($E19),0) +BD$11*OFFSET('Efficiency Distributions'!$E$10,MATCH($C15,'Efficiency Distributions'!$C$9:$C$87,0)+RIGHT($E19),0)) /SUM(BD$10:BD$11) -> 0.3166446629 | BE19: =IF(INDEX(PC_MAPPING,RIGHT($C15,1),MATCH($E$2,'Data by Building Type'!$D$22:$F$22,0))="Yes",1,0)* (BE$10*OFFSET('Efficiency Distributions'!$D$10,MATCH($C15,'Efficiency Distributions'!$C$9:$C$87,0)+RIGHT($E19),0) +BE$11*OFFSET('Efficiency Distributions'!$E$10,MATCH($C15,'Efficiency Distributions'!$C$9:$C$87,0)+RIGHT($E19),0)) /SUM(BE$10:BE$11) -> 0.3136707586 | BF19: =IF(INDEX(PC_MAPPING,RIGHT($C15,1),MATCH($E$2,'Data by Building Type'!$D$22:$F$22,0))="Yes",1,0)* (BF$10*OFFSET('Efficiency Distributions'!$D$10,MATCH($C15,'Efficiency Distributions'!$C$9:$C$87,0)+RIGHT($E19),0) +BF$11*OFFSET('Efficiency Distributions'!$E$10,MATCH($C15,'Efficiency Distributions'!$C$9:$C$87,0)+RIGHT($E19),0)) /SUM(BF$10:BF$11) -> 0.3077592913 | BG19: =IF(INDEX(PC_MAPPING,RIGHT($C15,1),MATCH($E$2,'Data by Building Type'!$D$22:$F$22,0))="Yes",1,0)* (BG$10*OFFSET('Efficiency Distributions'!$D$10,MATCH($C15,'Efficiency Distributions'!$C$9:$C$87,0)+RIGHT($E19),0) +BG$11*OFFSET('Efficiency Distributions'!$E$10,MATCH($C15,'Efficiency Distributions'!$C$9:$C$87,0)+RIGHT($E19),0)) /SUM(BG$10:BG$11) -> 0.3066655861
E20: EL1 | F20: =IF(INDEX(PC_MAPPING,RIGHT($C15,1),MATCH($E$2,'Data by Building Type'!$D$22:$F$22,0))="Yes",1,0)* (F$10*OFFSET('Efficiency Distributions'!$D$10,MATCH($C15,'Efficiency Distributions'!$C$9:$C$87,0)+RIGHT($E20),0) +F$11*OFFSET('Efficiency Distributions'!$E$10,MATCH($C15,'Efficiency Distributions'!$C$9:$C$87,0)+RIGHT($E20),0)) /SUM(F$10:F$11) -> 0.4244972799 | G20: =IF(INDEX(PC_MAPPING,RIGHT($C15,1),MATCH($E$2,'Data by Building Type'!$D$22:$F$22,0))="Yes",1,0)* (G$10*OFFSET('Efficiency Distributions'!$D$10,MATCH($C15,'Efficiency Distributions'!$C$9:$C$87,0)+RIGHT($E20),0) +G$11*OFFSET('Efficiency Distributions'!$E$10,MATCH($C15,'Efficiency Distributions'!$C$9:$C$87,0)+RIGHT($E20),0)) /SUM(G$10:G$11) -> 0.422099561 | H20: =IF(INDEX(PC_MAPPING,RIGHT($C15,1),MATCH($E$2,'Data by Building Type'!$D$22:$F$22,0))="Yes",1,0)* (H$10*OFFSET('Efficiency Distributions'!$D$10,MATCH($C15,'Efficiency Distributions'!$C$9:$C$87,0)+RIGHT($E20),0) +H$11*OFFSET('Efficiency Distributions'!$E$10,MATCH($C15,'Efficiency Distributions'!$C$9:$C$87,0)+RIGHT($E20),0)) /SUM(H$10:H$11) -> 0.424967826 | I20: =IF(INDEX(PC_MAPPING,RIGHT($C15,1),MATCH($E$2,'Data by Building Type'!$D$22:$F$22,0))="Yes",1,0)* (I$10*OFFSET('Efficiency Distributions'!$D$10,MATCH($C15,'Efficiency Distributions'!$C$9:$C$87,0)+RIGHT($E20),0) +I$11*OFFSET('Efficiency Distributions'!$E$10,MATCH($C15,'Efficiency Distributions'!$C$9:$C$87,0)+RIGHT($E20),0)) /SUM(I$10:I$11) -> 0.4244328793 | J20: =IF(INDEX(PC_MAPPING,RIGHT($C15,1),MATCH($E$2,'Data by Building Type'!$D$22:$F$22,0))="Yes",1,0)* (J$10*OFFSET('Efficiency Distributions'!$D$10,MATCH($C15,'Efficiency Distributions'!$C$9:$C$87,0)+RIGHT($E20),0) +J$11*OFFSET('Efficiency Distributions'!$E$10,MATCH($C15,'Efficiency Distributions'!$C$9:$C$87,0)+RIGHT($E20),0)) /SUM(J$10:J$11) -> 0.4241016679 | K20: =IF(INDEX(PC_MAPPING,RIGHT($C15,1),MATCH($E$2,'Data by Building Type'!$D$22:$F$22,0))="Yes",1,0)* (K$10*OFFSET('Efficiency Distributions'!$D$10,MATCH($C15,'Efficiency Distributions'!$C$9:$C$87,0)+RIGHT($E20),0) +K$11*OFFSET('Efficiency Distributions'!$E$10,MATCH($C15,'Efficiency Distributions'!$C$9:$C$87,0)+RIGHT($E20),0)) /SUM(K$10:K$11) -> 0.4246484065 | L20: =IF(INDEX(PC_MAPPING,RIGHT($C15,1),MATCH($E$2,'Data by Building Type'!$D$22:$F$22,0))="Yes",1,0)* (L$10*OFFSET('Efficiency Distributions'!$D$10,MATCH($C15,'Efficiency Distributions'!$C$9:$C$87,0)+RIGHT($E20),0) +L$11*OFFSET('Efficiency Distributions'!$E$10,MATCH($C15,'Efficiency Distributions'!$C$9:$C$87,0)+RIGHT($E20),0)) /SUM(L$10:L$11) -> 0.4246914235 | M20: =IF(INDEX(PC_MAPPING,RIGHT($C15,1),MATCH($E$2,'Data by Building Type'!$D$22:$F$22,0))="Yes",1,0)* (M$10*OFFSET('Efficiency Distributions'!$D$10,MATCH($C15,'Efficiency Distributions'!$C$9:$C$87,0)+RIGHT($E20),0) +M$11*OFFSET('Efficiency Distributions'!$E$10,MATCH($C15,'Efficiency Distributions'!$C$9:$C$87,0)+RIGHT($E20),0)) /SUM(M$10:M$11) -> 0.4254239594 | N20: =IF(INDEX(PC_MAPPING,RIGHT($C15,1),MATCH($E$2,'Data by Building Type'!$D$22:$F$22,0))="Yes",1,0)* (N$10*OFFSET('Efficiency Distributions'!$D$10,MATCH($C15,'Efficiency Distributions'!$C$9:$C$87,0)+RIGHT($E20),0) +N$11*OFFSET('Efficiency Distributions'!$E$10,MATCH($C15,'Efficiency Distributions'!$C$9:$C$87,0)+RIGHT($E20),0)) /SUM(N$10:N$11) -> 0.4270955367 | O20: =IF(INDEX(PC_MAPPING,RIGHT($C15,1),MATCH($E$2,'Data by Building Type'!$D$22:$F$22,0))="Yes",1,0)* (O$10*OFFSET('Efficiency Distributions'!$D$10,MATCH($C15,'Efficiency Distributions'!$C$9:$C$87,0)+RIGHT($E20),0) +O$11*OFFSET('Efficiency Distributions'!$E$10,MATCH($C15,'Efficiency Distributions'!$C$9:$C$87,0)+RIGHT($E20),0)) /SUM(O$10:O$11) -> 0.4282346352 | P20: =IF(INDEX(PC_MAPPING,RIGHT($C15,1),MATCH($E$2,'Data by Building Type'!$D$22:$F$22,0))="Yes",1,0)* (P$10*OFFSET('Efficiency Distributions'!$D$10,MATCH($C15,'Efficiency Distributions'!$C$9:$C$87,0)+RIGHT($E20),0) +P$11*OFFSET('Efficiency Distributions'!$E$10,MATCH($C15,'Efficiency Distributions'!$C$9:$C$87,0)+RIGHT($E20),0)) /SUM(P$10:P$11) -> 0.4270733768 | Q20: =IF(INDEX(PC_MAPPING,RIGHT($C15,1),MATCH($E$2,'Data by Building Type'!$D$22:$F$22,0))="Yes",1,0)* (Q$10*OFFSET('Efficiency Distributions'!$D$10,MATCH($C15,'Efficiency Distributions'!$C$9:$C$87,0)+RIGHT($E20),0) +Q$11*OFFSET('Efficiency Distributions'!$E$10,MATCH($C15,'Efficiency Distributions'!$C$9:$C$87,0)+RIGHT($E20),0)) /SUM(Q$10:Q$11) -> 0.4289833561 | R20: =IF(INDEX(PC_MAPPING,RIGHT($C15,1),MATCH($E$2,'Data by Building Type'!$D$22:$F$22,0))="Yes",1,0)* (R$10*OFFSET('Efficiency Distributions'!$D$10,MATCH($C15,'Efficiency Distributions'!$C$9:$C$87,0)+RIGHT($E20),0) +R$11*OFFSET('Efficiency Distributions'!$E$10,MATCH($C15,'Efficiency Distributions'!$C$9:$C$87,0)+RIGHT($E20),0)) /SUM(R$10:R$11) -> 0.4237367929 | S20: =IF(INDEX(PC_MAPPING,RIGHT($C15,1),MATCH($E$2,'Data by Building Type'!$D$22:$F$22,0))="Yes",1,0)* (S$10*OFFSET('Efficiency Distributions'!$D$10,MATCH($C15,'Efficiency Distributions'!$C$9:$C$87,0)+RIGHT($E20),0) +S$11*OFFSET('Efficiency Distributions'!$E$10,MATCH($C15,'Efficiency Distributions'!$C$9:$C$87,0)+RIGHT($E20),0)) /SUM(S$10:S$11) -> 0.4242652213 | T20: =IF(INDEX(PC_MAPPING,RIGHT($C15,1),MATCH($E$2,'Data by Building Type'!$D$22:$F$22,0))="Yes",1,0)* (T$10*OFFSET('Efficiency Distributions'!$D$10,MATCH($C15,'Efficiency Distributions'!$C$9:$C$87,0)+RIGHT($E20),0) +T$11*OFFSET('Efficiency Distributions'!$E$10,MATCH($C15,'Efficiency Distributions'!$C$9:$C$87,0)+RIGHT($E20),0)) /SUM(T$10:T$11) -> 0.4223181138 | U20: =IF(INDEX(PC_MAPPING,RIGHT($C15,1),MATCH($E$2,'Data by Building Type'!$D$22:$F$22,0))="Yes",1,0)* (U$10*OFFSET('Efficiency Distributions'!$D$10,MATCH($C15,'Efficiency Distributions'!$C$9:$C$87,0)+RIGHT($E20),0) +U$11*OFFSET('Efficiency Distributions'!$E$10,MATCH($C15,'Efficiency Distributions'!$C$9:$C$87,0)+RIGHT($E20),0)) /SUM(U$10:U$11) -> 0.4225986211 | V20: =IF(INDEX(PC_MAPPING,RIGHT($C15,1),MATCH($E$2,'Data by Building Type'!$D$22:$F$22,0))="Yes",1,0)* (V$10*OFFSET('Efficiency Distributions'!$D$10,MATCH($C15,'Efficiency Distributions'!$C$9:$C$87,0)+RIGHT($E20),0) +V$11*OFFSET('Efficiency Distributions'!$E$10,MATCH($C15,'Efficiency Distributions'!$C$9:$C$87,0)+RIGHT($E20),0)) /SUM(V$10:V$11) -> 0.4221837614 | W20: =IF(INDEX(PC_MAPPING,RIGHT($C15,1),MATCH($E$2,'Data by Building Type'!$D$22:$F$22,0))="Yes",1,0)* (W$10*OFFSET('Efficiency Distributions'!$D$10,MATCH($C15,'Efficiency Distributions'!$C$9:$C$87,0)+RIGHT($E20),0) +W$11*OFFSET('Efficiency Distributions'!$E$10,MATCH($C15,'Efficiency Distributions'!$C$9:$C$87,0)+RIGHT($E20),0)) /SUM(W$10:W$11) -> 0.4223826901 | X20: =IF(INDEX(PC_MAPPING,RIGHT($C15,1),MATCH($E$2,'Data by Building Type'!$D$22:$F$22,0))="Yes",1,0)* (X$10*OFFSET('Efficiency Distributions'!$D$10,MATCH($C15,'Efficiency Distributions'!$C$9:$C$87,0)+RIGHT($E20),0) +X$11*OFFSET('Efficiency Distributions'!$E$10,MATCH($C15,'Efficiency Distributions'!$C$9:$C$87,0)+RIGHT($E20),0)) /SUM(X$10:X$11) -> 0.4217440831 | Y20: =IF(INDEX(PC_MAPPING,RIGHT($C15,1),MATCH($E$2,'Data by Building Type'!$D$22:$F$22,0))="Yes",1,0)* (Y$10*OFFSET('Efficiency Distributions'!$D$10,MATCH($C15,'Efficiency Distributions'!$C$9:$C$87,0)+RIGHT($E20),0) +Y$11*OFFSET('Efficiency Distributions'!$E$10,MATCH($C15,'Efficiency Distributions'!$C$9:$C$87,0)+RIGHT($E20),0)) /SUM(Y$10:Y$11) -> 0.4201903833 | Z20: =IF(INDEX(PC_MAPPING,RIGHT($C15,1),MATCH($E$2,'Data by Building Type'!$D$22:$F$22,0))="Yes",1,0)* (Z$10*OFFSET('Efficiency Distributions'!$D$10,MATCH($C15,'Efficiency Distributions'!$C$9:$C$87,0)+RIGHT($E20),0) +Z$11*OFFSET('Efficiency Distributions'!$E$10,MATCH($C15,'Efficiency Distributions'!$C$9:$C$87,0)+RIGHT($E20),0)) /SUM(Z$10:Z$11) -> 0.4201641462 | AA20: =IF(INDEX(PC_MAPPING,RIGHT($C15,1),MATCH($E$2,'Data by Building Type'!$D$22:$F$22,0))="Yes",1,0)* (AA$10*OFFSET('Efficiency Distributions'!$D$10,MATCH($C15,'Efficiency Distributions'!$C$9:$C$87,0)+RIGHT($E20),0) +AA$11*OFFSET('Efficiency Distributions'!$E$10,MATCH($C15,'Efficiency Distributions'!$C$9:$C$87,0)+RIGHT($E20),0)) /SUM(AA$10:AA$11) -> 0.4204048405 | AB20: =IF(INDEX(PC_MAPPING,RIGHT($C15,1),MATCH($E$2,'Data by Building Type'!$D$22:$F$22,0))="Yes",1,0)* (AB$10*OFFSET('Efficiency Distributions'!$D$10,MATCH($C15,'Efficiency Distributions'!$C$9:$C$87,0)+RIGHT($E20),0) +AB$11*OFFSET('Efficiency Distributions'!$E$10,MATCH($C15,'Efficiency Distributions'!$C$9:$C$87,0)+RIGHT($E20),0)) /SUM(AB$10:AB$11) -> 0.4217761822 | AC20: =IF(INDEX(PC_MAPPING,RIGHT($C15,1),MATCH($E$2,'Data by Building Type'!$D$22:$F$22,0))="Yes",1,0)* (AC$10*OFFSET('Efficiency Distributions'!$D$10,MATCH($C15,'Efficiency Distributions'!$C$9:$C$87,0)+RIGHT($E20),0) +AC$11*OFFSET('Efficiency Distributions'!$E$10,MATCH($C15,'Efficiency Distributions'!$C$9:$C$87,0)+RIGHT($E20),0)) /SUM(AC$10:AC$11) -> 0.4216803876 | AD20: =IF(INDEX(PC_MAPPING,RIGHT($C15,1),MATCH($E$2,'Data by Building Type'!$D$22:$F$22,0))="Yes",1,0)* (AD$10*OFFSET('Efficiency Distributions'!$D$10,MATCH($C15,'Efficiency Distributions'!$C$9:$C$87,0)+RIGHT($E20),0) +AD$11*OFFSET('Efficiency Distributions'!$E$10,MATCH($C15,'Efficiency Distributions'!$C$9:$C$87,0)+RIGHT($E20),0)) /SUM(AD$10:AD$11) -> 0.4228610249 | AE20: =IF(INDEX(PC_MAPPING,RIGHT($C15,1),MATCH($E$2,'Data by Building Type'!$D$22:$F$22,0))="Yes",1,0)* (AE$10*OFFSET('Efficiency Distributions'!$D$10,MATCH($C15,'Efficiency Distributions'!$C$9:$C$87,0)+RIGHT($E20),0) +AE$11*OFFSET('Efficiency Distributions'!$E$10,MATCH($C15,'Efficiency Distributions'!$C$9:$C$87,0)+RIGHT($E20),0)) /SUM(AE$10:AE$11) -> 0.4210691811 | AF20: =IF(INDEX(PC_MAPPING,RIGHT($C15,1),MATCH($E$2,'Data by Building Type'!$D$22:$F$22,0))="Yes",1,0)* (AF$10*OFFSET('Efficiency Distributions'!$D$10,MATCH($C15,'Efficiency Distributions'!$C$9:$C$87,0)+RIGHT($E20),0) +AF$11*OFFSET('Efficiency Distributions'!$E$10,MATCH($C15,'Efficiency Distributions'!$C$9:$C$87,0)+RIGHT($E20),0)) /SUM(AF$10:AF$11) -> 0.4171111732 | AG20: =IF(INDEX(PC_MAPPING,RIGHT($C15,1),MATCH($E$2,'Data by Building Type'!$D$22:$F$22,0))="Yes",1,0)* (AG$10*OFFSET('Efficiency Distributions'!$D$10,MATCH($C15,'Efficiency Distributions'!$C$9:$C$87,0)+RIGHT($E20),0) +AG$11*OFFSET('Efficiency Distributions'!$E$10,MATCH($C15,'Efficiency Distributions'!$C$9:$C$87,0)+RIGHT($E20),0)) /SUM(AG$10:AG$11) -> 0.4154213193 | AH20: =IF(INDEX(PC_MAPPING,RIGHT($C15,1),MATCH($E$2,'Data by Building Type'!$D$22:$F$22,0))="Yes",1,0)* (AH$10*OFFSET('Efficiency Distributions'!$D$10,MATCH($C15,'Efficiency Distributions'!$C$9:$C$87,0)+RIGHT($E20),0) +AH$11*OFFSET('Efficiency Distributions'!$E$10,MATCH($C15,'Efficiency Distributions'!$C$9:$C$87,0)+RIGHT($E20),0)) /SUM(AH$10:AH$11) -> 0.4154213193 | AI20: =IF(INDEX(PC_MAPPING,RIGHT($C15,1),MATCH($E$2,'Data by Building Type'!$D$22:$F$22,0))="Yes",1,0)* (AI$10*OFFSET('Efficiency Distributions'!$D$10,MATCH($C15,'Efficiency Distributions'!$C$9:$C$87,0)+RIGHT($E20),0) +AI$11*OFFSET('Efficiency Distributions'!$E$10,MATCH($C15,'Efficiency Distributions'!$C$9:$C$87,0)+RIGHT($E20),0)) /SUM(AI$10:AI$11) -> 0.4154213193 | AJ20: =IF(INDEX(PC_MAPPING,RIGHT($C15,1),MATCH($E$2,'Data by Building Type'!$D$22:$F$22,0))="Yes",1,0)* (AJ$10*OFFSET('Efficiency Distributions'!$D$10,MATCH($C15,'Efficiency Distributions'!$C$9:$C$87,0)+RIGHT($E20),0) +AJ$11*OFFSET('Efficiency Distributions'!$E$10,MATCH($C15,'Efficiency Distributions'!$C$9:$C$87,0)+RIGHT($E20),0)) /SUM(AJ$10:AJ$11) -> 0.416125265 | AK20: =IF(INDEX(PC_MAPPING,RIGHT($C15,1),MATCH($E$2,'Data by Building Type'!$D$22:$F$22,0))="Yes",1,0)* (AK$10*OFFSET('Efficiency Distributions'!$D$10,MATCH($C15,'Efficiency Distributions'!$C$9:$C$87,0)+RIGHT($E20),0) +AK$11*OFFSET('Efficiency Distributions'!$E$10,MATCH($C15,'Efficiency Distributions'!$C$9:$C$87,0)+RIGHT($E20),0)) /SUM(AK$10:AK$11) -> 0.4259675705 | AL20: =IF(INDEX(PC_MAPPING,RIGHT($C15,1),MATCH($E$2,'Data by Building Type'!$D$22:$F$22,0))="Yes",1,0)* (AL$10*OFFSET('Efficiency Distributions'!$D$10,MATCH($C15,'Efficiency Distributions'!$C$9:$C$87,0)+RIGHT($E20),0) +AL$11*OFFSET('Efficiency Distributions'!$E$10,MATCH($C15,'Efficiency Distributions'!$C$9:$C$87,0)+RIGHT($E20),0)) /SUM(AL$10:AL$11) -> 0.4256730198 | AM20: =IF(INDEX(PC_MAPPING,RIGHT($C15,1),MATCH($E$2,'Data by Building Type'!$D$22:$F$22,0))="Yes",1,0)* (AM$10*OFFSET('Efficiency Distributions'!$D$10,MATCH($C15,'Efficiency Distributions'!$C$9:$C$87,0)+RIGHT($E20),0) +AM$11*OFFSET('Efficiency Distributions'!$E$10,MATCH($C15,'Efficiency Distributions'!$C$9:$C$87,0)+RIGHT($E20),0)) /SUM(AM$10:AM$11) -> 0.4269384631 | AN20: =IF(INDEX(PC_MAPPING,RIGHT($C15,1),MATCH($E$2,'Data by Building Type'!$D$22:$F$22,0))="Yes",1,0)* (AN$10*OFFSET('Efficiency Distributions'!$D$10,MATCH($C15,'Efficiency Distributions'!$C$9:$C$87,0)+RIGHT($E20),0) +AN$11*OFFSET('Efficiency Distributions'!$E$10,MATCH($C15,'Efficiency Distributions'!$C$9:$C$87,0)+RIGHT($E20),0)) /SUM(AN$10:AN$11) -> 0.4268362939 | AO20: =IF(INDEX(PC_MAPPING,RIGHT($C15,1),MATCH($E$2,'Data by Building Type'!$D$22:$F$22,0))="Yes",1,0)* (AO$10*OFFSET('Efficiency Distributions'!$D$10,MATCH($C15,'Efficiency Distributions'!$C$9:$C$87,0)+RIGHT($E20),0) +AO$11*OFFSET('Efficiency Distributions'!$E$10,MATCH($C15,'Efficiency Distributions'!$C$9:$C$87,0)+RIGHT($E20),0)) /SUM(AO$10:AO$11) -> 0.4273321321 | AP20: =IF(INDEX(PC_MAPPING,RIGHT($C15,1),MATCH($E$2,'Data by Building Type'!$D$22:$F$22,0))="Yes",1,0)* (AP$10*OFFSET('Efficiency Distributions'!$D$10,MATCH($C15,'Efficiency Distributions'!$C$9:$C$87,0)+RIGHT($E20),0) +AP$11*OFFSET('Efficiency Distributions'!$E$10,MATCH($C15,'Efficiency Distributions'!$C$9:$C$87,0)+RIGHT($E20),0)) /SUM(AP$10:AP$11) -> 0.4271139981 | AQ20: =IF(INDEX(PC_MAPPING,RIGHT($C15,1),MATCH($E$2,'Data by Building Type'!$D$22:$F$22,0))="Yes",1,0)* (AQ$10*OFFSET('Efficiency Distributions'!$D$10,MATCH($C15,'Efficiency Distributions'!$C$9:$C$87,0)+RIGHT($E20),0) +AQ$11*OFFSET('Efficiency Distributions'!$E$10,MATCH($C15,'Efficiency Distributions'!$C$9:$C$87,0)+RIGHT($E20),0)) /SUM(AQ$10:AQ$11) -> 0.4270399191 | AR20: =IF(INDEX(PC_MAPPING,RIGHT($C15,1),MATCH($E$2,'Data by Building Type'!$D$22:$F$22,0))="Yes",1,0)* (AR$10*OFFSET('Efficiency Distributions'!$D$10,MATCH($C15,'Efficiency Distributions'!$C$9:$C$87,0)+RIGHT($E20),0) +AR$11*OFFSET('Efficiency Distributions'!$E$10,MATCH($C15,'Efficiency Distributions'!$C$9:$C$87,0)+RIGHT($E20),0)) /SUM(AR$10:AR$11) -> 0.4268067546 | AS20: =IF(INDEX(PC_MAPPING,RIGHT($C15,1),MATCH($E$2,'Data by Building Type'!$D$22:$F$22,0))="Yes",1,0)* (AS$10*OFFSET('Efficiency Distributions'!$D$10,MATCH($C15,'Efficiency Distributions'!$C$9:$C$87,0)+RIGHT($E20),0) +AS$11*OFFSET('Efficiency Distributions'!$E$10,MATCH($C15,'Efficiency Distributions'!$C$9:$C$87,0)+RIGHT($E20),0)) /SUM(AS$10:AS$11) -> 0.4268098515 | AT20: =IF(INDEX(PC_MAPPING,RIGHT($C15,1),MATCH($E$2,'Data by Building Type'!$D$22:$F$22,0))="Yes",1,0)* (AT$10*OFFSET('Efficiency Distributions'!$D$10,MATCH($C15,'Efficiency Distributions'!$C$9:$C$87,0)+RIGHT($E20),0) +AT$11*OFFSET('Efficiency Distributions'!$E$10,MATCH($C15,'Efficiency Distributions'!$C$9:$C$87,0)+RIGHT($E20),0)) /SUM(AT$10:AT$11) -> 0.4269334375 | AU20: =IF(INDEX(PC_MAPPING,RIGHT($C15,1),MATCH($E$2,'Data by Building Type'!$D$22:$F$22,0))="Yes",1,0)* (AU$10*OFFSET('Efficiency Distributions'!$D$10,MATCH($C15,'Efficiency Distributions'!$C$9:$C$87,0)+RIGHT($E20),0) +AU$11*OFFSET('Efficiency Distributions'!$E$10,MATCH($C15,'Efficiency Distributions'!$C$9:$C$87,0)+RIGHT($E20),0)) /SUM(AU$10:AU$11) -> 0.4267883051 | AV20: =IF(INDEX(PC_MAPPING,RIGHT($C15,1),MATCH($E$2,'Data by Building Type'!$D$22:$F$22,0))="Yes",1,0)* (AV$10*OFFSET('Efficiency Distributions'!$D$10,MATCH($C15,'Efficiency Distributions'!$C$9:$C$87,0)+RIGHT($E20),0) +AV$11*OFFSET('Efficiency Distributions'!$E$10,MATCH($C15,'Efficiency Distributions'!$C$9:$C$87,0)+RIGHT($E20),0)) /SUM(AV$10:AV$11) -> 0.4247855088 | AW20: =IF(INDEX(PC_MAPPING,RIGHT($C15,1),MATCH($E$2,'Data by Building Type'!$D$22:$F$22,0))="Yes",1,0)* (AW$10*OFFSET('Efficiency Distributions'!$D$10,MATCH($C15,'Efficiency Distributions'!$C$9:$C$87,0)+RIGHT($E20),0) +AW$11*OFFSET('Efficiency Distributions'!$E$10,MATCH($C15,'Efficiency Distributions'!$C$9:$C$87,0)+RIGHT($E20),0)) /SUM(AW$10:AW$11) -> 0.4249036097 | AX20: =IF(INDEX(PC_MAPPING,RIGHT($C15,1),MATCH($E$2,'Data by Building Type'!$D$22:$F$22,0))="Yes",1,0)* (AX$10*OFFSET('Efficiency Distributions'!$D$10,MATCH($C15,'Efficiency Distributions'!$C$9:$C$87,0)+RIGHT($E20),0) +AX$11*OFFSET('Efficiency Distributions'!$E$10,MATCH($C15,'Efficiency Distributions'!$C$9:$C$87,0)+RIGHT($E20),0)) /SUM(AX$10:AX$11) -> 0.4243075091 | AY20: =IF(INDEX(PC_MAPPING,RIGHT($C15,1),MATCH($E$2,'Data by Building Type'!$D$22:$F$22,0))="Yes",1,0)* (AY$10*OFFSET('Efficiency Distributions'!$D$10,MATCH($C15,'Efficiency Distributions'!$C$9:$C$87,0)+RIGHT($E20),0) +AY$11*OFFSET('Efficiency Distributions'!$E$10,MATCH($C15,'Efficiency Distributions'!$C$9:$C$87,0)+RIGHT($E20),0)) /SUM(AY$10:AY$11) -> 0.4241266388 | AZ20: =IF(INDEX(PC_MAPPING,RIGHT($C15,1),MATCH($E$2,'Data by Building Type'!$D$22:$F$22,0))="Yes",1,0)* (AZ$10*OFFSET('Efficiency Distributions'!$D$10,MATCH($C15,'Efficiency Distributions'!$C$9:$C$87,0)+RIGHT($E20),0) +AZ$11*OFFSET('Efficiency Distributions'!$E$10,MATCH($C15,'Efficiency Distributions'!$C$9:$C$87,0)+RIGHT($E20),0)) /SUM(AZ$10:AZ$11) -> 0.4243980084 | BA20: =IF(INDEX(PC_MAPPING,RIGHT($C15,1),MATCH($E$2,'Data by Building Type'!$D$22:$F$22,0))="Yes",1,0)* (BA$10*OFFSET('Efficiency Distributions'!$D$10,MATCH($C15,'Efficiency Distributions'!$C$9:$C$87,0)+RIGHT($E20),0) +BA$11*OFFSET('Efficiency Distributions'!$E$10,MATCH($C15,'Efficiency Distributions'!$C$9:$C$87,0)+RIGHT($E20),0)) /SUM(BA$10:BA$11) -> 0.4248152647 | BB20: =IF(INDEX(PC_MAPPING,RIGHT($C15,1),MATCH($E$2,'Data by Building Type'!$D$22:$F$22,0))="Yes",1,0)* (BB$10*OFFSET('Efficiency Distributions'!$D$10,MATCH($C15,'Efficiency Distributions'!$C$9:$C$87,0)+RIGHT($E20),0) +BB$11*OFFSET('Efficiency Distributions'!$E$10,MATCH($C15,'Efficiency Distributions'!$C$9:$C$87,0)+RIGHT($E20),0)) /SUM(BB$10:BB$11) -> 0.4257081314 | BC20: =IF(INDEX(PC_MAPPING,RIGHT($C15,1),MATCH($E$2,'Data by Building Type'!$D$22:$F$22,0))="Yes",1,0)* (BC$10*OFFSET('Efficiency Distributions'!$D$10,MATCH($C15,'Efficiency Distributions'!$C$9:$C$87,0)+RIGHT($E20),0) +BC$11*OFFSET('Efficiency Distributions'!$E$10,MATCH($C15,'Efficiency Distributions'!$C$9:$C$87,0)+RIGHT($E20),0)) /SUM(BC$10:BC$11) -> 0.4258891807 | BD20: =IF(INDEX(PC_MAPPING,RIGHT($C15,1),MATCH($E$2,'Data by Building Type'!$D$22:$F$22,0))="Yes",1,0)* (BD$10*OFFSET('Efficiency Distributions'!$D$10,MATCH($C15,'Efficiency Distributions'!$C$9:$C$87,0)+RIGHT($E20),0) +BD$11*OFFSET('Efficiency Distributions'!$E$10,MATCH($C15,'Efficiency Distributions'!$C$9:$C$87,0)+RIGHT($E20),0)) /SUM(BD$10:BD$11) -> 0.4248760572 | BE20: =IF(INDEX(PC_MAPPING,RIGHT($C15,1),MATCH($E$2,'Data by Building Type'!$D$22:$F$22,0))="Yes",1,0)* (BE$10*OFFSET('Efficiency Distributions'!$D$10,MATCH($C15,'Efficiency Distributions'!$C$9:$C$87,0)+RIGHT($E20),0) +BE$11*OFFSET('Efficiency Distributions'!$E$10,MATCH($C15,'Efficiency Distributions'!$C$9:$C$87,0)+RIGHT($E20),0)) /SUM(BE$10:BE$11) -> 0.4241677567 | BF20: =IF(INDEX(PC_MAPPING,RIGHT($C15,1),MATCH($E$2,'Data by Building Type'!$D$22:$F$22,0))="Yes",1,0)* (BF$10*OFFSET('Efficiency Distributions'!$D$10,MATCH($C15,'Efficiency Distributions'!$C$9:$C$87,0)+RIGHT($E20),0) +BF$11*OFFSET('Efficiency Distributions'!$E$10,MATCH($C15,'Efficiency Distributions'!$C$9:$C$87,0)+RIGHT($E20),0)) /SUM(BF$10:BF$11) -> 0.4227598113 | BG20: =IF(INDEX(PC_MAPPING,RIGHT($C15,1),MATCH($E$2,'Data by Building Type'!$D$22:$F$22,0))="Yes",1,0)* (BG$10*OFFSET('Efficiency Distributions'!$D$10,MATCH($C15,'Efficiency Distributions'!$C$9:$C$87,0)+RIGHT($E20),0) +BG$11*OFFSET('Efficiency Distributions'!$E$10,MATCH($C15,'Efficiency Distributions'!$C$9:$C$87,0)+RIGHT($E20),0)) /SUM(BG$10:BG$11) -> 0.4224993215
E21: EL2 | F21: =IF(INDEX(PC_MAPPING,RIGHT($C15,1),MATCH($E$2,'Data by Building Type'!$D$22:$F$22,0))="Yes",1,0)* (F$10*OFFSET('Efficiency Distributions'!$D$10,MATCH($C15,'Efficiency Distributions'!$C$9:$C$87,0)+RIGHT($E21),0) +F$11*OFFSET('Efficiency Distributions'!$E$10,MATCH($C15,'Efficiency Distributions'!$C$9:$C$87,0)+RIGHT($E21),0)) /SUM(F$10:F$11) -> 0 | G21: =IF(INDEX(PC_MAPPING,RIGHT($C15,1),MATCH($E$2,'Data by Building Type'!$D$22:$F$22,0))="Yes",1,0)* (G$10*OFFSET('Efficiency Distributions'!$D$10,MATCH($C15,'Efficiency Distributions'!$C$9:$C$87,0)+RIGHT($E21),0) +G$11*OFFSET('Efficiency Distributions'!$E$10,MATCH($C15,'Efficiency Distributions'!$C$9:$C$87,0)+RIGHT($E21),0)) /SUM(G$10:G$11) -> 0 | H21: =IF(INDEX(PC_MAPPING,RIGHT($C15,1),MATCH($E$2,'Data by Building Type'!$D$22:$F$22,0))="Yes",1,0)* (H$10*OFFSET('Efficiency Distributions'!$D$10,MATCH($C15,'Efficiency Distributions'!$C$9:$C$87,0)+RIGHT($E21),0) +H$11*OFFSET('Efficiency Distributions'!$E$10,MATCH($C15,'Efficiency Distributions'!$C$9:$C$87,0)+RIGHT($E21),0)) /SUM(H$10:H$11) -> 0 | I21: =IF(INDEX(PC_MAPPING,RIGHT($C15,1),MATCH($E$2,'Data by Building Type'!$D$22:$F$22,0))="Yes",1,0)* (I$10*OFFSET('Efficiency Distributions'!$D$10,MATCH($C15,'Efficiency Distributions'!$C$9:$C$87,0)+RIGHT($E21),0) +I$11*OFFSET('Efficiency Distributions'!$E$10,MATCH($C15,'Efficiency Distributions'!$C$9:$C$87,0)+RIGHT($E21),0)) /SUM(I$10:I$11) -> 0 | J21: =IF(INDEX(PC_MAPPING,RIGHT($C15,1),MATCH($E$2,'Data by Building Type'!$D$22:$F$22,0))="Yes",1,0)* (J$10*OFFSET('Efficiency Distributions'!$D$10,MATCH($C15,'Efficiency Distributions'!$C$9:$C$87,0)+RIGHT($E21),0) +J$11*OFFSET('Efficiency Distributions'!$E$10,MATCH($C15,'Efficiency Distributions'!$C$9:$C$87,0)+RIGHT($E21),0)) /SUM(J$10:J$11) -> 0 | K21: =IF(INDEX(PC_MAPPING,RIGHT($C15,1),MATCH($E$2,'Data by Building Type'!$D$22:$F$22,0))="Yes",1,0)* (K$10*OFFSET('Efficiency Distributions'!$D$10,MATCH($C15,'Efficiency Distributions'!$C$9:$C$87,0)+RIGHT($E21),0) +K$11*OFFSET('Efficiency Distributions'!$E$10,MATCH($C15,'Efficiency Distributions'!$C$9:$C$87,0)+RIGHT($E21),0)) /SUM(K$10:K$11) -> 0 | L21: =IF(INDEX(PC_MAPPING,RIGHT($C15,1),MATCH($E$2,'Data by Building Type'!$D$22:$F$22,0))="Yes",1,0)* (L$10*OFFSET('Efficiency Distributions'!$D$10,MATCH($C15,'Efficiency Distributions'!$C$9:$C$87,0)+RIGHT($E21),0) +L$11*OFFSET('Efficiency Distributions'!$E$10,MATCH($C15,'Efficiency Distributions'!$C$9:$C$87,0)+RIGHT($E21),0)) /SUM(L$10:L$11) -> 0 | M21: =IF(INDEX(PC_MAPPING,RIGHT($C15,1),MATCH($E$2,'Data by Building Type'!$D$22:$F$22,0))="Yes",1,0)* (M$10*OFFSET('Efficiency Distributions'!$D$10,MATCH($C15,'Efficiency Distributions'!$C$9:$C$87,0)+RIGHT($E21),0) +M$11*OFFSET('Efficiency Distributions'!$E$10,MATCH($C15,'Efficiency Distributions'!$C$9:$C$87,0)+RIGHT($E21),0)) /SUM(M$10:M$11) -> 0 | N21: =IF(INDEX(PC_MAPPING,RIGHT($C15,1),MATCH($E$2,'Data by Building Type'!$D$22:$F$22,0))="Yes",1,0)* (N$10*OFFSET('Efficiency Distributions'!$D$10,MATCH($C15,'Efficiency Distributions'!$C$9:$C$87,0)+RIGHT($E21),0) +N$11*OFFSET('Efficiency Distributions'!$E$10,MATCH($C15,'Efficiency Distributions'!$C$9:$C$87,0)+RIGHT($E21),0)) /SUM(N$10:N$11) -> 0 | O21: =IF(INDEX(PC_MAPPING,RIGHT($C15,1),MATCH($E$2,'Data by Building Type'!$D$22:$F$22,0))="Yes",1,0)* (O$10*OFFSET('Efficiency Distributions'!$D$10,MATCH($C15,'Efficiency Distributions'!$C$9:$C$87,0)+RIGHT($E21),0) +O$11*OFFSET('Efficiency Distributions'!$E$10,MATCH($C15,'Efficiency Distributions'!$C$9:$C$87,0)+RIGHT($E21),0)) /SUM(O$10:O$11) -> 0 | P21: =IF(INDEX(PC_MAPPING,RIGHT($C15,1),MATCH($E$2,'Data by Building Type'!$D$22:$F$22,0))="Yes",1,0)* (P$10*OFFSET('Efficiency Distributions'!$D$10,MATCH($C15,'Efficiency Distributions'!$C$9:$C$87,0)+RIGHT($E21),0) +P$11*OFFSET('Efficiency Distributions'!$E$10,MATCH($C15,'Efficiency Distributions'!$C$9:$C$87,0)+RIGHT($E21),0)) /SUM(P$10:P$11) -> 0 | Q21: =IF(INDEX(PC_MAPPING,RIGHT($C15,1),MATCH($E$2,'Data by Building Type'!$D$22:$F$22,0))="Yes",1,0)* (Q$10*OFFSET('Efficiency Distributions'!$D$10,MATCH($C15,'Efficiency Distributions'!$C$9:$C$87,0)+RIGHT($E21),0) +Q$11*OFFSET('Efficiency Distributions'!$E$10,MATCH($C15,'Efficiency Distributions'!$C$9:$C$87,0)+RIGHT($E21),0)) /SUM(Q$10:Q$11) -> 0 | R21: =IF(INDEX(PC_MAPPING,RIGHT($C15,1),MATCH($E$2,'Data by Building Type'!$D$22:$F$22,0))="Yes",1,0)* (R$10*OFFSET('Efficiency Distributions'!$D$10,MATCH($C15,'Efficiency Distributions'!$C$9:$C$87,0)+RIGHT($E21),0) +R$11*OFFSET('Efficiency Distributions'!$E$10,MATCH($C15,'Efficiency Distributions'!$C$9:$C$87,0)+RIGHT($E21),0)) /SUM(R$10:R$11) -> 0 | S21: =IF(INDEX(PC_MAPPING,RIGHT($C15,1),MATCH($E$2,'Data by Building Type'!$D$22:$F$22,0))="Yes",1,0)* (S$10*OFFSET('Efficiency Distributions'!$D$10,MATCH($C15,'Efficiency Distributions'!$C$9:$C$87,0)+RIGHT($E21),0) +S$11*OFFSET('Efficiency Distributions'!$E$10,MATCH($C15,'Efficiency Distributions'!$C$9:$C$87,0)+RIGHT($E21),0)) /SUM(S$10:S$11) -> 0 | T21: =IF(INDEX(PC_MAPPING,RIGHT($C15,1),MATCH($E$2,'Data by Building Type'!$D$22:$F$22,0))="Yes",1,0)* (T$10*OFFSET('Efficiency Distributions'!$D$10,MATCH($C15,'Efficiency Distributions'!$C$9:$C$87,0)+RIGHT($E21),0) +T$11*OFFSET('Efficiency Distributions'!$E$10,MATCH($C15,'Efficiency Distributions'!$C$9:$C$87,0)+RIGHT($E21),0)) /SUM(T$10:T$11) -> 0 | U21: =IF(INDEX(PC_MAPPING,RIGHT($C15,1),MATCH($E$2,'Data by Building Type'!$D$22:$F$22,0))="Yes",1,0)* (U$10*OFFSET('Efficiency Distributions'!$D$10,MATCH($C15,'Efficiency Distributions'!$C$9:$C$87,0)+RIGHT($E21),0) +U$11*OFFSET('Efficiency Distributions'!$E$10,MATCH($C15,'Efficiency Distributions'!$C$9:$C$87,0)+RIGHT($E21),0)) /SUM(U$10:U$11) -> 0 | V21: =IF(INDEX(PC_MAPPING,RIGHT($C15,1),MATCH($E$2,'Data by Building Type'!$D$22:$F$22,0))="Yes",1,0)* (V$10*OFFSET('Efficiency Distributions'!$D$10,MATCH($C15,'Efficiency Distributions'!$C$9:$C$87,0)+RIGHT($E21),0) +V$11*OFFSET('Efficiency Distributions'!$E$10,MATCH($C15,'Efficiency Distributions'!$C$9:$C$87,0)+RIGHT($E21),0)) /SUM(V$10:V$11) -> 0 | W21: =IF(INDEX(PC_MAPPING,RIGHT($C15,1),MATCH($E$2,'Data by Building Type'!$D$22:$F$22,0))="Yes",1,0)* (W$10*OFFSET('Efficiency Distributions'!$D$10,MATCH($C15,'Efficiency Distributions'!$C$9:$C$87,0)+RIGHT($E21),0) +W$11*OFFSET('Efficiency Distributions'!$E$10,MATCH($C15,'Efficiency Distributions'!$C$9:$C$87,0)+RIGHT($E21),0)) /SUM(W$10:W$11) -> 0 | X21: =IF(INDEX(PC_MAPPING,RIGHT($C15,1),MATCH($E$2,'Data by Building Type'!$D$22:$F$22,0))="Yes",1,0)* (X$10*OFFSET('Efficiency Distributions'!$D$10,MATCH($C15,'Efficiency Distributions'!$C$9:$C$87,0)+RIGHT($E21),0) +X$11*OFFSET('Efficiency Distributions'!$E$10,MATCH($C15,'Efficiency Distributions'!$C$9:$C$87,0)+RIGHT($E21),0)) /SUM(X$10:X$11) -> 0 | Y21: =IF(INDEX(PC_MAPPING,RIGHT($C15,1),MATCH($E$2,'Data by Building Type'!$D$22:$F$22,0))="Yes",1,0)* (Y$10*OFFSET('Efficiency Distributions'!$D$10,MATCH($C15,'Efficiency Distributions'!$C$9:$C$87,0)+RIGHT($E21),0) +Y$11*OFFSET('Efficiency Distributions'!$E$10,MATCH($C15,'Efficiency Distributions'!$C$9:$C$87,0)+RIGHT($E21),0)) /SUM(Y$10:Y$11) -> 0 | Z21: =IF(INDEX(PC_MAPPING,RIGHT($C15,1),MATCH($E$2,'Data by Building Type'!$D$22:$F$22,0))="Yes",1,0)* (Z$10*OFFSET('Efficiency Distributions'!$D$10,MATCH($C15,'Efficiency Distributions'!$C$9:$C$87,0)+RIGHT($E21),0) +Z$11*OFFSET('Efficiency Distributions'!$E$10,MATCH($C15,'Efficiency Distributions'!$C$9:$C$87,0)+RIGHT($E21),0)) /SUM(Z$10:Z$11) -> 0 | AA21: =IF(INDEX(PC_MAPPING,RIGHT($C15,1),MATCH($E$2,'Data by Building Type'!$D$22:$F$22,0))="Yes",1,0)* (AA$10*OFFSET('Efficiency Distributions'!$D$10,MATCH($C15,'Efficiency Distributions'!$C$9:$C$87,0)+RIGHT($E21),0) +AA$11*OFFSET('Efficiency Distributions'!$E$10,MATCH($C15,'Efficiency Distributions'!$C$9:$C$87,0)+RIGHT($E21),0)) /SUM(AA$10:AA$11) -> 0 | AB21: =IF(INDEX(PC_MAPPING,RIGHT($C15,1),MATCH($E$2,'Data by Building Type'!$D$22:$F$22,0))="Yes",1,0)* (AB$10*OFFSET('Efficiency Distributions'!$D$10,MATCH($C15,'Efficiency Distributions'!$C$9:$C$87,0)+RIGHT($E21),0) +AB$11*OFFSET('Efficiency Distributions'!$E$10,MATCH($C15,'Efficiency Distributions'!$C$9:$C$87,0)+RIGHT($E21),0)) /SUM(AB$10:AB$11) -> 0 | AC21: =IF(INDEX(PC_MAPPING,RIGHT($C15,1),MATCH($E$2,'Data by Building Type'!$D$22:$F$22,0))="Yes",1,0)* (AC$10*OFFSET('Efficiency Distributions'!$D$10,MATCH($C15,'Efficiency Distributions'!$C$9:$C$87,0)+RIGHT($E21),0) +AC$11*OFFSET('Efficiency Distributions'!$E$10,MATCH($C15,'Efficiency Distributions'!$C$9:$C$87,0)+RIGHT($E21),0)) /SUM(AC$10:AC$11) -> 0 | AD21: =IF(INDEX(PC_MAPPING,RIGHT($C15,1),MATCH($E$2,'Data by Building Type'!$D$22:$F$22,0))="Yes",1,0)* (AD$10*OFFSET('Efficiency Distributions'!$D$10,MATCH($C15,'Efficiency Distributions'!$C$9:$C$87,0)+RIGHT($E21),0) +AD$11*OFFSET('Efficiency Distributions'!$E$10,MATCH($C15,'Efficiency Distributions'!$C$9:$C$87,0)+RIGHT($E21),0)) /SUM(AD$10:AD$11) -> 0 | AE21: =IF(INDEX(PC_MAPPING,RIGHT($C15,1),MATCH($E$2,'Data by Building Type'!$D$22:$F$22,0))="Yes",1,0)* (AE$10*OFFSET('Efficiency Distributions'!$D$10,MATCH($C15,'Efficiency Distributions'!$C$9:$C$87,0)+RIGHT($E21),0) +AE$11*OFFSET('Efficiency Distributions'!$E$10,MATCH($C15,'Efficiency Distributions'!$C$9:$C$87,0)+RIGHT($E21),0)) /SUM(AE$10:AE$11) -> 0 | AF21: =IF(INDEX(PC_MAPPING,RIGHT($C15,1),MATCH($E$2,'Data by Building Type'!$D$22:$F$22,0))="Yes",1,0)* (AF$10*OFFSET('Efficiency Distributions'!$D$10,MATCH($C15,'Efficiency Distributions'!$C$9:$C$87,0)+RIGHT($E21),0) +AF$11*OFFSET('Efficiency Distributions'!$E$10,MATCH($C15,'Efficiency Distributions'!$C$9:$C$87,0)+RIGHT($E21),0)) /SUM(AF$10:AF$11) -> 0 | AG21: =IF(INDEX(PC_MAPPING,RIGHT($C15,1),MATCH($E$2,'Data by Building Type'!$D$22:$F$22,0))="Yes",1,0)* (AG$10*OFFSET('Efficiency Distributions'!$D$10,MATCH($C15,'Efficiency Distributions'!$C$9:$C$87,0)+RIGHT($E21),0) +AG$11*OFFSET('Efficiency Distributions'!$E$10,MATCH($C15,'Efficiency Distributions'!$C$9:$C$87,0)+RIGHT($E21),0)) /SUM(AG$10:AG$11) -> 0 | AH21: =IF(INDEX(PC_MAPPING,RIGHT($C15,1),MATCH($E$2,'Data by Building Type'!$D$22:$F$22,0))="Yes",1,0)* (AH$10*OFFSET('Efficiency Distributions'!$D$10,MATCH($C15,'Efficiency Distributions'!$C$9:$C$87,0)+RIGHT($E21),0) +AH$11*OFFSET('Efficiency Distributions'!$E$10,MATCH($C15,'Efficiency Distributions'!$C$9:$C$87,0)+RIGHT($E21),0)) /SUM(AH$10:AH$11) -> 0 | AI21: =IF(INDEX(PC_MAPPING,RIGHT($C15,1),MATCH($E$2,'Data by Building Type'!$D$22:$F$22,0))="Yes",1,0)* (AI$10*OFFSET('Efficiency Distributions'!$D$10,MATCH($C15,'Efficiency Distributions'!$C$9:$C$87,0)+RIGHT($E21),0) +AI$11*OFFSET('Efficiency Distributions'!$E$10,MATCH($C15,'Efficiency Distributions'!$C$9:$C$87,0)+RIGHT($E21),0)) /SUM(AI$10:AI$11) -> 0 | AJ21: =IF(INDEX(PC_MAPPING,RIGHT($C15,1),MATCH($E$2,'Data by Building Type'!$D$22:$F$22,0))="Yes",1,0)* (AJ$10*OFFSET('Efficiency Distributions'!$D$10,MATCH($C15,'Efficiency Distributions'!$C$9:$C$87,0)+RIGHT($E21),0) +AJ$11*OFFSET('Efficiency Distributions'!$E$10,MATCH($C15,'Efficiency Distributions'!$C$9:$C$87,0)+RIGHT($E21),0)) /SUM(AJ$10:AJ$11) -> 0 | AK21: =IF(INDEX(PC_MAPPING,RIGHT($C15,1),MATCH($E$2,'Data by Building Type'!$D$22:$F$22,0))="Yes",1,0)* (AK$10*OFFSET('Efficiency Distributions'!$D$10,MATCH($C15,'Efficiency Distributions'!$C$9:$C$87,0)+RIGHT($E21),0) +AK$11*OFFSET('Efficiency Distributions'!$E$10,MATCH($C15,'Efficiency Distributions'!$C$9:$C$87,0)+RIGHT($E21),0)) /SUM(AK$10:AK$11) -> 0 | AL21: =IF(INDEX(PC_MAPPING,RIGHT($C15,1),MATCH($E$2,'Data by Building Type'!$D$22:$F$22,0))="Yes",1,0)* (AL$10*OFFSET('Efficiency Distributions'!$D$10,MATCH($C15,'Efficiency Distributions'!$C$9:$C$87,0)+RIGHT($E21),0) +AL$11*OFFSET('Efficiency Distributions'!$E$10,MATCH($C15,'Efficiency Distributions'!$C$9:$C$87,0)+RIGHT($E21),0)) /SUM(AL$10:AL$11) -> 0 | AM21: =IF(INDEX(PC_MAPPING,RIGHT($C15,1),MATCH($E$2,'Data by Building Type'!$D$22:$F$22,0))="Yes",1,0)* (AM$10*OFFSET('Efficiency Distributions'!$D$10,MATCH($C15,'Efficiency Distributions'!$C$9:$C$87,0)+RIGHT($E21),0) +AM$11*OFFSET('Efficiency Distributions'!$E$10,MATCH($C15,'Efficiency Distributions'!$C$9:$C$87,0)+RIGHT($E21),0)) /SUM(AM$10:AM$11) -> 0 | AN21: =IF(INDEX(PC_MAPPING,RIGHT($C15,1),MATCH($E$2,'Data by Building Type'!$D$22:$F$22,0))="Yes",1,0)* (AN$10*OFFSET('Efficiency Distributions'!$D$10,MATCH($C15,'Efficiency Distributions'!$C$9:$C$87,0)+RIGHT($E21),0) +AN$11*OFFSET('Efficiency Distributions'!$E$10,MATCH($C15,'Efficiency Distributions'!$C$9:$C$87,0)+RIGHT($E21),0)) /SUM(AN$10:AN$11) -> 0 | AO21: =IF(INDEX(PC_MAPPING,RIGHT($C15,1),MATCH($E$2,'Data by Building Type'!$D$22:$F$22,0))="Yes",1,0)* (AO$10*OFFSET('Efficiency Distributions'!$D$10,MATCH($C15,'Efficiency Distributions'!$C$9:$C$87,0)+RIGHT($E21),0) +AO$11*OFFSET('Efficiency Distributions'!$E$10,MATCH($C15,'Efficiency Distributions'!$C$9:$C$87,0)+RIGHT($E21),0)) /SUM(AO$10:AO$11) -> 0 | AP21: =IF(INDEX(PC_MAPPING,RIGHT($C15,1),MATCH($E$2,'Data by Building Type'!$D$22:$F$22,0))="Yes",1,0)* (AP$10*OFFSET('Efficiency Distributions'!$D$10,MATCH($C15,'Efficiency Distributions'!$C$9:$C$87,0)+RIGHT($E21),0) +AP$11*OFFSET('Efficiency Distributions'!$E$10,MATCH($C15,'Efficiency Distributions'!$C$9:$C$87,0)+RIGHT($E21),0)) /SUM(AP$10:AP$11) -> 0 | AQ21: =IF(INDEX(PC_MAPPING,RIGHT($C15,1),MATCH($E$2,'Data by Building Type'!$D$22:$F$22,0))="Yes",1,0)* (AQ$10*OFFSET('Efficiency Distributions'!$D$10,MATCH($C15,'Efficiency Distributions'!$C$9:$C$87,0)+RIGHT($E21),0) +AQ$11*OFFSET('Efficiency Distributions'!$E$10,MATCH($C15,'Efficiency Distributions'!$C$9:$C$87,0)+RIGHT($E21),0)) /SUM(AQ$10:AQ$11) -> 0 | AR21: =IF(INDEX(PC_MAPPING,RIGHT($C15,1),MATCH($E$2,'Data by Building Type'!$D$22:$F$22,0))="Yes",1,0)* (AR$10*OFFSET('Efficiency Distributions'!$D$10,MATCH($C15,'Efficiency Distributions'!$C$9:$C$87,0)+RIGHT($E21),0) +AR$11*OFFSET('Efficiency Distributions'!$E$10,MATCH($C15,'Efficiency Distributions'!$C$9:$C$87,0)+RIGHT($E21),0)) /SUM(AR$10:AR$11) -> 0 | AS21: =IF(INDEX(PC_MAPPING,RIGHT($C15,1),MATCH($E$2,'Data by Building Type'!$D$22:$F$22,0))="Yes",1,0)* (AS$10*OFFSET('Efficiency Distributions'!$D$10,MATCH($C15,'Efficiency Distributions'!$C$9:$C$87,0)+RIGHT($E21),0) +AS$11*OFFSET('Efficiency Distributions'!$E$10,MATCH($C15,'Efficiency Distributions'!$C$9:$C$87,0)+RIGHT($E21),0)) /SUM(AS$10:AS$11) -> 0 | AT21: =IF(INDEX(PC_MAPPING,RIGHT($C15,1),MATCH($E$2,'Data by Building Type'!$D$22:$F$22,0))="Yes",1,0)* (AT$10*OFFSET('Efficiency Distributions'!$D$10,MATCH($C15,'Efficiency Distributions'!$C$9:$C$87,0)+RIGHT($E21),0) +AT$11*OFFSET('Efficiency Distributions'!$E$10,MATCH($C15,'Efficiency Distributions'!$C$9:$C$87,0)+RIGHT($E21),0)) /SUM(AT$10:AT$11) -> 0 | AU21: =IF(INDEX(PC_MAPPING,RIGHT($C15,1),MATCH($E$2,'Data by Building Type'!$D$22:$F$22,0))="Yes",1,0)* (AU$10*OFFSET('Efficiency Distributions'!$D$10,MATCH($C15,'Efficiency Distributions'!$C$9:$C$87,0)+RIGHT($E21),0) +AU$11*OFFSET('Efficiency Distributions'!$E$10,MATCH($C15,'Efficiency Distributions'!$C$9:$C$87,0)+RIGHT($E21),0)) /SUM(AU$10:AU$11) -> 0 | AV21: =IF(INDEX(PC_MAPPING,RIGHT($C15,1),MATCH($E$2,'Data by Building Type'!$D$22:$F$22,0))="Yes",1,0)* (AV$10*OFFSET('Efficiency Distributions'!$D$10,MATCH($C15,'Efficiency Distributions'!$C$9:$C$87,0)+RIGHT($E21),0) +AV$11*OFFSET('Efficiency Distributions'!$E$10,MATCH($C15,'Efficiency Distributions'!$C$9:$C$87,0)+RIGHT($E21),0)) /SUM(AV$10:AV$11) -> 0 | AW21: =IF(INDEX(PC_MAPPING,RIGHT($C15,1),MATCH($E$2,'Data by Building Type'!$D$22:$F$22,0))="Yes",1,0)* (AW$10*OFFSET('Efficiency Distributions'!$D$10,MATCH($C15,'Efficiency Distributions'!$C$9:$C$87,0)+RIGHT($E21),0) +AW$11*OFFSET('Efficiency Distributions'!$E$10,MATCH($C15,'Efficiency Distributions'!$C$9:$C$87,0)+RIGHT($E21),0)) /SUM(AW$10:AW$11) -> 0 | AX21: =IF(INDEX(PC_MAPPING,RIGHT($C15,1),MATCH($E$2,'Data by Building Type'!$D$22:$F$22,0))="Yes",1,0)* (AX$10*OFFSET('Efficiency Distributions'!$D$10,MATCH($C15,'Efficiency Distributions'!$C$9:$C$87,0)+RIGHT($E21),0) +AX$11*OFFSET('Efficiency Distributions'!$E$10,MATCH($C15,'Efficiency Distributions'!$C$9:$C$87,0)+RIGHT($E21),0)) /SUM(AX$10:AX$11) -> 0 | AY21: =IF(INDEX(PC_MAPPING,RIGHT($C15,1),MATCH($E$2,'Data by Building Type'!$D$22:$F$22,0))="Yes",1,0)* (AY$10*OFFSET('Efficiency Distributions'!$D$10,MATCH($C15,'Efficiency Distributions'!$C$9:$C$87,0)+RIGHT($E21),0) +AY$11*OFFSET('Efficiency Distributions'!$E$10,MATCH($C15,'Efficiency Distributions'!$C$9:$C$87,0)+RIGHT($E21),0)) /SUM(AY$10:AY$11) -> 0 | AZ21: =IF(INDEX(PC_MAPPING,RIGHT($C15,1),MATCH($E$2,'Data by Building Type'!$D$22:$F$22,0))="Yes",1,0)* (AZ$10*OFFSET('Efficiency Distributions'!$D$10,MATCH($C15,'Efficiency Distributions'!$C$9:$C$87,0)+RIGHT($E21),0) +AZ$11*OFFSET('Efficiency Distributions'!$E$10,MATCH($C15,'Efficiency Distributions'!$C$9:$C$87,0)+RIGHT($E21),0)) /SUM(AZ$10:AZ$11) -> 0 | BA21: =IF(INDEX(PC_MAPPING,RIGHT($C15,1),MATCH($E$2,'Data by Building Type'!$D$22:$F$22,0))="Yes",1,0)* (BA$10*OFFSET('Efficiency Distributions'!$D$10,MATCH($C15,'Efficiency Distributions'!$C$9:$C$87,0)+RIGHT($E21),0) +BA$11*OFFSET('Efficiency Distributions'!$E$10,MATCH($C15,'Efficiency Distributions'!$C$9:$C$87,0)+RIGHT($E21),0)) /SUM(BA$10:BA$11) -> 0 | BB21: =IF(INDEX(PC_MAPPING,RIGHT($C15,1),MATCH($E$2,'Data by Building Type'!$D$22:$F$22,0))="Yes",1,0)* (BB$10*OFFSET('Efficiency Distributions'!$D$10,MATCH($C15,'Efficiency Distributions'!$C$9:$C$87,0)+RIGHT($E21),0) +BB$11*OFFSET('Efficiency Distributions'!$E$10,MATCH($C15,'Efficiency Distributions'!$C$9:$C$87,0)+RIGHT($E21),0)) /SUM(BB$10:BB$11) -> 0 | BC21: =IF(INDEX(PC_MAPPING,RIGHT($C15,1),MATCH($E$2,'Data by Building Type'!$D$22:$F$22,0))="Yes",1,0)* (BC$10*OFFSET('Efficiency Distributions'!$D$10,MATCH($C15,'Efficiency Distributions'!$C$9:$C$87,0)+RIGHT($E21),0) +BC$11*OFFSET('Efficiency Distributions'!$E$10,MATCH($C15,'Efficiency Distributions'!$C$9:$C$87,0)+RIGHT($E21),0)) /SUM(BC$10:BC$11) -> 0 | BD21: =IF(INDEX(PC_MAPPING,RIGHT($C15,1),MATCH($E$2,'Data by Building Type'!$D$22:$F$22,0))="Yes",1,0)* (BD$10*OFFSET('Efficiency Distributions'!$D$10,MATCH($C15,'Efficiency Distributions'!$C$9:$C$87,0)+RIGHT($E21),0) +BD$11*OFFSET('Efficiency Distributions'!$E$10,MATCH($C15,'Efficiency Distributions'!$C$9:$C$87,0)+RIGHT($E21),0)) /SUM(BD$10:BD$11) -> 0 | BE21: =IF(INDEX(PC_MAPPING,RIGHT($C15,1),MATCH($E$2,'Data by Building Type'!$D$22:$F$22,0))="Yes",1,0)* (BE$10*OFFSET('Efficiency Distributions'!$D$10,MATCH($C15,'Efficiency Distributions'!$C$9:$C$87,0)+RIGHT($E21),0) +BE$11*OFFSET('Efficiency Distributions'!$E$10,MATCH($C15,'Efficiency Distributions'!$C$9:$C$87,0)+RIGHT($E21),0)) /SUM(BE$10:BE$11) -> 0 | BF21: =IF(INDEX(PC_MAPPING,RIGHT($C15,1),MATCH($E$2,'Data by Building Type'!$D$22:$F$22,0))="Yes",1,0)* (BF$10*OFFSET('Efficiency Distributions'!$D$10,MATCH($C15,'Efficiency Distributions'!$C$9:$C$87,0)+RIGHT($E21),0) +BF$11*OFFSET('Efficiency Distributions'!$E$10,MATCH($C15,'Efficiency Distributions'!$C$9:$C$87,0)+RIGHT($E21),0)) /SUM(BF$10:BF$11) -> 0 | BG21: =IF(INDEX(PC_MAPPING,RIGHT($C15,1),MATCH($E$2,'Data by Building Type'!$D$22:$F$22,0))="Yes",1,0)* (BG$10*OFFSET('Efficiency Distributions'!$D$10,MATCH($C15,'Efficiency Distributions'!$C$9:$C$87,0)+RIGHT($E21),0) +BG$11*OFFSET('Efficiency Distributions'!$E$10,MATCH($C15,'Efficiency Distributions'!$C$9:$C$87,0)+RIGHT($E21),0)) /SUM(BG$10:BG$11) -> 0
E22: EL3 | F22: =IF(INDEX(PC_MAPPING,RIGHT($C15,1),MATCH($E$2,'Data by Building Type'!$D$22:$F$22,0))="Yes",1,0)* (F$10*OFFSET('Efficiency Distributions'!$D$10,MATCH($C15,'Efficiency Distributions'!$C$9:$C$87,0)+RIGHT($E22),0) +F$11*OFFSET('Efficiency Distributions'!$E$10,MATCH($C15,'Efficiency Distributions'!$C$9:$C$87,0)+RIGHT($E22),0)) /SUM(F$10:F$11) -> 0.1113367249 | G22: =IF(INDEX(PC_MAPPING,RIGHT($C15,1),MATCH($E$2,'Data by Building Type'!$D$22:$F$22,0))="Yes",1,0)* (G$10*OFFSET('Efficiency Distributions'!$D$10,MATCH($C15,'Efficiency Distributions'!$C$9:$C$87,0)+RIGHT($E22),0) +G$11*OFFSET('Efficiency Distributions'!$E$10,MATCH($C15,'Efficiency Distributions'!$C$9:$C$87,0)+RIGHT($E22),0)) /SUM(G$10:G$11) -> 0.1166652303 | H22: =IF(INDEX(PC_MAPPING,RIGHT($C15,1),MATCH($E$2,'Data by Building Type'!$D$22:$F$22,0))="Yes",1,0)* (H$10*OFFSET('Efficiency Distributions'!$D$10,MATCH($C15,'Efficiency Distributions'!$C$9:$C$87,0)+RIGHT($E22),0) +H$11*OFFSET('Efficiency Distributions'!$E$10,MATCH($C15,'Efficiency Distributions'!$C$9:$C$87,0)+RIGHT($E22),0)) /SUM(H$10:H$11) -> 0.1102910193 | I22: =IF(INDEX(PC_MAPPING,RIGHT($C15,1),MATCH($E$2,'Data by Building Type'!$D$22:$F$22,0))="Yes",1,0)* (I$10*OFFSET('Efficiency Distributions'!$D$10,MATCH($C15,'Efficiency Distributions'!$C$9:$C$87,0)+RIGHT($E22),0) +I$11*OFFSET('Efficiency Distributions'!$E$10,MATCH($C15,'Efficiency Distributions'!$C$9:$C$87,0)+RIGHT($E22),0)) /SUM(I$10:I$11) -> 0.1114798436 | J22: =IF(INDEX(PC_MAPPING,RIGHT($C15,1),MATCH($E$2,'Data by Building Type'!$D$22:$F$22,0))="Yes",1,0)* (J$10*OFFSET('Efficiency Distributions'!$D$10,MATCH($C15,'Efficiency Distributions'!$C$9:$C$87,0)+RIGHT($E22),0) +J$11*OFFSET('Efficiency Distributions'!$E$10,MATCH($C15,'Efficiency Distributions'!$C$9:$C$87,0)+RIGHT($E22),0)) /SUM(J$10:J$11) -> 0.1122159022 | K22: =IF(INDEX(PC_MAPPING,RIGHT($C15,1),MATCH($E$2,'Data by Building Type'!$D$22:$F$22,0))="Yes",1,0)* (K$10*OFFSET('Efficiency Distributions'!$D$10,MATCH($C15,'Efficiency Distributions'!$C$9:$C$87,0)+RIGHT($E22),0) +K$11*OFFSET('Efficiency Distributions'!$E$10,MATCH($C15,'Efficiency Distributions'!$C$9:$C$87,0)+RIGHT($E22),0)) /SUM(K$10:K$11) -> 0.1110008728 | L22: =IF(INDEX(PC_MAPPING,RIGHT($C15,1),MATCH($E$2,'Data by Building Type'!$D$22:$F$22,0))="Yes",1,0)* (L$10*OFFSET('Efficiency Distributions'!$D$10,MATCH($C15,'Efficiency Distributions'!$C$9:$C$87,0)+RIGHT($E22),0) +L$11*OFFSET('Efficiency Distributions'!$E$10,MATCH($C15,'Efficiency Distributions'!$C$9:$C$87,0)+RIGHT($E22),0)) /SUM(L$10:L$11) -> 0.110905275 | M22: =IF(INDEX(PC_MAPPING,RIGHT($C15,1),MATCH($E$2,'Data by Building Type'!$D$22:$F$22,0))="Yes",1,0)* (M$10*OFFSET('Efficiency Distributions'!$D$10,MATCH($C15,'Efficiency Distributions'!$C$9:$C$87,0)+RIGHT($E22),0) +M$11*OFFSET('Efficiency Distributions'!$E$10,MATCH($C15,'Efficiency Distributions'!$C$9:$C$87,0)+RIGHT($E22),0)) /SUM(M$10:M$11) -> 0.1092773438 | N22: =IF(INDEX(PC_MAPPING,RIGHT($C15,1),MATCH($E$2,'Data by Building Type'!$D$22:$F$22,0))="Yes",1,0)* (N$10*OFFSET('Efficiency Distributions'!$D$10,MATCH($C15,'Efficiency Distributions'!$C$9:$C$87,0)+RIGHT($E22),0) +N$11*OFFSET('Efficiency Distributions'!$E$10,MATCH($C15,'Efficiency Distributions'!$C$9:$C$87,0)+RIGHT($E22),0)) /SUM(N$10:N$11) -> 0.1055625594 | O22: =IF(INDEX(PC_MAPPING,RIGHT($C15,1),MATCH($E$2,'Data by Building Type'!$D$22:$F$22,0))="Yes",1,0)* (O$10*OFFSET('Efficiency Distributions'!$D$10,MATCH($C15,'Efficiency Distributions'!$C$9:$C$87,0)+RIGHT($E22),0) +O$11*OFFSET('Efficiency Distributions'!$E$10,MATCH($C15,'Efficiency Distributions'!$C$9:$C$87,0)+RIGHT($E22),0)) /SUM(O$10:O$11) -> 0.1030311148 | P22: =IF(INDEX(PC_MAPPING,RIGHT($C15,1),MATCH($E$2,'Data by Building Type'!$D$22:$F$22,0))="Yes",1,0)* (P$10*OFFSET('Efficiency Distributions'!$D$10,MATCH($C15,'Efficiency Distributions'!$C$9:$C$87,0)+RIGHT($E22),0) +P$11*OFFSET('Efficiency Distributions'!$E$10,MATCH($C15,'Efficiency Distributions'!$C$9:$C$87,0)+RIGHT($E22),0)) /SUM(P$10:P$11) -> 0.1056118058 | Q22: =IF(INDEX(PC_MAPPING,RIGHT($C15,1),MATCH($E$2,'Data by Building Type'!$D$22:$F$22,0))="Yes",1,0)* (Q$10*OFFSET('Efficiency Distributions'!$D$10,MATCH($C15,'Efficiency Distributions'!$C$9:$C$87,0)+RIGHT($E22),0) +Q$11*OFFSET('Efficiency Distributions'!$E$10,MATCH($C15,'Efficiency Distributions'!$C$9:$C$87,0)+RIGHT($E22),0)) /SUM(Q$10:Q$11) -> 0.1013672152 | R22: =IF(INDEX(PC_MAPPING,RIGHT($C15,1),MATCH($E$2,'Data by Building Type'!$D$22:$F$22,0))="Yes",1,0)* (R$10*OFFSET('Efficiency Distributions'!$D$10,MATCH($C15,'Efficiency Distributions'!$C$9:$C$87,0)+RIGHT($E22),0) +R$11*OFFSET('Efficiency Distributions'!$E$10,MATCH($C15,'Efficiency Distributions'!$C$9:$C$87,0)+RIGHT($E22),0)) /SUM(R$10:R$11) -> 0.1130267725 | S22: =IF(INDEX(PC_MAPPING,RIGHT($C15,1),MATCH($E$2,'Data by Building Type'!$D$22:$F$22,0))="Yes",1,0)* (S$10*OFFSET('Efficiency Distributions'!$D$10,MATCH($C15,'Efficiency Distributions'!$C$9:$C$87,0)+RIGHT($E22),0) +S$11*OFFSET('Efficiency Distributions'!$E$10,MATCH($C15,'Efficiency Distributions'!$C$9:$C$87,0)+RIGHT($E22),0)) /SUM(S$10:S$11) -> 0.111852434 | T22: =IF(INDEX(PC_MAPPING,RIGHT($C15,1),MATCH($E$2,'Data by Building Type'!$D$22:$F$22,0))="Yes",1,0)* (T$10*OFFSET('Efficiency Distributions'!$D$10,MATCH($C15,'Efficiency Distributions'!$C$9:$C$87,0)+RIGHT($E22),0) +T$11*OFFSET('Efficiency Distributions'!$E$10,MATCH($C15,'Efficiency Distributions'!$C$9:$C$87,0)+RIGHT($E22),0)) /SUM(T$10:T$11) -> 0.1161795353 | U22: =IF(INDEX(PC_MAPPING,RIGHT($C15,1),MATCH($E$2,'Data by Building Type'!$D$22:$F$22,0))="Yes",1,0)* (U$10*OFFSET('Efficiency Distributions'!$D$10,MATCH($C15,'Efficiency Distributions'!$C$9:$C$87,0)+RIGHT($E22),0) +U$11*OFFSET('Efficiency Distributions'!$E$10,MATCH($C15,'Efficiency Distributions'!$C$9:$C$87,0)+RIGHT($E22),0)) /SUM(U$10:U$11) -> 0.1155561576 | V22: =IF(INDEX(PC_MAPPING,RIGHT($C15,1),MATCH($E$2,'Data by Building Type'!$D$22:$F$22,0))="Yes",1,0)* (V$10*OFFSET('Efficiency Distributions'!$D$10,MATCH($C15,'Efficiency Distributions'!$C$9:$C$87,0)+RIGHT($E22),0) +V$11*OFFSET('Efficiency Distributions'!$E$10,MATCH($C15,'Efficiency Distributions'!$C$9:$C$87,0)+RIGHT($E22),0)) /SUM(V$10:V$11) -> 0.1164781097 | W22: =IF(INDEX(PC_MAPPING,RIGHT($C15,1),MATCH($E$2,'Data by Building Type'!$D$22:$F$22,0))="Yes",1,0)* (W$10*OFFSET('Efficiency Distributions'!$D$10,MATCH($C15,'Efficiency Distributions'!$C$9:$C$87,0)+RIGHT($E22),0) +W$11*OFFSET('Efficiency Distributions'!$E$10,MATCH($C15,'Efficiency Distributions'!$C$9:$C$87,0)+RIGHT($E22),0)) /SUM(W$10:W$11) -> 0.116036026 | X22: =IF(INDEX(PC_MAPPING,RIGHT($C15,1),MATCH($E$2,'Data by Building Type'!$D$22:$F$22,0))="Yes",1,0)* (X$10*OFFSET('Efficiency Distributions'!$D$10,MATCH($C15,'Efficiency Distributions'!$C$9:$C$87,0)+RIGHT($E22),0) +X$11*OFFSET('Efficiency Distributions'!$E$10,MATCH($C15,'Efficiency Distributions'!$C$9:$C$87,0)+RIGHT($E22),0)) /SUM(X$10:X$11) -> 0.1174552168 | Y22: =IF(INDEX(PC_MAPPING,RIGHT($C15,1),MATCH($E$2,'Data by Building Type'!$D$22:$F$22,0))="Yes",1,0)* (Y$10*OFFSET('Efficiency Distributions'!$D$10,MATCH($C15,'Efficiency Distributions'!$C$9:$C$87,0)+RIGHT($E22),0) +Y$11*OFFSET('Efficiency Distributions'!$E$10,MATCH($C15,'Efficiency Distributions'!$C$9:$C$87,0)+RIGHT($E22),0)) /SUM(Y$10:Y$11) -> 0.1209080393 | Z22: =IF(INDEX(PC_MAPPING,RIGHT($C15,1),MATCH($E$2,'Data by Building Type'!$D$22:$F$22,0))="Yes",1,0)* (Z$10*OFFSET('Efficiency Distributions'!$D$10,MATCH($C15,'Efficiency Distributions'!$C$9:$C$87,0)+RIGHT($E22),0) +Z$11*OFFSET('Efficiency Distributions'!$E$10,MATCH($C15,'Efficiency Distributions'!$C$9:$C$87,0)+RIGHT($E22),0)) /SUM(Z$10:Z$11) -> 0.1209663467 | AA22: =IF(INDEX(PC_MAPPING,RIGHT($C15,1),MATCH($E$2,'Data by Building Type'!$D$22:$F$22,0))="Yes",1,0)* (AA$10*OFFSET('Efficiency Distributions'!$D$10,MATCH($C15,'Efficiency Distributions'!$C$9:$C$87,0)+RIGHT($E22),0) +AA$11*OFFSET('Efficiency Distributions'!$E$10,MATCH($C15,'Efficiency Distributions'!$C$9:$C$87,0)+RIGHT($E22),0)) /SUM(AA$10:AA$11) -> 0.1204314463 | AB22: =IF(INDEX(PC_MAPPING,RIGHT($C15,1),MATCH($E$2,'Data by Building Type'!$D$22:$F$22,0))="Yes",1,0)* (AB$10*OFFSET('Efficiency Distributions'!$D$10,MATCH($C15,'Efficiency Distributions'!$C$9:$C$87,0)+RIGHT($E22),0) +AB$11*OFFSET('Efficiency Distributions'!$E$10,MATCH($C15,'Efficiency Distributions'!$C$9:$C$87,0)+RIGHT($E22),0)) /SUM(AB$10:AB$11) -> 0.1173838824 | AC22: =IF(INDEX(PC_MAPPING,RIGHT($C15,1),MATCH($E$2,'Data by Building Type'!$D$22:$F$22,0))="Yes",1,0)* (AC$10*OFFSET('Efficiency Distributions'!$D$10,MATCH($C15,'Efficiency Distributions'!$C$9:$C$87,0)+RIGHT($E22),0) +AC$11*OFFSET('Efficiency Distributions'!$E$10,MATCH($C15,'Efficiency Distributions'!$C$9:$C$87,0)+RIGHT($E22),0)) /SUM(AC$10:AC$11) -> 0.1175967688 | AD22: =IF(INDEX(PC_MAPPING,RIGHT($C15,1),MATCH($E$2,'Data by Building Type'!$D$22:$F$22,0))="Yes",1,0)* (AD$10*OFFSET('Efficiency Distributions'!$D$10,MATCH($C15,'Efficiency Distributions'!$C$9:$C$87,0)+RIGHT($E22),0) +AD$11*OFFSET('Efficiency Distributions'!$E$10,MATCH($C15,'Efficiency Distributions'!$C$9:$C$87,0)+RIGHT($E22),0)) /SUM(AD$10:AD$11) -> 0.1149730116 | AE22: =IF(INDEX(PC_MAPPING,RIGHT($C15,1),MATCH($E$2,'Data by Building Type'!$D$22:$F$22,0))="Yes",1,0)* (AE$10*OFFSET('Efficiency Distributions'!$D$10,MATCH($C15,'Efficiency Distributions'!$C$9:$C$87,0)+RIGHT($E22),0) +AE$11*OFFSET('Efficiency Distributions'!$E$10,MATCH($C15,'Efficiency Distributions'!$C$9:$C$87,0)+RIGHT($E22),0)) /SUM(AE$10:AE$11) -> 0.118955067 | AF22: =IF(INDEX(PC_MAPPING,RIGHT($C15,1),MATCH($E$2,'Data by Building Type'!$D$22:$F$22,0))="Yes",1,0)* (AF$10*OFFSET('Efficiency Distributions'!$D$10,MATCH($C15,'Efficiency Distributions'!$C$9:$C$87,0)+RIGHT($E22),0) +AF$11*OFFSET('Efficiency Distributions'!$E$10,MATCH($C15,'Efficiency Distributions'!$C$9:$C$87,0)+RIGHT($E22),0)) /SUM(AF$10:AF$11) -> 0.1277510382 | AG22: =IF(INDEX(PC_MAPPING,RIGHT($C15,1),MATCH($E$2,'Data by Building Type'!$D$22:$F$22,0))="Yes",1,0)* (AG$10*OFFSET('Efficiency Distributions'!$D$10,MATCH($C15,'Efficiency Distributions'!$C$9:$C$87,0)+RIGHT($E22),0) +AG$11*OFFSET('Efficiency Distributions'!$E$10,MATCH($C15,'Efficiency Distributions'!$C$9:$C$87,0)+RIGHT($E22),0)) /SUM(AG$10:AG$11) -> 0.1315064392 | AH22: =IF(INDEX(PC_MAPPING,RIGHT($C15,1),MATCH($E$2,'Data by Building Type'!$D$22:$F$22,0))="Yes",1,0)* (AH$10*OFFSET('Efficiency Distributions'!$D$10,MATCH($C15,'Efficiency Distributions'!$C$9:$C$87,0)+RIGHT($E22),0) +AH$11*OFFSET('Efficiency Distributions'!$E$10,MATCH($C15,'Efficiency Distributions'!$C$9:$C$87,0)+RIGHT($E22),0)) /SUM(AH$10:AH$11) -> 0.1315064392 | AI22: =IF(INDEX(PC_MAPPING,RIGHT($C15,1),MATCH($E$2,'Data by Building Type'!$D$22:$F$22,0))="Yes",1,0)* (AI$10*OFFSET('Efficiency Distributions'!$D$10,MATCH($C15,'Efficiency Distributions'!$C$9:$C$87,0)+RIGHT($E22),0) +AI$11*OFFSET('Efficiency Distributions'!$E$10,MATCH($C15,'Efficiency Distributions'!$C$9:$C$87,0)+RIGHT($E22),0)) /SUM(AI$10:AI$11) -> 0.1315064392 | AJ22: =IF(INDEX(PC_MAPPING,RIGHT($C15,1),MATCH($E$2,'Data by Building Type'!$D$22:$F$22,0))="Yes",1,0)* (AJ$10*OFFSET('Efficiency Distributions'!$D$10,MATCH($C15,'Efficiency Distributions'!$C$9:$C$87,0)+RIGHT($E22),0) +AJ$11*OFFSET('Efficiency Distributions'!$E$10,MATCH($C15,'Efficiency Distributions'!$C$9:$C$87,0)+RIGHT($E22),0)) /SUM(AJ$10:AJ$11) -> 0.1299420445 | AK22: =IF(INDEX(PC_MAPPING,RIGHT($C15,1),MATCH($E$2,'Data by Building Type'!$D$22:$F$22,0))="Yes",1,0)* (AK$10*OFFSET('Efficiency Distributions'!$D$10,MATCH($C15,'Efficiency Distributions'!$C$9:$C$87,0)+RIGHT($E22),0) +AK$11*OFFSET('Efficiency Distributions'!$E$10,MATCH($C15,'Efficiency Distributions'!$C$9:$C$87,0)+RIGHT($E22),0)) /SUM(AK$10:AK$11) -> 0.1080692645 | AL22: =IF(INDEX(PC_MAPPING,RIGHT($C15,1),MATCH($E$2,'Data by Building Type'!$D$22:$F$22,0))="Yes",1,0)* (AL$10*OFFSET('Efficiency Distributions'!$D$10,MATCH($C15,'Efficiency Distributions'!$C$9:$C$87,0)+RIGHT($E22),0) +AL$11*OFFSET('Efficiency Distributions'!$E$10,MATCH($C15,'Efficiency Distributions'!$C$9:$C$87,0)+RIGHT($E22),0)) /SUM(AL$10:AL$11) -> 0.1087238511 | AM22: =IF(INDEX(PC_MAPPING,RIGHT($C15,1),MATCH($E$2,'Data by Building Type'!$D$22:$F$22,0))="Yes",1,0)* (AM$10*OFFSET('Efficiency Distributions'!$D$10,MATCH($C15,'Efficiency Distributions'!$C$9:$C$87,0)+RIGHT($E22),0) +AM$11*OFFSET('Efficiency Distributions'!$E$10,MATCH($C15,'Efficiency Distributions'!$C$9:$C$87,0)+RIGHT($E22),0)) /SUM(AM$10:AM$11) -> 0.1059116276 | AN22: =IF(INDEX(PC_MAPPING,RIGHT($C15,1),MATCH($E$2,'Data by Building Type'!$D$22:$F$22,0))="Yes",1,0)* (AN$10*OFFSET('Efficiency Distributions'!$D$10,MATCH($C15,'Efficiency Distributions'!$C$9:$C$87,0)+RIGHT($E22),0) +AN$11*OFFSET('Efficiency Distributions'!$E$10,MATCH($C15,'Efficiency Distributions'!$C$9:$C$87,0)+RIGHT($E22),0)) /SUM(AN$10:AN$11) -> 0.1061386805 | AO22: =IF(INDEX(PC_MAPPING,RIGHT($C15,1),MATCH($E$2,'Data by Building Type'!$D$22:$F$22,0))="Yes",1,0)* (AO$10*OFFSET('Efficiency Distributions'!$D$10,MATCH($C15,'Efficiency Distributions'!$C$9:$C$87,0)+RIGHT($E22),0) +AO$11*OFFSET('Efficiency Distributions'!$E$10,MATCH($C15,'Efficiency Distributions'!$C$9:$C$87,0)+RIGHT($E22),0)) /SUM(AO$10:AO$11) -> 0.1050367681 | AP22: =IF(INDEX(PC_MAPPING,RIGHT($C15,1),MATCH($E$2,'Data by Building Type'!$D$22:$F$22,0))="Yes",1,0)* (AP$10*OFFSET('Efficiency Distributions'!$D$10,MATCH($C15,'Efficiency Distributions'!$C$9:$C$87,0)+RIGHT($E22),0) +AP$11*OFFSET('Efficiency Distributions'!$E$10,MATCH($C15,'Efficiency Distributions'!$C$9:$C$87,0)+RIGHT($E22),0)) /SUM(AP$10:AP$11) -> 0.1055215323 | AQ22: =IF(INDEX(PC_MAPPING,RIGHT($C15,1),MATCH($E$2,'Data by Building Type'!$D$22:$F$22,0))="Yes",1,0)* (AQ$10*OFFSET('Efficiency Distributions'!$D$10,MATCH($C15,'Efficiency Distributions'!$C$9:$C$87,0)+RIGHT($E22),0) +AQ$11*OFFSET('Efficiency Distributions'!$E$10,MATCH($C15,'Efficiency Distributions'!$C$9:$C$87,0)+RIGHT($E22),0)) /SUM(AQ$10:AQ$11) -> 0.1056861596 | AR22: =IF(INDEX(PC_MAPPING,RIGHT($C15,1),MATCH($E$2,'Data by Building Type'!$D$22:$F$22,0))="Yes",1,0)* (AR$10*OFFSET('Efficiency Distributions'!$D$10,MATCH($C15,'Efficiency Distributions'!$C$9:$C$87,0)+RIGHT($E22),0) +AR$11*OFFSET('Efficiency Distributions'!$E$10,MATCH($C15,'Efficiency Distributions'!$C$9:$C$87,0)+RIGHT($E22),0)) /SUM(AR$10:AR$11) -> 0.1062043264 | AS22: =IF(INDEX(PC_MAPPING,RIGHT($C15,1),MATCH($E$2,'Data by Building Type'!$D$22:$F$22,0))="Yes",1,0)* (AS$10*OFFSET('Efficiency Distributions'!$D$10,MATCH($C15,'Efficiency Distributions'!$C$9:$C$87,0)+RIGHT($E22),0) +AS$11*OFFSET('Efficiency Distributions'!$E$10,MATCH($C15,'Efficiency Distributions'!$C$9:$C$87,0)+RIGHT($E22),0)) /SUM(AS$10:AS$11) -> 0.1061974441 | AT22: =IF(INDEX(PC_MAPPING,RIGHT($C15,1),MATCH($E$2,'Data by Building Type'!$D$22:$F$22,0))="Yes",1,0)* (AT$10*OFFSET('Efficiency Distributions'!$D$10,MATCH($C15,'Efficiency Distributions'!$C$9:$C$87,0)+RIGHT($E22),0) +AT$11*OFFSET('Efficiency Distributions'!$E$10,MATCH($C15,'Efficiency Distributions'!$C$9:$C$87,0)+RIGHT($E22),0)) /SUM(AT$10:AT$11) -> 0.1059227961 | AU22: =IF(INDEX(PC_MAPPING,RIGHT($C15,1),MATCH($E$2,'Data by Building Type'!$D$22:$F$22,0))="Yes",1,0)* (AU$10*OFFSET('Efficiency Distributions'!$D$10,MATCH($C15,'Efficiency Distributions'!$C$9:$C$87,0)+RIGHT($E22),0) +AU$11*OFFSET('Efficiency Distributions'!$E$10,MATCH($C15,'Efficiency Distributions'!$C$9:$C$87,0)+RIGHT($E22),0)) /SUM(AU$10:AU$11) -> 0.1062453271 | AV22: =IF(INDEX(PC_MAPPING,RIGHT($C15,1),MATCH($E$2,'Data by Building Type'!$D$22:$F$22,0))="Yes",1,0)* (AV$10*OFFSET('Efficiency Distributions'!$D$10,MATCH($C15,'Efficiency Distributions'!$C$9:$C$87,0)+RIGHT($E22),0) +AV$11*OFFSET('Efficiency Distributions'!$E$10,MATCH($C15,'Efficiency Distributions'!$C$9:$C$87,0)+RIGHT($E22),0)) /SUM(AV$10:AV$11) -> 0.1106961872 | AW22: =IF(INDEX(PC_MAPPING,RIGHT($C15,1),MATCH($E$2,'Data by Building Type'!$D$22:$F$22,0))="Yes",1,0)* (AW$10*OFFSET('Efficiency Distributions'!$D$10,MATCH($C15,'Efficiency Distributions'!$C$9:$C$87,0)+RIGHT($E22),0) +AW$11*OFFSET('Efficiency Distributions'!$E$10,MATCH($C15,'Efficiency Distributions'!$C$9:$C$87,0)+RIGHT($E22),0)) /SUM(AW$10:AW$11) -> 0.1104337287 | AX22: =IF(INDEX(PC_MAPPING,RIGHT($C15,1),MATCH($E$2,'Data by Building Type'!$D$22:$F$22,0))="Yes",1,0)* (AX$10*OFFSET('Efficiency Distributions'!$D$10,MATCH($C15,'Efficiency Distributions'!$C$9:$C$87,0)+RIGHT($E22),0) +AX$11*OFFSET('Efficiency Distributions'!$E$10,MATCH($C15,'Efficiency Distributions'!$C$9:$C$87,0)+RIGHT($E22),0)) /SUM(AX$10:AX$11) -> 0.1117584568 | AY22: =IF(INDEX(PC_MAPPING,RIGHT($C15,1),MATCH($E$2,'Data by Building Type'!$D$22:$F$22,0))="Yes",1,0)* (AY$10*OFFSET('Efficiency Distributions'!$D$10,MATCH($C15,'Efficiency Distributions'!$C$9:$C$87,0)+RIGHT($E22),0) +AY$11*OFFSET('Efficiency Distributions'!$E$10,MATCH($C15,'Efficiency Distributions'!$C$9:$C$87,0)+RIGHT($E22),0)) /SUM(AY$10:AY$11) -> 0.112160409 | AZ22: =IF(INDEX(PC_MAPPING,RIGHT($C15,1),MATCH($E$2,'Data by Building Type'!$D$22:$F$22,0))="Yes",1,0)* (AZ$10*OFFSET('Efficiency Distributions'!$D$10,MATCH($C15,'Efficiency Distributions'!$C$9:$C$87,0)+RIGHT($E22),0) +AZ$11*OFFSET('Efficiency Distributions'!$E$10,MATCH($C15,'Efficiency Distributions'!$C$9:$C$87,0)+RIGHT($E22),0)) /SUM(AZ$10:AZ$11) -> 0.1115573382 | BA22: =IF(INDEX(PC_MAPPING,RIGHT($C15,1),MATCH($E$2,'Data by Building Type'!$D$22:$F$22,0))="Yes",1,0)* (BA$10*OFFSET('Efficiency Distributions'!$D$10,MATCH($C15,'Efficiency Distributions'!$C$9:$C$87,0)+RIGHT($E22),0) +BA$11*OFFSET('Efficiency Distributions'!$E$10,MATCH($C15,'Efficiency Distributions'!$C$9:$C$87,0)+RIGHT($E22),0)) /SUM(BA$10:BA$11) -> 0.11063006 | BB22: =IF(INDEX(PC_MAPPING,RIGHT($C15,1),MATCH($E$2,'Data by Building Type'!$D$22:$F$22,0))="Yes",1,0)* (BB$10*OFFSET('Efficiency Distributions'!$D$10,MATCH($C15,'Efficiency Distributions'!$C$9:$C$87,0)+RIGHT($E22),0) +BB$11*OFFSET('Efficiency Distributions'!$E$10,MATCH($C15,'Efficiency Distributions'!$C$9:$C$87,0)+RIGHT($E22),0)) /SUM(BB$10:BB$11) -> 0.1086458218 | BC22: =IF(INDEX(PC_MAPPING,RIGHT($C15,1),MATCH($E$2,'Data by Building Type'!$D$22:$F$22,0))="Yes",1,0)* (BC$10*OFFSET('Efficiency Distributions'!$D$10,MATCH($C15,'Efficiency Distributions'!$C$9:$C$87,0)+RIGHT($E22),0) +BC$11*OFFSET('Efficiency Distributions'!$E$10,MATCH($C15,'Efficiency Distributions'!$C$9:$C$87,0)+RIGHT($E22),0)) /SUM(BC$10:BC$11) -> 0.1082434719 | BD22: =IF(INDEX(PC_MAPPING,RIGHT($C15,1),MATCH($E$2,'Data by Building Type'!$D$22:$F$22,0))="Yes",1,0)* (BD$10*OFFSET('Efficiency Distributions'!$D$10,MATCH($C15,'Efficiency Distributions'!$C$9:$C$87,0)+RIGHT($E22),0) +BD$11*OFFSET('Efficiency Distributions'!$E$10,MATCH($C15,'Efficiency Distributions'!$C$9:$C$87,0)+RIGHT($E22),0)) /SUM(BD$10:BD$11) -> 0.1104949594 | BE22: =IF(INDEX(PC_MAPPING,RIGHT($C15,1),MATCH($E$2,'Data by Building Type'!$D$22:$F$22,0))="Yes",1,0)* (BE$10*OFFSET('Efficiency Distributions'!$D$10,MATCH($C15,'Efficiency Distributions'!$C$9:$C$87,0)+RIGHT($E22),0) +BE$11*OFFSET('Efficiency Distributions'!$E$10,MATCH($C15,'Efficiency Distributions'!$C$9:$C$87,0)+RIGHT($E22),0)) /SUM(BE$10:BE$11) -> 0.1120690316 | BF22: =IF(INDEX(PC_MAPPING,RIGHT($C15,1),MATCH($E$2,'Data by Building Type'!$D$22:$F$22,0))="Yes",1,0)* (BF$10*OFFSET('Efficiency Distributions'!$D$10,MATCH($C15,'Efficiency Distributions'!$C$9:$C$87,0)+RIGHT($E22),0) +BF$11*OFFSET('Efficiency Distributions'!$E$10,MATCH($C15,'Efficiency Distributions'!$C$9:$C$87,0)+RIGHT($E22),0)) /SUM(BF$10:BF$11) -> 0.1151979409 | BG22: =IF(INDEX(PC_MAPPING,RIGHT($C15,1),MATCH($E$2,'Data by Building Type'!$D$22:$F$22,0))="Yes",1,0)* (BG$10*OFFSET('Efficiency Distributions'!$D$10,MATCH($C15,'Efficiency Distributions'!$C$9:$C$87,0)+RIGHT($E22),0) +BG$11*OFFSET('Efficiency Distributions'!$E$10,MATCH($C15,'Efficiency Distributions'!$C$9:$C$87,0)+RIGHT($E22),0)) /SUM(BG$10:BG$11) -> 0.1157768334
E23: EL4 | F23: =IF(INDEX(PC_MAPPING,RIGHT($C15,1),MATCH($E$2,'Data by Building Type'!$D$22:$F$22,0))="Yes",1,0)* (F$10*OFFSET('Efficiency Distributions'!$D$10,MATCH($C15,'Efficiency Distributions'!$C$9:$C$87,0)+RIGHT($E23),0) +F$11*OFFSET('Efficiency Distributions'!$E$10,MATCH($C15,'Efficiency Distributions'!$C$9:$C$87,0)+RIGHT($E23),0)) /SUM(F$10:F$11) -> 0.02783418122 | G23: =IF(INDEX(PC_MAPPING,RIGHT($C15,1),MATCH($E$2,'Data by Building Type'!$D$22:$F$22,0))="Yes",1,0)* (G$10*OFFSET('Efficiency Distributions'!$D$10,MATCH($C15,'Efficiency Distributions'!$C$9:$C$87,0)+RIGHT($E23),0) +G$11*OFFSET('Efficiency Distributions'!$E$10,MATCH($C15,'Efficiency Distributions'!$C$9:$C$87,0)+RIGHT($E23),0)) /SUM(G$10:G$11) -> 0.02916630757 | H23: =IF(INDEX(PC_MAPPING,RIGHT($C15,1),MATCH($E$2,'Data by Building Type'!$D$22:$F$22,0))="Yes",1,0)* (H$10*OFFSET('Efficiency Distributions'!$D$10,MATCH($C15,'Efficiency Distributions'!$C$9:$C$87,0)+RIGHT($E23),0) +H$11*OFFSET('Efficiency Distributions'!$E$10,MATCH($C15,'Efficiency Distributions'!$C$9:$C$87,0)+RIGHT($E23),0)) /SUM(H$10:H$11) -> 0.02757275484 | I23: =IF(INDEX(PC_MAPPING,RIGHT($C15,1),MATCH($E$2,'Data by Building Type'!$D$22:$F$22,0))="Yes",1,0)* (I$10*OFFSET('Efficiency Distributions'!$D$10,MATCH($C15,'Efficiency Distributions'!$C$9:$C$87,0)+RIGHT($E23),0) +I$11*OFFSET('Efficiency Distributions'!$E$10,MATCH($C15,'Efficiency Distributions'!$C$9:$C$87,0)+RIGHT($E23),0)) /SUM(I$10:I$11) -> 0.0278699609 | J23: =IF(INDEX(PC_MAPPING,RIGHT($C15,1),MATCH($E$2,'Data by Building Type'!$D$22:$F$22,0))="Yes",1,0)* (J$10*OFFSET('Efficiency Distributions'!$D$10,MATCH($C15,'Efficiency Distributions'!$C$9:$C$87,0)+RIGHT($E23),0) +J$11*OFFSET('Efficiency Distributions'!$E$10,MATCH($C15,'Efficiency Distributions'!$C$9:$C$87,0)+RIGHT($E23),0)) /SUM(J$10:J$11) -> 0.02805397556 | K23: =IF(INDEX(PC_MAPPING,RIGHT($C15,1),MATCH($E$2,'Data by Building Type'!$D$22:$F$22,0))="Yes",1,0)* (K$10*OFFSET('Efficiency Distributions'!$D$10,MATCH($C15,'Efficiency Distributions'!$C$9:$C$87,0)+RIGHT($E23),0) +K$11*OFFSET('Efficiency Distributions'!$E$10,MATCH($C15,'Efficiency Distributions'!$C$9:$C$87,0)+RIGHT($E23),0)) /SUM(K$10:K$11) -> 0.02775021819 | L23: =IF(INDEX(PC_MAPPING,RIGHT($C15,1),MATCH($E$2,'Data by Building Type'!$D$22:$F$22,0))="Yes",1,0)* (L$10*OFFSET('Efficiency Distributions'!$D$10,MATCH($C15,'Efficiency Distributions'!$C$9:$C$87,0)+RIGHT($E23),0) +L$11*OFFSET('Efficiency Distributions'!$E$10,MATCH($C15,'Efficiency Distributions'!$C$9:$C$87,0)+RIGHT($E23),0)) /SUM(L$10:L$11) -> 0.02772631876 | M23: =IF(INDEX(PC_MAPPING,RIGHT($C15,1),MATCH($E$2,'Data by Building Type'!$D$22:$F$22,0))="Yes",1,0)* (M$10*OFFSET('Efficiency Distributions'!$D$10,MATCH($C15,'Efficiency Distributions'!$C$9:$C$87,0)+RIGHT($E23),0) +M$11*OFFSET('Efficiency Distributions'!$E$10,MATCH($C15,'Efficiency Distributions'!$C$9:$C$87,0)+RIGHT($E23),0)) /SUM(M$10:M$11) -> 0.02731933594 | N23: =IF(INDEX(PC_MAPPING,RIGHT($C15,1),MATCH($E$2,'Data by Building Type'!$D$22:$F$22,0))="Yes",1,0)* (N$10*OFFSET('Efficiency Distributions'!$D$10,MATCH($C15,'Efficiency Distributions'!$C$9:$C$87,0)+RIGHT($E23),0) +N$11*OFFSET('Efficiency Distributions'!$E$10,MATCH($C15,'Efficiency Distributions'!$C$9:$C$87,0)+RIGHT($E23),0)) /SUM(N$10:N$11) -> 0.02639063984 | O23: =IF(INDEX(PC_MAPPING,RIGHT($C15,1),MATCH($E$2,'Data by Building Type'!$D$22:$F$22,0))="Yes",1,0)* (O$10*OFFSET('Efficiency Distributions'!$D$10,MATCH($C15,'Efficiency Distributions'!$C$9:$C$87,0)+RIGHT($E23),0) +O$11*OFFSET('Efficiency Distributions'!$E$10,MATCH($C15,'Efficiency Distributions'!$C$9:$C$87,0)+RIGHT($E23),0)) /SUM(O$10:O$11) -> 0.0257577787 | P23: =IF(INDEX(PC_MAPPING,RIGHT($C15,1),MATCH($E$2,'Data by Building Type'!$D$22:$F$22,0))="Yes",1,0)* (P$10*OFFSET('Efficiency Distributions'!$D$10,MATCH($C15,'Efficiency Distributions'!$C$9:$C$87,0)+RIGHT($E23),0) +P$11*OFFSET('Efficiency Distributions'!$E$10,MATCH($C15,'Efficiency Distributions'!$C$9:$C$87,0)+RIGHT($E23),0)) /SUM(P$10:P$11) -> 0.02640295146 | Q23: =IF(INDEX(PC_MAPPING,RIGHT($C15,1),MATCH($E$2,'Data by Building Type'!$D$22:$F$22,0))="Yes",1,0)* (Q$10*OFFSET('Efficiency Distributions'!$D$10,MATCH($C15,'Efficiency Distributions'!$C$9:$C$87,0)+RIGHT($E23),0) +Q$11*OFFSET('Efficiency Distributions'!$E$10,MATCH($C15,'Efficiency Distributions'!$C$9:$C$87,0)+RIGHT($E23),0)) /SUM(Q$10:Q$11) -> 0.02534180379 | R23: =IF(INDEX(PC_MAPPING,RIGHT($C15,1),MATCH($E$2,'Data by Building Type'!$D$22:$F$22,0))="Yes",1,0)* (R$10*OFFSET('Efficiency Distributions'!$D$10,MATCH($C15,'Efficiency Distributions'!$C$9:$C$87,0)+RIGHT($E23),0) +R$11*OFFSET('Efficiency Distributions'!$E$10,MATCH($C15,'Efficiency Distributions'!$C$9:$C$87,0)+RIGHT($E23),0)) /SUM(R$10:R$11) -> 0.02825669311 | S23: =IF(INDEX(PC_MAPPING,RIGHT($C15,1),MATCH($E$2,'Data by Building Type'!$D$22:$F$22,0))="Yes",1,0)* (S$10*OFFSET('Efficiency Distributions'!$D$10,MATCH($C15,'Efficiency Distributions'!$C$9:$C$87,0)+RIGHT($E23),0) +S$11*OFFSET('Efficiency Distributions'!$E$10,MATCH($C15,'Efficiency Distributions'!$C$9:$C$87,0)+RIGHT($E23),0)) /SUM(S$10:S$11) -> 0.02796310849 | T23: =IF(INDEX(PC_MAPPING,RIGHT($C15,1),MATCH($E$2,'Data by Building Type'!$D$22:$F$22,0))="Yes",1,0)* (T$10*OFFSET('Efficiency Distributions'!$D$10,MATCH($C15,'Efficiency Distributions'!$C$9:$C$87,0)+RIGHT($E23),0) +T$11*OFFSET('Efficiency Distributions'!$E$10,MATCH($C15,'Efficiency Distributions'!$C$9:$C$87,0)+RIGHT($E23),0)) /SUM(T$10:T$11) -> 0.02904488381 | U23: =IF(INDEX(PC_MAPPING,RIGHT($C15,1),MATCH($E$2,'Data by Building Type'!$D$22:$F$22,0))="Yes",1,0)* (U$10*OFFSET('Efficiency Distributions'!$D$10,MATCH($C15,'Efficiency Distributions'!$C$9:$C$87,0)+RIGHT($E23),0) +U$11*OFFSET('Efficiency Distributions'!$E$10,MATCH($C15,'Efficiency Distributions'!$C$9:$C$87,0)+RIGHT($E23),0)) /SUM(U$10:U$11) -> 0.0288890394 | V23: =IF(INDEX(PC_MAPPING,RIGHT($C15,1),MATCH($E$2,'Data by Building Type'!$D$22:$F$22,0))="Yes",1,0)* (V$10*OFFSET('Efficiency Distributions'!$D$10,MATCH($C15,'Efficiency Distributions'!$C$9:$C$87,0)+RIGHT($E23),0) +V$11*OFFSET('Efficiency Distributions'!$E$10,MATCH($C15,'Efficiency Distributions'!$C$9:$C$87,0)+RIGHT($E23),0)) /SUM(V$10:V$11) -> 0.02911952741 | W23: =IF(INDEX(PC_MAPPING,RIGHT($C15,1),MATCH($E$2,'Data by Building Type'!$D$22:$F$22,0))="Yes",1,0)* (W$10*OFFSET('Efficiency Distributions'!$D$10,MATCH($C15,'Efficiency Distributions'!$C$9:$C$87,0)+RIGHT($E23),0) +W$11*OFFSET('Efficiency Distributions'!$E$10,MATCH($C15,'Efficiency Distributions'!$C$9:$C$87,0)+RIGHT($E23),0)) /SUM(W$10:W$11) -> 0.02900900649 | X23: =IF(INDEX(PC_MAPPING,RIGHT($C15,1),MATCH($E$2,'Data by Building Type'!$D$22:$F$22,0))="Yes",1,0)* (X$10*OFFSET('Efficiency Distributions'!$D$10,MATCH($C15,'Efficiency Distributions'!$C$9:$C$87,0)+RIGHT($E23),0) +X$11*OFFSET('Efficiency Distributions'!$E$10,MATCH($C15,'Efficiency Distributions'!$C$9:$C$87,0)+RIGHT($E23),0)) /SUM(X$10:X$11) -> 0.02936380421 | Y23: =IF(INDEX(PC_MAPPING,RIGHT($C15,1),MATCH($E$2,'Data by Building Type'!$D$22:$F$22,0))="Yes",1,0)* (Y$10*OFFSET('Efficiency Distributions'!$D$10,MATCH($C15,'Efficiency Distributions'!$C$9:$C$87,0)+RIGHT($E23),0) +Y$11*OFFSET('Efficiency Distributions'!$E$10,MATCH($C15,'Efficiency Distributions'!$C$9:$C$87,0)+RIGHT($E23),0)) /SUM(Y$10:Y$11) -> 0.03022700982 | Z23: =IF(INDEX(PC_MAPPING,RIGHT($C15,1),MATCH($E$2,'Data by Building Type'!$D$22:$F$22,0))="Yes",1,0)* (Z$10*OFFSET('Efficiency Distributions'!$D$10,MATCH($C15,'Efficiency Distributions'!$C$9:$C$87,0)+RIGHT($E23),0) +Z$11*OFFSET('Efficiency Distributions'!$E$10,MATCH($C15,'Efficiency Distributions'!$C$9:$C$87,0)+RIGHT($E23),0)) /SUM(Z$10:Z$11) -> 0.03024158667 | AA23: =IF(INDEX(PC_MAPPING,RIGHT($C15,1),MATCH($E$2,'Data by Building Type'!$D$22:$F$22,0))="Yes",1,0)* (AA$10*OFFSET('Efficiency Distributions'!$D$10,MATCH($C15,'Efficiency Distributions'!$C$9:$C$87,0)+RIGHT($E23),0) +AA$11*OFFSET('Efficiency Distributions'!$E$10,MATCH($C15,'Efficiency Distributions'!$C$9:$C$87,0)+RIGHT($E23),0)) /SUM(AA$10:AA$11) -> 0.03010786158 | AB23: =IF(INDEX(PC_MAPPING,RIGHT($C15,1),MATCH($E$2,'Data by Building Type'!$D$22:$F$22,0))="Yes",1,0)* (AB$10*OFFSET('Efficiency Distributions'!$D$10,MATCH($C15,'Efficiency Distributions'!$C$9:$C$87,0)+RIGHT($E23),0) +AB$11*OFFSET('Efficiency Distributions'!$E$10,MATCH($C15,'Efficiency Distributions'!$C$9:$C$87,0)+RIGHT($E23),0)) /SUM(AB$10:AB$11) -> 0.02934597059 | AC23: =IF(INDEX(PC_MAPPING,RIGHT($C15,1),MATCH($E$2,'Data by Building Type'!$D$22:$F$22,0))="Yes",1,0)* (AC$10*OFFSET('Efficiency Distributions'!$D$10,MATCH($C15,'Efficiency Distributions'!$C$9:$C$87,0)+RIGHT($E23),0) +AC$11*OFFSET('Efficiency Distributions'!$E$10,MATCH($C15,'Efficiency Distributions'!$C$9:$C$87,0)+RIGHT($E23),0)) /SUM(AC$10:AC$11) -> 0.0293991922 | AD23: =IF(INDEX(PC_MAPPING,RIGHT($C15,1),MATCH($E$2,'Data by Building Type'!$D$22:$F$22,0))="Yes",1,0)* (AD$10*OFFSET('Efficiency Distributions'!$D$10,MATCH($C15,'Efficiency Distributions'!$C$9:$C$87,0)+RIGHT($E23),0) +AD$11*OFFSET('Efficiency Distributions'!$E$10,MATCH($C15,'Efficiency Distributions'!$C$9:$C$87,0)+RIGHT($E23),0)) /SUM(AD$10:AD$11) -> 0.0287432529 | AE23: =IF(INDEX(PC_MAPPING,RIGHT($C15,1),MATCH($E$2,'Data by Building Type'!$D$22:$F$22,0))="Yes",1,0)* (AE$10*OFFSET('Efficiency Distributions'!$D$10,MATCH($C15,'Efficiency Distributions'!$C$9:$C$87,0)+RIGHT($E23),0) +AE$11*OFFSET('Efficiency Distributions'!$E$10,MATCH($C15,'Efficiency Distributions'!$C$9:$C$87,0)+RIGHT($E23),0)) /SUM(AE$10:AE$11) -> 0.02973876676 | AF23: =IF(INDEX(PC_MAPPING,RIGHT($C15,1),MATCH($E$2,'Data by Building Type'!$D$22:$F$22,0))="Yes",1,0)* (AF$10*OFFSET('Efficiency Distributions'!$D$10,MATCH($C15,'Efficiency Distributions'!$C$9:$C$87,0)+RIGHT($E23),0) +AF$11*OFFSET('Efficiency Distributions'!$E$10,MATCH($C15,'Efficiency Distributions'!$C$9:$C$87,0)+RIGHT($E23),0)) /SUM(AF$10:AF$11) -> 0.03193775956 | AG23: =IF(INDEX(PC_MAPPING,RIGHT($C15,1),MATCH($E$2,'Data by Building Type'!$D$22:$F$22,0))="Yes",1,0)* (AG$10*OFFSET('Efficiency Distributions'!$D$10,MATCH($C15,'Efficiency Distributions'!$C$9:$C$87,0)+RIGHT($E23),0) +AG$11*OFFSET('Efficiency Distributions'!$E$10,MATCH($C15,'Efficiency Distributions'!$C$9:$C$87,0)+RIGHT($E23),0)) /SUM(AG$10:AG$11) -> 0.0328766098 | AH23: =IF(INDEX(PC_MAPPING,RIGHT($C15,1),MATCH($E$2,'Data by Building Type'!$D$22:$F$22,0))="Yes",1,0)* (AH$10*OFFSET('Efficiency Distributions'!$D$10,MATCH($C15,'Efficiency Distributions'!$C$9:$C$87,0)+RIGHT($E23),0) +AH$11*OFFSET('Efficiency Distributions'!$E$10,MATCH($C15,'Efficiency Distributions'!$C$9:$C$87,0)+RIGHT($E23),0)) /SUM(AH$10:AH$11) -> 0.0328766098 | AI23: =IF(INDEX(PC_MAPPING,RIGHT($C15,1),MATCH($E$2,'Data by Building Type'!$D$22:$F$22,0))="Yes",1,0)* (AI$10*OFFSET('Efficiency Distributions'!$D$10,MATCH($C15,'Efficiency Distributions'!$C$9:$C$87,0)+RIGHT($E23),0) +AI$11*OFFSET('Efficiency Distributions'!$E$10,MATCH($C15,'Efficiency Distributions'!$C$9:$C$87,0)+RIGHT($E23),0)) /SUM(AI$10:AI$11) -> 0.0328766098 | AJ23: =IF(INDEX(PC_MAPPING,RIGHT($C15,1),MATCH($E$2,'Data by Building Type'!$D$22:$F$22,0))="Yes",1,0)* (AJ$10*OFFSET('Efficiency Distributions'!$D$10,MATCH($C15,'Efficiency Distributions'!$C$9:$C$87,0)+RIGHT($E23),0) +AJ$11*OFFSET('Efficiency Distributions'!$E$10,MATCH($C15,'Efficiency Distributions'!$C$9:$C$87,0)+RIGHT($E23),0)) /SUM(AJ$10:AJ$11) -> 0.03248551112 | AK23: =IF(INDEX(PC_MAPPING,RIGHT($C15,1),MATCH($E$2,'Data by Building Type'!$D$22:$F$22,0))="Yes",1,0)* (AK$10*OFFSET('Efficiency Distributions'!$D$10,MATCH($C15,'Efficiency Distributions'!$C$9:$C$87,0)+RIGHT($E23),0) +AK$11*OFFSET('Efficiency Distributions'!$E$10,MATCH($C15,'Efficiency Distributions'!$C$9:$C$87,0)+RIGHT($E23),0)) /SUM(AK$10:AK$11) -> 0.02701731612 | AL23: =IF(INDEX(PC_MAPPING,RIGHT($C15,1),MATCH($E$2,'Data by Building Type'!$D$22:$F$22,0))="Yes",1,0)* (AL$10*OFFSET('Efficiency Distributions'!$D$10,MATCH($C15,'Efficiency Distributions'!$C$9:$C$87,0)+RIGHT($E23),0) +AL$11*OFFSET('Efficiency Distributions'!$E$10,MATCH($C15,'Efficiency Distributions'!$C$9:$C$87,0)+RIGHT($E23),0)) /SUM(AL$10:AL$11) -> 0.02718096277 | AM23: =IF(INDEX(PC_MAPPING,RIGHT($C15,1),MATCH($E$2,'Data by Building Type'!$D$22:$F$22,0))="Yes",1,0)* (AM$10*OFFSET('Efficiency Distributions'!$D$10,MATCH($C15,'Efficiency Distributions'!$C$9:$C$87,0)+RIGHT($E23),0) +AM$11*OFFSET('Efficiency Distributions'!$E$10,MATCH($C15,'Efficiency Distributions'!$C$9:$C$87,0)+RIGHT($E23),0)) /SUM(AM$10:AM$11) -> 0.02647790689 | AN23: =IF(INDEX(PC_MAPPING,RIGHT($C15,1),MATCH($E$2,'Data by Building Type'!$D$22:$F$22,0))="Yes",1,0)* (AN$10*OFFSET('Efficiency Distributions'!$D$10,MATCH($C15,'Efficiency Distributions'!$C$9:$C$87,0)+RIGHT($E23),0) +AN$11*OFFSET('Efficiency Distributions'!$E$10,MATCH($C15,'Efficiency Distributions'!$C$9:$C$87,0)+RIGHT($E23),0)) /SUM(AN$10:AN$11) -> 0.02653467012 | AO23: =IF(INDEX(PC_MAPPING,RIGHT($C15,1),MATCH($E$2,'Data by Building Type'!$D$22:$F$22,0))="Yes",1,0)* (AO$10*OFFSET('Efficiency Distributions'!$D$10,MATCH($C15,'Efficiency Distributions'!$C$9:$C$87,0)+RIGHT($E23),0) +AO$11*OFFSET('Efficiency Distributions'!$E$10,MATCH($C15,'Efficiency Distributions'!$C$9:$C$87,0)+RIGHT($E23),0)) /SUM(AO$10:AO$11) -> 0.02625919201 | AP23: =IF(INDEX(PC_MAPPING,RIGHT($C15,1),MATCH($E$2,'Data by Building Type'!$D$22:$F$22,0))="Yes",1,0)* (AP$10*OFFSET('Efficiency Distributions'!$D$10,MATCH($C15,'Efficiency Distributions'!$C$9:$C$87,0)+RIGHT($E23),0) +AP$11*OFFSET('Efficiency Distributions'!$E$10,MATCH($C15,'Efficiency Distributions'!$C$9:$C$87,0)+RIGHT($E23),0)) /SUM(AP$10:AP$11) -> 0.02638038307 | AQ23: =IF(INDEX(PC_MAPPING,RIGHT($C15,1),MATCH($E$2,'Data by Building Type'!$D$22:$F$22,0))="Yes",1,0)* (AQ$10*OFFSET('Efficiency Distributions'!$D$10,MATCH($C15,'Efficiency Distributions'!$C$9:$C$87,0)+RIGHT($E23),0) +AQ$11*OFFSET('Efficiency Distributions'!$E$10,MATCH($C15,'Efficiency Distributions'!$C$9:$C$87,0)+RIGHT($E23),0)) /SUM(AQ$10:AQ$11) -> 0.02642153991 | AR23: =IF(INDEX(PC_MAPPING,RIGHT($C15,1),MATCH($E$2,'Data by Building Type'!$D$22:$F$22,0))="Yes",1,0)* (AR$10*OFFSET('Efficiency Distributions'!$D$10,MATCH($C15,'Efficiency Distributions'!$C$9:$C$87,0)+RIGHT($E23),0) +AR$11*OFFSET('Efficiency Distributions'!$E$10,MATCH($C15,'Efficiency Distributions'!$C$9:$C$87,0)+RIGHT($E23),0)) /SUM(AR$10:AR$11) -> 0.02655108159 | AS23: =IF(INDEX(PC_MAPPING,RIGHT($C15,1),MATCH($E$2,'Data by Building Type'!$D$22:$F$22,0))="Yes",1,0)* (AS$10*OFFSET('Efficiency Distributions'!$D$10,MATCH($C15,'Efficiency Distributions'!$C$9:$C$87,0)+RIGHT($E23),0) +AS$11*OFFSET('Efficiency Distributions'!$E$10,MATCH($C15,'Efficiency Distributions'!$C$9:$C$87,0)+RIGHT($E23),0)) /SUM(AS$10:AS$11) -> 0.02654936103 | AT23: =IF(INDEX(PC_MAPPING,RIGHT($C15,1),MATCH($E$2,'Data by Building Type'!$D$22:$F$22,0))="Yes",1,0)* (AT$10*OFFSET('Efficiency Distributions'!$D$10,MATCH($C15,'Efficiency Distributions'!$C$9:$C$87,0)+RIGHT($E23),0) +AT$11*OFFSET('Efficiency Distributions'!$E$10,MATCH($C15,'Efficiency Distributions'!$C$9:$C$87,0)+RIGHT($E23),0)) /SUM(AT$10:AT$11) -> 0.02648069902 | AU23: =IF(INDEX(PC_MAPPING,RIGHT($C15,1),MATCH($E$2,'Data by Building Type'!$D$22:$F$22,0))="Yes",1,0)* (AU$10*OFFSET('Efficiency Distributions'!$D$10,MATCH($C15,'Efficiency Distributions'!$C$9:$C$87,0)+RIGHT($E23),0) +AU$11*OFFSET('Efficiency Distributions'!$E$10,MATCH($C15,'Efficiency Distributions'!$C$9:$C$87,0)+RIGHT($E23),0)) /SUM(AU$10:AU$11) -> 0.02656133177 | AV23: =IF(INDEX(PC_MAPPING,RIGHT($C15,1),MATCH($E$2,'Data by Building Type'!$D$22:$F$22,0))="Yes",1,0)* (AV$10*OFFSET('Efficiency Distributions'!$D$10,MATCH($C15,'Efficiency Distributions'!$C$9:$C$87,0)+RIGHT($E23),0) +AV$11*OFFSET('Efficiency Distributions'!$E$10,MATCH($C15,'Efficiency Distributions'!$C$9:$C$87,0)+RIGHT($E23),0)) /SUM(AV$10:AV$11) -> 0.0276740468 | AW23: =IF(INDEX(PC_MAPPING,RIGHT($C15,1),MATCH($E$2,'Data by Building Type'!$D$22:$F$22,0))="Yes",1,0)* (AW$10*OFFSET('Efficiency Distributions'!$D$10,MATCH($C15,'Efficiency Distributions'!$C$9:$C$87,0)+RIGHT($E23),0) +AW$11*OFFSET('Efficiency Distributions'!$E$10,MATCH($C15,'Efficiency Distributions'!$C$9:$C$87,0)+RIGHT($E23),0)) /SUM(AW$10:AW$11) -> 0.02760843217 | AX23: =IF(INDEX(PC_MAPPING,RIGHT($C15,1),MATCH($E$2,'Data by Building Type'!$D$22:$F$22,0))="Yes",1,0)* (AX$10*OFFSET('Efficiency Distributions'!$D$10,MATCH($C15,'Efficiency Distributions'!$C$9:$C$87,0)+RIGHT($E23),0) +AX$11*OFFSET('Efficiency Distributions'!$E$10,MATCH($C15,'Efficiency Distributions'!$C$9:$C$87,0)+RIGHT($E23),0)) /SUM(AX$10:AX$11) -> 0.0279396142 | AY23: =IF(INDEX(PC_MAPPING,RIGHT($C15,1),MATCH($E$2,'Data by Building Type'!$D$22:$F$22,0))="Yes",1,0)* (AY$10*OFFSET('Efficiency Distributions'!$D$10,MATCH($C15,'Efficiency Distributions'!$C$9:$C$87,0)+RIGHT($E23),0) +AY$11*OFFSET('Efficiency Distributions'!$E$10,MATCH($C15,'Efficiency Distributions'!$C$9:$C$87,0)+RIGHT($E23),0)) /SUM(AY$10:AY$11) -> 0.02804010225 | AZ23: =IF(INDEX(PC_MAPPING,RIGHT($C15,1),MATCH($E$2,'Data by Building Type'!$D$22:$F$22,0))="Yes",1,0)* (AZ$10*OFFSET('Efficiency Distributions'!$D$10,MATCH($C15,'Efficiency Distributions'!$C$9:$C$87,0)+RIGHT($E23),0) +AZ$11*OFFSET('Efficiency Distributions'!$E$10,MATCH($C15,'Efficiency Distributions'!$C$9:$C$87,0)+RIGHT($E23),0)) /SUM(AZ$10:AZ$11) -> 0.02788933454 | BA23: =IF(INDEX(PC_MAPPING,RIGHT($C15,1),MATCH($E$2,'Data by Building Type'!$D$22:$F$22,0))="Yes",1,0)* (BA$10*OFFSET('Efficiency Distributions'!$D$10,MATCH($C15,'Efficiency Distributions'!$C$9:$C$87,0)+RIGHT($E23),0) +BA$11*OFFSET('Efficiency Distributions'!$E$10,MATCH($C15,'Efficiency Distributions'!$C$9:$C$87,0)+RIGHT($E23),0)) /SUM(BA$10:BA$11) -> 0.027657515 | BB23: =IF(INDEX(PC_MAPPING,RIGHT($C15,1),MATCH($E$2,'Data by Building Type'!$D$22:$F$22,0))="Yes",1,0)* (BB$10*OFFSET('Efficiency Distributions'!$D$10,MATCH($C15,'Efficiency Distributions'!$C$9:$C$87,0)+RIGHT($E23),0) +BB$11*OFFSET('Efficiency Distributions'!$E$10,MATCH($C15,'Efficiency Distributions'!$C$9:$C$87,0)+RIGHT($E23),0)) /SUM(BB$10:BB$11) -> 0.02716145544 | BC23: =IF(INDEX(PC_MAPPING,RIGHT($C15,1),MATCH($E$2,'Data by Building Type'!$D$22:$F$22,0))="Yes",1,0)* (BC$10*OFFSET('Efficiency Distributions'!$D$10,MATCH($C15,'Efficiency Distributions'!$C$9:$C$87,0)+RIGHT($E23),0) +BC$11*OFFSET('Efficiency Distributions'!$E$10,MATCH($C15,'Efficiency Distributions'!$C$9:$C$87,0)+RIGHT($E23),0)) /SUM(BC$10:BC$11) -> 0.02706086798 | BD23: =IF(INDEX(PC_MAPPING,RIGHT($C15,1),MATCH($E$2,'Data by Building Type'!$D$22:$F$22,0))="Yes",1,0)* (BD$10*OFFSET('Efficiency Distributions'!$D$10,MATCH($C15,'Efficiency Distributions'!$C$9:$C$87,0)+RIGHT($E23),0) +BD$11*OFFSET('Efficiency Distributions'!$E$10,MATCH($C15,'Efficiency Distributions'!$C$9:$C$87,0)+RIGHT($E23),0)) /SUM(BD$10:BD$11) -> 0.02762373984 | BE23: =IF(INDEX(PC_MAPPING,RIGHT($C15,1),MATCH($E$2,'Data by Building Type'!$D$22:$F$22,0))="Yes",1,0)* (BE$10*OFFSET('Efficiency Distributions'!$D$10,MATCH($C15,'Efficiency Distributions'!$C$9:$C$87,0)+RIGHT($E23),0) +BE$11*OFFSET('Efficiency Distributions'!$E$10,MATCH($C15,'Efficiency Distributions'!$C$9:$C$87,0)+RIGHT($E23),0)) /SUM(BE$10:BE$11) -> 0.0280172579 | BF23: =IF(INDEX(PC_MAPPING,RIGHT($C15,1),MATCH($E$2,'Data by Building Type'!$D$22:$F$22,0))="Yes",1,0)* (BF$10*OFFSET('Efficiency Distributions'!$D$10,MATCH($C15,'Efficiency Distributions'!$C$9:$C$87,0)+RIGHT($E23),0) +BF$11*OFFSET('Efficiency Distributions'!$E$10,MATCH($C15,'Efficiency Distributions'!$C$9:$C$87,0)+RIGHT($E23),0)) /SUM(BF$10:BF$11) -> 0.02879948522 | BG23: =IF(INDEX(PC_MAPPING,RIGHT($C15,1),MATCH($E$2,'Data by Building Type'!$D$22:$F$22,0))="Yes",1,0)* (BG$10*OFFSET('Efficiency Distributions'!$D$10,MATCH($C15,'Efficiency Distributions'!$C$9:$C$87,0)+RIGHT($E23),0) +BG$11*OFFSET('Efficiency Distributions'!$E$10,MATCH($C15,'Efficiency Distributions'!$C$9:$C$87,0)+RIGHT($E23),0)) /SUM(BG$10:BG$11) -> 0.02894420836
E24: EL5 | F24: =IF(INDEX(PC_MAPPING,RIGHT($C15,1),MATCH($E$2,'Data by Building Type'!$D$22:$F$22,0))="Yes",1,0)* (F$10*OFFSET('Efficiency Distributions'!$D$10,MATCH($C15,'Efficiency Distributions'!$C$9:$C$87,0)+RIGHT($E24),0) +F$11*OFFSET('Efficiency Distributions'!$E$10,MATCH($C15,'Efficiency Distributions'!$C$9:$C$87,0)+RIGHT($E24),0)) /SUM(F$10:F$11) -> 0.1212775039 | G24: =IF(INDEX(PC_MAPPING,RIGHT($C15,1),MATCH($E$2,'Data by Building Type'!$D$22:$F$22,0))="Yes",1,0)* (G$10*OFFSET('Efficiency Distributions'!$D$10,MATCH($C15,'Efficiency Distributions'!$C$9:$C$87,0)+RIGHT($E24),0) +G$11*OFFSET('Efficiency Distributions'!$E$10,MATCH($C15,'Efficiency Distributions'!$C$9:$C$87,0)+RIGHT($E24),0)) /SUM(G$10:G$11) -> 0.1270817687 | H24: =IF(INDEX(PC_MAPPING,RIGHT($C15,1),MATCH($E$2,'Data by Building Type'!$D$22:$F$22,0))="Yes",1,0)* (H$10*OFFSET('Efficiency Distributions'!$D$10,MATCH($C15,'Efficiency Distributions'!$C$9:$C$87,0)+RIGHT($E24),0) +H$11*OFFSET('Efficiency Distributions'!$E$10,MATCH($C15,'Efficiency Distributions'!$C$9:$C$87,0)+RIGHT($E24),0)) /SUM(H$10:H$11) -> 0.1201384318 | I24: =IF(INDEX(PC_MAPPING,RIGHT($C15,1),MATCH($E$2,'Data by Building Type'!$D$22:$F$22,0))="Yes",1,0)* (I$10*OFFSET('Efficiency Distributions'!$D$10,MATCH($C15,'Efficiency Distributions'!$C$9:$C$87,0)+RIGHT($E24),0) +I$11*OFFSET('Efficiency Distributions'!$E$10,MATCH($C15,'Efficiency Distributions'!$C$9:$C$87,0)+RIGHT($E24),0)) /SUM(I$10:I$11) -> 0.1214334011 | J24: =IF(INDEX(PC_MAPPING,RIGHT($C15,1),MATCH($E$2,'Data by Building Type'!$D$22:$F$22,0))="Yes",1,0)* (J$10*OFFSET('Efficiency Distributions'!$D$10,MATCH($C15,'Efficiency Distributions'!$C$9:$C$87,0)+RIGHT($E24),0) +J$11*OFFSET('Efficiency Distributions'!$E$10,MATCH($C15,'Efficiency Distributions'!$C$9:$C$87,0)+RIGHT($E24),0)) /SUM(J$10:J$11) -> 0.1222351792 | K24: =IF(INDEX(PC_MAPPING,RIGHT($C15,1),MATCH($E$2,'Data by Building Type'!$D$22:$F$22,0))="Yes",1,0)* (K$10*OFFSET('Efficiency Distributions'!$D$10,MATCH($C15,'Efficiency Distributions'!$C$9:$C$87,0)+RIGHT($E24),0) +K$11*OFFSET('Efficiency Distributions'!$E$10,MATCH($C15,'Efficiency Distributions'!$C$9:$C$87,0)+RIGHT($E24),0)) /SUM(K$10:K$11) -> 0.120911665 | L24: =IF(INDEX(PC_MAPPING,RIGHT($C15,1),MATCH($E$2,'Data by Building Type'!$D$22:$F$22,0))="Yes",1,0)* (L$10*OFFSET('Efficiency Distributions'!$D$10,MATCH($C15,'Efficiency Distributions'!$C$9:$C$87,0)+RIGHT($E24),0) +L$11*OFFSET('Efficiency Distributions'!$E$10,MATCH($C15,'Efficiency Distributions'!$C$9:$C$87,0)+RIGHT($E24),0)) /SUM(L$10:L$11) -> 0.1208075317 | M24: =IF(INDEX(PC_MAPPING,RIGHT($C15,1),MATCH($E$2,'Data by Building Type'!$D$22:$F$22,0))="Yes",1,0)* (M$10*OFFSET('Efficiency Distributions'!$D$10,MATCH($C15,'Efficiency Distributions'!$C$9:$C$87,0)+RIGHT($E24),0) +M$11*OFFSET('Efficiency Distributions'!$E$10,MATCH($C15,'Efficiency Distributions'!$C$9:$C$87,0)+RIGHT($E24),0)) /SUM(M$10:M$11) -> 0.1190342494 | N24: =IF(INDEX(PC_MAPPING,RIGHT($C15,1),MATCH($E$2,'Data by Building Type'!$D$22:$F$22,0))="Yes",1,0)* (N$10*OFFSET('Efficiency Distributions'!$D$10,MATCH($C15,'Efficiency Distributions'!$C$9:$C$87,0)+RIGHT($E24),0) +N$11*OFFSET('Efficiency Distributions'!$E$10,MATCH($C15,'Efficiency Distributions'!$C$9:$C$87,0)+RIGHT($E24),0)) /SUM(N$10:N$11) -> 0.1149877879 | O24: =IF(INDEX(PC_MAPPING,RIGHT($C15,1),MATCH($E$2,'Data by Building Type'!$D$22:$F$22,0))="Yes",1,0)* (O$10*OFFSET('Efficiency Distributions'!$D$10,MATCH($C15,'Efficiency Distributions'!$C$9:$C$87,0)+RIGHT($E24),0) +O$11*OFFSET('Efficiency Distributions'!$E$10,MATCH($C15,'Efficiency Distributions'!$C$9:$C$87,0)+RIGHT($E24),0)) /SUM(O$10:O$11) -> 0.1122303215 | P24: =IF(INDEX(PC_MAPPING,RIGHT($C15,1),MATCH($E$2,'Data by Building Type'!$D$22:$F$22,0))="Yes",1,0)* (P$10*OFFSET('Efficiency Distributions'!$D$10,MATCH($C15,'Efficiency Distributions'!$C$9:$C$87,0)+RIGHT($E24),0) +P$11*OFFSET('Efficiency Distributions'!$E$10,MATCH($C15,'Efficiency Distributions'!$C$9:$C$87,0)+RIGHT($E24),0)) /SUM(P$10:P$11) -> 0.1150414314 | Q24: =IF(INDEX(PC_MAPPING,RIGHT($C15,1),MATCH($E$2,'Data by Building Type'!$D$22:$F$22,0))="Yes",1,0)* (Q$10*OFFSET('Efficiency Distributions'!$D$10,MATCH($C15,'Efficiency Distributions'!$C$9:$C$87,0)+RIGHT($E24),0) +Q$11*OFFSET('Efficiency Distributions'!$E$10,MATCH($C15,'Efficiency Distributions'!$C$9:$C$87,0)+RIGHT($E24),0)) /SUM(Q$10:Q$11) -> 0.1104178594 | R24: =IF(INDEX(PC_MAPPING,RIGHT($C15,1),MATCH($E$2,'Data by Building Type'!$D$22:$F$22,0))="Yes",1,0)* (R$10*OFFSET('Efficiency Distributions'!$D$10,MATCH($C15,'Efficiency Distributions'!$C$9:$C$87,0)+RIGHT($E24),0) +R$11*OFFSET('Efficiency Distributions'!$E$10,MATCH($C15,'Efficiency Distributions'!$C$9:$C$87,0)+RIGHT($E24),0)) /SUM(R$10:R$11) -> 0.1231184486 | S24: =IF(INDEX(PC_MAPPING,RIGHT($C15,1),MATCH($E$2,'Data by Building Type'!$D$22:$F$22,0))="Yes",1,0)* (S$10*OFFSET('Efficiency Distributions'!$D$10,MATCH($C15,'Efficiency Distributions'!$C$9:$C$87,0)+RIGHT($E24),0) +S$11*OFFSET('Efficiency Distributions'!$E$10,MATCH($C15,'Efficiency Distributions'!$C$9:$C$87,0)+RIGHT($E24),0)) /SUM(S$10:S$11) -> 0.1218392584 | T24: =IF(INDEX(PC_MAPPING,RIGHT($C15,1),MATCH($E$2,'Data by Building Type'!$D$22:$F$22,0))="Yes",1,0)* (T$10*OFFSET('Efficiency Distributions'!$D$10,MATCH($C15,'Efficiency Distributions'!$C$9:$C$87,0)+RIGHT($E24),0) +T$11*OFFSET('Efficiency Distributions'!$E$10,MATCH($C15,'Efficiency Distributions'!$C$9:$C$87,0)+RIGHT($E24),0)) /SUM(T$10:T$11) -> 0.126552708 | U24: =IF(INDEX(PC_MAPPING,RIGHT($C15,1),MATCH($E$2,'Data by Building Type'!$D$22:$F$22,0))="Yes",1,0)* (U$10*OFFSET('Efficiency Distributions'!$D$10,MATCH($C15,'Efficiency Distributions'!$C$9:$C$87,0)+RIGHT($E24),0) +U$11*OFFSET('Efficiency Distributions'!$E$10,MATCH($C15,'Efficiency Distributions'!$C$9:$C$87,0)+RIGHT($E24),0)) /SUM(U$10:U$11) -> 0.1258736716 | V24: =IF(INDEX(PC_MAPPING,RIGHT($C15,1),MATCH($E$2,'Data by Building Type'!$D$22:$F$22,0))="Yes",1,0)* (V$10*OFFSET('Efficiency Distributions'!$D$10,MATCH($C15,'Efficiency Distributions'!$C$9:$C$87,0)+RIGHT($E24),0) +V$11*OFFSET('Efficiency Distributions'!$E$10,MATCH($C15,'Efficiency Distributions'!$C$9:$C$87,0)+RIGHT($E24),0)) /SUM(V$10:V$11) -> 0.1268779409 | W24: =IF(INDEX(PC_MAPPING,RIGHT($C15,1),MATCH($E$2,'Data by Building Type'!$D$22:$F$22,0))="Yes",1,0)* (W$10*OFFSET('Efficiency Distributions'!$D$10,MATCH($C15,'Efficiency Distributions'!$C$9:$C$87,0)+RIGHT($E24),0) +W$11*OFFSET('Efficiency Distributions'!$E$10,MATCH($C15,'Efficiency Distributions'!$C$9:$C$87,0)+RIGHT($E24),0)) /SUM(W$10:W$11) -> 0.1263963854 | X24: =IF(INDEX(PC_MAPPING,RIGHT($C15,1),MATCH($E$2,'Data by Building Type'!$D$22:$F$22,0))="Yes",1,0)* (X$10*OFFSET('Efficiency Distributions'!$D$10,MATCH($C15,'Efficiency Distributions'!$C$9:$C$87,0)+RIGHT($E24),0) +X$11*OFFSET('Efficiency Distributions'!$E$10,MATCH($C15,'Efficiency Distributions'!$C$9:$C$87,0)+RIGHT($E24),0)) /SUM(X$10:X$11) -> 0.1279422898 | Y24: =IF(INDEX(PC_MAPPING,RIGHT($C15,1),MATCH($E$2,'Data by Building Type'!$D$22:$F$22,0))="Yes",1,0)* (Y$10*OFFSET('Efficiency Distributions'!$D$10,MATCH($C15,'Efficiency Distributions'!$C$9:$C$87,0)+RIGHT($E24),0) +Y$11*OFFSET('Efficiency Distributions'!$E$10,MATCH($C15,'Efficiency Distributions'!$C$9:$C$87,0)+RIGHT($E24),0)) /SUM(Y$10:Y$11) -> 0.1317033999 | Z24: =IF(INDEX(PC_MAPPING,RIGHT($C15,1),MATCH($E$2,'Data by Building Type'!$D$22:$F$22,0))="Yes",1,0)* (Z$10*OFFSET('Efficiency Distributions'!$D$10,MATCH($C15,'Efficiency Distributions'!$C$9:$C$87,0)+RIGHT($E24),0) +Z$11*OFFSET('Efficiency Distributions'!$E$10,MATCH($C15,'Efficiency Distributions'!$C$9:$C$87,0)+RIGHT($E24),0)) /SUM(Z$10:Z$11) -> 0.1317669133 | AA24: =IF(INDEX(PC_MAPPING,RIGHT($C15,1),MATCH($E$2,'Data by Building Type'!$D$22:$F$22,0))="Yes",1,0)* (AA$10*OFFSET('Efficiency Distributions'!$D$10,MATCH($C15,'Efficiency Distributions'!$C$9:$C$87,0)+RIGHT($E24),0) +AA$11*OFFSET('Efficiency Distributions'!$E$10,MATCH($C15,'Efficiency Distributions'!$C$9:$C$87,0)+RIGHT($E24),0)) /SUM(AA$10:AA$11) -> 0.131184254 | AB24: =IF(INDEX(PC_MAPPING,RIGHT($C15,1),MATCH($E$2,'Data by Building Type'!$D$22:$F$22,0))="Yes",1,0)* (AB$10*OFFSET('Efficiency Distributions'!$D$10,MATCH($C15,'Efficiency Distributions'!$C$9:$C$87,0)+RIGHT($E24),0) +AB$11*OFFSET('Efficiency Distributions'!$E$10,MATCH($C15,'Efficiency Distributions'!$C$9:$C$87,0)+RIGHT($E24),0)) /SUM(AB$10:AB$11) -> 0.1278645862 | AC24: =IF(INDEX(PC_MAPPING,RIGHT($C15,1),MATCH($E$2,'Data by Building Type'!$D$22:$F$22,0))="Yes",1,0)* (AC$10*OFFSET('Efficiency Distributions'!$D$10,MATCH($C15,'Efficiency Distributions'!$C$9:$C$87,0)+RIGHT($E24),0) +AC$11*OFFSET('Efficiency Distributions'!$E$10,MATCH($C15,'Efficiency Distributions'!$C$9:$C$87,0)+RIGHT($E24),0)) /SUM(AC$10:AC$11) -> 0.1280964803 | AD24: =IF(INDEX(PC_MAPPING,RIGHT($C15,1),MATCH($E$2,'Data by Building Type'!$D$22:$F$22,0))="Yes",1,0)* (AD$10*OFFSET('Efficiency Distributions'!$D$10,MATCH($C15,'Efficiency Distributions'!$C$9:$C$87,0)+RIGHT($E24),0) +AD$11*OFFSET('Efficiency Distributions'!$E$10,MATCH($C15,'Efficiency Distributions'!$C$9:$C$87,0)+RIGHT($E24),0)) /SUM(AD$10:AD$11) -> 0.1252384591 | AE24: =IF(INDEX(PC_MAPPING,RIGHT($C15,1),MATCH($E$2,'Data by Building Type'!$D$22:$F$22,0))="Yes",1,0)* (AE$10*OFFSET('Efficiency Distributions'!$D$10,MATCH($C15,'Efficiency Distributions'!$C$9:$C$87,0)+RIGHT($E24),0) +AE$11*OFFSET('Efficiency Distributions'!$E$10,MATCH($C15,'Efficiency Distributions'!$C$9:$C$87,0)+RIGHT($E24),0)) /SUM(AE$10:AE$11) -> 0.1295760552 | AF24: =IF(INDEX(PC_MAPPING,RIGHT($C15,1),MATCH($E$2,'Data by Building Type'!$D$22:$F$22,0))="Yes",1,0)* (AF$10*OFFSET('Efficiency Distributions'!$D$10,MATCH($C15,'Efficiency Distributions'!$C$9:$C$87,0)+RIGHT($E24),0) +AF$11*OFFSET('Efficiency Distributions'!$E$10,MATCH($C15,'Efficiency Distributions'!$C$9:$C$87,0)+RIGHT($E24),0)) /SUM(AF$10:AF$11) -> 0.1391573809 | AG24: =IF(INDEX(PC_MAPPING,RIGHT($C15,1),MATCH($E$2,'Data by Building Type'!$D$22:$F$22,0))="Yes",1,0)* (AG$10*OFFSET('Efficiency Distributions'!$D$10,MATCH($C15,'Efficiency Distributions'!$C$9:$C$87,0)+RIGHT($E24),0) +AG$11*OFFSET('Efficiency Distributions'!$E$10,MATCH($C15,'Efficiency Distributions'!$C$9:$C$87,0)+RIGHT($E24),0)) /SUM(AG$10:AG$11) -> 0.1432480855 | AH24: =IF(INDEX(PC_MAPPING,RIGHT($C15,1),MATCH($E$2,'Data by Building Type'!$D$22:$F$22,0))="Yes",1,0)* (AH$10*OFFSET('Efficiency Distributions'!$D$10,MATCH($C15,'Efficiency Distributions'!$C$9:$C$87,0)+RIGHT($E24),0) +AH$11*OFFSET('Efficiency Distributions'!$E$10,MATCH($C15,'Efficiency Distributions'!$C$9:$C$87,0)+RIGHT($E24),0)) /SUM(AH$10:AH$11) -> 0.1432480855 | AI24: =IF(INDEX(PC_MAPPING,RIGHT($C15,1),MATCH($E$2,'Data by Building Type'!$D$22:$F$22,0))="Yes",1,0)* (AI$10*OFFSET('Efficiency Distributions'!$D$10,MATCH($C15,'Efficiency Distributions'!$C$9:$C$87,0)+RIGHT($E24),0) +AI$11*OFFSET('Efficiency Distributions'!$E$10,MATCH($C15,'Efficiency Distributions'!$C$9:$C$87,0)+RIGHT($E24),0)) /SUM(AI$10:AI$11) -> 0.1432480855 | AJ24: =IF(INDEX(PC_MAPPING,RIGHT($C15,1),MATCH($E$2,'Data by Building Type'!$D$22:$F$22,0))="Yes",1,0)* (AJ$10*OFFSET('Efficiency Distributions'!$D$10,MATCH($C15,'Efficiency Distributions'!$C$9:$C$87,0)+RIGHT($E24),0) +AJ$11*OFFSET('Efficiency Distributions'!$E$10,MATCH($C15,'Efficiency Distributions'!$C$9:$C$87,0)+RIGHT($E24),0)) /SUM(AJ$10:AJ$11) -> 0.1415440127 | AK24: =IF(INDEX(PC_MAPPING,RIGHT($C15,1),MATCH($E$2,'Data by Building Type'!$D$22:$F$22,0))="Yes",1,0)* (AK$10*OFFSET('Efficiency Distributions'!$D$10,MATCH($C15,'Efficiency Distributions'!$C$9:$C$87,0)+RIGHT($E24),0) +AK$11*OFFSET('Efficiency Distributions'!$E$10,MATCH($C15,'Efficiency Distributions'!$C$9:$C$87,0)+RIGHT($E24),0)) /SUM(AK$10:AK$11) -> 0.1177183059 | AL24: =IF(INDEX(PC_MAPPING,RIGHT($C15,1),MATCH($E$2,'Data by Building Type'!$D$22:$F$22,0))="Yes",1,0)* (AL$10*OFFSET('Efficiency Distributions'!$D$10,MATCH($C15,'Efficiency Distributions'!$C$9:$C$87,0)+RIGHT($E24),0) +AL$11*OFFSET('Efficiency Distributions'!$E$10,MATCH($C15,'Efficiency Distributions'!$C$9:$C$87,0)+RIGHT($E24),0)) /SUM(AL$10:AL$11) -> 0.1184313378 | AM24: =IF(INDEX(PC_MAPPING,RIGHT($C15,1),MATCH($E$2,'Data by Building Type'!$D$22:$F$22,0))="Yes",1,0)* (AM$10*OFFSET('Efficiency Distributions'!$D$10,MATCH($C15,'Efficiency Distributions'!$C$9:$C$87,0)+RIGHT($E24),0) +AM$11*OFFSET('Efficiency Distributions'!$E$10,MATCH($C15,'Efficiency Distributions'!$C$9:$C$87,0)+RIGHT($E24),0)) /SUM(AM$10:AM$11) -> 0.1153680229 | AN24: =IF(INDEX(PC_MAPPING,RIGHT($C15,1),MATCH($E$2,'Data by Building Type'!$D$22:$F$22,0))="Yes",1,0)* (AN$10*OFFSET('Efficiency Distributions'!$D$10,MATCH($C15,'Efficiency Distributions'!$C$9:$C$87,0)+RIGHT($E24),0) +AN$11*OFFSET('Efficiency Distributions'!$E$10,MATCH($C15,'Efficiency Distributions'!$C$9:$C$87,0)+RIGHT($E24),0)) /SUM(AN$10:AN$11) -> 0.1156153484 | AO24: =IF(INDEX(PC_MAPPING,RIGHT($C15,1),MATCH($E$2,'Data by Building Type'!$D$22:$F$22,0))="Yes",1,0)* (AO$10*OFFSET('Efficiency Distributions'!$D$10,MATCH($C15,'Efficiency Distributions'!$C$9:$C$87,0)+RIGHT($E24),0) +AO$11*OFFSET('Efficiency Distributions'!$E$10,MATCH($C15,'Efficiency Distributions'!$C$9:$C$87,0)+RIGHT($E24),0)) /SUM(AO$10:AO$11) -> 0.1144150509 | AP24: =IF(INDEX(PC_MAPPING,RIGHT($C15,1),MATCH($E$2,'Data by Building Type'!$D$22:$F$22,0))="Yes",1,0)* (AP$10*OFFSET('Efficiency Distributions'!$D$10,MATCH($C15,'Efficiency Distributions'!$C$9:$C$87,0)+RIGHT($E24),0) +AP$11*OFFSET('Efficiency Distributions'!$E$10,MATCH($C15,'Efficiency Distributions'!$C$9:$C$87,0)+RIGHT($E24),0)) /SUM(AP$10:AP$11) -> 0.1149430977 | AQ24: =IF(INDEX(PC_MAPPING,RIGHT($C15,1),MATCH($E$2,'Data by Building Type'!$D$22:$F$22,0))="Yes",1,0)* (AQ$10*OFFSET('Efficiency Distributions'!$D$10,MATCH($C15,'Efficiency Distributions'!$C$9:$C$87,0)+RIGHT($E24),0) +AQ$11*OFFSET('Efficiency Distributions'!$E$10,MATCH($C15,'Efficiency Distributions'!$C$9:$C$87,0)+RIGHT($E24),0)) /SUM(AQ$10:AQ$11) -> 0.1151224239 | AR24: =IF(INDEX(PC_MAPPING,RIGHT($C15,1),MATCH($E$2,'Data by Building Type'!$D$22:$F$22,0))="Yes",1,0)* (AR$10*OFFSET('Efficiency Distributions'!$D$10,MATCH($C15,'Efficiency Distributions'!$C$9:$C$87,0)+RIGHT($E24),0) +AR$11*OFFSET('Efficiency Distributions'!$E$10,MATCH($C15,'Efficiency Distributions'!$C$9:$C$87,0)+RIGHT($E24),0)) /SUM(AR$10:AR$11) -> 0.1156868555 | AS24: =IF(INDEX(PC_MAPPING,RIGHT($C15,1),MATCH($E$2,'Data by Building Type'!$D$22:$F$22,0))="Yes",1,0)* (AS$10*OFFSET('Efficiency Distributions'!$D$10,MATCH($C15,'Efficiency Distributions'!$C$9:$C$87,0)+RIGHT($E24),0) +AS$11*OFFSET('Efficiency Distributions'!$E$10,MATCH($C15,'Efficiency Distributions'!$C$9:$C$87,0)+RIGHT($E24),0)) /SUM(AS$10:AS$11) -> 0.1156793588 | AT24: =IF(INDEX(PC_MAPPING,RIGHT($C15,1),MATCH($E$2,'Data by Building Type'!$D$22:$F$22,0))="Yes",1,0)* (AT$10*OFFSET('Efficiency Distributions'!$D$10,MATCH($C15,'Efficiency Distributions'!$C$9:$C$87,0)+RIGHT($E24),0) +AT$11*OFFSET('Efficiency Distributions'!$E$10,MATCH($C15,'Efficiency Distributions'!$C$9:$C$87,0)+RIGHT($E24),0)) /SUM(AT$10:AT$11) -> 0.1153801886 | AU24: =IF(INDEX(PC_MAPPING,RIGHT($C15,1),MATCH($E$2,'Data by Building Type'!$D$22:$F$22,0))="Yes",1,0)* (AU$10*OFFSET('Efficiency Distributions'!$D$10,MATCH($C15,'Efficiency Distributions'!$C$9:$C$87,0)+RIGHT($E24),0) +AU$11*OFFSET('Efficiency Distributions'!$E$10,MATCH($C15,'Efficiency Distributions'!$C$9:$C$87,0)+RIGHT($E24),0)) /SUM(AU$10:AU$11) -> 0.115731517 | AV24: =IF(INDEX(PC_MAPPING,RIGHT($C15,1),MATCH($E$2,'Data by Building Type'!$D$22:$F$22,0))="Yes",1,0)* (AV$10*OFFSET('Efficiency Distributions'!$D$10,MATCH($C15,'Efficiency Distributions'!$C$9:$C$87,0)+RIGHT($E24),0) +AV$11*OFFSET('Efficiency Distributions'!$E$10,MATCH($C15,'Efficiency Distributions'!$C$9:$C$87,0)+RIGHT($E24),0)) /SUM(AV$10:AV$11) -> 0.1205797753 | AW24: =IF(INDEX(PC_MAPPING,RIGHT($C15,1),MATCH($E$2,'Data by Building Type'!$D$22:$F$22,0))="Yes",1,0)* (AW$10*OFFSET('Efficiency Distributions'!$D$10,MATCH($C15,'Efficiency Distributions'!$C$9:$C$87,0)+RIGHT($E24),0) +AW$11*OFFSET('Efficiency Distributions'!$E$10,MATCH($C15,'Efficiency Distributions'!$C$9:$C$87,0)+RIGHT($E24),0)) /SUM(AW$10:AW$11) -> 0.120293883 | AX24: =IF(INDEX(PC_MAPPING,RIGHT($C15,1),MATCH($E$2,'Data by Building Type'!$D$22:$F$22,0))="Yes",1,0)* (AX$10*OFFSET('Efficiency Distributions'!$D$10,MATCH($C15,'Efficiency Distributions'!$C$9:$C$87,0)+RIGHT($E24),0) +AX$11*OFFSET('Efficiency Distributions'!$E$10,MATCH($C15,'Efficiency Distributions'!$C$9:$C$87,0)+RIGHT($E24),0)) /SUM(AX$10:AX$11) -> 0.1217368904 | AY24: =IF(INDEX(PC_MAPPING,RIGHT($C15,1),MATCH($E$2,'Data by Building Type'!$D$22:$F$22,0))="Yes",1,0)* (AY$10*OFFSET('Efficiency Distributions'!$D$10,MATCH($C15,'Efficiency Distributions'!$C$9:$C$87,0)+RIGHT($E24),0) +AY$11*OFFSET('Efficiency Distributions'!$E$10,MATCH($C15,'Efficiency Distributions'!$C$9:$C$87,0)+RIGHT($E24),0)) /SUM(AY$10:AY$11) -> 0.1221747312 | AZ24: =IF(INDEX(PC_MAPPING,RIGHT($C15,1),MATCH($E$2,'Data by Building Type'!$D$22:$F$22,0))="Yes",1,0)* (AZ$10*OFFSET('Efficiency Distributions'!$D$10,MATCH($C15,'Efficiency Distributions'!$C$9:$C$87,0)+RIGHT($E24),0) +AZ$11*OFFSET('Efficiency Distributions'!$E$10,MATCH($C15,'Efficiency Distributions'!$C$9:$C$87,0)+RIGHT($E24),0)) /SUM(AZ$10:AZ$11) -> 0.1215178148 | BA24: =IF(INDEX(PC_MAPPING,RIGHT($C15,1),MATCH($E$2,'Data by Building Type'!$D$22:$F$22,0))="Yes",1,0)* (BA$10*OFFSET('Efficiency Distributions'!$D$10,MATCH($C15,'Efficiency Distributions'!$C$9:$C$87,0)+RIGHT($E24),0) +BA$11*OFFSET('Efficiency Distributions'!$E$10,MATCH($C15,'Efficiency Distributions'!$C$9:$C$87,0)+RIGHT($E24),0)) /SUM(BA$10:BA$11) -> 0.1205077439 | BB24: =IF(INDEX(PC_MAPPING,RIGHT($C15,1),MATCH($E$2,'Data by Building Type'!$D$22:$F$22,0))="Yes",1,0)* (BB$10*OFFSET('Efficiency Distributions'!$D$10,MATCH($C15,'Efficiency Distributions'!$C$9:$C$87,0)+RIGHT($E24),0) +BB$11*OFFSET('Efficiency Distributions'!$E$10,MATCH($C15,'Efficiency Distributions'!$C$9:$C$87,0)+RIGHT($E24),0)) /SUM(BB$10:BB$11) -> 0.1183463416 | BC24: =IF(INDEX(PC_MAPPING,RIGHT($C15,1),MATCH($E$2,'Data by Building Type'!$D$22:$F$22,0))="Yes",1,0)* (BC$10*OFFSET('Efficiency Distributions'!$D$10,MATCH($C15,'Efficiency Distributions'!$C$9:$C$87,0)+RIGHT($E24),0) +BC$11*OFFSET('Efficiency Distributions'!$E$10,MATCH($C15,'Efficiency Distributions'!$C$9:$C$87,0)+RIGHT($E24),0)) /SUM(BC$10:BC$11) -> 0.1179080676 | BD24: =IF(INDEX(PC_MAPPING,RIGHT($C15,1),MATCH($E$2,'Data by Building Type'!$D$22:$F$22,0))="Yes",1,0)* (BD$10*OFFSET('Efficiency Distributions'!$D$10,MATCH($C15,'Efficiency Distributions'!$C$9:$C$87,0)+RIGHT($E24),0) +BD$11*OFFSET('Efficiency Distributions'!$E$10,MATCH($C15,'Efficiency Distributions'!$C$9:$C$87,0)+RIGHT($E24),0)) /SUM(BD$10:BD$11) -> 0.1203605807 | BE24: =IF(INDEX(PC_MAPPING,RIGHT($C15,1),MATCH($E$2,'Data by Building Type'!$D$22:$F$22,0))="Yes",1,0)* (BE$10*OFFSET('Efficiency Distributions'!$D$10,MATCH($C15,'Efficiency Distributions'!$C$9:$C$87,0)+RIGHT($E24),0) +BE$11*OFFSET('Efficiency Distributions'!$E$10,MATCH($C15,'Efficiency Distributions'!$C$9:$C$87,0)+RIGHT($E24),0)) /SUM(BE$10:BE$11) -> 0.1220751951 | BF24: =IF(INDEX(PC_MAPPING,RIGHT($C15,1),MATCH($E$2,'Data by Building Type'!$D$22:$F$22,0))="Yes",1,0)* (BF$10*OFFSET('Efficiency Distributions'!$D$10,MATCH($C15,'Efficiency Distributions'!$C$9:$C$87,0)+RIGHT($E24),0) +BF$11*OFFSET('Efficiency Distributions'!$E$10,MATCH($C15,'Efficiency Distributions'!$C$9:$C$87,0)+RIGHT($E24),0)) /SUM(BF$10:BF$11) -> 0.1254834713 | BG24: =IF(INDEX(PC_MAPPING,RIGHT($C15,1),MATCH($E$2,'Data by Building Type'!$D$22:$F$22,0))="Yes",1,0)* (BG$10*OFFSET('Efficiency Distributions'!$D$10,MATCH($C15,'Efficiency Distributions'!$C$9:$C$87,0)+RIGHT($E24),0) +BG$11*OFFSET('Efficiency Distributions'!$E$10,MATCH($C15,'Efficiency Distributions'!$C$9:$C$87,0)+RIGHT($E24),0)) /SUM(BG$10:BG$11) -> 0.1261140507
E25: EL6 | F25: =IF(INDEX(PC_MAPPING,RIGHT($C15,1),MATCH($E$2,'Data by Building Type'!$D$22:$F$22,0))="Yes",1,0)* (F$10*OFFSET('Efficiency Distributions'!$D$10,MATCH($C15,'Efficiency Distributions'!$C$9:$C$87,0)+RIGHT($E25),0) +F$11*OFFSET('Efficiency Distributions'!$E$10,MATCH($C15,'Efficiency Distributions'!$C$9:$C$87,0)+RIGHT($E25),0)) /SUM(F$10:F$11) -> 0 | G25: =IF(INDEX(PC_MAPPING,RIGHT($C15,1),MATCH($E$2,'Data by Building Type'!$D$22:$F$22,0))="Yes",1,0)* (G$10*OFFSET('Efficiency Distributions'!$D$10,MATCH($C15,'Efficiency Distributions'!$C$9:$C$87,0)+RIGHT($E25),0) +G$11*OFFSET('Efficiency Distributions'!$E$10,MATCH($C15,'Efficiency Distributions'!$C$9:$C$87,0)+RIGHT($E25),0)) /SUM(G$10:G$11) -> 0 | H25: =IF(INDEX(PC_MAPPING,RIGHT($C15,1),MATCH($E$2,'Data by Building Type'!$D$22:$F$22,0))="Yes",1,0)* (H$10*OFFSET('Efficiency Distributions'!$D$10,MATCH($C15,'Efficiency Distributions'!$C$9:$C$87,0)+RIGHT($E25),0) +H$11*OFFSET('Efficiency Distributions'!$E$10,MATCH($C15,'Efficiency Distributions'!$C$9:$C$87,0)+RIGHT($E25),0)) /SUM(H$10:H$11) -> 0 | I25: =IF(INDEX(PC_MAPPING,RIGHT($C15,1),MATCH($E$2,'Data by Building Type'!$D$22:$F$22,0))="Yes",1,0)* (I$10*OFFSET('Efficiency Distributions'!$D$10,MATCH($C15,'Efficiency Distributions'!$C$9:$C$87,0)+RIGHT($E25),0) +I$11*OFFSET('Efficiency Distributions'!$E$10,MATCH($C15,'Efficiency Distributions'!$C$9:$C$87,0)+RIGHT($E25),0)) /SUM(I$10:I$11) -> 0 | J25: =IF(INDEX(PC_MAPPING,RIGHT($C15,1),MATCH($E$2,'Data by Building Type'!$D$22:$F$22,0))="Yes",1,0)* (J$10*OFFSET('Efficiency Distributions'!$D$10,MATCH($C15,'Efficiency Distributions'!$C$9:$C$87,0)+RIGHT($E25),0) +J$11*OFFSET('Efficiency Distributions'!$E$10,MATCH($C15,'Efficiency Distributions'!$C$9:$C$87,0)+RIGHT($E25),0)) /SUM(J$10:J$11) -> 0 | K25: =IF(INDEX(PC_MAPPING,RIGHT($C15,1),MATCH($E$2,'Data by Building Type'!$D$22:$F$22,0))="Yes",1,0)* (K$10*OFFSET('Efficiency Distributions'!$D$10,MATCH($C15,'Efficiency Distributions'!$C$9:$C$87,0)+RIGHT($E25),0) +K$11*OFFSET('Efficiency Distributions'!$E$10,MATCH($C15,'Efficiency Distributions'!$C$9:$C$87,0)+RIGHT($E25),0)) /SUM(K$10:K$11) -> 0 | L25: =IF(INDEX(PC_MAPPING,RIGHT($C15,1),MATCH($E$2,'Data by Building Type'!$D$22:$F$22,0))="Yes",1,0)* (L$10*OFFSET('Efficiency Distributions'!$D$10,MATCH($C15,'Efficiency Distributions'!$C$9:$C$87,0)+RIGHT($E25),0) +L$11*OFFSET('Efficiency Distributions'!$E$10,MATCH($C15,'Efficiency Distributions'!$C$9:$C$87,0)+RIGHT($E25),0)) /SUM(L$10:L$11) -> 0 | M25: =IF(INDEX(PC_MAPPING,RIGHT($C15,1),MATCH($E$2,'Data by Building Type'!$D$22:$F$22,0))="Yes",1,0)* (M$10*OFFSET('Efficiency Distributions'!$D$10,MATCH($C15,'Efficiency Distributions'!$C$9:$C$87,0)+RIGHT($E25),0) +M$11*OFFSET('Efficiency Distributions'!$E$10,MATCH($C15,'Efficiency Distributions'!$C$9:$C$87,0)+RIGHT($E25),0)) /SUM(M$10:M$11) -> 0 | N25: =IF(INDEX(PC_MAPPING,RIGHT($C15,1),MATCH($E$2,'Data by Building Type'!$D$22:$F$22,0))="Yes",1,0)* (N$10*OFFSET('Efficiency Distributions'!$D$10,MATCH($C15,'Efficiency Distributions'!$C$9:$C$87,0)+RIGHT($E25),0) +N$11*OFFSET('Efficiency Distributions'!$E$10,MATCH($C15,'Efficiency Distributions'!$C$9:$C$87,0)+RIGHT($E25),0)) /SUM(N$10:N$11) -> 0 | O25: =IF(INDEX(PC_MAPPING,RIGHT($C15,1),MATCH($E$2,'Data by Building Type'!$D$22:$F$22,0))="Yes",1,0)* (O$10*OFFSET('Efficiency Distributions'!$D$10,MATCH($C15,'Efficiency Distributions'!$C$9:$C$87,0)+RIGHT($E25),0) +O$11*OFFSET('Efficiency Distributions'!$E$10,MATCH($C15,'Efficiency Distributions'!$C$9:$C$87,0)+RIGHT($E25),0)) /SUM(O$10:O$11) -> 0 | P25: =IF(INDEX(PC_MAPPING,RIGHT($C15,1),MATCH($E$2,'Data by Building Type'!$D$22:$F$22,0))="Yes",1,0)* (P$10*OFFSET('Efficiency Distributions'!$D$10,MATCH($C15,'Efficiency Distributions'!$C$9:$C$87,0)+RIGHT($E25),0) +P$11*OFFSET('Efficiency Distributions'!$E$10,MATCH($C15,'Efficiency Distributions'!$C$9:$C$87,0)+RIGHT($E25),0)) /SUM(P$10:P$11) -> 0 | Q25: =IF(INDEX(PC_MAPPING,RIGHT($C15,1),MATCH($E$2,'Data by Building Type'!$D$22:$F$22,0))="Yes",1,0)* (Q$10*OFFSET('Efficiency Distributions'!$D$10,MATCH($C15,'Efficiency Distributions'!$C$9:$C$87,0)+RIGHT($E25),0) +Q$11*OFFSET('Efficiency Distributions'!$E$10,MATCH($C15,'Efficiency Distributions'!$C$9:$C$87,0)+RIGHT($E25),0)) /SUM(Q$10:Q$11) -> 0 | R25: =IF(INDEX(PC_MAPPING,RIGHT($C15,1),MATCH($E$2,'Data by Building Type'!$D$22:$F$22,0))="Yes",1,0)* (R$10*OFFSET('Efficiency Distributions'!$D$10,MATCH($C15,'Efficiency Distributions'!$C$9:$C$87,0)+RIGHT($E25),0) +R$11*OFFSET('Efficiency Distributions'!$E$10,MATCH($C15,'Efficiency Distributions'!$C$9:$C$87,0)+RIGHT($E25),0)) /SUM(R$10:R$11) -> 0 | S25: =IF(INDEX(PC_MAPPING,RIGHT($C15,1),MATCH($E$2,'Data by Building Type'!$D$22:$F$22,0))="Yes",1,0)* (S$10*OFFSET('Efficiency Distributions'!$D$10,MATCH($C15,'Efficiency Distributions'!$C$9:$C$87,0)+RIGHT($E25),0) +S$11*OFFSET('Efficiency Distributions'!$E$10,MATCH($C15,'Efficiency Distributions'!$C$9:$C$87,0)+RIGHT($E25),0)) /SUM(S$10:S$11) -> 0 | T25: =IF(INDEX(PC_MAPPING,RIGHT($C15,1),MATCH($E$2,'Data by Building Type'!$D$22:$F$22,0))="Yes",1,0)* (T$10*OFFSET('Efficiency Distributions'!$D$10,MATCH($C15,'Efficiency Distributions'!$C$9:$C$87,0)+RIGHT($E25),0) +T$11*OFFSET('Efficiency Distributions'!$E$10,MATCH($C15,'Efficiency Distributions'!$C$9:$C$87,0)+RIGHT($E25),0)) /SUM(T$10:T$11) -> 0 | U25: =IF(INDEX(PC_MAPPING,RIGHT($C15,1),MATCH($E$2,'Data by Building Type'!$D$22:$F$22,0))="Yes",1,0)* (U$10*OFFSET('Efficiency Distributions'!$D$10,MATCH($C15,'Efficiency Distributions'!$C$9:$C$87,0)+RIGHT($E25),0) +U$11*OFFSET('Efficiency Distributions'!$E$10,MATCH($C15,'Efficiency Distributions'!$C$9:$C$87,0)+RIGHT($E25),0)) /SUM(U$10:U$11) -> 0 | V25: =IF(INDEX(PC_MAPPING,RIGHT($C15,1),MATCH($E$2,'Data by Building Type'!$D$22:$F$22,0))="Yes",1,0)* (V$10*OFFSET('Efficiency Distributions'!$D$10,MATCH($C15,'Efficiency Distributions'!$C$9:$C$87,0)+RIGHT($E25),0) +V$11*OFFSET('Efficiency Distributions'!$E$10,MATCH($C15,'Efficiency Distributions'!$C$9:$C$87,0)+RIGHT($E25),0)) /SUM(V$10:V$11) -> 0 | W25: =IF(INDEX(PC_MAPPING,RIGHT($C15,1),MATCH($E$2,'Data by Building Type'!$D$22:$F$22,0))="Yes",1,0)* (W$10*OFFSET('Efficiency Distributions'!$D$10,MATCH($C15,'Efficiency Distributions'!$C$9:$C$87,0)+RIGHT($E25),0) +W$11*OFFSET('Efficiency Distributions'!$E$10,MATCH($C15,'Efficiency Distributions'!$C$9:$C$87,0)+RIGHT($E25),0)) /SUM(W$10:W$11) -> 0 | X25: =IF(INDEX(PC_MAPPING,RIGHT($C15,1),MATCH($E$2,'Data by Building Type'!$D$22:$F$22,0))="Yes",1,0)* (X$10*OFFSET('Efficiency Distributions'!$D$10,MATCH($C15,'Efficiency Distributions'!$C$9:$C$87,0)+RIGHT($E25),0) +X$11*OFFSET('Efficiency Distributions'!$E$10,MATCH($C15,'Efficiency Distributions'!$C$9:$C$87,0)+RIGHT($E25),0)) /SUM(X$10:X$11) -> 0 | Y25: =IF(INDEX(PC_MAPPING,RIGHT($C15,1),MATCH($E$2,'Data by Building Type'!$D$22:$F$22,0))="Yes",1,0)* (Y$10*OFFSET('Efficiency Distributions'!$D$10,MATCH($C15,'Efficiency Distributions'!$C$9:$C$87,0)+RIGHT($E25),0) +Y$11*OFFSET('Efficiency Distributions'!$E$10,MATCH($C15,'Efficiency Distributions'!$C$9:$C$87,0)+RIGHT($E25),0)) /SUM(Y$10:Y$11) -> 0 | Z25: =IF(INDEX(PC_MAPPING,RIGHT($C15,1),MATCH($E$2,'Data by Building Type'!$D$22:$F$22,0))="Yes",1,0)* (Z$10*OFFSET('Efficiency Distributions'!$D$10,MATCH($C15,'Efficiency Distributions'!$C$9:$C$87,0)+RIGHT($E25),0) +Z$11*OFFSET('Efficiency Distributions'!$E$10,MATCH($C15,'Efficiency Distributions'!$C$9:$C$87,0)+RIGHT($E25),0)) /SUM(Z$10:Z$11) -> 0 | AA25: =IF(INDEX(PC_MAPPING,RIGHT($C15,1),MATCH($E$2,'Data by Building Type'!$D$22:$F$22,0))="Yes",1,0)* (AA$10*OFFSET('Efficiency Distributions'!$D$10,MATCH($C15,'Efficiency Distributions'!$C$9:$C$87,0)+RIGHT($E25),0) +AA$11*OFFSET('Efficiency Distributions'!$E$10,MATCH($C15,'Efficiency Distributions'!$C$9:$C$87,0)+RIGHT($E25),0)) /SUM(AA$10:AA$11) -> 0 | AB25: =IF(INDEX(PC_MAPPING,RIGHT($C15,1),MATCH($E$2,'Data by Building Type'!$D$22:$F$22,0))="Yes",1,0)* (AB$10*OFFSET('Efficiency Distributions'!$D$10,MATCH($C15,'Efficiency Distributions'!$C$9:$C$87,0)+RIGHT($E25),0) +AB$11*OFFSET('Efficiency Distributions'!$E$10,MATCH($C15,'Efficiency Distributions'!$C$9:$C$87,0)+RIGHT($E25),0)) /SUM(AB$10:AB$11) -> 0 | AC25: =IF(INDEX(PC_MAPPING,RIGHT($C15,1),MATCH($E$2,'Data by Building Type'!$D$22:$F$22,0))="Yes",1,0)* (AC$10*OFFSET('Efficiency Distributions'!$D$10,MATCH($C15,'Efficiency Distributions'!$C$9:$C$87,0)+RIGHT($E25),0) +AC$11*OFFSET('Efficiency Distributions'!$E$10,MATCH($C15,'Efficiency Distributions'!$C$9:$C$87,0)+RIGHT($E25),0)) /SUM(AC$10:AC$11) -> 0 | AD25: =IF(INDEX(PC_MAPPING,RIGHT($C15,1),MATCH($E$2,'Data by Building Type'!$D$22:$F$22,0))="Yes",1,0)* (AD$10*OFFSET('Efficiency Distributions'!$D$10,MATCH($C15,'Efficiency Distributions'!$C$9:$C$87,0)+RIGHT($E25),0) +AD$11*OFFSET('Efficiency Distributions'!$E$10,MATCH($C15,'Efficiency Distributions'!$C$9:$C$87,0)+RIGHT($E25),0)) /SUM(AD$10:AD$11) -> 0 | AE25: =IF(INDEX(PC_MAPPING,RIGHT($C15,1),MATCH($E$2,'Data by Building Type'!$D$22:$F$22,0))="Yes",1,0)* (AE$10*OFFSET('Efficiency Distributions'!$D$10,MATCH($C15,'Efficiency Distributions'!$C$9:$C$87,0)+RIGHT($E25),0) +AE$11*OFFSET('Efficiency Distributions'!$E$10,MATCH($C15,'Efficiency Distributions'!$C$9:$C$87,0)+RIGHT($E25),0)) /SUM(AE$10:AE$11) -> 0 | AF25: =IF(INDEX(PC_MAPPING,RIGHT($C15,1),MATCH($E$2,'Data by Building Type'!$D$22:$F$22,0))="Yes",1,0)* (AF$10*OFFSET('Efficiency Distributions'!$D$10,MATCH($C15,'Efficiency Distributions'!$C$9:$C$87,0)+RIGHT($E25),0) +AF$11*OFFSET('Efficiency Distributions'!$E$10,MATCH($C15,'Efficiency Distributions'!$C$9:$C$87,0)+RIGHT($E25),0)) /SUM(AF$10:AF$11) -> 0 | AG25: =IF(INDEX(PC_MAPPING,RIGHT($C15,1),MATCH($E$2,'Data by Building Type'!$D$22:$F$22,0))="Yes",1,0)* (AG$10*OFFSET('Efficiency Distributions'!$D$10,MATCH($C15,'Efficiency Distributions'!$C$9:$C$87,0)+RIGHT($E25),0) +AG$11*OFFSET('Efficiency Distributions'!$E$10,MATCH($C15,'Efficiency Distributions'!$C$9:$C$87,0)+RIGHT($E25),0)) /SUM(AG$10:AG$11) -> 0 | AH25: =IF(INDEX(PC_MAPPING,RIGHT($C15,1),MATCH($E$2,'Data by Building Type'!$D$22:$F$22,0))="Yes",1,0)* (AH$10*OFFSET('Efficiency Distributions'!$D$10,MATCH($C15,'Efficiency Distributions'!$C$9:$C$87,0)+RIGHT($E25),0) +AH$11*OFFSET('Efficiency Distributions'!$E$10,MATCH($C15,'Efficiency Distributions'!$C$9:$C$87,0)+RIGHT($E25),0)) /SUM(AH$10:AH$11) -> 0 | AI25: =IF(INDEX(PC_MAPPING,RIGHT($C15,1),MATCH($E$2,'Data by Building Type'!$D$22:$F$22,0))="Yes",1,0)* (AI$10*OFFSET('Efficiency Distributions'!$D$10,MATCH($C15,'Efficiency Distributions'!$C$9:$C$87,0)+RIGHT($E25),0) +AI$11*OFFSET('Efficiency Distributions'!$E$10,MATCH($C15,'Efficiency Distributions'!$C$9:$C$87,0)+RIGHT($E25),0)) /SUM(AI$10:AI$11) -> 0 | AJ25: =IF(INDEX(PC_MAPPING,RIGHT($C15,1),MATCH($E$2,'Data by Building Type'!$D$22:$F$22,0))="Yes",1,0)* (AJ$10*OFFSET('Efficiency Distributions'!$D$10,MATCH($C15,'Efficiency Distributions'!$C$9:$C$87,0)+RIGHT($E25),0) +AJ$11*OFFSET('Efficiency Distributions'!$E$10,MATCH($C15,'Efficiency Distributions'!$C$9:$C$87,0)+RIGHT($E25),0)) /SUM(AJ$10:AJ$11) -> 0 | AK25: =IF(INDEX(PC_MAPPING,RIGHT($C15,1),MATCH($E$2,'Data by Building Type'!$D$22:$F$22,0))="Yes",1,0)* (AK$10*OFFSET('Efficiency Distributions'!$D$10,MATCH($C15,'Efficiency Distributions'!$C$9:$C$87,0)+RIGHT($E25),0) +AK$11*OFFSET('Efficiency Distributions'!$E$10,MATCH($C15,'Efficiency Distributions'!$C$9:$C$87,0)+RIGHT($E25),0)) /SUM(AK$10:AK$11) -> 0 | AL25: =IF(INDEX(PC_MAPPING,RIGHT($C15,1),MATCH($E$2,'Data by Building Type'!$D$22:$F$22,0))="Yes",1,0)* (AL$10*OFFSET('Efficiency Distributions'!$D$10,MATCH($C15,'Efficiency Distributions'!$C$9:$C$87,0)+RIGHT($E25),0) +AL$11*OFFSET('Efficiency Distributions'!$E$10,MATCH($C15,'Efficiency Distributions'!$C$9:$C$87,0)+RIGHT($E25),0)) /SUM(AL$10:AL$11) -> 0 | AM25: =IF(INDEX(PC_MAPPING,RIGHT($C15,1),MATCH($E$2,'Data by Building Type'!$D$22:$F$22,0))="Yes",1,0)* (AM$10*OFFSET('Efficiency Distributions'!$D$10,MATCH($C15,'Efficiency Distributions'!$C$9:$C$87,0)+RIGHT($E25),0) +AM$11*OFFSET('Efficiency Distributions'!$E$10,MATCH($C15,'Efficiency Distributions'!$C$9:$C$87,0)+RIGHT($E25),0)) /SUM(AM$10:AM$11) -> 0 | AN25: =IF(INDEX(PC_MAPPING,RIGHT($C15,1),MATCH($E$2,'Data by Building Type'!$D$22:$F$22,0))="Yes",1,0)* (AN$10*OFFSET('Efficiency Distributions'!$D$10,MATCH($C15,'Efficiency Distributions'!$C$9:$C$87,0)+RIGHT($E25),0) +AN$11*OFFSET('Efficiency Distributions'!$E$10,MATCH($C15,'Efficiency Distributions'!$C$9:$C$87,0)+RIGHT($E25),0)) /SUM(AN$10:AN$11) -> 0 | AO25: =IF(INDEX(PC_MAPPING,RIGHT($C15,1),MATCH($E$2,'Data by Building Type'!$D$22:$F$22,0))="Yes",1,0)* (AO$10*OFFSET('Efficiency Distributions'!$D$10,MATCH($C15,'Efficiency Distributions'!$C$9:$C$87,0)+RIGHT($E25),0) +AO$11*OFFSET('Efficiency Distributions'!$E$10,MATCH($C15,'Efficiency Distributions'!$C$9:$C$87,0)+RIGHT($E25),0)) /SUM(AO$10:AO$11) -> 0 | AP25: =IF(INDEX(PC_MAPPING,RIGHT($C15,1),MATCH($E$2,'Data by Building Type'!$D$22:$F$22,0))="Yes",1,0)* (AP$10*OFFSET('Efficiency Distributions'!$D$10,MATCH($C15,'Efficiency Distributions'!$C$9:$C$87,0)+RIGHT($E25),0) +AP$11*OFFSET('Efficiency Distributions'!$E$10,MATCH($C15,'Efficiency Distributions'!$C$9:$C$87,0)+RIGHT($E25),0)) /SUM(AP$10:AP$11) -> 0 | AQ25: =IF(INDEX(PC_MAPPING,RIGHT($C15,1),MATCH($E$2,'Data by Building Type'!$D$22:$F$22,0))="Yes",1,0)* (AQ$10*OFFSET('Efficiency Distributions'!$D$10,MATCH($C15,'Efficiency Distributions'!$C$9:$C$87,0)+RIGHT($E25),0) +AQ$11*OFFSET('Efficiency Distributions'!$E$10,MATCH($C15,'Efficiency Distributions'!$C$9:$C$87,0)+RIGHT($E25),0)) /SUM(AQ$10:AQ$11) -> 0 | AR25: =IF(INDEX(PC_MAPPING,RIGHT($C15,1),MATCH($E$2,'Data by Building Type'!$D$22:$F$22,0))="Yes",1,0)* (AR$10*OFFSET('Efficiency Distributions'!$D$10,MATCH($C15,'Efficiency Distributions'!$C$9:$C$87,0)+RIGHT($E25),0) +AR$11*OFFSET('Efficiency Distributions'!$E$10,MATCH($C15,'Efficiency Distributions'!$C$9:$C$87,0)+RIGHT($E25),0)) /SUM(AR$10:AR$11) -> 0 | AS25: =IF(INDEX(PC_MAPPING,RIGHT($C15,1),MATCH($E$2,'Data by Building Type'!$D$22:$F$22,0))="Yes",1,0)* (AS$10*OFFSET('Efficiency Distributions'!$D$10,MATCH($C15,'Efficiency Distributions'!$C$9:$C$87,0)+RIGHT($E25),0) +AS$11*OFFSET('Efficiency Distributions'!$E$10,MATCH($C15,'Efficiency Distributions'!$C$9:$C$87,0)+RIGHT($E25),0)) /SUM(AS$10:AS$11) -> 0 | AT25: =IF(INDEX(PC_MAPPING,RIGHT($C15,1),MATCH($E$2,'Data by Building Type'!$D$22:$F$22,0))="Yes",1,0)* (AT$10*OFFSET('Efficiency Distributions'!$D$10,MATCH($C15,'Efficiency Distributions'!$C$9:$C$87,0)+RIGHT($E25),0) +AT$11*OFFSET('Efficiency Distributions'!$E$10,MATCH($C15,'Efficiency Distributions'!$C$9:$C$87,0)+RIGHT($E25),0)) /SUM(AT$10:AT$11) -> 0 | AU25: =IF(INDEX(PC_MAPPING,RIGHT($C15,1),MATCH($E$2,'Data by Building Type'!$D$22:$F$22,0))="Yes",1,0)* (AU$10*OFFSET('Efficiency Distributions'!$D$10,MATCH($C15,'Efficiency Distributions'!$C$9:$C$87,0)+RIGHT($E25),0) +AU$11*OFFSET('Efficiency Distributions'!$E$10,MATCH($C15,'Efficiency Distributions'!$C$9:$C$87,0)+RIGHT($E25),0)) /SUM(AU$10:AU$11) -> 0 | AV25: =IF(INDEX(PC_MAPPING,RIGHT($C15,1),MATCH($E$2,'Data by Building Type'!$D$22:$F$22,0))="Yes",1,0)* (AV$10*OFFSET('Efficiency Distributions'!$D$10,MATCH($C15,'Efficiency Distributions'!$C$9:$C$87,0)+RIGHT($E25),0) +AV$11*OFFSET('Efficiency Distributions'!$E$10,MATCH($C15,'Efficiency Distributions'!$C$9:$C$87,0)+RIGHT($E25),0)) /SUM(AV$10:AV$11) -> 0 | AW25: =IF(INDEX(PC_MAPPING,RIGHT($C15,1),MATCH($E$2,'Data by Building Type'!$D$22:$F$22,0))="Yes",1,0)* (AW$10*OFFSET('Efficiency Distributions'!$D$10,MATCH($C15,'Efficiency Distributions'!$C$9:$C$87,0)+RIGHT($E25),0) +AW$11*OFFSET('Efficiency Distributions'!$E$10,MATCH($C15,'Efficiency Distributions'!$C$9:$C$87,0)+RIGHT($E25),0)) /SUM(AW$10:AW$11) -> 0 | AX25: =IF(INDEX(PC_MAPPING,RIGHT($C15,1),MATCH($E$2,'Data by Building Type'!$D$22:$F$22,0))="Yes",1,0)* (AX$10*OFFSET('Efficiency Distributions'!$D$10,MATCH($C15,'Efficiency Distributions'!$C$9:$C$87,0)+RIGHT($E25),0) +AX$11*OFFSET('Efficiency Distributions'!$E$10,MATCH($C15,'Efficiency Distributions'!$C$9:$C$87,0)+RIGHT($E25),0)) /SUM(AX$10:AX$11) -> 0 | AY25: =IF(INDEX(PC_MAPPING,RIGHT($C15,1),MATCH($E$2,'Data by Building Type'!$D$22:$F$22,0))="Yes",1,0)* (AY$10*OFFSET('Efficiency Distributions'!$D$10,MATCH($C15,'Efficiency Distributions'!$C$9:$C$87,0)+RIGHT($E25),0) +AY$11*OFFSET('Efficiency Distributions'!$E$10,MATCH($C15,'Efficiency Distributions'!$C$9:$C$87,0)+RIGHT($E25),0)) /SUM(AY$10:AY$11) -> 0 | AZ25: =IF(INDEX(PC_MAPPING,RIGHT($C15,1),MATCH($E$2,'Data by Building Type'!$D$22:$F$22,0))="Yes",1,0)* (AZ$10*OFFSET('Efficiency Distributions'!$D$10,MATCH($C15,'Efficiency Distributions'!$C$9:$C$87,0)+RIGHT($E25),0) +AZ$11*OFFSET('Efficiency Distributions'!$E$10,MATCH($C15,'Efficiency Distributions'!$C$9:$C$87,0)+RIGHT($E25),0)) /SUM(AZ$10:AZ$11) -> 0 | BA25: =IF(INDEX(PC_MAPPING,RIGHT($C15,1),MATCH($E$2,'Data by Building Type'!$D$22:$F$22,0))="Yes",1,0)* (BA$10*OFFSET('Efficiency Distributions'!$D$10,MATCH($C15,'Efficiency Distributions'!$C$9:$C$87,0)+RIGHT($E25),0) +BA$11*OFFSET('Efficiency Distributions'!$E$10,MATCH($C15,'Efficiency Distributions'!$C$9:$C$87,0)+RIGHT($E25),0)) /SUM(BA$10:BA$11) -> 0 | BB25: =IF(INDEX(PC_MAPPING,RIGHT($C15,1),MATCH($E$2,'Data by Building Type'!$D$22:$F$22,0))="Yes",1,0)* (BB$10*OFFSET('Efficiency Distributions'!$D$10,MATCH($C15,'Efficiency Distributions'!$C$9:$C$87,0)+RIGHT($E25),0) +BB$11*OFFSET('Efficiency Distributions'!$E$10,MATCH($C15,'Efficiency Distributions'!$C$9:$C$87,0)+RIGHT($E25),0)) /SUM(BB$10:BB$11) -> 0 | BC25: =IF(INDEX(PC_MAPPING,RIGHT($C15,1),MATCH($E$2,'Data by Building Type'!$D$22:$F$22,0))="Yes",1,0)* (BC$10*OFFSET('Efficiency Distributions'!$D$10,MATCH($C15,'Efficiency Distributions'!$C$9:$C$87,0)+RIGHT($E25),0) +BC$11*OFFSET('Efficiency Distributions'!$E$10,MATCH($C15,'Efficiency Distributions'!$C$9:$C$87,0)+RIGHT($E25),0)) /SUM(BC$10:BC$11) -> 0 | BD25: =IF(INDEX(PC_MAPPING,RIGHT($C15,1),MATCH($E$2,'Data by Building Type'!$D$22:$F$22,0))="Yes",1,0)* (BD$10*OFFSET('Efficiency Distributions'!$D$10,MATCH($C15,'Efficiency Distributions'!$C$9:$C$87,0)+RIGHT($E25),0) +BD$11*OFFSET('Efficiency Distributions'!$E$10,MATCH($C15,'Efficiency Distributions'!$C$9:$C$87,0)+RIGHT($E25),0)) /SUM(BD$10:BD$11) -> 0 | BE25: =IF(INDEX(PC_MAPPING,RIGHT($C15,1),MATCH($E$2,'Data by Building Type'!$D$22:$F$22,0))="Yes",1,0)* (BE$10*OFFSET('Efficiency Distributions'!$D$10,MATCH($C15,'Efficiency Distributions'!$C$9:$C$87,0)+RIGHT($E25),0) +BE$11*OFFSET('Efficiency Distributions'!$E$10,MATCH($C15,'Efficiency Distributions'!$C$9:$C$87,0)+RIGHT($E25),0)) /SUM(BE$10:BE$11) -> 0 | BF25: =IF(INDEX(PC_MAPPING,RIGHT($C15,1),MATCH($E$2,'Data by Building Type'!$D$22:$F$22,0))="Yes",1,0)* (BF$10*OFFSET('Efficiency Distributions'!$D$10,MATCH($C15,'Efficiency Distributions'!$C$9:$C$87,0)+RIGHT($E25),0) +BF$11*OFFSET('Efficiency Distributions'!$E$10,MATCH($C15,'Efficiency Distributions'!$C$9:$C$87,0)+RIGHT($E25),0)) /SUM(BF$10:BF$11) -> 0 | BG25: =IF(INDEX(PC_MAPPING,RIGHT($C15,1),MATCH($E$2,'Data by Building Type'!$D$22:$F$22,0))="Yes",1,0)* (BG$10*OFFSET('Efficiency Distributions'!$D$10,MATCH($C15,'Efficiency Distributions'!$C$9:$C$87,0)+RIGHT($E25),0) +BG$11*OFFSET('Efficiency Distributions'!$E$10,MATCH($C15,'Efficiency Distributions'!$C$9:$C$87,0)+RIGHT($E25),0)) /SUM(BG$10:BG$11) -> 0
E26: TOTAL | F26: =SUM(F19:F25) -> 1 | G26: 1 | H26: =SUM(H19:H25) -> 1 | I26: 1 | J26: 1 | K26: 1 | L26: 1 | M26: 1 | N26: 1 | O26: 1 | P26: 1 | Q26: 1 | R26: 1 | S26: 1 | T26: 1 | U26: 1 | V26: 1 | W26: 1 | X26: 1 | Y26: 1 | Z26: 1 | AA26: 1 | AB26: 1 | AC26: 1 | AD26: 1 | AE26: 1 | AF26: 1 | AG26: 1 | AH26: 1 | AI26: 1 | AJ26: 1 | AK26: 1 | AL26: 1 | AM26: 1 | AN26: 1 | AO26: 1 | AP26: 1 | AQ26: 1 | AR26: 1 | AS26: 1 | AT26: 1 | AU26: 1 | AV26: 1 | AW26: 1 | AX26: 1 | AY26: 1 | AZ26: 1 | BA26: 1 | BB26: 1 | BC26: 1 | BD26: 1 | BE26: 1 | BF26: 1 | BG26: 1
D28: POST-Case
E29: Efficiency Level | F29: 1981 | G29: =F29+1 -> 1982 | H29: =G29+1 -> 1983 | I29: 1984 | J29: 1985 | K29: 1986 | L29: 1987 | M29: 1988 | N29: 1989 | O29: 1990 | P29: =O29+1 -> 1991 | Q29: =P29+1 -> 1992 | R29: 1993 | S29: 1994 | T29: 1995 | U29: 1996 | V29: 1997 | W29: 1998 | X29: 1999 | Y29: 2000 | Z29: 2001 | AA29: 2002 | AB29: 2003 | AC29: 2004 | AD29: 2005 | AE29: 2006 | AF29: 2007 | AG29: 2008 | AH29: 2009 | AI29: 2010 | AJ29: 2011 | AK29: 2012 | AL29: 2013 | AM29: 2014 | AN29: 2015 | AO29: 2016 | AP29: 2017 | AQ29: 2018 | AR29: 2019 | AS29: 2020 | AT29: 2021 | AU29: 2022 | AV29: 2023 | AW29: 2024 | AX29: 2025 | AY29: 2026 | AZ29: 2027 | BA29: 2028 | BB29: 2029 | BC29: 2030 | BD29: 2031 | BE29: 2032 | BF29: 2033 | BG29: 2034
E30: EL0 | F30: =IF(F$29<STANDARD_YEAR,F19, IF(RIGHT($E30,1)>RIGHT(INDEX(STANDARD_LEVELS,1,MID($C15,4,1)),1),F19, IF(RIGHT($E30,1)<RIGHT(INDEX(STANDARD_LEVELS,1,MID($C15,4,1)),1),0, IF(RIGHT($E30,1)=RIGHT(INDEX(STANDARD_LEVELS,1,MID($C15,4,1)),1),SUM(OFFSET(F19,-(RIGHT($E30,1)),0,RIGHT($E30,1)+1,1)),"ERROR")))) -> 0.3150543102 | G30: 0.3049871325 | H30: =IF(H$29<STANDARD_YEAR,H19, IF(RIGHT($E30,1)>RIGHT(INDEX(STANDARD_LEVELS,1,MID($C15,4,1)),1),H19, IF(RIGHT($E30,1)<RIGHT(INDEX(STANDARD_LEVELS,1,MID($C15,4,1)),1),0, IF(RIGHT($E30,1)=RIGHT(INDEX(STANDARD_LEVELS,1,MID($C15,4,1)),1),SUM(OFFSET(H19,-(RIGHT($E30,1)),0,RIGHT($E30,1)+1,1)),"ERROR")))) -> 0.317029968 | I30: 0.3147839151 | J30: 0.313393275 | K30: 0.3156888376 | L30: 0.315869451 | M30: 0.3189451115 | N30: 0.3259634762 | O30: 0.3307461498 | P30: 0.3258704345 | Q30: 0.3338897655 | R30: 0.311861293 | S30: 0.3140799778 | T30: 0.3059047591 | U30: 0.3070825103 | V30: 0.3053406606 | W30: 0.306175892 | X30: 0.3034946061 | Y30: 0.2969711676 | Z30: 0.2968610071 | AA30: 0.2978715976 | AB30: 0.3036293787 | AC30: 0.3032271711 | AD30: 0.3081842515 | AE30: 0.30066093 | AF30: 0.2840426481 | AG30: 0.2769475462 | AH30: 0.2769475462 | AI30: 0.2769475462 | AJ30: 0.2799031666 | AK30: 0.321227543 | AL30: 0.3199908285 | AM30: 0.3253039795 | AN30: 0.3248750071 | AO30: 0.3269568569 | AP30: 0.3260409889 | AQ30: 0.3257299575 | AR30: 0 | AS30: 0 | AT30: 0 | AU30: 0 | AV30: 0 | AW30: 0 | AX30: 0 | AY30: 0 | AZ30: 0 | BA30: 0 | BB30: 0 | BC30: 0 | BD30: 0 | BE30: 0 | BF30: 0 | BG30: 0
E31: EL1 | F31: =IF(F$29<STANDARD_YEAR,F20, IF(RIGHT($E31,1)>RIGHT(INDEX(STANDARD_LEVELS,1,MID($C15,4,1)),1),F20, IF(RIGHT($E31,1)<RIGHT(INDEX(STANDARD_LEVELS,1,MID($C15,4,1)),1),0, IF(RIGHT($E31,1)=RIGHT(INDEX(STANDARD_LEVELS,1,MID($C15,4,1)),1),SUM(OFFSET(F20,-(RIGHT($E31,1)),0,RIGHT($E31,1)+1,1)),"ERROR")))) -> 0.4244972799 | G31: 0.422099561 | H31: =IF(H$29<STANDARD_YEAR,H20, IF(RIGHT($E31,1)>RIGHT(INDEX(STANDARD_LEVELS,1,MID($C15,4,1)),1),H20, IF(RIGHT($E31,1)<RIGHT(INDEX(STANDARD_LEVELS,1,MID($C15,4,1)),1),0, IF(RIGHT($E31,1)=RIGHT(INDEX(STANDARD_LEVELS,1,MID($C15,4,1)),1),SUM(OFFSET(H20,-(RIGHT($E31,1)),0,RIGHT($E31,1)+1,1)),"ERROR")))) -> 0.424967826 | I31: 0.4244328793 | J31: 0.4241016679 | K31: 0.4246484065 | L31: 0.4246914235 | M31: 0.4254239594 | N31: 0.4270955367 | O31: 0.4282346352 | P31: 0.4270733768 | Q31: 0.4289833561 | R31: 0.4237367929 | S31: 0.4242652213 | T31: 0.4223181138 | U31: 0.4225986211 | V31: 0.4221837614 | W31: 0.4223826901 | X31: 0.4217440831 | Y31: 0.4201903833 | Z31: 0.4201641462 | AA31: 0.4204048405 | AB31: 0.4217761822 | AC31: 0.4216803876 | AD31: 0.4228610249 | AE31: 0.4210691811 | AF31: 0.4171111732 | AG31: 0.4154213193 | AH31: 0.4154213193 | AI31: 0.4154213193 | AJ31: 0.416125265 | AK31: 0.4259675705 | AL31: 0.4256730198 | AM31: 0.4269384631 | AN31: 0.4268362939 | AO31: 0.4273321321 | AP31: 0.4271139981 | AQ31: 0.4270399191 | AR31: 0 | AS31: 0 | AT31: 0 | AU31: 0 | AV31: 0 | AW31: 0 | AX31: 0 | AY31: 0 | AZ31: 0 | BA31: 0 | BB31: 0 | BC31: 0 | BD31: 0 | BE31: 0 | BF31: 0 | BG31: 0
E32: EL2 | F32: =IF(F$29<STANDARD_YEAR,F21, IF(RIGHT($E32,1)>RIGHT(INDEX(STANDARD_LEVELS,1,MID($C15,4,1)),1),F21, IF(RIGHT($E32,1)<RIGHT(INDEX(STANDARD_LEVELS,1,MID($C15,4,1)),1),0, IF(RIGHT($E32,1)=RIGHT(INDEX(STANDARD_LEVELS,1,MID($C15,4,1)),1),SUM(OFFSET(F21,-(RIGHT($E32,1)),0,RIGHT($E32,1)+1,1)),"ERROR")))) -> 0 | G32: 0 | H32: =IF(H$29<STANDARD_YEAR,H21, IF(RIGHT($E32,1)>RIGHT(INDEX(STANDARD_LEVELS,1,MID($C15,4,1)),1),H21, IF(RIGHT($E32,1)<RIGHT(INDEX(STANDARD_LEVELS,1,MID($C15,4,1)),1),0, IF(RIGHT($E32,1)=RIGHT(INDEX(STANDARD_LEVELS,1,MID($C15,4,1)),1),SUM(OFFSET(H21,-(RIGHT($E32,1)),0,RIGHT($E32,1)+1,1)),"ERROR")))) -> 0 | I32: 0 | J32: 0 | K32: 0 | L32: 0 | M32: 0 | N32: 0 | O32: 0 | P32: 0 | Q32: 0 | R32: 0 | S32: 0 | T32: 0 | U32: 0 | V32: 0 | W32: 0 | X32: 0 | Y32: 0 | Z32: 0 | AA32: 0 | AB32: 0 | AC32: 0 | AD32: 0 | AE32: 0 | AF32: 0 | AG32: 0 | AH32: 0 | AI32: 0 | AJ32: 0 | AK32: 0 | AL32: 0 | AM32: 0 | AN32: 0 | AO32: 0 | AP32: 0 | AQ32: 0 | AR32: 0 | AS32: 0 | AT32: 0 | AU32: 0 | AV32: 0 | AW32: 0 | AX32: 0 | AY32: 0 | AZ32: 0 | BA32: 0 | BB32: 0 | BC32: 0 | BD32: 0 | BE32: 0 | BF32: 0 | BG32: 0
E33: EL3 | F33: =IF(F$29<STANDARD_YEAR,F22, IF(RIGHT($E33,1)>RIGHT(INDEX(STANDARD_LEVELS,1,MID($C15,4,1)),1),F22, IF(RIGHT($E33,1)<RIGHT(INDEX(STANDARD_LEVELS,1,MID($C15,4,1)),1),0, IF(RIGHT($E33,1)=RIGHT(INDEX(STANDARD_LEVELS,1,MID($C15,4,1)),1),SUM(OFFSET(F22,-(RIGHT($E33,1)),0,RIGHT($E33,1)+1,1)),"ERROR")))) -> 0.1113367249 | G33: 0.1166652303 | H33: =IF(H$29<STANDARD_YEAR,H22, IF(RIGHT($E33,1)>RIGHT(INDEX(STANDARD_LEVELS,1,MID($C15,4,1)),1),H22, IF(RIGHT($E33,1)<RIGHT(INDEX(STANDARD_LEVELS,1,MID($C15,4,1)),1),0, IF(RIGHT($E33,1)=RIGHT(INDEX(STANDARD_LEVELS,1,MID($C15,4,1)),1),SUM(OFFSET(H22,-(RIGHT($E33,1)),0,RIGHT($E33,1)+1,1)),"ERROR")))) -> 0.1102910193 | I33: 0.1114798436 | J33: 0.1122159022 | K33: 0.1110008728 | L33: 0.110905275 | M33: 0.1092773438 | N33: 0.1055625594 | O33: 0.1030311148 | P33: 0.1056118058 | Q33: 0.1013672152 | R33: 0.1130267725 | S33: 0.111852434 | T33: 0.1161795353 | U33: 0.1155561576 | V33: 0.1164781097 | W33: 0.116036026 | X33: 0.1174552168 | Y33: 0.1209080393 | Z33: 0.1209663467 | AA33: 0.1204314463 | AB33: 0.1173838824 | AC33: 0.1175967688 | AD33: 0.1149730116 | AE33: 0.118955067 | AF33: 0.1277510382 | AG33: 0.1315064392 | AH33: 0.1315064392 | AI33: 0.1315064392 | AJ33: 0.1299420445 | AK33: 0.1080692645 | AL33: 0.1087238511 | AM33: 0.1059116276 | AN33: 0.1061386805 | AO33: 0.1050367681 | AP33: 0.1055215323 | AQ33: 0.1056861596 | AR33: 0 | AS33: 0 | AT33: 0 | AU33: 0 | AV33: 0 | AW33: 0 | AX33: 0 | AY33: 0 | AZ33: 0 | BA33: 0 | BB33: 0 | BC33: 0 | BD33: 0 | BE33: 0 | BF33: 0 | BG33: 0
E34: EL4 | F34: =IF(F$29<STANDARD_YEAR,F23, IF(RIGHT($E34,1)>RIGHT(INDEX(STANDARD_LEVELS,1,MID($C15,4,1)),1),F23, IF(RIGHT($E34,1)<RIGHT(INDEX(STANDARD_LEVELS,1,MID($C15,4,1)),1),0, IF(RIGHT($E34,1)=RIGHT(INDEX(STANDARD_LEVELS,1,MID($C15,4,1)),1),SUM(OFFSET(F23,-(RIGHT($E34,1)),0,RIGHT($E34,1)+1,1)),"ERROR")))) -> 0.02783418122 | G34: 0.02916630757 | H34: =IF(H$29<STANDARD_YEAR,H23, IF(RIGHT($E34,1)>RIGHT(INDEX(STANDARD_LEVELS,1,MID($C15,4,1)),1),H23, IF(RIGHT($E34,1)<RIGHT(INDEX(STANDARD_LEVELS,1,MID($C15,4,1)),1),0, IF(RIGHT($E34,1)=RIGHT(INDEX(STANDARD_LEVELS,1,MID($C15,4,1)),1),SUM(OFFSET(H23,-(RIGHT($E34,1)),0,RIGHT($E34,1)+1,1)),"ERROR")))) -> 0.02757275484 | I34: 0.0278699609 | J34: 0.02805397556 | K34: 0.02775021819 | L34: 0.02772631876 | M34: 0.02731933594 | N34: 0.02639063984 | O34: 0.0257577787 | P34: 0.02640295146 | Q34: 0.02534180379 | R34: 0.02825669311 | S34: 0.02796310849 | T34: 0.02904488381 | U34: 0.0288890394 | V34: 0.02911952741 | W34: 0.02900900649 | X34: 0.02936380421 | Y34: 0.03022700982 | Z34: 0.03024158667 | AA34: 0.03010786158 | AB34: 0.02934597059 | AC34: 0.0293991922 | AD34: 0.0287432529 | AE34: 0.02973876676 | AF34: 0.03193775956 | AG34: 0.0328766098 | AH34: 0.0328766098 | AI34: 0.0328766098 | AJ34: 0.03248551112 | AK34: 0.02701731612 | AL34: 0.02718096277 | AM34: 0.02647790689 | AN34: 0.02653467012 | AO34: 0.02625919201 | AP34: 0.02638038307 | AQ34: 0.02642153991 | AR34: 0.8843131445 | AS34: 0.8843206412 | AT34: 0.8846198114 | AU34: 0.884268483 | AV34: 0.8794202247 | AW34: 0.879706117 | AX34: 0.8782631096 | AY34: 0.8778252688 | AZ34: 0.8784821852 | BA34: 0.8794922561 | BB34: 0.8816536584 | BC34: 0.8820919324 | BD34: 0.8796394193 | BE34: 0.8779248049 | BF34: 0.8745165287 | BG34: 0.8738859493
E35: EL5 | F35: =IF(F$29<STANDARD_YEAR,F24, IF(RIGHT($E35,1)>RIGHT(INDEX(STANDARD_LEVELS,1,MID($C15,4,1)),1),F24, IF(RIGHT($E35,1)<RIGHT(INDEX(STANDARD_LEVELS,1,MID($C15,4,1)),1),0, IF(RIGHT($E35,1)=RIGHT(INDEX(STANDARD_LEVELS,1,MID($C15,4,1)),1),SUM(OFFSET(F24,-(RIGHT($E35,1)),0,RIGHT($E35,1)+1,1)),"ERROR")))) -> 0.1212775039 | G35: 0.1270817687 | H35: =IF(H$29<STANDARD_YEAR,H24, IF(RIGHT($E35,1)>RIGHT(INDEX(STANDARD_LEVELS,1,MID($C15,4,1)),1),H24, IF(RIGHT($E35,1)<RIGHT(INDEX(STANDARD_LEVELS,1,MID($C15,4,1)),1),0, IF(RIGHT($E35,1)=RIGHT(INDEX(STANDARD_LEVELS,1,MID($C15,4,1)),1),SUM(OFFSET(H24,-(RIGHT($E35,1)),0,RIGHT($E35,1)+1,1)),"ERROR")))) -> 0.1201384318 | I35: 0.1214334011 | J35: 0.1222351792 | K35: 0.120911665 | L35: 0.1208075317 | M35: 0.1190342494 | N35: 0.1149877879 | O35: 0.1122303215 | P35: 0.1150414314 | Q35: 0.1104178594 | R35: 0.1231184486 | S35: 0.1218392584 | T35: 0.126552708 | U35: 0.1258736716 | V35: 0.1268779409 | W35: 0.1263963854 | X35: 0.1279422898 | Y35: 0.1317033999 | Z35: 0.1317669133 | AA35: 0.131184254 | AB35: 0.1278645862 | AC35: 0.1280964803 | AD35: 0.1252384591 | AE35: 0.1295760552 | AF35: 0.1391573809 | AG35: 0.1432480855 | AH35: 0.1432480855 | AI35: 0.1432480855 | AJ35: 0.1415440127 | AK35: 0.1177183059 | AL35: 0.1184313378 | AM35: 0.1153680229 | AN35: 0.1156153484 | AO35: 0.1144150509 | AP35: 0.1149430977 | AQ35: 0.1151224239 | AR35: 0.1156868555 | AS35: 0.1156793588 | AT35: 0.1153801886 | AU35: 0.115731517 | AV35: 0.1205797753 | AW35: 0.120293883 | AX35: 0.1217368904 | AY35: 0.1221747312 | AZ35: 0.1215178148 | BA35: 0.1205077439 | BB35: 0.1183463416 | BC35: 0.1179080676 | BD35: 0.1203605807 | BE35: 0.1220751951 | BF35: 0.1254834713 | BG35: 0.1261140507
E36: EL6 | F36: =IF(F$29<STANDARD_YEAR,F25, IF(RIGHT($E36,1)>RIGHT(INDEX(STANDARD_LEVELS,1,MID($C15,4,1)),1),F25, IF(RIGHT($E36,1)<RIGHT(INDEX(STANDARD_LEVELS,1,MID($C15,4,1)),1),0, IF(RIGHT($E36,1)=RIGHT(INDEX(STANDARD_LEVELS,1,MID($C15,4,1)),1),SUM(OFFSET(F25,-(RIGHT($E36,1)),0,RIGHT($E36,1)+1,1)),"ERROR")))) -> 0 | G36: 0 | H36: =IF(H$29<STANDARD_YEAR,H25, IF(RIGHT($E36,1)>RIGHT(INDEX(STANDARD_LEVELS,1,MID($C15,4,1)),1),H25, IF(RIGHT($E36,1)<RIGHT(INDEX(STANDARD_LEVELS,1,MID($C15,4,1)),1),0, IF(RIGHT($E36,1)=RIGHT(INDEX(STANDARD_LEVELS,1,MID($C15,4,1)),1),SUM(OFFSET(H25,-(RIGHT($E36,1)),0,RIGHT($E36,1)+1,1)),"ERROR")))) -> 0 | I36: 0 | J36: 0 | K36: 0 | L36: 0 | M36: 0 | N36: 0 | O36: 0 | P36: 0 | Q36: 0 | R36: 0 | S36: 0 | T36: 0 | U36: 0 | V36: 0 | W36: 0 | X36: 0 | Y36: 0 | Z36: 0 | AA36: 0 | AB36: 0 | AC36: 0 | AD36: 0 | AE36: 0 | AF36: 0 | AG36: 0 | AH36: 0 | AI36: 0 | AJ36: 0 | AK36: 0 | AL36: 0 | AM36: 0 | AN36: 0 | AO36: 0 | AP36: 0 | AQ36: 0 | AR36: 0 | AS36: 0 | AT36: 0 | AU36: 0 | AV36: 0 | AW36: 0 | AX36: 0 | AY36: 0 | AZ36: 0 | BA36: 0 | BB36: 0 | BC36: 0 | BD36: 0 | BE36: 0 | BF36: 0 | BG36: 0
E37: TOTAL | F37: =SUM(F30:F36) -> 1 | G37: 1 | H37: =SUM(H30:H36) -> 1 | I37: 1 | J37: 1 | K37: 1 | L37: 1 | M37: 1 | N37: 1 | O37: 1 | P37: 1 | Q37: 1 | R37: 1 | S37: 1 | T37: 1 | U37: 1 | V37: 1 | W37: 1 | X37: 1 | Y37: 1 | Z37: 1 | AA37: 1 | AB37: 1 | AC37: 1 | AD37: 1 | AE37: 1 | AF37: 1 | AG37: 1 | AH37: 1 | AI37: 1 | AJ37: 1 | AK37: 1 | AL37: 1 | AM37: 1 | AN37: 1 | AO37: 1 | AP37: 1 | AQ37: 1 | AR37: 1 | AS37: 1 | AT37: 1 | AU37: 1 | AV37: 1 | AW37: 1 | AX37: 1 | AY37: 1 | AZ37: 1 | BA37: 1 | BB37: 1 | BC37: 1 | BD37: 1 | BE37: 1 | BF37: 1 | BG37: 1
C41: PC 2 | D41: =OFFSET('Product Classes'!$C$9,MATCH(C41,MODEL_PCS,0),0) -> Non-Weatherized, Condensing Gas Furnace Fan (NWG-C)
D43: PRE-Case
E44: Efficiency Level | F44: 1981 | G44: =F44+1 -> 1982 | H44: =G44+1 -> 1983 | I44: 1984 | J44: 1985 | K44: 1986 | L44: 1987 | M44: 1988 | N44: 1989 | O44: 1990 | P44: =O44+1 -> 1991 | Q44: =P44+1 -> 1992 | R44: 1993 | S44: 1994 | T44: 1995 | U44: 1996 | V44: 1997 | W44: 1998 | X44: 1999 | Y44: 2000 | Z44: 2001 | AA44: 2002 | AB44: 2003 | AC44: 2004 | AD44: 2005 | AE44: 2006 | AF44: 2007 | AG44: 2008 | AH44: 2009 | AI44: 2010 | AJ44: 2011 | AK44: 2012 | AL44: 2013 | AM44: 2014 | AN44: 2015 | AO44: 2016 | AP44: 2017 | AQ44: 2018 | AR44: 2019 | AS44: 2020 | AT44: 2021 | AU44: 2022 | AV44: 2023 | AW44: 2024 | AX44: 2025 | AY44: 2026 | AZ44: 2027 | BA44: 2028 | BB44: 2029 | BC44: 2030 | BD44: 2031 | BE44: 2032 | BF44: 2033 | BG44: 2034
E45: EL0 | F45: =IF(INDEX(PC_MAPPING,RIGHT($C41,1),MATCH($E$2,'Data by Building Type'!$D$22:$F$22,0))="Yes",1,0)* (F$10*OFFSET('Efficiency Distributions'!$D$10,MATCH($C41,'Efficiency Distributions'!$C$9:$C$87,0)+RIGHT($E45),0) +F$11*OFFSET('Efficiency Distributions'!$E$10,MATCH($C41,'Efficiency Distributions'!$C$9:$C$87,0)+RIGHT($E45),0)) /SUM(F$10:F$11) -> 0.2484389955 | G45: =IF(INDEX(PC_MAPPING,RIGHT($C41,1),MATCH($E$2,'Data by Building Type'!$D$22:$F$22,0))="Yes",1,0)* (G$10*OFFSET('Efficiency Distributions'!$D$10,MATCH($C41,'Efficiency Distributions'!$C$9:$C$87,0)+RIGHT($E45),0) +G$11*OFFSET('Efficiency Distributions'!$E$10,MATCH($C41,'Efficiency Distributions'!$C$9:$C$87,0)+RIGHT($E45),0)) /SUM(G$10:G$11) -> 0.2355234229 | H45: =IF(INDEX(PC_MAPPING,RIGHT($C41,1),MATCH($E$2,'Data by Building Type'!$D$22:$F$22,0))="Yes",1,0)* (H$10*OFFSET('Efficiency Distributions'!$D$10,MATCH($C41,'Efficiency Distributions'!$C$9:$C$87,0)+RIGHT($E45),0) +H$11*OFFSET('Efficiency Distributions'!$E$10,MATCH($C41,'Efficiency Distributions'!$C$9:$C$87,0)+RIGHT($E45),0)) /SUM(H$10:H$11) -> 0.2509736435 | I45: =IF(INDEX(PC_MAPPING,RIGHT($C41,1),MATCH($E$2,'Data by Building Type'!$D$22:$F$22,0))="Yes",1,0)* (I$10*OFFSET('Efficiency Distributions'!$D$10,MATCH($C41,'Efficiency Distributions'!$C$9:$C$87,0)+RIGHT($E45),0) +I$11*OFFSET('Efficiency Distributions'!$E$10,MATCH($C41,'Efficiency Distributions'!$C$9:$C$87,0)+RIGHT($E45),0)) /SUM(I$10:I$11) -> 0.2480920952 | J45: =IF(INDEX(PC_MAPPING,RIGHT($C41,1),MATCH($E$2,'Data by Building Type'!$D$22:$F$22,0))="Yes",1,0)* (J$10*OFFSET('Efficiency Distributions'!$D$10,MATCH($C41,'Efficiency Distributions'!$C$9:$C$87,0)+RIGHT($E45),0) +J$11*OFFSET('Efficiency Distributions'!$E$10,MATCH($C41,'Efficiency Distributions'!$C$9:$C$87,0)+RIGHT($E45),0)) /SUM(J$10:J$11) -> 0.2463079891 | K45: =IF(INDEX(PC_MAPPING,RIGHT($C41,1),MATCH($E$2,'Data by Building Type'!$D$22:$F$22,0))="Yes",1,0)* (K$10*OFFSET('Efficiency Distributions'!$D$10,MATCH($C41,'Efficiency Distributions'!$C$9:$C$87,0)+RIGHT($E45),0) +K$11*OFFSET('Efficiency Distributions'!$E$10,MATCH($C41,'Efficiency Distributions'!$C$9:$C$87,0)+RIGHT($E45),0)) /SUM(K$10:K$11) -> 0.2492530554 | L45: =IF(INDEX(PC_MAPPING,RIGHT($C41,1),MATCH($E$2,'Data by Building Type'!$D$22:$F$22,0))="Yes",1,0)* (L$10*OFFSET('Efficiency Distributions'!$D$10,MATCH($C41,'Efficiency Distributions'!$C$9:$C$87,0)+RIGHT($E45),0) +L$11*OFFSET('Efficiency Distributions'!$E$10,MATCH($C41,'Efficiency Distributions'!$C$9:$C$87,0)+RIGHT($E45),0)) /SUM(L$10:L$11) -> 0.2494847712 | M45: =IF(INDEX(PC_MAPPING,RIGHT($C41,1),MATCH($E$2,'Data by Building Type'!$D$22:$F$22,0))="Yes",1,0)* (M$10*OFFSET('Efficiency Distributions'!$D$10,MATCH($C41,'Efficiency Distributions'!$C$9:$C$87,0)+RIGHT($E45),0) +M$11*OFFSET('Efficiency Distributions'!$E$10,MATCH($C41,'Efficiency Distributions'!$C$9:$C$87,0)+RIGHT($E45),0)) /SUM(M$10:M$11) -> 0.2534306553 | N45: =IF(INDEX(PC_MAPPING,RIGHT($C41,1),MATCH($E$2,'Data by Building Type'!$D$22:$F$22,0))="Yes",1,0)* (N$10*OFFSET('Efficiency Distributions'!$D$10,MATCH($C41,'Efficiency Distributions'!$C$9:$C$87,0)+RIGHT($E45),0) +N$11*OFFSET('Efficiency Distributions'!$E$10,MATCH($C41,'Efficiency Distributions'!$C$9:$C$87,0)+RIGHT($E45),0)) /SUM(N$10:N$11) -> 0.2624347876 | O45: =IF(INDEX(PC_MAPPING,RIGHT($C41,1),MATCH($E$2,'Data by Building Type'!$D$22:$F$22,0))="Yes",1,0)* (O$10*OFFSET('Efficiency Distributions'!$D$10,MATCH($C41,'Efficiency Distributions'!$C$9:$C$87,0)+RIGHT($E45),0) +O$11*OFFSET('Efficiency Distributions'!$E$10,MATCH($C41,'Efficiency Distributions'!$C$9:$C$87,0)+RIGHT($E45),0)) /SUM(O$10:O$11) -> 0.2685706651 | P45: =IF(INDEX(PC_MAPPING,RIGHT($C41,1),MATCH($E$2,'Data by Building Type'!$D$22:$F$22,0))="Yes",1,0)* (P$10*OFFSET('Efficiency Distributions'!$D$10,MATCH($C41,'Efficiency Distributions'!$C$9:$C$87,0)+RIGHT($E45),0) +P$11*OFFSET('Efficiency Distributions'!$E$10,MATCH($C41,'Efficiency Distributions'!$C$9:$C$87,0)+RIGHT($E45),0)) /SUM(P$10:P$11) -> 0.2623154209 | Q45: =IF(INDEX(PC_MAPPING,RIGHT($C41,1),MATCH($E$2,'Data by Building Type'!$D$22:$F$22,0))="Yes",1,0)* (Q$10*OFFSET('Efficiency Distributions'!$D$10,MATCH($C41,'Efficiency Distributions'!$C$9:$C$87,0)+RIGHT($E45),0) +Q$11*OFFSET('Efficiency Distributions'!$E$10,MATCH($C41,'Efficiency Distributions'!$C$9:$C$87,0)+RIGHT($E45),0)) /SUM(Q$10:Q$11) -> 0.2726037315 | R45: =IF(INDEX(PC_MAPPING,RIGHT($C41,1),MATCH($E$2,'Data by Building Type'!$D$22:$F$22,0))="Yes",1,0)* (R$10*OFFSET('Efficiency Distributions'!$D$10,MATCH($C41,'Efficiency Distributions'!$C$9:$C$87,0)+RIGHT($E45),0) +R$11*OFFSET('Efficiency Distributions'!$E$10,MATCH($C41,'Efficiency Distributions'!$C$9:$C$87,0)+RIGHT($E45),0)) /SUM(R$10:R$11) -> 0.24434255 | S45: =IF(INDEX(PC_MAPPING,RIGHT($C41,1),MATCH($E$2,'Data by Building Type'!$D$22:$F$22,0))="Yes",1,0)* (S$10*OFFSET('Efficiency Distributions'!$D$10,MATCH($C41,'Efficiency Distributions'!$C$9:$C$87,0)+RIGHT($E45),0) +S$11*OFFSET('Efficiency Distributions'!$E$10,MATCH($C41,'Efficiency Distributions'!$C$9:$C$87,0)+RIGHT($E45),0)) /SUM(S$10:S$11) -> 0.2471889868 | T45: =IF(INDEX(PC_MAPPING,RIGHT($C41,1),MATCH($E$2,'Data by Building Type'!$D$22:$F$22,0))="Yes",1,0)* (T$10*OFFSET('Efficiency Distributions'!$D$10,MATCH($C41,'Efficiency Distributions'!$C$9:$C$87,0)+RIGHT($E45),0) +T$11*OFFSET('Efficiency Distributions'!$E$10,MATCH($C41,'Efficiency Distributions'!$C$9:$C$87,0)+RIGHT($E45),0)) /SUM(T$10:T$11) -> 0.2367006816 | U45: =IF(INDEX(PC_MAPPING,RIGHT($C41,1),MATCH($E$2,'Data by Building Type'!$D$22:$F$22,0))="Yes",1,0)* (U$10*OFFSET('Efficiency Distributions'!$D$10,MATCH($C41,'Efficiency Distributions'!$C$9:$C$87,0)+RIGHT($E45),0) +U$11*OFFSET('Efficiency Distributions'!$E$10,MATCH($C41,'Efficiency Distributions'!$C$9:$C$87,0)+RIGHT($E45),0)) /SUM(U$10:U$11) -> 0.2382116643 | V45: =IF(INDEX(PC_MAPPING,RIGHT($C41,1),MATCH($E$2,'Data by Building Type'!$D$22:$F$22,0))="Yes",1,0)* (V$10*OFFSET('Efficiency Distributions'!$D$10,MATCH($C41,'Efficiency Distributions'!$C$9:$C$87,0)+RIGHT($E45),0) +V$11*OFFSET('Efficiency Distributions'!$E$10,MATCH($C41,'Efficiency Distributions'!$C$9:$C$87,0)+RIGHT($E45),0)) /SUM(V$10:V$11) -> 0.2359769778 | W45: =IF(INDEX(PC_MAPPING,RIGHT($C41,1),MATCH($E$2,'Data by Building Type'!$D$22:$F$22,0))="Yes",1,0)* (W$10*OFFSET('Efficiency Distributions'!$D$10,MATCH($C41,'Efficiency Distributions'!$C$9:$C$87,0)+RIGHT($E45),0) +W$11*OFFSET('Efficiency Distributions'!$E$10,MATCH($C41,'Efficiency Distributions'!$C$9:$C$87,0)+RIGHT($E45),0)) /SUM(W$10:W$11) -> 0.2370485286 | X45: =IF(INDEX(PC_MAPPING,RIGHT($C41,1),MATCH($E$2,'Data by Building Type'!$D$22:$F$22,0))="Yes",1,0)* (X$10*OFFSET('Efficiency Distributions'!$D$10,MATCH($C41,'Efficiency Distributions'!$C$9:$C$87,0)+RIGHT($E45),0) +X$11*OFFSET('Efficiency Distributions'!$E$10,MATCH($C41,'Efficiency Distributions'!$C$9:$C$87,0)+RIGHT($E45),0)) /SUM(X$10:X$11) -> 0.2336086029 | Y45: =IF(INDEX(PC_MAPPING,RIGHT($C41,1),MATCH($E$2,'Data by Building Type'!$D$22:$F$22,0))="Yes",1,0)* (Y$10*OFFSET('Efficiency Distributions'!$D$10,MATCH($C41,'Efficiency Distributions'!$C$9:$C$87,0)+RIGHT($E45),0) +Y$11*OFFSET('Efficiency Distributions'!$E$10,MATCH($C41,'Efficiency Distributions'!$C$9:$C$87,0)+RIGHT($E45),0)) /SUM(Y$10:Y$11) -> 0.2252394307 | Z45: =IF(INDEX(PC_MAPPING,RIGHT($C41,1),MATCH($E$2,'Data by Building Type'!$D$22:$F$22,0))="Yes",1,0)* (Z$10*OFFSET('Efficiency Distributions'!$D$10,MATCH($C41,'Efficiency Distributions'!$C$9:$C$87,0)+RIGHT($E45),0) +Z$11*OFFSET('Efficiency Distributions'!$E$10,MATCH($C41,'Efficiency Distributions'!$C$9:$C$87,0)+RIGHT($E45),0)) /SUM(Z$10:Z$11) -> 0.2250981015 | AA45: =IF(INDEX(PC_MAPPING,RIGHT($C41,1),MATCH($E$2,'Data by Building Type'!$D$22:$F$22,0))="Yes",1,0)* (AA$10*OFFSET('Efficiency Distributions'!$D$10,MATCH($C41,'Efficiency Distributions'!$C$9:$C$87,0)+RIGHT($E45),0) +AA$11*OFFSET('Efficiency Distributions'!$E$10,MATCH($C41,'Efficiency Distributions'!$C$9:$C$87,0)+RIGHT($E45),0)) /SUM(AA$10:AA$11) -> 0.2263946273 | AB45: =IF(INDEX(PC_MAPPING,RIGHT($C41,1),MATCH($E$2,'Data by Building Type'!$D$22:$F$22,0))="Yes",1,0)* (AB$10*OFFSET('Efficiency Distributions'!$D$10,MATCH($C41,'Efficiency Distributions'!$C$9:$C$87,0)+RIGHT($E45),0) +AB$11*OFFSET('Efficiency Distributions'!$E$10,MATCH($C41,'Efficiency Distributions'!$C$9:$C$87,0)+RIGHT($E45),0)) /SUM(AB$10:AB$11) -> 0.2337815079 | AC45: =IF(INDEX(PC_MAPPING,RIGHT($C41,1),MATCH($E$2,'Data by Building Type'!$D$22:$F$22,0))="Yes",1,0)* (AC$10*OFFSET('Efficiency Distributions'!$D$10,MATCH($C41,'Efficiency Distributions'!$C$9:$C$87,0)+RIGHT($E45),0) +AC$11*OFFSET('Efficiency Distributions'!$E$10,MATCH($C41,'Efficiency Distributions'!$C$9:$C$87,0)+RIGHT($E45),0)) /SUM(AC$10:AC$11) -> 0.2332655002 | AD45: =IF(INDEX(PC_MAPPING,RIGHT($C41,1),MATCH($E$2,'Data by Building Type'!$D$22:$F$22,0))="Yes",1,0)* (AD$10*OFFSET('Efficiency Distributions'!$D$10,MATCH($C41,'Efficiency Distributions'!$C$9:$C$87,0)+RIGHT($E45),0) +AD$11*OFFSET('Efficiency Distributions'!$E$10,MATCH($C41,'Efficiency Distributions'!$C$9:$C$87,0)+RIGHT($E45),0)) /SUM(AD$10:AD$11) -> 0.2396251309 | AE45: =IF(INDEX(PC_MAPPING,RIGHT($C41,1),MATCH($E$2,'Data by Building Type'!$D$22:$F$22,0))="Yes",1,0)* (AE$10*OFFSET('Efficiency Distributions'!$D$10,MATCH($C41,'Efficiency Distributions'!$C$9:$C$87,0)+RIGHT($E45),0) +AE$11*OFFSET('Efficiency Distributions'!$E$10,MATCH($C41,'Efficiency Distributions'!$C$9:$C$87,0)+RIGHT($E45),0)) /SUM(AE$10:AE$11) -> 0.2299731699 | AF45: =IF(INDEX(PC_MAPPING,RIGHT($C41,1),MATCH($E$2,'Data by Building Type'!$D$22:$F$22,0))="Yes",1,0)* (AF$10*OFFSET('Efficiency Distributions'!$D$10,MATCH($C41,'Efficiency Distributions'!$C$9:$C$87,0)+RIGHT($E45),0) +AF$11*OFFSET('Efficiency Distributions'!$E$10,MATCH($C41,'Efficiency Distributions'!$C$9:$C$87,0)+RIGHT($E45),0)) /SUM(AF$10:AF$11) -> 0.2086529317 | AG45: =IF(INDEX(PC_MAPPING,RIGHT($C41,1),MATCH($E$2,'Data by Building Type'!$D$22:$F$22,0))="Yes",1,0)* (AG$10*OFFSET('Efficiency Distributions'!$D$10,MATCH($C41,'Efficiency Distributions'!$C$9:$C$87,0)+RIGHT($E45),0) +AG$11*OFFSET('Efficiency Distributions'!$E$10,MATCH($C41,'Efficiency Distributions'!$C$9:$C$87,0)+RIGHT($E45),0)) /SUM(AG$10:AG$11) -> 0.1995503504 | AH45: =IF(INDEX(PC_MAPPING,RIGHT($C41,1),MATCH($E$2,'Data by Building Type'!$D$22:$F$22,0))="Yes",1,0)* (AH$10*OFFSET('Efficiency Distributions'!$D$10,MATCH($C41,'Efficiency Distributions'!$C$9:$C$87,0)+RIGHT($E45),0) +AH$11*OFFSET('Efficiency Distributions'!$E$10,MATCH($C41,'Efficiency Distributions'!$C$9:$C$87,0)+RIGHT($E45),0)) /SUM(AH$10:AH$11) -> 0.1995503504 | AI45: =IF(INDEX(PC_MAPPING,RIGHT($C41,1),MATCH($E$2,'Data by Building Type'!$D$22:$F$22,0))="Yes",1,0)* (AI$10*OFFSET('Efficiency Distributions'!$D$10,MATCH($C41,'Efficiency Distributions'!$C$9:$C$87,0)+RIGHT($E45),0) +AI$11*OFFSET('Efficiency Distributions'!$E$10,MATCH($C41,'Efficiency Distributions'!$C$9:$C$87,0)+RIGHT($E45),0)) /SUM(AI$10:AI$11) -> 0.1995503504 | AJ45: =IF(INDEX(PC_MAPPING,RIGHT($C41,1),MATCH($E$2,'Data by Building Type'!$D$22:$F$22,0))="Yes",1,0)* (AJ$10*OFFSET('Efficiency Distributions'!$D$10,MATCH($C41,'Efficiency Distributions'!$C$9:$C$87,0)+RIGHT($E45),0) +AJ$11*OFFSET('Efficiency Distributions'!$E$10,MATCH($C41,'Efficiency Distributions'!$C$9:$C$87,0)+RIGHT($E45),0)) /SUM(AJ$10:AJ$11) -> 0.2033422304 | AK45: =IF(INDEX(PC_MAPPING,RIGHT($C41,1),MATCH($E$2,'Data by Building Type'!$D$22:$F$22,0))="Yes",1,0)* (AK$10*OFFSET('Efficiency Distributions'!$D$10,MATCH($C41,'Efficiency Distributions'!$C$9:$C$87,0)+RIGHT($E45),0) +AK$11*OFFSET('Efficiency Distributions'!$E$10,MATCH($C41,'Efficiency Distributions'!$C$9:$C$87,0)+RIGHT($E45),0)) /SUM(AK$10:AK$11) -> 0.2563588753 | AL45: =IF(INDEX(PC_MAPPING,RIGHT($C41,1),MATCH($E$2,'Data by Building Type'!$D$22:$F$22,0))="Yes",1,0)* (AL$10*OFFSET('Efficiency Distributions'!$D$10,MATCH($C41,'Efficiency Distributions'!$C$9:$C$87,0)+RIGHT($E45),0) +AL$11*OFFSET('Efficiency Distributions'!$E$10,MATCH($C41,'Efficiency Distributions'!$C$9:$C$87,0)+RIGHT($E45),0)) /SUM(AL$10:AL$11) -> 0.2547722463 | AM45: =IF(INDEX(PC_MAPPING,RIGHT($C41,1),MATCH($E$2,'Data by Building Type'!$D$22:$F$22,0))="Yes",1,0)* (AM$10*OFFSET('Efficiency Distributions'!$D$10,MATCH($C41,'Efficiency Distributions'!$C$9:$C$87,0)+RIGHT($E45),0) +AM$11*OFFSET('Efficiency Distributions'!$E$10,MATCH($C41,'Efficiency Distributions'!$C$9:$C$87,0)+RIGHT($E45),0)) /SUM(AM$10:AM$11) -> 0.2615886938 | AN45: =IF(INDEX(PC_MAPPING,RIGHT($C41,1),MATCH($E$2,'Data by Building Type'!$D$22:$F$22,0))="Yes",1,0)* (AN$10*OFFSET('Efficiency Distributions'!$D$10,MATCH($C41,'Efficiency Distributions'!$C$9:$C$87,0)+RIGHT($E45),0) +AN$11*OFFSET('Efficiency Distributions'!$E$10,MATCH($C41,'Efficiency Distributions'!$C$9:$C$87,0)+RIGHT($E45),0)) /SUM(AN$10:AN$11) -> 0.2610383484 | AO45: =IF(INDEX(PC_MAPPING,RIGHT($C41,1),MATCH($E$2,'Data by Building Type'!$D$22:$F$22,0))="Yes",1,0)* (AO$10*OFFSET('Efficiency Distributions'!$D$10,MATCH($C41,'Efficiency Distributions'!$C$9:$C$87,0)+RIGHT($E45),0) +AO$11*OFFSET('Efficiency Distributions'!$E$10,MATCH($C41,'Efficiency Distributions'!$C$9:$C$87,0)+RIGHT($E45),0)) /SUM(AO$10:AO$11) -> 0.2637092343 | AP45: =IF(INDEX(PC_MAPPING,RIGHT($C41,1),MATCH($E$2,'Data by Building Type'!$D$22:$F$22,0))="Yes",1,0)* (AP$10*OFFSET('Efficiency Distributions'!$D$10,MATCH($C41,'Efficiency Distributions'!$C$9:$C$87,0)+RIGHT($E45),0) +AP$11*OFFSET('Efficiency Distributions'!$E$10,MATCH($C41,'Efficiency Distributions'!$C$9:$C$87,0)+RIGHT($E45),0)) /SUM(AP$10:AP$11) -> 0.2625342317 | AQ45: =IF(INDEX(PC_MAPPING,RIGHT($C41,1),MATCH($E$2,'Data by Building Type'!$D$22:$F$22,0))="Yes",1,0)* (AQ$10*OFFSET('Efficiency Distributions'!$D$10,MATCH($C41,'Efficiency Distributions'!$C$9:$C$87,0)+RIGHT($E45),0) +AQ$11*OFFSET('Efficiency Distributions'!$E$10,MATCH($C41,'Efficiency Distributions'!$C$9:$C$87,0)+RIGHT($E45),0)) /SUM(AQ$10:AQ$11) -> 0.2621351974 | AR45: =IF(INDEX(PC_MAPPING,RIGHT($C41,1),MATCH($E$2,'Data by Building Type'!$D$22:$F$22,0))="Yes",1,0)* (AR$10*OFFSET('Efficiency Distributions'!$D$10,MATCH($C41,'Efficiency Distributions'!$C$9:$C$87,0)+RIGHT($E45),0) +AR$11*OFFSET('Efficiency Distributions'!$E$10,MATCH($C41,'Efficiency Distributions'!$C$9:$C$87,0)+RIGHT($E45),0)) /SUM(AR$10:AR$11) -> 0.2608792316 | AS45: =IF(INDEX(PC_MAPPING,RIGHT($C41,1),MATCH($E$2,'Data by Building Type'!$D$22:$F$22,0))="Yes",1,0)* (AS$10*OFFSET('Efficiency Distributions'!$D$10,MATCH($C41,'Efficiency Distributions'!$C$9:$C$87,0)+RIGHT($E45),0) +AS$11*OFFSET('Efficiency Distributions'!$E$10,MATCH($C41,'Efficiency Distributions'!$C$9:$C$87,0)+RIGHT($E45),0)) /SUM(AS$10:AS$11) -> 0.2608959133 | AT45: =IF(INDEX(PC_MAPPING,RIGHT($C41,1),MATCH($E$2,'Data by Building Type'!$D$22:$F$22,0))="Yes",1,0)* (AT$10*OFFSET('Efficiency Distributions'!$D$10,MATCH($C41,'Efficiency Distributions'!$C$9:$C$87,0)+RIGHT($E45),0) +AT$11*OFFSET('Efficiency Distributions'!$E$10,MATCH($C41,'Efficiency Distributions'!$C$9:$C$87,0)+RIGHT($E45),0)) /SUM(AT$10:AT$11) -> 0.2615616228 | AU45: =IF(INDEX(PC_MAPPING,RIGHT($C41,1),MATCH($E$2,'Data by Building Type'!$D$22:$F$22,0))="Yes",1,0)* (AU$10*OFFSET('Efficiency Distributions'!$D$10,MATCH($C41,'Efficiency Distributions'!$C$9:$C$87,0)+RIGHT($E45),0) +AU$11*OFFSET('Efficiency Distributions'!$E$10,MATCH($C41,'Efficiency Distributions'!$C$9:$C$87,0)+RIGHT($E45),0)) /SUM(AU$10:AU$11) -> 0.2607798515 | AV45: =IF(INDEX(PC_MAPPING,RIGHT($C41,1),MATCH($E$2,'Data by Building Type'!$D$22:$F$22,0))="Yes",1,0)* (AV$10*OFFSET('Efficiency Distributions'!$D$10,MATCH($C41,'Efficiency Distributions'!$C$9:$C$87,0)+RIGHT($E45),0) +AV$11*OFFSET('Efficiency Distributions'!$E$10,MATCH($C41,'Efficiency Distributions'!$C$9:$C$87,0)+RIGHT($E45),0)) /SUM(AV$10:AV$11) -> 0.2499915718 | AW45: =IF(INDEX(PC_MAPPING,RIGHT($C41,1),MATCH($E$2,'Data by Building Type'!$D$22:$F$22,0))="Yes",1,0)* (AW$10*OFFSET('Efficiency Distributions'!$D$10,MATCH($C41,'Efficiency Distributions'!$C$9:$C$87,0)+RIGHT($E45),0) +AW$11*OFFSET('Efficiency Distributions'!$E$10,MATCH($C41,'Efficiency Distributions'!$C$9:$C$87,0)+RIGHT($E45),0)) /SUM(AW$10:AW$11) -> 0.2506277355 | AX45: =IF(INDEX(PC_MAPPING,RIGHT($C41,1),MATCH($E$2,'Data by Building Type'!$D$22:$F$22,0))="Yes",1,0)* (AX$10*OFFSET('Efficiency Distributions'!$D$10,MATCH($C41,'Efficiency Distributions'!$C$9:$C$87,0)+RIGHT($E45),0) +AX$11*OFFSET('Efficiency Distributions'!$E$10,MATCH($C41,'Efficiency Distributions'!$C$9:$C$87,0)+RIGHT($E45),0)) /SUM(AX$10:AX$11) -> 0.2474167747 | AY45: =IF(INDEX(PC_MAPPING,RIGHT($C41,1),MATCH($E$2,'Data by Building Type'!$D$22:$F$22,0))="Yes",1,0)* (AY$10*OFFSET('Efficiency Distributions'!$D$10,MATCH($C41,'Efficiency Distributions'!$C$9:$C$87,0)+RIGHT($E45),0) +AY$11*OFFSET('Efficiency Distributions'!$E$10,MATCH($C41,'Efficiency Distributions'!$C$9:$C$87,0)+RIGHT($E45),0)) /SUM(AY$10:AY$11) -> 0.2464424972 | AZ45: =IF(INDEX(PC_MAPPING,RIGHT($C41,1),MATCH($E$2,'Data by Building Type'!$D$22:$F$22,0))="Yes",1,0)* (AZ$10*OFFSET('Efficiency Distributions'!$D$10,MATCH($C41,'Efficiency Distributions'!$C$9:$C$87,0)+RIGHT($E45),0) +AZ$11*OFFSET('Efficiency Distributions'!$E$10,MATCH($C41,'Efficiency Distributions'!$C$9:$C$87,0)+RIGHT($E45),0)) /SUM(AZ$10:AZ$11) -> 0.2479042589 | BA45: =IF(INDEX(PC_MAPPING,RIGHT($C41,1),MATCH($E$2,'Data by Building Type'!$D$22:$F$22,0))="Yes",1,0)* (BA$10*OFFSET('Efficiency Distributions'!$D$10,MATCH($C41,'Efficiency Distributions'!$C$9:$C$87,0)+RIGHT($E45),0) +BA$11*OFFSET('Efficiency Distributions'!$E$10,MATCH($C41,'Efficiency Distributions'!$C$9:$C$87,0)+RIGHT($E45),0)) /SUM(BA$10:BA$11) -> 0.2501518551 | BB45: =IF(INDEX(PC_MAPPING,RIGHT($C41,1),MATCH($E$2,'Data by Building Type'!$D$22:$F$22,0))="Yes",1,0)* (BB$10*OFFSET('Efficiency Distributions'!$D$10,MATCH($C41,'Efficiency Distributions'!$C$9:$C$87,0)+RIGHT($E45),0) +BB$11*OFFSET('Efficiency Distributions'!$E$10,MATCH($C41,'Efficiency Distributions'!$C$9:$C$87,0)+RIGHT($E45),0)) /SUM(BB$10:BB$11) -> 0.2549613788 | BC45: =IF(INDEX(PC_MAPPING,RIGHT($C41,1),MATCH($E$2,'Data by Building Type'!$D$22:$F$22,0))="Yes",1,0)* (BC$10*OFFSET('Efficiency Distributions'!$D$10,MATCH($C41,'Efficiency Distributions'!$C$9:$C$87,0)+RIGHT($E45),0) +BC$11*OFFSET('Efficiency Distributions'!$E$10,MATCH($C41,'Efficiency Distributions'!$C$9:$C$87,0)+RIGHT($E45),0)) /SUM(BC$10:BC$11) -> 0.2559366201 | BD45: =IF(INDEX(PC_MAPPING,RIGHT($C41,1),MATCH($E$2,'Data by Building Type'!$D$22:$F$22,0))="Yes",1,0)* (BD$10*OFFSET('Efficiency Distributions'!$D$10,MATCH($C41,'Efficiency Distributions'!$C$9:$C$87,0)+RIGHT($E45),0) +BD$11*OFFSET('Efficiency Distributions'!$E$10,MATCH($C41,'Efficiency Distributions'!$C$9:$C$87,0)+RIGHT($E45),0)) /SUM(BD$10:BD$11) -> 0.2504793207 | BE45: =IF(INDEX(PC_MAPPING,RIGHT($C41,1),MATCH($E$2,'Data by Building Type'!$D$22:$F$22,0))="Yes",1,0)* (BE$10*OFFSET('Efficiency Distributions'!$D$10,MATCH($C41,'Efficiency Distributions'!$C$9:$C$87,0)+RIGHT($E45),0) +BE$11*OFFSET('Efficiency Distributions'!$E$10,MATCH($C41,'Efficiency Distributions'!$C$9:$C$87,0)+RIGHT($E45),0)) /SUM(BE$10:BE$11) -> 0.2466639836 | BF45: =IF(INDEX(PC_MAPPING,RIGHT($C41,1),MATCH($E$2,'Data by Building Type'!$D$22:$F$22,0))="Yes",1,0)* (BF$10*OFFSET('Efficiency Distributions'!$D$10,MATCH($C41,'Efficiency Distributions'!$C$9:$C$87,0)+RIGHT($E45),0) +BF$11*OFFSET('Efficiency Distributions'!$E$10,MATCH($C41,'Efficiency Distributions'!$C$9:$C$87,0)+RIGHT($E45),0)) /SUM(BF$10:BF$11) -> 0.2390799329 | BG45: =IF(INDEX(PC_MAPPING,RIGHT($C41,1),MATCH($E$2,'Data by Building Type'!$D$22:$F$22,0))="Yes",1,0)* (BG$10*OFFSET('Efficiency Distributions'!$D$10,MATCH($C41,'Efficiency Distributions'!$C$9:$C$87,0)+RIGHT($E45),0) +BG$11*OFFSET('Efficiency Distributions'!$E$10,MATCH($C41,'Efficiency Distributions'!$C$9:$C$87,0)+RIGHT($E45),0)) /SUM(BG$10:BG$11) -> 0.2376767761
